Workbook

Sheet CS Spend (hidden)
C1: CHILDREN'S SERVICES: SPEND AND OUTCOMES
V3: Spend
V4: approximate weekly £ per child
V5: Outturn | W5: Outturn | X5: S251 | AL5: SEN | AM5: =AA18 -> -0.3684210526 | AP5: _7
V6: 2011 -12 | W6: 2012 -13 | X6: 2013 -14 | Y6: which is: | Z6: England | AA6: % | AC6: Service area | AL6: Social Work & Comm | AM6: =AA16 -> 0.1111111111 | AO6: 2012 | AP6: _8
AL7: Residential Care | AM7: =AA14 -> -0.03929273084
V8: =IF(ISERROR(HLOOKUP(DropDowns!$F$1,LADataRange,VLOOKUP($AF8&$AP$5,DataItemDesc,2,FALSE),FALSE)),"-",(HLOOKUP(DropDowns!$F$1,LADataRange,VLOOKUP($AF8&$AP$5,DataItemDesc,2,FALSE),FALSE))) -> 900 | W8: =IF(ISERROR(HLOOKUP(DropDowns!$F$1,LADataRange,VLOOKUP($AF8&$AP$6,DataItemDesc,2,FALSE),FALSE)),"-",(HLOOKUP(DropDowns!$F$1,LADataRange,VLOOKUP($AF8&$AP$6,DataItemDesc,2,FALSE),FALSE))) -> 875 | X8: =IF(ISERROR(HLOOKUP(DropDowns!$F$1,LADataRange,VLOOKUP($AF8&$AP$8,DataItemDesc,2,FALSE),FALSE)),"-",(HLOOKUP(DropDowns!$F$1,LADataRange,VLOOKUP($AF8&$AP$8,DataItemDesc,2,FALSE),FALSE))) -> 850 | Y8: =IF(X8="-","-",IF(AND(ROUND(AA8,2)<0.01,ROUND(AA8,2)>-0.01),"approximate to the national average",IF(ROUND(AA8,2)<0,ROUND(AA8,2)*-1&" times less than the national average",ROUND(AA8,2)&" times more than the national average"))) -> 0.1 times less than the national average | Z8: =IF(ISERROR(HLOOKUP(970,LADataRange,VLOOKUP($AF8&$AP$8,DataItemDesc,2,FALSE),FALSE)),"-",(HLOOKUP(970,LADataRange,VLOOKUP($AF8&$AP$8,DataItemDesc,2,FALSE),FALSE))) -> 940 | AA8: =IF(ISERROR(X8/Z8-1),"-",X8/Z8-1) -> -0.09574468085 | AB8: All Looked After Children | AF8: LACFinance | AL8: Adoption | AM8: =AA12 -> 0.3534482759 | AO8: 2013 | AP8: _9
AL9: Fostering | AM9: =AA10 -> -0.01851851852 | AO9: Trend | AP9: _11 | AQ9: _16
V10: =IF(ISERROR(HLOOKUP(DropDowns!$F$1,LADataRange,VLOOKUP($AF10&$AP$5,DataItemDesc,2,FALSE),FALSE)),"-",(HLOOKUP(DropDowns!$F$1,LADataRange,VLOOKUP($AF10&$AP$5,DataItemDesc,2,FALSE),FALSE))) -> 565 | W10: =IF(ISERROR(HLOOKUP(DropDowns!$F$1,LADataRange,VLOOKUP($AF10&$AP$6,DataItemDesc,2,FALSE),FALSE)),"-",(HLOOKUP(DropDowns!$F$1,LADataRange,VLOOKUP($AF10&$AP$6,DataItemDesc,2,FALSE),FALSE))) -> 555 | X10: =IF(ISERROR(HLOOKUP(DropDowns!$F$1,LADataRange,VLOOKUP($AF10&$AP$8,DataItemDesc,2,FALSE),FALSE)),"-",(HLOOKUP(DropDowns!$F$1,LADataRange,VLOOKUP($AF10&$AP$8,DataItemDesc,2,FALSE),FALSE))) -> 530 | Y10: =IF(X10="-","-",IF(AND(ROUND(AA10,2)<0.01,ROUND(AA10,2)>-0.01),"approximate to the national average",IF(ROUND(AA10,2)<0,ROUND(AA10,2)*-1&" times less than the national average",ROUND(AA10,2)&" times more than the national average"))) -> 0.02 times less than the national average | Z10: =IF(ISERROR(HLOOKUP(970,LADataRange,VLOOKUP($AF10&$AP$8,DataItemDesc,2,FALSE),FALSE)),"-",(HLOOKUP(970,LADataRange,VLOOKUP($AF10&$AP$8,DataItemDesc,2,FALSE),FALSE))) -> 540 | AA10: =IF(ISERROR(X10/Z10-1),"-",X10/Z10-1) -> -0.01851851852 | AC10: Fostering | AF10: FosteringFinance | AL10: LAC | AM10: =AA8 -> -0.09574468085 | AP10: _10
V12: =IF(ISERROR(HLOOKUP(DropDowns!$F$1,LADataRange,VLOOKUP($AF12&$AP$5,DataItemDesc,2,FALSE),FALSE)),"-",(HLOOKUP(DropDowns!$F$1,LADataRange,VLOOKUP($AF12&$AP$5,DataItemDesc,2,FALSE),FALSE))) -> 1145 | W12: =IF(ISERROR(HLOOKUP(DropDowns!$F$1,LADataRange,VLOOKUP($AF12&$AP$6,DataItemDesc,2,FALSE),FALSE)),"-",(HLOOKUP(DropDowns!$F$1,LADataRange,VLOOKUP($AF12&$AP$6,DataItemDesc,2,FALSE),FALSE))) -> 960 | X12: =IF(ISERROR(HLOOKUP(DropDowns!$F$1,LADataRange,VLOOKUP($AF12&$AP$8,DataItemDesc,2,FALSE),FALSE)),"-",(HLOOKUP(DropDowns!$F$1,LADataRange,VLOOKUP($AF12&$AP$8,DataItemDesc,2,FALSE),FALSE))) -> 785 | Y12: =IF(X12="-","-",IF(AND(ROUND(AA12,2)<0.01,ROUND(AA12,2)>-0.01),"approximate to the national average",IF(ROUND(AA12,2)<0,ROUND(AA12,2)*-1&" times less than the national average",ROUND(AA12,2)&" times more than the national average"))) -> 0.35 times more than the national average | Z12: =IF(ISERROR(HLOOKUP(970,LADataRange,VLOOKUP($AF12&$AP$8,DataItemDesc,2,FALSE),FALSE)),"-",(HLOOKUP(970,LADataRange,VLOOKUP($AF12&$AP$8,DataItemDesc,2,FALSE),FALSE))) -> 580 | AA12: =IF(ISERROR(X12/Z12-1),"-",X12/Z12-1) -> 0.3534482759 | AC12: Adoption | AF12: AdoptionFinance
V14: =IF(ISERROR(HLOOKUP(DropDowns!$F$1,LADataRange,VLOOKUP($AF14&$AP$5,DataItemDesc,2,FALSE),FALSE)),"-",(HLOOKUP(DropDowns!$F$1,LADataRange,VLOOKUP($AF14&$AP$5,DataItemDesc,2,FALSE),FALSE))) -> 2015 | W14: =IF(ISERROR(HLOOKUP(DropDowns!$F$1,LADataRange,VLOOKUP($AF14&$AP$6,DataItemDesc,2,FALSE),FALSE)),"-",(HLOOKUP(DropDowns!$F$1,LADataRange,VLOOKUP($AF14&$AP$6,DataItemDesc,2,FALSE),FALSE))) -> 2220 | X14: =IF(ISERROR(HLOOKUP(DropDowns!$F$1,LADataRange,VLOOKUP($AF14&$AP$8,DataItemDesc,2,FALSE),FALSE)),"-",(HLOOKUP(DropDowns!$F$1,LADataRange,VLOOKUP($AF14&$AP$8,DataItemDesc,2,FALSE),FALSE))) -> 2445 | Y14: =IF(X14="-","-",IF(AND(ROUND(AA14,2)<0.01,ROUND(AA14,2)>-0.01),"approximate to the national average",IF(ROUND(AA14,2)<0,ROUND(AA14,2)*-1&" times less than the national average",ROUND(AA14,2)&" times more than the national average"))) -> 0.04 times less than the national average | Z14: =IF(ISERROR(HLOOKUP(970,LADataRange,VLOOKUP($AF14&$AP$8,DataItemDesc,2,FALSE),FALSE)),"-",(HLOOKUP(970,LADataRange,VLOOKUP($AF14&$AP$8,DataItemDesc,2,FALSE),FALSE))) -> 2545 | AA14: =IF(ISERROR(X14/Z14-1),"-",X14/Z14-1) -> -0.03929273084 | AC14: Residential Care | AF14: RescareFinance
V16: =IF(ISERROR(HLOOKUP(DropDowns!$F$1,LADataRange,VLOOKUP($AF16&$AP$5,DataItemDesc,2,FALSE),FALSE)),"-",(HLOOKUP(DropDowns!$F$1,LADataRange,VLOOKUP($AF16&$AP$5,DataItemDesc,2,FALSE),FALSE))) -> 105 | W16: =IF(ISERROR(HLOOKUP(DropDowns!$F$1,LADataRange,VLOOKUP($AF16&$AP$6,DataItemDesc,2,FALSE),FALSE)),"-",(HLOOKUP(DropDowns!$F$1,LADataRange,VLOOKUP($AF16&$AP$6,DataItemDesc,2,FALSE),FALSE))) -> 125 | X16: =IF(ISERROR(HLOOKUP(DropDowns!$F$1,LADataRange,VLOOKUP($AF16&$AP$8,DataItemDesc,2,FALSE),FALSE)),"-",(HLOOKUP(DropDowns!$F$1,LADataRange,VLOOKUP($AF16&$AP$8,DataItemDesc,2,FALSE),FALSE))) -> 100 | Y16: =IF(X16="-","-",IF(AND(ROUND(AA16,2)<0.01,ROUND(AA16,2)>-0.01),"approximate to the national average",IF(ROUND(AA16,2)<0,ROUND(AA16,2)*-1&" times less than the national average",ROUND(AA16,2)&" times more than the national average"))) -> 0.11 times more than the national average | Z16: =IF(ISERROR(HLOOKUP(970,LADataRange,VLOOKUP($AF16&$AP$8,DataItemDesc,2,FALSE),FALSE)),"-",(HLOOKUP(970,LADataRange,VLOOKUP($AF16&$AP$8,DataItemDesc,2,FALSE),FALSE))) -> 90 | AA16: =IF(ISERROR(X16/Z16-1),"-",X16/Z16-1) -> 0.1111111111 | AB16: Social Work and Commissioning | AF16: SWFinance
V18: =IF(ISERROR(HLOOKUP(DropDowns!$F$1,LADataRange,VLOOKUP($AF18&$AP$5,DataItemDesc,2,FALSE),FALSE)),"-",(HLOOKUP(DropDowns!$F$1,LADataRange,VLOOKUP($AF18&$AP$5,DataItemDesc,2,FALSE),FALSE))) -> 95 | W18: =IF(ISERROR(HLOOKUP(DropDowns!$F$1,LADataRange,VLOOKUP($AF18&$AP$6,DataItemDesc,2,FALSE),FALSE)),"-",(HLOOKUP(DropDowns!$F$1,LADataRange,VLOOKUP($AF18&$AP$6,DataItemDesc,2,FALSE),FALSE))) -> 70 | X18: =IF(ISERROR(HLOOKUP(DropDowns!$F$1,LADataRange,VLOOKUP($AF18&$AP$8,DataItemDesc,2,FALSE),FALSE)),"-",(HLOOKUP(DropDowns!$F$1,LADataRange,VLOOKUP($AF18&$AP$8,DataItemDesc,2,FALSE),FALSE))) -> 60 | Y18: =IF(X18="-","-",IF(AND(ROUND(AA18,2)<0.01,ROUND(AA18,2)>-0.01),"approximate to the national average",IF(ROUND(AA18,2)<0,ROUND(AA18,2)*-1&" times less than the national average",ROUND(AA18,2)&" times more than the national average"))) -> 0.37 times less than the national average | Z18: =IF(ISERROR(HLOOKUP(970,LADataRange,VLOOKUP($AF18&$AP$8,DataItemDesc,2,FALSE),FALSE)),"-",(HLOOKUP(970,LADataRange,VLOOKUP($AF18&$AP$8,DataItemDesc,2,FALSE),FALSE))) -> 95 | AA18: =IF(ISERROR(X18/Z18-1),"-",X18/Z18-1) -> -0.3684210526 | AB18: SEN (Non-school-based) | AF18: SENFinance
AB19: SEN derived solely from S251 budget statements
C39: >> Double click on indicator name to drilldown to statistical neighbour level
G40: Outcomes | AN40: Percentage of children with three or more placements in the year | AR40: Percentage of children who have been looked after for more than 2.5 years and of those, have been in the same placement for at least 2 years or placed for adoption | AV40: GCSE attainment - % point difference between LAC and all the children in the local authority (5 A*-C GCSEs including English and Maths) | AZ40: Percentage of care leavers at 19 in Education, Employment or Training
I41: % | AN41: 2011 | AO41: 2012 | AP41: 2013 | AQ41: 2014 | AR41: 2011 | AS41: 2012 | AT41: 2013 | AU41: 2014 | AV41: 2011 | AW41: 2012 | AX41: 2013 | AY41: 2014 | AZ41: 2011 | BA41: 2012 | BB41: 2013 | BC41: 2014
D42: 2011 | E42: 2012 | F42: 2013 | G42: 2014 | H42: England | I42: variation | J42: Min | K42: Max | M42: Source: DfE statistical first releases, unless otherwise stated | AF42: Comments | AL42: 341 | AM42: =VLOOKUP($AL42,'LA SN Groups'!$A$4:$B$155,2,FALSE) -> Liverpool | AN42: =IF(ISERROR(HLOOKUP(AL42,LADataRange,VLOOKUP($A$43&$AP$5,DataItemDesc,2,FALSE),FALSE)),"-",(HLOOKUP(AL42,LADataRange,VLOOKUP($A$43&$AP$5,DataItemDesc,2,FALSE),FALSE))) -> 8 | AO42: =IF(ISERROR(HLOOKUP(AL42,LADataRange,VLOOKUP($A$43&$AP$6,DataItemDesc,2,FALSE),FALSE)),"-",(HLOOKUP(AL42,LADataRange,VLOOKUP($A$43&$AP$6,DataItemDesc,2,FALSE),FALSE))) -> 10 | AP42: =IF(ISERROR(HLOOKUP(AL42,LADataRange,VLOOKUP($A$43&$AP$8,DataItemDesc,2,FALSE),FALSE)),"-",(HLOOKUP(AL42,LADataRange,VLOOKUP($A$43&$AP$8,DataItemDesc,2,FALSE),FALSE))) -> 10 | AQ42: =IF(ISERROR(HLOOKUP(AL42,LADataRange,VLOOKUP($A$43&$AP$10,DataItemDesc,2,FALSE),FALSE)),"-",(HLOOKUP(AL42,LADataRange,VLOOKUP($A$43&$AP$10,DataItemDesc,2,FALSE),FALSE))) -> - | AR42: =IF(ISERROR(HLOOKUP($AL42,LADataRange,VLOOKUP($A$44&$AP$5,DataItemDesc,2,FALSE),FALSE)),"-",(HLOOKUP($AL42,LADataRange,VLOOKUP($A$44&$AP$5,DataItemDesc,2,FALSE),FALSE))) -> 68 | AS42: =IF(ISERROR(HLOOKUP($AL42,LADataRange,VLOOKUP($A$44&$AP$6,DataItemDesc,2,FALSE),FALSE)),"-",(HLOOKUP($AL42,LADataRange,VLOOKUP($A$44&$AP$6,DataItemDesc,2,FALSE),FALSE))) -> 61 | AT42: =IF(ISERROR(HLOOKUP($AL42,LADataRange,VLOOKUP($A$44&$AP$8,DataItemDesc,2,FALSE),FALSE)),"-",(HLOOKUP($AL42,LADataRange,VLOOKUP($A$44&$AP$8,DataItemDesc,2,FALSE),FALSE))) -> 64 | AU42: =IF(ISERROR(HLOOKUP($AL42,LADataRange,VLOOKUP($A$44&$AP$10,DataItemDesc,2,FALSE),FALSE)),"-",(HLOOKUP($AL42,LADataRange,VLOOKUP($A$44&$AP$10,DataItemDesc,2,FALSE),FALSE))) -> - | AV42: =IF(ISERROR(HLOOKUP(AL42,LADataRange,VLOOKUP($A$45&$AP$5,DataItemDesc,2,FALSE),FALSE)),"-",IF(HLOOKUP(AL42,LADataRange,VLOOKUP($A$45&$AP$5,DataItemDesc,2,FALSE),FALSE)="-","-",HLOOKUP(AL42,LADataRange,VLOOKUP($B$45&$AP$5,DataItemDesc,2,FALSE),FALSE)-(HLOOKUP(AL42,LADataRange,VLOOKUP($A$45&$AP$5,DataItemDesc,2,FALSE),FALSE)))) -> 41.5 | AW42: =IF(ISERROR(HLOOKUP(AL42,LADataRange,VLOOKUP($A$45&$AP$6,DataItemDesc,2,FALSE),FALSE)),"-",IF(HLOOKUP(AL42,LADataRange,VLOOKUP($A$45&$AP$6,DataItemDesc,2,FALSE),FALSE)="-","-",HLOOKUP(AL42,LADataRange,VLOOKUP($B$45&$AP$6,DataItemDesc,2,FALSE),FALSE)-(HLOOKUP(AL42,LADataRange,VLOOKUP($A$45&$AP$6,DataItemDesc,2,FALSE),FALSE)))) -> 40.5 | AX42: =IF(ISERROR(HLOOKUP(AL42,LADataRange,VLOOKUP($A$45&$AP$8,DataItemDesc,2,FALSE),FALSE)),"-",IF(HLOOKUP(AL42,LADataRange,VLOOKUP($A$45&$AP$8,DataItemDesc,2,FALSE),FALSE)="-","-",HLOOKUP(AL42,LADataRange,VLOOKUP($B$45&$AP$8,DataItemDesc,2,FALSE),FALSE)-(HLOOKUP(AL42,LADataRange,VLOOKUP($A$45&$AP$8,DataItemDesc,2,FALSE),FALSE)))) -> 36.9 | AY42: =IF(ISERROR(HLOOKUP(AL42,LADataRange,VLOOKUP($A$45&$AP$10,DataItemDesc,2,FALSE),FALSE)),"-",(HLOOKUP(AL42,LADataRange,VLOOKUP($A$45&$AP$10,DataItemDesc,2,FALSE),FALSE))) -> - | AZ42: =IF(ISERROR(HLOOKUP(AL42,LADataRange,VLOOKUP($A$46&$AP$5,DataItemDesc,2,FALSE),FALSE)),"-",(HLOOKUP(AL42,LADataRange,VLOOKUP($A$46&$AP$5,DataItemDesc,2,FALSE),FALSE))) -> 61 | BA42: =IF(ISERROR(HLOOKUP(AL42,LADataRange,VLOOKUP($A$46&$AP$6,DataItemDesc,2,FALSE),FALSE)),"-",(HLOOKUP(AL42,LADataRange,VLOOKUP($A$46&$AP$6,DataItemDesc,2,FALSE),FALSE))) -> 64 | BB42: =IF(ISERROR(HLOOKUP(AL42,LADataRange,VLOOKUP($A$46&$AP$8,DataItemDesc,2,FALSE),FALSE)),"-",(HLOOKUP(AL42,LADataRange,VLOOKUP($A$46&$AP$8,DataItemDesc,2,FALSE),FALSE))) -> 42 | BC42: =IF(ISERROR(HLOOKUP(AL42,LADataRange,VLOOKUP($A$46&$AP$10,DataItemDesc,2,FALSE),FALSE)),"-",(HLOOKUP(AL42,LADataRange,VLOOKUP($A$46&$AP$10,DataItemDesc,2,FALSE),FALSE))) -> -
A43: LACStable | C43: Looked After | D43: =IF(ISERROR(HLOOKUP(DropDowns!$F$1,LADataRange,VLOOKUP($A43&$AP$5,DataItemDesc,2,FALSE),FALSE)),"-",(HLOOKUP(DropDowns!$F$1,LADataRange,VLOOKUP($A43&$AP$5,DataItemDesc,2,FALSE),FALSE))) -> 13 | E43: =IF(ISERROR(HLOOKUP(DropDowns!$F$1,LADataRange,VLOOKUP($A43&$AP$6,DataItemDesc,2,FALSE),FALSE)),"-",(HLOOKUP(DropDowns!$F$1,LADataRange,VLOOKUP($A43&$AP$6,DataItemDesc,2,FALSE),FALSE))) -> 9 | F43: =IF(ISERROR(HLOOKUP(DropDowns!$F$1,LADataRange,VLOOKUP($A43&$AP$8,DataItemDesc,2,FALSE),FALSE)),"-",(HLOOKUP(DropDowns!$F$1,LADataRange,VLOOKUP($A43&$AP$8,DataItemDesc,2,FALSE),FALSE))) -> 10 | G43: =IF(ISERROR(HLOOKUP(DropDowns!$F$1,LADataRange,VLOOKUP($A43&$AP$10,DataItemDesc,2,FALSE),FALSE)),"-",(HLOOKUP(DropDowns!$F$1,LADataRange,VLOOKUP($A43&$AP$10,DataItemDesc,2,FALSE),FALSE))) -> - | H43: =IF(ISERROR(HLOOKUP(970,LADataRange,VLOOKUP($A43&$AP$8,DataItemDesc,2,FALSE),FALSE)),"-",(HLOOKUP(970,LADataRange,VLOOKUP($A43&$AP$8,DataItemDesc,2,FALSE),FALSE))) -> 11 | I43: =IF(ISERROR(1-H43/F43),"-",1-H43/F43) -> -0.1 | J43: =ROUND(HLOOKUP(1001,LADataRange,VLOOKUP($A43&"_14",DataItemDesc,2,FALSE),FALSE),0)&"%" -> -120% | K43: =ROUND(HLOOKUP(1002,LADataRange,VLOOKUP($A43&"_14",DataItemDesc,2,FALSE),FALSE),0)&"%" -> 48% | M43: Percentage of children with three or more placements in the year | AG43: =IF(ISERROR(HLOOKUP(DropDowns!$F$1,LADataRange,VLOOKUP($A43&$AQ$9,DataItemDesc,2,FALSE),FALSE)),"-",(HLOOKUP(DropDowns!$F$1,LADataRange,VLOOKUP($A43&$AQ$9,DataItemDesc,2,FALSE),FALSE))) -> B | AL43: =VLOOKUP(AL42,'LA SN Groups'!$A$4:$Y$155,6,FALSE) -> 355 | AM43: =VLOOKUP($AL43,'LA SN Groups'!$A$4:$B$155,2,FALSE) -> Salford | AN43: 13 | AO43: 11 | AP43: 10 | AQ43: - | AR43: 57 | AS43: 65 | AT43: 71 | AU43: - | AV43: - | AW43: - | AX43: 30.2 | AY43: - | AZ43: 81 | BA43: 81 | BB43: 76 | BC43: -
A44: LACAdopt | D44: =IF(ISERROR(HLOOKUP(DropDowns!$F$1,LADataRange,VLOOKUP($A44&$AP$5,DataItemDesc,2,FALSE),FALSE)),"-",(HLOOKUP(DropDowns!$F$1,LADataRange,VLOOKUP($A44&$AP$5,DataItemDesc,2,FALSE),FALSE))) -> 66 | E44: =IF(ISERROR(HLOOKUP(DropDowns!$F$1,LADataRange,VLOOKUP($A44&$AP$6,DataItemDesc,2,FALSE),FALSE)),"-",(HLOOKUP(DropDowns!$F$1,LADataRange,VLOOKUP($A44&$AP$6,DataItemDesc,2,FALSE),FALSE))) -> 74 | F44: =IF(ISERROR(HLOOKUP(DropDowns!$F$1,LADataRange,VLOOKUP($A44&$AP$8,DataItemDesc,2,FALSE),FALSE)),"-",(HLOOKUP(DropDowns!$F$1,LADataRange,VLOOKUP($A44&$AP$8,DataItemDesc,2,FALSE),FALSE))) -> 67 | G44: =IF(ISERROR(HLOOKUP(DropDowns!$F$1,LADataRange,VLOOKUP($A44&$AP$10,DataItemDesc,2,FALSE),FALSE)),"-",(HLOOKUP(DropDowns!$F$1,LADataRange,VLOOKUP($A44&$AP$10,DataItemDesc,2,FALSE),FALSE))) -> - | H44: =IF(ISERROR(HLOOKUP(970,LADataRange,VLOOKUP($A44&$AP$8,DataItemDesc,2,FALSE),FALSE)),"-",(HLOOKUP(970,LADataRange,VLOOKUP($A44&$AP$8,DataItemDesc,2,FALSE),FALSE))) -> 67 | I44: 0 | J44: -63% | K44: 21% | M44: Percentage of children who have been looked after for more than 2.5 years and of those, have been in the same placement for at least 2 years or placed for adoption | AG44: =IF(ISERROR(HLOOKUP(DropDowns!$F$1,LADataRange,VLOOKUP($A44&$AQ$9,DataItemDesc,2,FALSE),FALSE)),"-",(HLOOKUP(DropDowns!$F$1,LADataRange,VLOOKUP($A44&$AQ$9,DataItemDesc,2,FALSE),FALSE))) -> C | AL44: =VLOOKUP(AL42,'LA SN Groups'!$A$4:$Y$155,8,FALSE) -> 393 | AM44: =VLOOKUP($AL44,'LA SN Groups'!$A$4:$B$155,2,FALSE) -> South Tyneside | AN44: 9 | AO44: 14 | AP44: 12 | AQ44: - | AR44: 70 | AS44: 69 | AT44: 68 | AU44: - | AV44: - | AW44: - | AX44: 29 | AY44: - | AZ44: 76 | BA44: 79 | BB44: 63 | BC44: -
A45: LAC_GCSE | B45: GCSE_NI75 | D45: =IF(ISERROR(HLOOKUP(DropDowns!$F$1,LADataRange,VLOOKUP($A45&$AP$5,DataItemDesc,2,FALSE),FALSE)),"-",IF(HLOOKUP(DropDowns!$F$1,LADataRange,VLOOKUP($A45&$AP$5,DataItemDesc,2,FALSE),FALSE)="-","-",HLOOKUP(DropDowns!$F$1,LADataRange,VLOOKUP($B45&$AP$5,DataItemDesc,2,FALSE),FALSE)-(HLOOKUP(DropDowns!$F$1,LADataRange,VLOOKUP($A45&$AP$5,DataItemDesc,2,FALSE),FALSE)))) -> - | E45: =IF(ISERROR(HLOOKUP(DropDowns!$F$1,LADataRange,VLOOKUP($A45&$AP$6,DataItemDesc,2,FALSE),FALSE)),"-",IF(HLOOKUP(DropDowns!$F$1,LADataRange,VLOOKUP($A45&$AP$6,DataItemDesc,2,FALSE),FALSE)="-","-",HLOOKUP(DropDowns!$F$1,LADataRange,VLOOKUP($B45&$AP$6,DataItemDesc,2,FALSE),FALSE)-(HLOOKUP(DropDowns!$F$1,LADataRange,VLOOKUP($A45&$AP$6,DataItemDesc,2,FALSE),FALSE)))) -> - | F45: =IF(ISERROR(HLOOKUP(DropDowns!$F$1,LADataRange,VLOOKUP($A45&$AP$8,DataItemDesc,2,FALSE),FALSE)),"-",IF(HLOOKUP(DropDowns!$F$1,LADataRange,VLOOKUP($A45&$AP$8,DataItemDesc,2,FALSE),FALSE)="-","-",HLOOKUP(DropDowns!$F$1,LADataRange,VLOOKUP($B45&$AP$8,DataItemDesc,2,FALSE),FALSE)-(HLOOKUP(DropDowns!$F$1,LADataRange,VLOOKUP($A45&$AP$8,DataItemDesc,2,FALSE),FALSE)))) -> - | G45: =IF(ISERROR(HLOOKUP(DropDowns!$F$1,LADataRange,VLOOKUP($A45&$AP$10,DataItemDesc,2,FALSE),FALSE)),"-",(HLOOKUP(DropDowns!$F$1,LADataRange,VLOOKUP($A45&$AP$10,DataItemDesc,2,FALSE),FALSE))) -> - | H45: =IF(ISERROR(HLOOKUP(970,LADataRange,VLOOKUP($A45&$AP$8,DataItemDesc,2,FALSE),FALSE)),"-",HLOOKUP(970,LADataRange,VLOOKUP($B45&$AP$8,DataItemDesc,2,FALSE),FALSE)-HLOOKUP(970,LADataRange,VLOOKUP($A45&$AP$8,DataItemDesc,2,FALSE),FALSE)) -> 41.4 | I45: - | J45: -124% | K45: 24% | M45: GCSE attainment - % point difference between LAC and all the children in the local authority (5 A*-C GCSEs including English and Maths) | AG45: =IF(ISERROR(HLOOKUP(DropDowns!$F$1,LADataRange,VLOOKUP($A45&$AQ$9,DataItemDesc,2,FALSE),FALSE)),"-",(HLOOKUP(DropDowns!$F$1,LADataRange,VLOOKUP($A45&$AQ$9,DataItemDesc,2,FALSE),FALSE))) -> - | AL45: =VLOOKUP(AL42,'LA SN Groups'!$A$4:$Y$155,10,FALSE) -> 340 | AM45: =VLOOKUP($AL45,'LA SN Groups'!$A$4:$B$155,2,FALSE) -> Knowsley | AN45: 11 | AO45: 11 | AP45: 15 | AQ45: - | AR45: 65 | AS45: 61 | AT45: 58 | AU45: - | AV45: - | AW45: - | AX45: - | AY45: - | AZ45: 71 | BA45: 64 | BB45: 47 | BC45: -
A46: CareLeaverEET | D46: =IF(ISERROR(HLOOKUP(DropDowns!$F$1,LADataRange,VLOOKUP($A46&$AP$5,DataItemDesc,2,FALSE),FALSE)),"-",(HLOOKUP(DropDowns!$F$1,LADataRange,VLOOKUP($A46&$AP$5,DataItemDesc,2,FALSE),FALSE))) -> 40 | E46: =IF(ISERROR(HLOOKUP(DropDowns!$F$1,LADataRange,VLOOKUP($A46&$AP$6,DataItemDesc,2,FALSE),FALSE)),"-",(HLOOKUP(DropDowns!$F$1,LADataRange,VLOOKUP($A46&$AP$6,DataItemDesc,2,FALSE),FALSE))) -> 56 | F46: =IF(ISERROR(HLOOKUP(DropDowns!$F$1,LADataRange,VLOOKUP($A46&$AP$8,DataItemDesc,2,FALSE),FALSE)),"-",(HLOOKUP(DropDowns!$F$1,LADataRange,VLOOKUP($A46&$AP$8,DataItemDesc,2,FALSE),FALSE))) -> 51 | G46: =IF(ISERROR(HLOOKUP(DropDowns!$F$1,LADataRange,VLOOKUP($A46&$AP$10,DataItemDesc,2,FALSE),FALSE)),"-",(HLOOKUP(DropDowns!$F$1,LADataRange,VLOOKUP($A46&$AP$10,DataItemDesc,2,FALSE),FALSE))) -> - | H46: =IF(ISERROR(HLOOKUP(970,LADataRange,VLOOKUP($A46&$AP$8,DataItemDesc,2,FALSE),FALSE)),"-",(HLOOKUP(970,LADataRange,VLOOKUP($A46&$AP$8,DataItemDesc,2,FALSE),FALSE))) -> 45 | I46: 0.1176470588 | J46: -96% | K46: 41% | M46: Percentage of care leavers at 19 in Education, Employment or Training | AG46: =IF(ISERROR(HLOOKUP(DropDowns!$F$1,LADataRange,VLOOKUP($A46&$AQ$9,DataItemDesc,2,FALSE),FALSE)),"-",(HLOOKUP(DropDowns!$F$1,LADataRange,VLOOKUP($A46&$AQ$9,DataItemDesc,2,FALSE),FALSE))) -> B | AL46: =VLOOKUP(AL42,'LA SN Groups'!$A$4:$Y$155,12,FALSE) -> 391 | AM46: =VLOOKUP($AL46,'LA SN Groups'!$A$4:$B$155,2,FALSE) -> Newcastle upon Tyne | AN46: 11 | AO46: 10 | AP46: 8 | AQ46: - | AR46: 68 | AS46: 64 | AT46: 63 | AU46: - | AV46: 41.6 | AW46: 47.6 | AX46: - | AY46: - | AZ46: 71 | BA46: 75 | BB46: 45 | BC46: -
A47: Foster _Distance | C47: Fostering | D47: =IF(ISERROR(HLOOKUP(DropDowns!$F$1,LADataRange,VLOOKUP($A47&$AP$5,DataItemDesc,2,FALSE),FALSE)),"-",(HLOOKUP(DropDowns!$F$1,LADataRange,VLOOKUP($A47&$AP$5,DataItemDesc,2,FALSE),FALSE))) -> 21 | E47: =IF(ISERROR(HLOOKUP(DropDowns!$F$1,LADataRange,VLOOKUP($A47&$AP$6,DataItemDesc,2,FALSE),FALSE)),"-",(HLOOKUP(DropDowns!$F$1,LADataRange,VLOOKUP($A47&$AP$6,DataItemDesc,2,FALSE),FALSE))) -> 21 | F47: =IF(ISERROR(HLOOKUP(DropDowns!$F$1,LADataRange,VLOOKUP($A47&$AP$8,DataItemDesc,2,FALSE),FALSE)),"-",(HLOOKUP(DropDowns!$F$1,LADataRange,VLOOKUP($A47&$AP$8,DataItemDesc,2,FALSE),FALSE))) -> - | G47: =IF(ISERROR(HLOOKUP(DropDowns!$F$1,LADataRange,VLOOKUP($A47&$AP$10,DataItemDesc,2,FALSE),FALSE)),"-",(HLOOKUP(DropDowns!$F$1,LADataRange,VLOOKUP($A47&$AP$10,DataItemDesc,2,FALSE),FALSE))) -> - | H47: - | I47: - | J47: -575% | K47: 68% | M47: Percentage of foster children looked after placed more than 20 miles from their home and outside LA boundary | AG47: =IF(ISERROR(HLOOKUP(DropDowns!$F$1,LADataRange,VLOOKUP($A47&$AQ$9,DataItemDesc,2,FALSE),FALSE)),"-",(HLOOKUP(DropDowns!$F$1,LADataRange,VLOOKUP($A47&$AQ$9,DataItemDesc,2,FALSE),FALSE))) -> B | AL47: =VLOOKUP(AL42,'LA SN Groups'!$A$4:$Y$155,14,FALSE) -> 806 | AM47: =VLOOKUP($AL47,'LA SN Groups'!$A$4:$B$155,2,FALSE) -> Middlesbrough | AN47: 10 | AO47: 8 | AP47: 9 | AQ47: - | AR47: 68 | AS47: 67 | AT47: 67 | AU47: - | AV47: - | AW47: - | AX47: - | AY47: - | AZ47: 47 | BA47: 47 | BB47: 40 | BC47: -
A48: Foster_3+Placements | D48: =IF(ISERROR(HLOOKUP(DropDowns!$F$1,LADataRange,VLOOKUP($A48&$AP$5,DataItemDesc,2,FALSE),FALSE)),"-",(HLOOKUP(DropDowns!$F$1,LADataRange,VLOOKUP($A48&$AP$5,DataItemDesc,2,FALSE),FALSE))) -> 10 | E48: =IF(ISERROR(HLOOKUP(DropDowns!$F$1,LADataRange,VLOOKUP($A48&$AP$6,DataItemDesc,2,FALSE),FALSE)),"-",(HLOOKUP(DropDowns!$F$1,LADataRange,VLOOKUP($A48&$AP$6,DataItemDesc,2,FALSE),FALSE))) -> 6 | F48: =IF(ISERROR(HLOOKUP(DropDowns!$F$1,LADataRange,VLOOKUP($A48&$AP$8,DataItemDesc,2,FALSE),FALSE)),"-",(HLOOKUP(DropDowns!$F$1,LADataRange,VLOOKUP($A48&$AP$8,DataItemDesc,2,FALSE),FALSE))) -> 10 | G48: =IF(ISERROR(HLOOKUP(DropDowns!$F$1,LADataRange,VLOOKUP($A48&$AP$10,DataItemDesc,2,FALSE),FALSE)),"-",(HLOOKUP(DropDowns!$F$1,LADataRange,VLOOKUP($A48&$AP$10,DataItemDesc,2,FALSE),FALSE))) -> - | H48: 7 | I48: 0.3 | J48: -250% | K48: 56% | M48: Proportion of children in foster care at 31st March with three or more placements in the year | AG48: =IF(ISERROR(HLOOKUP(DropDowns!$F$1,LADataRange,VLOOKUP($A48&$AQ$9,DataItemDesc,2,FALSE),FALSE)),"-",(HLOOKUP(DropDowns!$F$1,LADataRange,VLOOKUP($A48&$AQ$9,DataItemDesc,2,FALSE),FALSE))) -> D | AL48: =VLOOKUP(AL42,'LA SN Groups'!$A$4:$Y$155,16,FALSE) -> 805 | AM48: =VLOOKUP($AL48,'LA SN Groups'!$A$4:$B$155,2,FALSE) -> Hartlepool | AN48: 6 | AO48: 5 | AP48: 8 | AQ48: - | AR48: 75 | AS48: 81 | AT48: 85 | AU48: - | AV48: - | AW48: - | AX48: - | AY48: - | AZ48: - | BA48: 59 | BB48: 57 | BC48: -
A49: Foster_SamePlacements | D49: =IF(ISERROR(HLOOKUP(DropDowns!$F$1,LADataRange,VLOOKUP($A49&$AP$5,DataItemDesc,2,FALSE),FALSE)),"-",(HLOOKUP(DropDowns!$F$1,LADataRange,VLOOKUP($A49&$AP$5,DataItemDesc,2,FALSE),FALSE))) -> 69 | E49: =IF(ISERROR(HLOOKUP(DropDowns!$F$1,LADataRange,VLOOKUP($A49&$AP$6,DataItemDesc,2,FALSE),FALSE)),"-",(HLOOKUP(DropDowns!$F$1,LADataRange,VLOOKUP($A49&$AP$6,DataItemDesc,2,FALSE),FALSE))) -> 79 | F49: =IF(ISERROR(HLOOKUP(DropDowns!$F$1,LADataRange,VLOOKUP($A49&$AP$8,DataItemDesc,2,FALSE),FALSE)),"-",(HLOOKUP(DropDowns!$F$1,LADataRange,VLOOKUP($A49&$AP$8,DataItemDesc,2,FALSE),FALSE))) -> 71.3 | G49: =IF(ISERROR(HLOOKUP(DropDowns!$F$1,LADataRange,VLOOKUP($A49&$AP$10,DataItemDesc,2,FALSE),FALSE)),"-",(HLOOKUP(DropDowns!$F$1,LADataRange,VLOOKUP($A49&$AP$10,DataItemDesc,2,FALSE),FALSE))) -> - | H49: 73.3 | I49: -0.02805049088 | J49: -76% | K49: 18% | M49: Proportion of children in foster care who have been looked after for more than 2.5 years and of those, have been in the same placement for at least 2 years | AG49: =IF(ISERROR(HLOOKUP(DropDowns!$F$1,LADataRange,VLOOKUP($A49&$AQ$9,DataItemDesc,2,FALSE),FALSE)),"-",(HLOOKUP(DropDowns!$F$1,LADataRange,VLOOKUP($A49&$AQ$9,DataItemDesc,2,FALSE),FALSE))) -> C | AL49: =VLOOKUP(AL42,'LA SN Groups'!$A$4:$Y$155,18,FALSE) -> 390 | AM49: =VLOOKUP($AL49,'LA SN Groups'!$A$4:$B$155,2,FALSE) -> Gateshead | AN49: 14 | AO49: 11 | AP49: 8 | AQ49: - | AR49: 73 | AS49: 65 | AT49: 74 | AU49: - | AV49: - | AW49: 28.4 | AX49: - | AY49: - | AZ49: 62 | BA49: 62 | BB49: 57 | BC49: -
A50: AveTime1 | C50: Adoption | D50: =IF(ISERROR(HLOOKUP(DropDowns!$F$1,LADataRange,VLOOKUP($A50&$AP$5,DataItemDesc,2,FALSE),FALSE)),"-",(HLOOKUP(DropDowns!$F$1,LADataRange,VLOOKUP($A50&$AP$5,DataItemDesc,2,FALSE),FALSE))) -> 785 | E50: =IF(ISERROR(HLOOKUP(DropDowns!$F$1,LADataRange,VLOOKUP($A50&$AP$6,DataItemDesc,2,FALSE),FALSE)),"-",(HLOOKUP(DropDowns!$F$1,LADataRange,VLOOKUP($A50&$AP$6,DataItemDesc,2,FALSE),FALSE))) -> 657 | F50: =IF(ISERROR(HLOOKUP(DropDowns!$F$1,LADataRange,VLOOKUP($A50&$AP$8,DataItemDesc,2,FALSE),FALSE)),"-",(HLOOKUP(DropDowns!$F$1,LADataRange,VLOOKUP($A50&$AP$8,DataItemDesc,2,FALSE),FALSE))) -> 672 | G50: =IF(ISERROR(HLOOKUP(DropDowns!$F$1,LADataRange,VLOOKUP($A50&$AP$10,DataItemDesc,2,FALSE),FALSE)),"-",(HLOOKUP(DropDowns!$F$1,LADataRange,VLOOKUP($A50&$AP$10,DataItemDesc,2,FALSE),FALSE))) -> - | H50: 628 | I50: 0.06547619048 | J50: -85% | K50: 42% | M50: Average time between a child entering care and moving in with its adoptive family, for children who have been adopted (3yr ave.) | AF50: i.e 2010-2013 | AG50: =IF(ISERROR(HLOOKUP(DropDowns!$F$1,LADataRange,VLOOKUP($A50&$AQ$9,DataItemDesc,2,FALSE),FALSE)),"-",(HLOOKUP(DropDowns!$F$1,LADataRange,VLOOKUP($A50&$AQ$9,DataItemDesc,2,FALSE),FALSE))) -> C | AL50: =VLOOKUP(AL42,'LA SN Groups'!$A$4:$Y$155,20,FALSE) -> 876 | AM50: =VLOOKUP($AL50,'LA SN Groups'!$A$4:$B$155,2,FALSE) -> Halton | AN50: 10 | AO50: 10 | AP50: 10 | AQ50: - | AR50: 78 | AS50: 78 | AT50: 77 | AU50: - | AV50: - | AW50: - | AX50: - | AY50: - | AZ50: 82 | BA50: 84 | BB50: 58 | BC50: -
A51: %_of LAC Adopted | D51: =IF(ISERROR(HLOOKUP(DropDowns!$F$1,LADataRange,VLOOKUP($A51&$AP$5,DataItemDesc,2,FALSE),FALSE)),"-",(HLOOKUP(DropDowns!$F$1,LADataRange,VLOOKUP($A51&$AP$5,DataItemDesc,2,FALSE),FALSE))) -> 10 | E51: =IF(ISERROR(HLOOKUP(DropDowns!$F$1,LADataRange,VLOOKUP($A51&$AP$6,DataItemDesc,2,FALSE),FALSE)),"-",(HLOOKUP(DropDowns!$F$1,LADataRange,VLOOKUP($A51&$AP$6,DataItemDesc,2,FALSE),FALSE))) -> 8 | F51: =IF(ISERROR(HLOOKUP(DropDowns!$F$1,LADataRange,VLOOKUP($A51&$AP$8,DataItemDesc,2,FALSE),FALSE)),"-",(HLOOKUP(DropDowns!$F$1,LADataRange,VLOOKUP($A51&$AP$8,DataItemDesc,2,FALSE),FALSE))) -> 6 | G51: =IF(ISERROR(HLOOKUP(DropDowns!$F$1,LADataRange,VLOOKUP($A51&$AP$10,DataItemDesc,2,FALSE),FALSE)),"-",(HLOOKUP(DropDowns!$F$1,LADataRange,VLOOKUP($A51&$AP$10,DataItemDesc,2,FALSE),FALSE))) -> 12 | H51: =IF(ISERROR(HLOOKUP(970,LADataRange,VLOOKUP($A51&$AP$10,DataItemDesc,2,FALSE),FALSE)),"-",(HLOOKUP(970,LADataRange,VLOOKUP($A51&$AP$10,DataItemDesc,2,FALSE),FALSE))) -> 17 | I51: =IF(ISERROR(1-H51/G51),"-",1-H51/G51) -> -0.4166666667 | J51: -325% | K51: 54% | M51: Percentage of looked after children who ceased to be looked after who were adopted | AG51: =IF(ISERROR(HLOOKUP(DropDowns!$F$1,LADataRange,VLOOKUP($A51&$AQ$9,DataItemDesc,2,FALSE),FALSE)),"-",(HLOOKUP(DropDowns!$F$1,LADataRange,VLOOKUP($A51&$AQ$9,DataItemDesc,2,FALSE),FALSE))) -> D | AL51: =VLOOKUP(AL42,'LA SN Groups'!$A$4:$Y$155,22,FALSE) -> 394 | AM51: =VLOOKUP($AL51,'LA SN Groups'!$A$4:$B$155,2,FALSE) -> Sunderland | AN51: 12 | AO51: 11 | AP51: 12 | AQ51: - | AR51: 67 | AS51: 66 | AT51: 66 | AU51: - | AV51: - | AW51: - | AX51: 30.4 | AY51: - | AZ51: 68 | BA51: 67 | BB51: 46 | BC51: -
A52: Waitingless20mths | D52: =IF(ISERROR(HLOOKUP(DropDowns!$F$1,LADataRange,VLOOKUP($A52&$AP$5,DataItemDesc,2,FALSE),FALSE)),"-",(HLOOKUP(DropDowns!$F$1,LADataRange,VLOOKUP($A52&$AP$5,DataItemDesc,2,FALSE),FALSE))) -> 56 | E52: =IF(ISERROR(HLOOKUP(DropDowns!$F$1,LADataRange,VLOOKUP($A52&$AP$6,DataItemDesc,2,FALSE),FALSE)),"-",(HLOOKUP(DropDowns!$F$1,LADataRange,VLOOKUP($A52&$AP$6,DataItemDesc,2,FALSE),FALSE))) -> 43 | F52: =IF(ISERROR(HLOOKUP(DropDowns!$F$1,LADataRange,VLOOKUP($A52&$AP$8,DataItemDesc,2,FALSE),FALSE)),"-",(HLOOKUP(DropDowns!$F$1,LADataRange,VLOOKUP($A52&$AP$8,DataItemDesc,2,FALSE),FALSE))) -> 38 | G52: =IF(ISERROR(HLOOKUP(DropDowns!$F$1,LADataRange,VLOOKUP($A52&$AP$10,DataItemDesc,2,FALSE),FALSE)),"-",(HLOOKUP(DropDowns!$F$1,LADataRange,VLOOKUP($A52&$AP$10,DataItemDesc,2,FALSE),FALSE))) -> - | H52: 51 | I52: -0.3421052632 | J52: -183% | K52: 35% | M52: Percentage of children who wait less than 20 months between entering care and moving in with their adoptive family | AF52: i.e 2010-2013 | AG52: =IF(ISERROR(HLOOKUP(DropDowns!$F$1,LADataRange,VLOOKUP($A52&$AQ$9,DataItemDesc,2,FALSE),FALSE)),"-",(HLOOKUP(DropDowns!$F$1,LADataRange,VLOOKUP($A52&$AQ$9,DataItemDesc,2,FALSE),FALSE))) -> D | AL52: =VLOOKUP(AL42,'LA SN Groups'!$A$4:$Y$155,24,FALSE) -> 383 | AM52: =VLOOKUP($AL52,'LA SN Groups'!$A$4:$B$155,2,FALSE) -> Leeds | AN52: 11 | AO52: 8 | AP52: 8 | AQ52: - | AR52: 63 | AS52: 63 | AT52: 65 | AU52: - | AV52: 39.9 | AW52: 39.3 | AX52: 38.2 | AY52: - | AZ52: 61 | BA52: 63 | BB52: 55 | BC52: -
A53: LACDistanceCH | C53: Residential Care | D53: =IF(ISERROR(HLOOKUP(DropDowns!$F$1,LADataRange,VLOOKUP($A53&$AP$5,DataItemDesc,2,FALSE),FALSE)),"-",(HLOOKUP(DropDowns!$F$1,LADataRange,VLOOKUP($A53&$AP$5,DataItemDesc,2,FALSE),FALSE))) -> - | E53: =IF(ISERROR(HLOOKUP(DropDowns!$F$1,LADataRange,VLOOKUP($A53&$AP$6,DataItemDesc,2,FALSE),FALSE)),"-",(HLOOKUP(DropDowns!$F$1,LADataRange,VLOOKUP($A53&$AP$6,DataItemDesc,2,FALSE),FALSE))) -> - | F53: =IF(ISERROR(HLOOKUP(DropDowns!$F$1,LADataRange,VLOOKUP($A53&$AP$8,DataItemDesc,2,FALSE),FALSE)),"-",(HLOOKUP(DropDowns!$F$1,LADataRange,VLOOKUP($A53&$AP$8,DataItemDesc,2,FALSE),FALSE))) -> - | G53: =IF(ISERROR(HLOOKUP(DropDowns!$F$1,LADataRange,VLOOKUP($A53&$AP$10,DataItemDesc,2,FALSE),FALSE)),"-",(HLOOKUP(DropDowns!$F$1,LADataRange,VLOOKUP($A53&$AP$10,DataItemDesc,2,FALSE),FALSE))) -> - | H53: =IF(ISERROR(HLOOKUP(970,LADataRange,VLOOKUP($A53&$AP$6,DataItemDesc,2,FALSE),FALSE)),"-",(HLOOKUP(970,LADataRange,VLOOKUP($A53&$AP$6,DataItemDesc,2,FALSE),FALSE))) -> - | I53: =IF(ISERROR(1-H53/E53),"-",1-H53/E53) -> - | J53: -214% | K53: 54% | M53: Percentage of children placed over 20 miles outside local area | AG53: =IF(ISERROR(HLOOKUP(DropDowns!$F$1,LADataRange,VLOOKUP($A53&$AQ$9,DataItemDesc,2,FALSE),FALSE)),"-",(HLOOKUP(DropDowns!$F$1,LADataRange,VLOOKUP($A53&$AQ$9,DataItemDesc,2,FALSE),FALSE))) -> - | AM53: Statistical Neighbour Average | AN53: =AVERAGE(AN43:AN52) -> 10.7 | AO53: =AVERAGE(AO43:AO52) -> 9.9 | AP53: 10 | AR53: =AVERAGE(AR43:AR52) -> 68.4 | AS53: =AVERAGE(AS43:AS52) -> 67.9 | AT53: =AVERAGE(AT43:AT52) -> 69.4 | AU53: =AVERAGE(AU43:AU52) ->  | AV53: =AVERAGE(AV43:AV52) -> 40.75 | AW53: =AVERAGE(AW43:AW52) -> 38.43333333 | AX53: =AVERAGE(AX43:AX52) -> 31.95 | AY53: =AVERAGE(AY43:AY52) ->  | AZ53: =AVERAGE(AZ43:AZ52) -> 68.77777778 | BA53: =AVERAGE(BA43:BA52) -> 68.1 | BB53: =AVERAGE(BB43:BB52) -> 54.4 | BC53: =AVERAGE(BC43:BC52) -> 
A54: CHQualityLA | D54: =IF(ISERROR(HLOOKUP(DropDowns!$F$1,LADataRange,VLOOKUP($A54&$AP$5,DataItemDesc,2,FALSE),FALSE)),"-",(HLOOKUP(DropDowns!$F$1,LADataRange,VLOOKUP($A54&$AP$5,DataItemDesc,2,FALSE),FALSE))) -> - | E54: =IF(ISERROR(HLOOKUP(DropDowns!$F$1,LADataRange,VLOOKUP($A54&$AP$6,DataItemDesc,2,FALSE),FALSE)),"-",(HLOOKUP(DropDowns!$F$1,LADataRange,VLOOKUP($A54&$AP$6,DataItemDesc,2,FALSE),FALSE))) -> - | F54: =IF(ISERROR(HLOOKUP(DropDowns!$F$1,LADataRange,VLOOKUP($A54&$AP$8,DataItemDesc,2,FALSE),FALSE)),"-",(HLOOKUP(DropDowns!$F$1,LADataRange,VLOOKUP($A54&$AP$8,DataItemDesc,2,FALSE),FALSE))) -> - | G54: =IF(ISERROR(HLOOKUP(DropDowns!$F$1,LADataRange,VLOOKUP($A54&$AP$10,DataItemDesc,2,FALSE),FALSE)),"-",(HLOOKUP(DropDowns!$F$1,LADataRange,VLOOKUP($A54&$AP$10,DataItemDesc,2,FALSE),FALSE))) -> - | H54: =IF(ISERROR(HLOOKUP(970,LADataRange,VLOOKUP($A54&$AP$8,DataItemDesc,2,FALSE),FALSE)),"-",(HLOOKUP(970,LADataRange,VLOOKUP($A54&$AP$8,DataItemDesc,2,FALSE),FALSE))) -> - | I54: =IF(ISERROR(1-H54/F54),"-",1-H54/F54) -> - | M54: Quality of children's homes run by the local authority | AF54: Data requires further analysis (Ofsted) | AG54: =IF(ISERROR(HLOOKUP(DropDowns!$F$1,LADataRange,VLOOKUP($A54&$AQ$9,DataItemDesc,2,FALSE),FALSE)),"-",(HLOOKUP(DropDowns!$F$1,LADataRange,VLOOKUP($A54&$AQ$9,DataItemDesc,2,FALSE),FALSE))) -> - | AL54: 970 | AM54: England Average | AN54: =IF(ISERROR(HLOOKUP(AL54,LADataRange,VLOOKUP($A$43&$AP$5,DataItemDesc,2,FALSE),FALSE)),"-",(HLOOKUP(AL54,LADataRange,VLOOKUP($A$43&$AP$5,DataItemDesc,2,FALSE),FALSE))) -> 11 | AO54: =IF(ISERROR(HLOOKUP(AL54,LADataRange,VLOOKUP($A$43&$AP$6,DataItemDesc,2,FALSE),FALSE)),"-",(HLOOKUP(AL54,LADataRange,VLOOKUP($A$43&$AP$6,DataItemDesc,2,FALSE),FALSE))) -> 11 | AP54: =IF(ISERROR(HLOOKUP(AL54,LADataRange,VLOOKUP($A$43&$AP$8,DataItemDesc,2,FALSE),FALSE)),"-",(HLOOKUP(AL54,LADataRange,VLOOKUP($A$43&$AP$8,DataItemDesc,2,FALSE),FALSE))) -> 11 | AQ54: =IF(ISERROR(HLOOKUP(AL54,LADataRange,VLOOKUP($A$43&$AP$10,DataItemDesc,2,FALSE),FALSE)),"-",(HLOOKUP(AL54,LADataRange,VLOOKUP($A$43&$AP$10,DataItemDesc,2,FALSE),FALSE))) -> - | AR54: =IF(ISERROR(HLOOKUP($AL54,LADataRange,VLOOKUP($A$44&$AP$5,DataItemDesc,2,FALSE),FALSE)),"-",(HLOOKUP($AL54,LADataRange,VLOOKUP($A$44&$AP$5,DataItemDesc,2,FALSE),FALSE))) -> 68 | AS54: =IF(ISERROR(HLOOKUP($AL54,LADataRange,VLOOKUP($A$44&$AP$6,DataItemDesc,2,FALSE),FALSE)),"-",(HLOOKUP($AL54,LADataRange,VLOOKUP($A$44&$AP$6,DataItemDesc,2,FALSE),FALSE))) -> 67 | AT54: =IF(ISERROR(HLOOKUP($AL54,LADataRange,VLOOKUP($A$44&$AP$8,DataItemDesc,2,FALSE),FALSE)),"-",(HLOOKUP($AL54,LADataRange,VLOOKUP($A$44&$AP$8,DataItemDesc,2,FALSE),FALSE))) -> 67 | AU54: =IF(ISERROR(HLOOKUP($AL54,LADataRange,VLOOKUP($A$44&$AP$10,DataItemDesc,2,FALSE),FALSE)),"-",(HLOOKUP($AL54,LADataRange,VLOOKUP($A$44&$AP$10,DataItemDesc,2,FALSE),FALSE))) -> - | AV54: =IF(ISERROR(HLOOKUP(AL54,LADataRange,VLOOKUP($A$45&$AP$5,DataItemDesc,2,FALSE),FALSE)),"-",IF(HLOOKUP(AL54,LADataRange,VLOOKUP($A$45&$AP$5,DataItemDesc,2,FALSE),FALSE)="-","-",HLOOKUP(AL54,LADataRange,VLOOKUP($B$45&$AP$5,DataItemDesc,2,FALSE),FALSE)-(HLOOKUP(AL54,LADataRange,VLOOKUP($A$45&$AP$5,DataItemDesc,2,FALSE),FALSE)))) -> 44.5 | AW54: =IF(ISERROR(HLOOKUP(AL54,LADataRange,VLOOKUP($A$45&$AP$6,DataItemDesc,2,FALSE),FALSE)),"-",IF(HLOOKUP(AL54,LADataRange,VLOOKUP($A$45&$AP$6,DataItemDesc,2,FALSE),FALSE)="-","-",HLOOKUP(AL54,LADataRange,VLOOKUP($B$45&$AP$6,DataItemDesc,2,FALSE),FALSE)-(HLOOKUP(AL54,LADataRange,VLOOKUP($A$45&$AP$6,DataItemDesc,2,FALSE),FALSE)))) -> 43.7 | AX54: =IF(ISERROR(HLOOKUP(AL54,LADataRange,VLOOKUP($A$45&$AP$8,DataItemDesc,2,FALSE),FALSE)),"-",IF(HLOOKUP(AL54,LADataRange,VLOOKUP($A$45&$AP$8,DataItemDesc,2,FALSE),FALSE)="-","-",HLOOKUP(AL54,LADataRange,VLOOKUP($B$45&$AP$8,DataItemDesc,2,FALSE),FALSE)-(HLOOKUP(AL54,LADataRange,VLOOKUP($A$45&$AP$8,DataItemDesc,2,FALSE),FALSE)))) -> 41.4 | AY54: =IF(ISERROR(HLOOKUP(AL54,LADataRange,VLOOKUP($A$45&$AP$10,DataItemDesc,2,FALSE),FALSE)),"-",(HLOOKUP(AL54,LADataRange,VLOOKUP($A$45&$AP$10,DataItemDesc,2,FALSE),FALSE))) -> - | AZ54: =IF(ISERROR(HLOOKUP(AL54,LADataRange,VLOOKUP($A$46&$AP$5,DataItemDesc,2,FALSE),FALSE)),"-",(HLOOKUP(AL54,LADataRange,VLOOKUP($A$46&$AP$5,DataItemDesc,2,FALSE),FALSE))) -> 58 | BA54: =IF(ISERROR(HLOOKUP(AL54,LADataRange,VLOOKUP($A$46&$AP$6,DataItemDesc,2,FALSE),FALSE)),"-",(HLOOKUP(AL54,LADataRange,VLOOKUP($A$46&$AP$6,DataItemDesc,2,FALSE),FALSE))) -> 58 | BB54: =IF(ISERROR(HLOOKUP(AL54,LADataRange,VLOOKUP($A$46&$AP$8,DataItemDesc,2,FALSE),FALSE)),"-",(HLOOKUP(AL54,LADataRange,VLOOKUP($A$46&$AP$8,DataItemDesc,2,FALSE),FALSE))) -> 45 | BC54: =IF(ISERROR(HLOOKUP(AL54,LADataRange,VLOOKUP($A$46&$AP$10,DataItemDesc,2,FALSE),FALSE)),"-",(HLOOKUP(AL54,LADataRange,VLOOKUP($A$46&$AP$10,DataItemDesc,2,FALSE),FALSE))) -> -
A55: ReReferral | C55: Social Work & Commissioning | D55: =IF(ISERROR(HLOOKUP(DropDowns!$F$1,LADataRange,VLOOKUP($A55&$AP$5,DataItemDesc,2,FALSE),FALSE)),"-",(HLOOKUP(DropDowns!$F$1,LADataRange,VLOOKUP($A55&$AP$5,DataItemDesc,2,FALSE),FALSE))) -> 12.9 | E55: =IF(ISERROR(HLOOKUP(DropDowns!$F$1,LADataRange,VLOOKUP($A55&$AP$6,DataItemDesc,2,FALSE),FALSE)),"-",(HLOOKUP(DropDowns!$F$1,LADataRange,VLOOKUP($A55&$AP$6,DataItemDesc,2,FALSE),FALSE))) -> 9.8 | F55: =IF(ISERROR(HLOOKUP(DropDowns!$F$1,LADataRange,VLOOKUP($A55&$AP$8,DataItemDesc,2,FALSE),FALSE)),"-",(HLOOKUP(DropDowns!$F$1,LADataRange,VLOOKUP($A55&$AP$8,DataItemDesc,2,FALSE),FALSE))) -> 10.2 | G55: =IF(ISERROR(HLOOKUP(DropDowns!$F$1,LADataRange,VLOOKUP($A55&$AP$10,DataItemDesc,2,FALSE),FALSE)),"-",(HLOOKUP(DropDowns!$F$1,LADataRange,VLOOKUP($A55&$AP$10,DataItemDesc,2,FALSE),FALSE))) -> 16.8 | H55: =IF(ISERROR(HLOOKUP(970,LADataRange,VLOOKUP($A55&$AP$10,DataItemDesc,2,FALSE),FALSE)),"-",(HLOOKUP(970,LADataRange,VLOOKUP($A55&$AP$10,DataItemDesc,2,FALSE),FALSE))) -> 24 | I55: =IF(ISERROR(1-H55/F55),"-",1-H55/F55) -> -1.352941176 | J55: =ROUND(HLOOKUP(1001,LADataRange,VLOOKUP($A55&"_14",DataItemDesc,2,FALSE),FALSE),0)&"%" -> -321% | K55: =ROUND(HLOOKUP(1002,LADataRange,VLOOKUP($A55&"_14",DataItemDesc,2,FALSE),FALSE),0)&"%" -> 47% | M55: Percentage of re-referrals to children's social care within 12 months of a previous referral | AG55: =IF(ISERROR(HLOOKUP(DropDowns!$F$1,LADataRange,VLOOKUP($A55&$AQ$9,DataItemDesc,2,FALSE),FALSE)),"-",(HLOOKUP(DropDowns!$F$1,LADataRange,VLOOKUP($A55&$AQ$9,DataItemDesc,2,FALSE),FALSE))) -> B
A56: PrevRegCPR | D56: =IF(ISERROR(HLOOKUP(DropDowns!$F$1,LADataRange,VLOOKUP($A56&$AP$5,DataItemDesc,2,FALSE),FALSE)),"-",(HLOOKUP(DropDowns!$F$1,LADataRange,VLOOKUP($A56&$AP$5,DataItemDesc,2,FALSE),FALSE))) -> 9.3 | E56: =IF(ISERROR(HLOOKUP(DropDowns!$F$1,LADataRange,VLOOKUP($A56&$AP$6,DataItemDesc,2,FALSE),FALSE)),"-",(HLOOKUP(DropDowns!$F$1,LADataRange,VLOOKUP($A56&$AP$6,DataItemDesc,2,FALSE),FALSE))) -> 2.5 | F56: =IF(ISERROR(HLOOKUP(DropDowns!$F$1,LADataRange,VLOOKUP($A56&$AP$8,DataItemDesc,2,FALSE),FALSE)),"-",(HLOOKUP(DropDowns!$F$1,LADataRange,VLOOKUP($A56&$AP$8,DataItemDesc,2,FALSE),FALSE))) -> 11.5 | G56: =IF(ISERROR(HLOOKUP(DropDowns!$F$1,LADataRange,VLOOKUP($A56&$AP$10,DataItemDesc,2,FALSE),FALSE)),"-",(HLOOKUP(DropDowns!$F$1,LADataRange,VLOOKUP($A56&$AP$10,DataItemDesc,2,FALSE),FALSE))) -> 14.5 | H56: =IF(ISERROR(HLOOKUP(970,LADataRange,VLOOKUP($A56&$AP$10,DataItemDesc,2,FALSE),FALSE)),"-",(HLOOKUP(970,LADataRange,VLOOKUP($A56&$AP$10,DataItemDesc,2,FALSE),FALSE))) -> 16.6 | I56: =IF(ISERROR(1-H56/F56),"-",1-H56/F56) -> -0.4434782609 | J56: =ROUND(HLOOKUP(1001,LADataRange,VLOOKUP($A56&"_14",DataItemDesc,2,FALSE),FALSE),0)&"%" -> -515% | K56: =ROUND(HLOOKUP(1002,LADataRange,VLOOKUP($A56&"_14",DataItemDesc,2,FALSE),FALSE),0)&"%" -> 62% | M56: Percentage of children registered on the Child Protection Register, previously registered | AG56: =IF(ISERROR(HLOOKUP(DropDowns!$F$1,LADataRange,VLOOKUP($A56&$AQ$9,DataItemDesc,2,FALSE),FALSE)),"-",(HLOOKUP(DropDowns!$F$1,LADataRange,VLOOKUP($A56&$AQ$9,DataItemDesc,2,FALSE),FALSE))) -> B | AN56: Percentage of foster children looked after placed more than 20 miles from their home and outside LA boundary | AR56: Proportion of children in foster care at 31st March with three or more placements in the year | AV56: Proportion of children in foster care who have been looked after for more than 2.5 years and of those, have been in the same placement for at least 2 years
A57: CPPlans2yrs | D57: =IF(ISERROR(HLOOKUP(DropDowns!$F$1,LADataRange,VLOOKUP($A57&$AP$5,DataItemDesc,2,FALSE),FALSE)),"-",(HLOOKUP(DropDowns!$F$1,LADataRange,VLOOKUP($A57&$AP$5,DataItemDesc,2,FALSE),FALSE))) -> 15 | E57: =IF(ISERROR(HLOOKUP(DropDowns!$F$1,LADataRange,VLOOKUP($A57&$AP$6,DataItemDesc,2,FALSE),FALSE)),"-",(HLOOKUP(DropDowns!$F$1,LADataRange,VLOOKUP($A57&$AP$6,DataItemDesc,2,FALSE),FALSE))) -> 7.9 | F57: =IF(ISERROR(HLOOKUP(DropDowns!$F$1,LADataRange,VLOOKUP($A57&$AP$8,DataItemDesc,2,FALSE),FALSE)),"-",(HLOOKUP(DropDowns!$F$1,LADataRange,VLOOKUP($A57&$AP$8,DataItemDesc,2,FALSE),FALSE))) -> 3.5 | G57: =IF(ISERROR(HLOOKUP(DropDowns!$F$1,LADataRange,VLOOKUP($A57&$AP$10,DataItemDesc,2,FALSE),FALSE)),"-",(HLOOKUP(DropDowns!$F$1,LADataRange,VLOOKUP($A57&$AP$10,DataItemDesc,2,FALSE),FALSE))) -> - | H57: =IF(ISERROR(HLOOKUP(970,LADataRange,VLOOKUP($A57&$AP$10,DataItemDesc,2,FALSE),FALSE)),"-",(HLOOKUP(970,LADataRange,VLOOKUP($A57&$AP$10,DataItemDesc,2,FALSE),FALSE))) -> 3.7 | I57: =IF(ISERROR(1-H57/F57),"-",1-H57/F57) -> -0.05714285714 | J57: =ROUND(HLOOKUP(1001,LADataRange,VLOOKUP($A57&"_14",DataItemDesc,2,FALSE),FALSE),0)&"%" -> -131% | K57: =ROUND(HLOOKUP(1002,LADataRange,VLOOKUP($A57&"_14",DataItemDesc,2,FALSE),FALSE),0)&"%" -> 73% | M57: Child Protection Plans lasting 2 years or more which cease during the year | AG57: =IF(ISERROR(HLOOKUP(DropDowns!$F$1,LADataRange,VLOOKUP($A57&$AQ$9,DataItemDesc,2,FALSE),FALSE)),"-",(HLOOKUP(DropDowns!$F$1,LADataRange,VLOOKUP($A57&$AQ$9,DataItemDesc,2,FALSE),FALSE))) -> - | AN57: 2011 | AO57: 2012 | AP57: 2013 | AQ57: 2014 | AR57: 2011 | AS57: 2012 | AT57: 2013 | AU57: 2014 | AV57: 2011 | AW57: 2012 | AX57: 2013 | AY57: 2014
A58: SEN26WeeksEx | C58: SEN | D58: =IF(ISERROR(HLOOKUP(DropDowns!$F$1,LADataRange,VLOOKUP($A58&$AP$5,DataItemDesc,2,FALSE),FALSE)),"-",(HLOOKUP(DropDowns!$F$1,LADataRange,VLOOKUP($A58&$AP$5,DataItemDesc,2,FALSE),FALSE))) -> 100 | E58: =IF(ISERROR(HLOOKUP(DropDowns!$F$1,LADataRange,VLOOKUP($A58&$AP$6,DataItemDesc,2,FALSE),FALSE)),"-",(HLOOKUP(DropDowns!$F$1,LADataRange,VLOOKUP($A58&$AP$6,DataItemDesc,2,FALSE),FALSE))) -> 100 | F58: =IF(ISERROR(HLOOKUP(DropDowns!$F$1,LADataRange,VLOOKUP($A58&$AP$8,DataItemDesc,2,FALSE),FALSE)),"-",(HLOOKUP(DropDowns!$F$1,LADataRange,VLOOKUP($A58&$AP$8,DataItemDesc,2,FALSE),FALSE))) -> 100 | G58: =IF(ISERROR(HLOOKUP(DropDowns!$F$1,LADataRange,VLOOKUP($A58&$AP$10,DataItemDesc,2,FALSE),FALSE)),"-",(HLOOKUP(DropDowns!$F$1,LADataRange,VLOOKUP($A58&$AP$10,DataItemDesc,2,FALSE),FALSE))) -> - | H58: =IF(ISERROR(HLOOKUP(970,LADataRange,VLOOKUP($A58&$AP$10,DataItemDesc,2,FALSE),FALSE)),"-",(HLOOKUP(970,LADataRange,VLOOKUP($A58&$AP$10,DataItemDesc,2,FALSE),FALSE))) -> - | I58: =IF(ISERROR(1-H58/G58),"-",1-H58/G58) -> - | J58: =ROUND(HLOOKUP(1001,LADataRange,VLOOKUP($A58&"_14",DataItemDesc,2,FALSE),FALSE),0)&"%" -> -847% | K58: =ROUND(HLOOKUP(1002,LADataRange,VLOOKUP($A58&"_14",DataItemDesc,2,FALSE),FALSE),0)&"%" -> 11% | M58: Percentage of final SEN statements issued within 26 weeks (excluding exception cases)** | AF58: To be phased out | AG58: =IF(ISERROR(HLOOKUP(DropDowns!$F$1,LADataRange,VLOOKUP($A58&$AQ$9,DataItemDesc,2,FALSE),FALSE)),"-",(HLOOKUP(DropDowns!$F$1,LADataRange,VLOOKUP($A58&$AQ$9,DataItemDesc,2,FALSE),FALSE))) -> A | AL58: 207 | AM58: =VLOOKUP($AL58,'LA SN Groups'!$A$4:$B$155,2,FALSE) -> Kensington and Chelsea | AN58: =IF(ISERROR(HLOOKUP(AL58,LADataRange,VLOOKUP($A$47&$AP$5,DataItemDesc,2,FALSE),FALSE)),"-",(HLOOKUP(AL58,LADataRange,VLOOKUP($A$47&$AP$5,DataItemDesc,2,FALSE),FALSE))) -> 31 | AO58: =IF(ISERROR(HLOOKUP(AL58,LADataRange,VLOOKUP($A$47&$AP$6,DataItemDesc,2,FALSE),FALSE)),"-",(HLOOKUP(AL58,LADataRange,VLOOKUP($A$47&$AP$6,DataItemDesc,2,FALSE),FALSE))) -> 24 | AP58: =IF(ISERROR(HLOOKUP(AL58,LADataRange,VLOOKUP($A$47&$AP$8,DataItemDesc,2,FALSE),FALSE)),"-",(HLOOKUP(AL58,LADataRange,VLOOKUP($A$47&$AP$8,DataItemDesc,2,FALSE),FALSE))) -> - | AQ58: =IF(ISERROR(HLOOKUP(AL58,LADataRange,VLOOKUP($A$47&$AP$10,DataItemDesc,2,FALSE),FALSE)),"-",(HLOOKUP(AL58,LADataRange,VLOOKUP($A$47&$AP$10,DataItemDesc,2,FALSE),FALSE))) -> - | AR58: =IF(ISERROR(HLOOKUP(AL58,LADataRange,VLOOKUP($A$48&$AP$5,DataItemDesc,2,FALSE),FALSE)),"-",(HLOOKUP(AL58,LADataRange,VLOOKUP($A$48&$AP$5,DataItemDesc,2,FALSE),FALSE))) -> - | AS58: =IF(ISERROR(HLOOKUP(AL58,LADataRange,VLOOKUP($A$48&$AP$6,DataItemDesc,2,FALSE),FALSE)),"-",(HLOOKUP(AL58,LADataRange,VLOOKUP($A$48&$AP$6,DataItemDesc,2,FALSE),FALSE))) -> - | AT58: =IF(ISERROR(HLOOKUP(AL58,LADataRange,VLOOKUP($A$48&$AP$8,DataItemDesc,2,FALSE),FALSE)),"-",(HLOOKUP(AL58,LADataRange,VLOOKUP($A$48&$AP$8,DataItemDesc,2,FALSE),FALSE))) -> - | AU58: =IF(ISERROR(HLOOKUP(AL58,LADataRange,VLOOKUP($A$48&$AP$10,DataItemDesc,2,FALSE),FALSE)),"-",(HLOOKUP(AL58,LADataRange,VLOOKUP($A$48&$AP$10,DataItemDesc,2,FALSE),FALSE))) -> - | AV58: =IF(ISERROR(HLOOKUP(AL58,LADataRange,VLOOKUP($A$49&$AP$5,DataItemDesc,2,FALSE),FALSE)),"-",(HLOOKUP(AL58,LADataRange,VLOOKUP($A$49&$AP$5,DataItemDesc,2,FALSE),FALSE))) -> 61 | AW58: =IF(ISERROR(HLOOKUP(AL58,LADataRange,VLOOKUP($A$49&$AP$6,DataItemDesc,2,FALSE),FALSE)),"-",(HLOOKUP(AL58,LADataRange,VLOOKUP($A$49&$AP$6,DataItemDesc,2,FALSE),FALSE))) -> 80 | AX58: =IF(ISERROR(HLOOKUP(AL58,LADataRange,VLOOKUP($A$49&$AP$8,DataItemDesc,2,FALSE),FALSE)),"-",(HLOOKUP(AL58,LADataRange,VLOOKUP($A$49&$AP$8,DataItemDesc,2,FALSE),FALSE))) -> 76.2 | AY58: =IF(ISERROR(HLOOKUP(AL58,LADataRange,VLOOKUP($A$49&$AP$10,DataItemDesc,2,FALSE),FALSE)),"-",(HLOOKUP(AL58,LADataRange,VLOOKUP($A$49&$AP$10,DataItemDesc,2,FALSE),FALSE))) -> -
D59: =IF(ISERROR(HLOOKUP(DropDowns!$F$1,LADataRange,VLOOKUP($A59&$AP$5,DataItemDesc,2,FALSE),FALSE)),"-",(HLOOKUP(DropDowns!$F$1,LADataRange,VLOOKUP($A59&$AP$5,DataItemDesc,2,FALSE),FALSE))) -> - | E59: =IF(ISERROR(HLOOKUP(DropDowns!$F$1,LADataRange,VLOOKUP($A59&$AP$6,DataItemDesc,2,FALSE),FALSE)),"-",(HLOOKUP(DropDowns!$F$1,LADataRange,VLOOKUP($A59&$AP$6,DataItemDesc,2,FALSE),FALSE))) -> - | F59: =IF(ISERROR(HLOOKUP(DropDowns!$F$1,LADataRange,VLOOKUP($A59&$AP$8,DataItemDesc,2,FALSE),FALSE)),"-",(HLOOKUP(DropDowns!$F$1,LADataRange,VLOOKUP($A59&$AP$8,DataItemDesc,2,FALSE),FALSE))) -> - | G59: =IF(ISERROR(HLOOKUP(DropDowns!$F$1,LADataRange,VLOOKUP($A59&$AP$10,DataItemDesc,2,FALSE),FALSE)),"-",(HLOOKUP(DropDowns!$F$1,LADataRange,VLOOKUP($A59&$AP$10,DataItemDesc,2,FALSE),FALSE))) -> - | H59: - | I59: =IF(ISERROR(1-H59/F59),"-",1-H59/F59) -> - | J59: - | K59: - | M59: Percentage of EHC assessments conducted within 20 weeks from initial request | AF59: New Data | AG59: =IF(ISERROR(HLOOKUP(DropDowns!$F$1,LADataRange,VLOOKUP($A59&$AQ$9,DataItemDesc,2,FALSE),FALSE)),"-",(HLOOKUP(DropDowns!$F$1,LADataRange,VLOOKUP($A59&$AQ$9,DataItemDesc,2,FALSE),FALSE))) -> - | AL59: =VLOOKUP(AL58,'LA SN Groups'!$A$4:$Y$155,6,FALSE) -> 213 | AM59: =VLOOKUP($AL59,'LA SN Groups'!$A$4:$B$155,2,FALSE) -> Westminster | AN59: 18 | AO59: 19 | AP59: - | AQ59: - | AR59: 5 | AS59: 4 | AT59: 5 | AU59: - | AV59: 83 | AW59: 88 | AX59: 84.5 | AY59: -
A60: SEN_Appeals | D60: =IF(ISERROR(HLOOKUP(DropDowns!$F$1,LADataRange,VLOOKUP($A60&$AP$5,DataItemDesc,2,FALSE),FALSE)),"-",(HLOOKUP(DropDowns!$F$1,LADataRange,VLOOKUP($A60&$AP$5,DataItemDesc,2,FALSE),FALSE))) -> 6.85 | E60: =IF(ISERROR(HLOOKUP(DropDowns!$F$1,LADataRange,VLOOKUP($A60&$AP$6,DataItemDesc,2,FALSE),FALSE)),"-",(HLOOKUP(DropDowns!$F$1,LADataRange,VLOOKUP($A60&$AP$6,DataItemDesc,2,FALSE),FALSE))) -> 5.02 | F60: =IF(ISERROR(HLOOKUP(DropDowns!$F$1,LADataRange,VLOOKUP($A60&$AP$8,DataItemDesc,2,FALSE),FALSE)),"-",(HLOOKUP(DropDowns!$F$1,LADataRange,VLOOKUP($A60&$AP$8,DataItemDesc,2,FALSE),FALSE))) -> 6.38 | G60: =IF(ISERROR(HLOOKUP(DropDowns!$F$1,LADataRange,VLOOKUP($A60&$AP$10,DataItemDesc,2,FALSE),FALSE)),"-",(HLOOKUP(DropDowns!$F$1,LADataRange,VLOOKUP($A60&$AP$10,DataItemDesc,2,FALSE),FALSE))) -> - | H60: =IF(ISERROR(HLOOKUP(970,LADataRange,VLOOKUP($A60&$AP$8,DataItemDesc,2,FALSE),FALSE)),"-",(HLOOKUP(970,LADataRange,VLOOKUP($A60&$AP$8,DataItemDesc,2,FALSE),FALSE))) -> 4.83 | I60: =IF(ISERROR(1-H60/F60),"-",1-H60/F60) -> 0.2429467085 | J60: =ROUND(HLOOKUP(1001,LADataRange,VLOOKUP($A60&"_14",DataItemDesc,2,FALSE),FALSE),0)&"%" -> -383% | K60: =ROUND(HLOOKUP(1002,LADataRange,VLOOKUP($A60&"_14",DataItemDesc,2,FALSE),FALSE),0)&"%" -> 67% | M60: Appeals registered with first tier tribunal per 10,000 of school population | AG60: =IF(ISERROR(HLOOKUP(DropDowns!$F$1,LADataRange,VLOOKUP($A60&$AQ$9,DataItemDesc,2,FALSE),FALSE)),"-",(HLOOKUP(DropDowns!$F$1,LADataRange,VLOOKUP($A60&$AQ$9,DataItemDesc,2,FALSE),FALSE))) -> D | AL60: =VLOOKUP(AL58,'LA SN Groups'!$A$4:$Y$155,8,FALSE) -> 202 | AM60: =VLOOKUP($AL60,'LA SN Groups'!$A$4:$B$155,2,FALSE) -> Camden | AN60: 29 | AO60: 24 | AP60: - | AQ60: - | AR60: 16 | AS60: 16 | AT60: 9 | AU60: - | AV60: 68 | AW60: 69 | AX60: 73.3 | AY60: -
A61: Sen_With_5+A*-CincE&M | B61: Sen_W/O_5+A*-CincE&M | D61: =IF(ISERROR(HLOOKUP(DropDowns!$F$1,LADataRange,VLOOKUP($A61&$AP$5,DataItemDesc,2,FALSE),FALSE)),"-",IF(HLOOKUP(DropDowns!$F$1,LADataRange,VLOOKUP($A61&$AP$5,DataItemDesc,2,FALSE),FALSE)="-","-",IF(HLOOKUP(DropDowns!$F$1,LADataRange,VLOOKUP($B61&$AP$5,DataItemDesc,2,FALSE),FALSE)="-","-",HLOOKUP(DropDowns!$F$1,LADataRange,VLOOKUP($B61&$AP$5,DataItemDesc,2,FALSE),FALSE)-(HLOOKUP(DropDowns!$F$1,LADataRange,VLOOKUP($A61&$AP$5,DataItemDesc,2,FALSE),FALSE))))) -> 16.8 | E61: =IF(ISERROR(HLOOKUP(DropDowns!$F$1,LADataRange,VLOOKUP($A61&$AP$6,DataItemDesc,2,FALSE),FALSE)),"-",IF(HLOOKUP(DropDowns!$F$1,LADataRange,VLOOKUP($A61&$AP$6,DataItemDesc,2,FALSE),FALSE)="-","-",IF(HLOOKUP(DropDowns!$F$1,LADataRange,VLOOKUP($B61&$AP$6,DataItemDesc,2,FALSE),FALSE)="-","-",HLOOKUP(DropDowns!$F$1,LADataRange,VLOOKUP($B61&$AP$6,DataItemDesc,2,FALSE),FALSE)-(HLOOKUP(DropDowns!$F$1,LADataRange,VLOOKUP($A61&$AP$6,DataItemDesc,2,FALSE),FALSE))))) -> 18 | F61: =IF(ISERROR(HLOOKUP(DropDowns!$F$1,LADataRange,VLOOKUP($A61&$AP$8,DataItemDesc,2,FALSE),FALSE)),"-",IF(HLOOKUP(DropDowns!$F$1,LADataRange,VLOOKUP($A61&$AP$8,DataItemDesc,2,FALSE),FALSE)="-","-",IF(HLOOKUP(DropDowns!$F$1,LADataRange,VLOOKUP($B61&$AP$8,DataItemDesc,2,FALSE),FALSE)="-","-",HLOOKUP(DropDowns!$F$1,LADataRange,VLOOKUP($B61&$AP$8,DataItemDesc,2,FALSE),FALSE)-(HLOOKUP(DropDowns!$F$1,LADataRange,VLOOKUP($A61&$AP$8,DataItemDesc,2,FALSE),FALSE))))) -> - | G61: =IF(ISERROR(HLOOKUP(DropDowns!$F$1,LADataRange,VLOOKUP($A61&$AP$10,DataItemDesc,2,FALSE),FALSE)),"-",(HLOOKUP(DropDowns!$F$1,LADataRange,VLOOKUP($A61&$AP$10,DataItemDesc,2,FALSE),FALSE))) -> - | H61: =IF(ISERROR(HLOOKUP(970,LADataRange,VLOOKUP($A61&$AP$8,DataItemDesc,2,FALSE),FALSE)),"-",HLOOKUP(970,LADataRange,VLOOKUP($B61&$AP$8,DataItemDesc,2,FALSE),FALSE)-HLOOKUP(970,LADataRange,VLOOKUP($A61&$AP$8,DataItemDesc,2,FALSE),FALSE)) -> 15.5 | I61: =IF(ISERROR(1-H61/F61),"-",1-H61/F61) -> - | J61: =ROUND(HLOOKUP(1001,LADataRange,VLOOKUP($A61&"_14",DataItemDesc,2,FALSE),FALSE),0)&"%" -> 0% | K61: =ROUND(HLOOKUP(1002,LADataRange,VLOOKUP($A61&"_14",DataItemDesc,2,FALSE),FALSE),0)&"%" -> 0% | M61: GCSE % point attainment gap between Statemented SEN and Non-statemented SEN children in LA (5 A*-C GCSEs including English and Maths) | AG61: =IF(ISERROR(HLOOKUP(DropDowns!$F$1,LADataRange,VLOOKUP($A61&$AQ$9,DataItemDesc,2,FALSE),FALSE)),"-",(HLOOKUP(DropDowns!$F$1,LADataRange,VLOOKUP($A61&$AQ$9,DataItemDesc,2,FALSE),FALSE))) -> - | AL61: =VLOOKUP(AL58,'LA SN Groups'!$A$4:$Y$155,10,FALSE) -> 205 | AM61: =VLOOKUP($AL61,'LA SN Groups'!$A$4:$B$155,2,FALSE) -> Hammersmith and Fulham | AN61: 22 | AO61: 21 | AP61: - | AQ61: - | AR61: 4 | AS61: 5 | AT61: 12 | AU61: - | AV61: 78 | AW61: 61 | AX61: 61.4 | AY61: -
A62: KS4_SEN_Des | D62: =IF(ISERROR(HLOOKUP(DropDowns!$F$1,LADataRange,VLOOKUP($A62&$AP$5,DataItemDesc,2,FALSE),FALSE)),"-",(HLOOKUP(DropDowns!$F$1,LADataRange,VLOOKUP($A62&$AP$5,DataItemDesc,2,FALSE),FALSE))) -> 83 | E62: =IF(ISERROR(HLOOKUP(DropDowns!$F$1,LADataRange,VLOOKUP($A62&$AP$6,DataItemDesc,2,FALSE),FALSE)),"-",(HLOOKUP(DropDowns!$F$1,LADataRange,VLOOKUP($A62&$AP$6,DataItemDesc,2,FALSE),FALSE))) -> 83 | F62: =IF(ISERROR(HLOOKUP(DropDowns!$F$1,LADataRange,VLOOKUP($A62&$AP$8,DataItemDesc,2,FALSE),FALSE)),"-",(HLOOKUP(DropDowns!$F$1,LADataRange,VLOOKUP($A62&$AP$8,DataItemDesc,2,FALSE),FALSE))) -> 87 | G62: =IF(ISERROR(HLOOKUP(DropDowns!$F$1,LADataRange,VLOOKUP($A62&$AP$10,DataItemDesc,2,FALSE),FALSE)),"-",(HLOOKUP(DropDowns!$F$1,LADataRange,VLOOKUP($A62&$AP$10,DataItemDesc,2,FALSE),FALSE))) -> - | H62: =IF(ISERROR(HLOOKUP(970,LADataRange,VLOOKUP($A62&$AP$5,DataItemDesc,2,FALSE),FALSE)),"-",(HLOOKUP(970,LADataRange,VLOOKUP($A62&$AP$5,DataItemDesc,2,FALSE),FALSE))) -> 81 | I62: =IF(ISERROR(1-H62/E62),"-",1-H62/E62) -> 0.02409638554 | J62: =ROUND(HLOOKUP(1001,LADataRange,VLOOKUP($A62&"_14",DataItemDesc,2,FALSE),FALSE),0)&"%" -> -16% | K62: =ROUND(HLOOKUP(1002,LADataRange,VLOOKUP($A62&"_14",DataItemDesc,2,FALSE),FALSE),0)&"%" -> 9% | M62: Percentage of KS4 SEN cohort in Education, Employment or Training at 17 | AG62: =IF(ISERROR(HLOOKUP(DropDowns!$F$1,LADataRange,VLOOKUP($A62&$AQ$9,DataItemDesc,2,FALSE),FALSE)),"-",(HLOOKUP(DropDowns!$F$1,LADataRange,VLOOKUP($A62&$AQ$9,DataItemDesc,2,FALSE),FALSE))) -> B | AL62: =VLOOKUP(AL58,'LA SN Groups'!$A$4:$Y$155,12,FALSE) -> 212 | AM62: =VLOOKUP($AL62,'LA SN Groups'!$A$4:$B$155,2,FALSE) -> Wandsworth | AN62: 22 | AO62: 22 | AP62: - | AQ62: - | AR62: 8 | AS62: 5 | AT62: - | AU62: - | AV62: 80 | AW62: 85 | AX62: 74.5 | AY62: -
A63: LDD_ET | D63: =IF(ISERROR(HLOOKUP(DropDowns!$F$1,LADataRange,VLOOKUP($A63&$AP$5,DataItemDesc,2,FALSE),FALSE)),"-",(HLOOKUP(DropDowns!$F$1,LADataRange,VLOOKUP($A63&$AP$5,DataItemDesc,2,FALSE),FALSE))) -> - | E63: =IF(ISERROR(HLOOKUP(DropDowns!$F$1,LADataRange,VLOOKUP($A63&$AP$6,DataItemDesc,2,FALSE),FALSE)),"-",(HLOOKUP(DropDowns!$F$1,LADataRange,VLOOKUP($A63&$AP$6,DataItemDesc,2,FALSE),FALSE))) -> 85 | F63: =IF(ISERROR(HLOOKUP(DropDowns!$F$1,LADataRange,VLOOKUP($A63&$AP$8,DataItemDesc,2,FALSE),FALSE)),"-",(HLOOKUP(DropDowns!$F$1,LADataRange,VLOOKUP($A63&$AP$8,DataItemDesc,2,FALSE),FALSE))) -> 85.1 | G63: =IF(ISERROR(HLOOKUP(DropDowns!$F$1,LADataRange,VLOOKUP($A63&$AP$10,DataItemDesc,2,FALSE),FALSE)),"-",(HLOOKUP(DropDowns!$F$1,LADataRange,VLOOKUP($A63&$AP$10,DataItemDesc,2,FALSE),FALSE))) -> - | H63: =IF(ISERROR(HLOOKUP(970,LADataRange,VLOOKUP($A63&$AP$10,DataItemDesc,2,FALSE),FALSE)),"-",(HLOOKUP(970,LADataRange,VLOOKUP($A63&$AP$10,DataItemDesc,2,FALSE),FALSE))) -> - | I63: =IF(ISERROR(1-H63/G63),"-",1-H63/G63) -> - | J63: =ROUND(HLOOKUP(1001,LADataRange,VLOOKUP($A63&"_14",DataItemDesc,2,FALSE),FALSE),0)&"%" -> -172% | K63: =ROUND(HLOOKUP(1002,LADataRange,VLOOKUP($A63&"_14",DataItemDesc,2,FALSE),FALSE),0)&"%" -> 14% | M63: Proportion of 16-17 year olds with learning difficulties and/or disabilities (LDD) recorded in education and training | AG63: =IF(ISERROR(HLOOKUP(DropDowns!$F$1,LADataRange,VLOOKUP($A63&$AQ$9,DataItemDesc,2,FALSE),FALSE)),"-",(HLOOKUP(DropDowns!$F$1,LADataRange,VLOOKUP($A63&$AQ$9,DataItemDesc,2,FALSE),FALSE))) -> C | AL63: =VLOOKUP(AL58,'LA SN Groups'!$A$4:$Y$155,14,FALSE) -> 201 | AM63: =VLOOKUP($AL63,'LA SN Groups'!$A$4:$B$155,2,FALSE) -> City of London | AN63: - | AO63: - | AP63: - | AQ63: - | AR63: 0 | AS63: - | AT63: 0 | AU63: - | AV63: - | AW63: - | AX63: - | AY63: -
AL64: =VLOOKUP(AL58,'LA SN Groups'!$A$4:$Y$155,16,FALSE) -> 302 | AM64: =VLOOKUP($AL64,'LA SN Groups'!$A$4:$B$155,2,FALSE) -> Barnet | AN64: 34 | AO64: 29 | AP64: - | AQ64: - | AR64: 6 | AS64: 8 | AT64: 8 | AU64: - | AV64: 64 | AW64: 73 | AX64: 77 | AY64: -
C65: ** - subject to change of methodology (latest figure covers 2013, in previous years data was collected from April to March) | AL65: =VLOOKUP(AL58,'LA SN Groups'!$A$4:$Y$155,18,FALSE) -> 206 | AM65: =VLOOKUP($AL65,'LA SN Groups'!$A$4:$B$155,2,FALSE) -> Islington | AN65: 35 | AO65: 28 | AP65: - | AQ65: - | AR65: 6 | AS65: 7 | AT65: 7 | AU65: - | AV65: 74 | AW65: 71 | AX65: 73.8 | AY65: -
AL66: =VLOOKUP(AL58,'LA SN Groups'!$A$4:$Y$155,20,FALSE) -> 315 | AM66: =VLOOKUP($AL66,'LA SN Groups'!$A$4:$B$155,2,FALSE) -> Merton | AN66: 22 | AO66: 20 | AP66: - | AQ66: - | AR66: 12 | AS66: 12 | AT66: 12 | AU66: - | AV66: 63 | AW66: 58 | AX66: 59.3 | AY66: -
AL67: =VLOOKUP(AL58,'LA SN Groups'!$A$4:$Y$155,22,FALSE) -> 318 | AM67: =VLOOKUP($AL67,'LA SN Groups'!$A$4:$B$155,2,FALSE) -> Richmond upon Thames | AN67: 22 | AO67: 16 | AP67: - | AQ67: - | AR67: - | AS67: - | AT67: - | AU67: - | AV67: 65 | AW67: 75 | AX67: 46.7 | AY67: -
AL68: =VLOOKUP(AL58,'LA SN Groups'!$A$4:$Y$155,24,FALSE) -> 870 | AM68: =VLOOKUP($AL68,'LA SN Groups'!$A$4:$B$155,2,FALSE) -> Reading | AN68: 31 | AO68: 33 | AP68: - | AQ68: - | AR68: 9 | AS68: 8 | AT68: 6 | AU68: - | AV68: 72 | AW68: 67 | AX68: 74.2 | AY68: -
AM69: Statistical Neighbour Average | AN69: =AVERAGE(AN59:AN68) -> 26.11111111 | AO69: =AVERAGE(AO59:AO68) -> 23.55555556 | AR69: =AVERAGE(AR59:AR68) -> 7.333333333 | AS69: =AVERAGE(AS59:AS68) -> 8.125 | AT69: =AVERAGE(AT59:AT68) -> 7.375 | AU69: =AVERAGE(AU59:AU68) ->  | AV69: =AVERAGE(AV59:AV68) -> 71.88888889 | AW69: =AVERAGE(AW59:AW68) -> 71.88888889 | AX69: =AVERAGE(AX59:AX68) -> 69.41111111 | AY69: =AVERAGE(AY59:AY68) -> 
AL70: 970 | AM70: England Average | AN70: =IF(ISERROR(HLOOKUP(AL70,LADataRange,VLOOKUP($A$47&$AP$5,DataItemDesc,2,FALSE),FALSE)),"-",(HLOOKUP(AL70,LADataRange,VLOOKUP($A$47&$AP$5,DataItemDesc,2,FALSE),FALSE))) -> 27 | AO70: =IF(ISERROR(HLOOKUP(AL70,LADataRange,VLOOKUP($A$47&$AP$6,DataItemDesc,2,FALSE),FALSE)),"-",(HLOOKUP(AL70,LADataRange,VLOOKUP($A$47&$AP$6,DataItemDesc,2,FALSE),FALSE))) -> 27 | AP70: =IF(ISERROR(HLOOKUP(AL70,LADataRange,VLOOKUP($A$47&$AP$8,DataItemDesc,2,FALSE),FALSE)),"-",(HLOOKUP(AL70,LADataRange,VLOOKUP($A$47&$AP$8,DataItemDesc,2,FALSE),FALSE))) -> - | AQ70: =IF(ISERROR(HLOOKUP(AL70,LADataRange,VLOOKUP($A$47&$AP$10,DataItemDesc,2,FALSE),FALSE)),"-",(HLOOKUP(AL70,LADataRange,VLOOKUP($A$47&$AP$10,DataItemDesc,2,FALSE),FALSE))) -> - | AR70: =IF(ISERROR(HLOOKUP(AL70,LADataRange,VLOOKUP($A$48&$AP$5,DataItemDesc,2,FALSE),FALSE)),"-",(HLOOKUP(AL70,LADataRange,VLOOKUP($A$48&$AP$5,DataItemDesc,2,FALSE),FALSE))) -> 8 | AS70: =IF(ISERROR(HLOOKUP(AL70,LADataRange,VLOOKUP($A$48&$AP$6,DataItemDesc,2,FALSE),FALSE)),"-",(HLOOKUP(AL70,LADataRange,VLOOKUP($A$48&$AP$6,DataItemDesc,2,FALSE),FALSE))) -> 8 | AT70: =IF(ISERROR(HLOOKUP(AL70,LADataRange,VLOOKUP($A$48&$AP$8,DataItemDesc,2,FALSE),FALSE)),"-",(HLOOKUP(AL70,LADataRange,VLOOKUP($A$48&$AP$8,DataItemDesc,2,FALSE),FALSE))) -> 7 | AU70: =IF(ISERROR(HLOOKUP(AL70,LADataRange,VLOOKUP($A$48&$AP$10,DataItemDesc,2,FALSE),FALSE)),"-",(HLOOKUP(AL70,LADataRange,VLOOKUP($A$48&$AP$10,DataItemDesc,2,FALSE),FALSE))) -> - | AV70: =IF(ISERROR(HLOOKUP(AL70,LADataRange,VLOOKUP($A$49&$AP$5,DataItemDesc,2,FALSE),FALSE)),"-",(HLOOKUP(AL70,LADataRange,VLOOKUP($A$49&$AP$5,DataItemDesc,2,FALSE),FALSE))) -> 71 | AW70: =IF(ISERROR(HLOOKUP(AL70,LADataRange,VLOOKUP($A$49&$AP$6,DataItemDesc,2,FALSE),FALSE)),"-",(HLOOKUP(AL70,LADataRange,VLOOKUP($A$49&$AP$6,DataItemDesc,2,FALSE),FALSE))) -> 70 | AX70: =IF(ISERROR(HLOOKUP(AL70,LADataRange,VLOOKUP($A$49&$AP$8,DataItemDesc,2,FALSE),FALSE)),"-",(HLOOKUP(AL70,LADataRange,VLOOKUP($A$49&$AP$8,DataItemDesc,2,FALSE),FALSE))) -> 73.3 | AY70: =IF(ISERROR(HLOOKUP(AL70,LADataRange,VLOOKUP($A$49&$AP$10,DataItemDesc,2,FALSE),FALSE)),"-",(HLOOKUP(AL70,LADataRange,VLOOKUP($A$49&$AP$10,DataItemDesc,2,FALSE),FALSE))) -> -
AN73: Percentage of re-referrals to children's social care within 12 months of a previous referral | AR73: Percentage of children registered on the Child Protection Register, previously registered | AV73: Child Protection Plans lasting 2 years or more which cease during the year
AN74: 2011 | AO74: 2012 | AP74: 2013 | AQ74: 2014 | AR74: 2011 | AS74: 2012 | AT74: 2013 | AU74: 2014 | AV74: 2011 | AW74: 2012 | AX74: 2013 | AY74: 2014
AL75: 850 | AM75: =VLOOKUP($AL75,'LA SN Groups'!$A$4:$B$155,2,FALSE) -> Hampshire | AN75: =IF(ISERROR(HLOOKUP($AL75,LADataRange,VLOOKUP($A$55&$AP$5,DataItemDesc,2,FALSE),FALSE)),"-",(HLOOKUP($AL75,LADataRange,VLOOKUP($A$55&$AP$5,DataItemDesc,2,FALSE),FALSE))) -> 25.3 | AO75: =IF(ISERROR(HLOOKUP($AL75,LADataRange,VLOOKUP($A$55&$AP$6,DataItemDesc,2,FALSE),FALSE)),"-",(HLOOKUP($AL75,LADataRange,VLOOKUP($A$55&$AP$6,DataItemDesc,2,FALSE),FALSE))) -> 22.5 | AP75: =IF(ISERROR(HLOOKUP($AL75,LADataRange,VLOOKUP($A$55&$AP$8,DataItemDesc,2,FALSE),FALSE)),"-",(HLOOKUP($AL75,LADataRange,VLOOKUP($A$55&$AP$8,DataItemDesc,2,FALSE),FALSE))) -> 27.9 | AQ75: =IF(ISERROR(HLOOKUP($AL75,LADataRange,VLOOKUP($A$55&$AP$10,DataItemDesc,2,FALSE),FALSE)),"-",(HLOOKUP($AL75,LADataRange,VLOOKUP($A$55&$AP$10,DataItemDesc,2,FALSE),FALSE))) -> 31.8 | AR75: =IF(ISERROR(HLOOKUP($AL75,LADataRange,VLOOKUP($A$56&$AP$5,DataItemDesc,2,FALSE),FALSE)),"-",(HLOOKUP($AL75,LADataRange,VLOOKUP($A$56&$AP$5,DataItemDesc,2,FALSE),FALSE))) -> 12.8 | AS75: =IF(ISERROR(HLOOKUP($AL75,LADataRange,VLOOKUP($A$56&$AP$6,DataItemDesc,2,FALSE),FALSE)),"-",(HLOOKUP($AL75,LADataRange,VLOOKUP($A$56&$AP$6,DataItemDesc,2,FALSE),FALSE))) -> 14.1 | AT75: =IF(ISERROR(HLOOKUP($AL75,LADataRange,VLOOKUP($A$56&$AP$8,DataItemDesc,2,FALSE),FALSE)),"-",(HLOOKUP($AL75,LADataRange,VLOOKUP($A$56&$AP$8,DataItemDesc,2,FALSE),FALSE))) -> 17.4 | AU75: =IF(ISERROR(HLOOKUP($AL75,LADataRange,VLOOKUP($A$56&$AP$10,DataItemDesc,2,FALSE),FALSE)),"-",(HLOOKUP($AL75,LADataRange,VLOOKUP($A$56&$AP$10,DataItemDesc,2,FALSE),FALSE))) -> 16.3 | AV75: =IF(ISERROR(HLOOKUP($AL75,LADataRange,VLOOKUP($A$57&$AP$5,DataItemDesc,2,FALSE),FALSE)),"-",(HLOOKUP($AL75,LADataRange,VLOOKUP($A$57&$AP$5,DataItemDesc,2,FALSE),FALSE))) -> 5.6 | AW75: =IF(ISERROR(HLOOKUP($AL75,LADataRange,VLOOKUP($A$57&$AP$6,DataItemDesc,2,FALSE),FALSE)),"-",(HLOOKUP($AL75,LADataRange,VLOOKUP($A$57&$AP$6,DataItemDesc,2,FALSE),FALSE))) -> 5.2 | AX75: =IF(ISERROR(HLOOKUP($AL75,LADataRange,VLOOKUP($A$57&$AP$8,DataItemDesc,2,FALSE),FALSE)),"-",(HLOOKUP($AL75,LADataRange,VLOOKUP($A$57&$AP$8,DataItemDesc,2,FALSE),FALSE))) -> 3.2 | AY75: =IF(ISERROR(HLOOKUP($AL75,LADataRange,VLOOKUP($A$57&$AP$10,DataItemDesc,2,FALSE),FALSE)),"-",(HLOOKUP($AL75,LADataRange,VLOOKUP($A$57&$AP$10,DataItemDesc,2,FALSE),FALSE))) -> 2.7
AL76: =VLOOKUP(AL75,'LA SN Groups'!$A$4:$Y$155,6,FALSE) -> 938 | AM76: =VLOOKUP($AL76,'LA SN Groups'!$A$4:$B$155,2,FALSE) -> West Sussex | AN76: 28.1 | AO76: 26.9 | AP76: 24.3 | AQ76: 21.7 | AR76: 8.8 | AS76: 17.8 | AT76: 18.1 | AU76: 22.8 | AV76: 4.8 | AW76: 2.4 | AX76: - | AY76: 2.3
AL77: =VLOOKUP(AL75,'LA SN Groups'!$A$4:$Y$155,8,FALSE) -> 823 | AM77: =VLOOKUP($AL77,'LA SN Groups'!$A$4:$B$155,2,FALSE) -> Central Bedfordshire | AN77: 26 | AO77: 19.8 | AP77: 20.3 | AQ77: 23.2 | AR77: 9.3 | AS77: 20.2 | AT77: 15.5 | AU77: 18.3 | AV77: 6.8 | AW77: 4 | AX77: 7.4 | AY77: 6.6
AL78: =VLOOKUP(AL75,'LA SN Groups'!$A$4:$Y$155,10,FALSE) -> 803 | AM78: =VLOOKUP($AL78,'LA SN Groups'!$A$4:$B$155,2,FALSE) -> South Gloucestershire | AN78: 28.9 | AO78: 24.6 | AP78: 20 | AQ78: 24 | AR78: 10.9 | AS78: 17.5 | AT78: 10.7 | AU78: 29.5 | AV78: 4.6 | AW78: 6.8 | AX78: 2.8 | AY78: -
AL79: =VLOOKUP(AL75,'LA SN Groups'!$A$4:$Y$155,12,FALSE) -> 873 | AM79: =VLOOKUP($AL79,'LA SN Groups'!$A$4:$B$155,2,FALSE) -> Cambridgeshire | AN79: - | AO79: 22 | AP79: 21.4 | AQ79: 19.1 | AR79: 14.5 | AS79: 17.2 | AT79: 13.6 | AU79: 17.1 | AV79: 8.2 | AW79: 8 | AX79: 2.3 | AY79: 0
AL80: =VLOOKUP(AL75,'LA SN Groups'!$A$4:$Y$155,14,FALSE) -> 885 | AM80: =VLOOKUP($AL80,'LA SN Groups'!$A$4:$B$155,2,FALSE) -> Worcestershire | AN80: 14.1 | AO80: 15 | AP80: 13.9 | AQ80: 13.6 | AR80: 16.2 | AS80: 19.8 | AT80: 20.5 | AU80: 22.7 | AV80: 4.7 | AW80: 4.8 | AX80: 5.8 | AY80: 4
AL81: =VLOOKUP(AL75,'LA SN Groups'!$A$4:$Y$155,16,FALSE) -> 802 | AM81: =VLOOKUP($AL81,'LA SN Groups'!$A$4:$B$155,2,FALSE) -> North Somerset | AN81: 31.7 | AO81: 31.1 | AP81: 28.8 | AQ81: 19 | AR81: 9.5 | AS81: 18 | AT81: 18.9 | AU81: 18.8 | AV81: 6.4 | AW81: 0 | AX81: - | AY81: 0
AL82: =VLOOKUP(AL75,'LA SN Groups'!$A$4:$Y$155,18,FALSE) -> 916 | AM82: =VLOOKUP($AL82,'LA SN Groups'!$A$4:$B$155,2,FALSE) -> Gloucestershire | AN82: - | AO82: 22.2 | AP82: 25.2 | AQ82: 24 | AR82: 18.8 | AS82: 15 | AT82: 19 | AU82: 23.8 | AV82: 5.3 | AW82: 6.3 | AX82: 1.7 | AY82: 3.8
AL83: =VLOOKUP(AL75,'LA SN Groups'!$A$4:$Y$155,20,FALSE) -> 855 | AM83: =VLOOKUP($AL83,'LA SN Groups'!$A$4:$B$155,2,FALSE) -> Leicestershire | AN83: 25.7 | AO83: 28.9 | AP83: 24.2 | AQ83: 23.9 | AR83: 14 | AS83: 11.8 | AT83: 12.6 | AU83: 17.2 | AV83: 3.7 | AW83: 4.6 | AX83: 4.8 | AY83: 1.9
AL84: =VLOOKUP(AL75,'LA SN Groups'!$A$4:$Y$155,22,FALSE) -> 937 | AM84: =VLOOKUP($AL84,'LA SN Groups'!$A$4:$B$155,2,FALSE) -> Warwickshire | AN84: 25.9 | AO84: 29.9 | AP84: 24.6 | AQ84: 24.1 | AR84: 16.5 | AS84: 13.3 | AT84: 16.8 | AU84: 19.8 | AV84: 10.8 | AW84: 8 | AX84: 9.4 | AY84: 6.5
AL85: =VLOOKUP(AL75,'LA SN Groups'!$A$4:$Y$155,24,FALSE) -> 869 | AM85: =VLOOKUP($AL85,'LA SN Groups'!$A$4:$B$155,2,FALSE) -> West Berkshire | AN85: 17.7 | AO85: 18.3 | AP85: 22.2 | AQ85: 24.1 | AR85: 21.8 | AS85: 21.1 | AT85: 15.8 | AU85: 19.9 | AV85: - | AW85: - | AX85: - | AY85: -
AM86: Statistical Neighbour Average | AN86: =AVERAGE(AN76:AN85) -> 24.7625 | AO86: =AVERAGE(AO76:AO85) -> 23.87 | AP86: =AVERAGE(AP76:AP85) -> 22.49 | AQ86: =AVERAGE(AQ76:AQ85) -> 21.67 | AR86: =AVERAGE(AR76:AR85) -> 14.03 | AS86: =AVERAGE(AS76:AS85) -> 17.17 | AT86: =AVERAGE(AT76:AT85) -> 16.15 | AU86: =AVERAGE(AU76:AU85) -> 20.99 | AV86: =AVERAGE(AV76:AV85) -> 6.144444444 | AW86: =AVERAGE(AW76:AW85) -> 4.988888889 | AX86: =AVERAGE(AX76:AX85) -> 4.885714286 | AY86: =AVERAGE(AY76:AY85) -> 3.1375
AL87: 970 | AM87: England Average | AN87: =IF(ISERROR(HLOOKUP($AL87,LADataRange,VLOOKUP($A$55&$AP$5,DataItemDesc,2,FALSE),FALSE)),"-",(HLOOKUP($AL87,LADataRange,VLOOKUP($A$55&$AP$5,DataItemDesc,2,FALSE),FALSE))) -> 26.1 | AO87: =IF(ISERROR(HLOOKUP($AL87,LADataRange,VLOOKUP($A$55&$AP$6,DataItemDesc,2,FALSE),FALSE)),"-",(HLOOKUP($AL87,LADataRange,VLOOKUP($A$55&$AP$6,DataItemDesc,2,FALSE),FALSE))) -> 24.9 | AP87: =IF(ISERROR(HLOOKUP($AL87,LADataRange,VLOOKUP($A$55&$AP$8,DataItemDesc,2,FALSE),FALSE)),"-",(HLOOKUP($AL87,LADataRange,VLOOKUP($A$55&$AP$8,DataItemDesc,2,FALSE),FALSE))) -> 23.4 | AQ87: =IF(ISERROR(HLOOKUP($AL87,LADataRange,VLOOKUP($A$55&$AP$10,DataItemDesc,2,FALSE),FALSE)),"-",(HLOOKUP($AL87,LADataRange,VLOOKUP($A$55&$AP$10,DataItemDesc,2,FALSE),FALSE))) -> 24 | AR87: =IF(ISERROR(HLOOKUP($AL87,LADataRange,VLOOKUP($A$56&$AP$5,DataItemDesc,2,FALSE),FALSE)),"-",(HLOOKUP($AL87,LADataRange,VLOOKUP($A$56&$AP$5,DataItemDesc,2,FALSE),FALSE))) -> 13.8 | AS87: =IF(ISERROR(HLOOKUP($AL87,LADataRange,VLOOKUP($A$56&$AP$6,DataItemDesc,2,FALSE),FALSE)),"-",(HLOOKUP($AL87,LADataRange,VLOOKUP($A$56&$AP$6,DataItemDesc,2,FALSE),FALSE))) -> 14.9 | AT87: =IF(ISERROR(HLOOKUP($AL87,LADataRange,VLOOKUP($A$56&$AP$8,DataItemDesc,2,FALSE),FALSE)),"-",(HLOOKUP($AL87,LADataRange,VLOOKUP($A$56&$AP$8,DataItemDesc,2,FALSE),FALSE))) -> 15.8 | AU87: =IF(ISERROR(HLOOKUP($AL87,LADataRange,VLOOKUP($A$56&$AP$10,DataItemDesc,2,FALSE),FALSE)),"-",(HLOOKUP($AL87,LADataRange,VLOOKUP($A$56&$AP$10,DataItemDesc,2,FALSE),FALSE))) -> 16.6 | AV87: =IF(ISERROR(HLOOKUP($AL87,LADataRange,VLOOKUP($A$57&$AP$5,DataItemDesc,2,FALSE),FALSE)),"-",(HLOOKUP($AL87,LADataRange,VLOOKUP($A$57&$AP$5,DataItemDesc,2,FALSE),FALSE))) -> 5.6 | AW87: =IF(ISERROR(HLOOKUP($AL87,LADataRange,VLOOKUP($A$57&$AP$6,DataItemDesc,2,FALSE),FALSE)),"-",(HLOOKUP($AL87,LADataRange,VLOOKUP($A$57&$AP$6,DataItemDesc,2,FALSE),FALSE))) -> 5.2 | AX87: =IF(ISERROR(HLOOKUP($AL87,LADataRange,VLOOKUP($A$57&$AP$8,DataItemDesc,2,FALSE),FALSE)),"-",(HLOOKUP($AL87,LADataRange,VLOOKUP($A$57&$AP$8,DataItemDesc,2,FALSE),FALSE))) -> 4.5 | AY87: =IF(ISERROR(HLOOKUP($AL87,LADataRange,VLOOKUP($A$57&$AP$10,DataItemDesc,2,FALSE),FALSE)),"-",(HLOOKUP($AL87,LADataRange,VLOOKUP($A$57&$AP$10,DataItemDesc,2,FALSE),FALSE))) -> 3.7
AN90: Average time between a child entering care and moving in with its adoptive family, for children who have been adopted (3yr ave.) | AR90: Percentage of looked after children who ceased to be looked after who were adopted | AV90: Percentage of children who wait less than 20 months between entering care and moving in with their adoptive family
AN91: 2011 | AO91: 2012 | AP91: 2013 | AQ91: 2014 | AR91: 2011 | AS91: 2012 | AT91: 2013 | AU91: 2014 | AV91: 2011 | AW91: 2012 | AX91: 2013 | AY91: 2014
AL92: 383 | AM92: =VLOOKUP($AL92,'LA SN Groups'!$A$4:$B$155,2,FALSE) -> Leeds | AN92: =IF(ISERROR(HLOOKUP($AL92,LADataRange,VLOOKUP($A$50&$AP$5,DataItemDesc,2,FALSE),FALSE)),"-",(HLOOKUP($AL92,LADataRange,VLOOKUP($A$50&$AP$5,DataItemDesc,2,FALSE),FALSE))) -> 564 | AO92: =IF(ISERROR(HLOOKUP($AL92,LADataRange,VLOOKUP($A$50&$AP$6,DataItemDesc,2,FALSE),FALSE)),"-",(HLOOKUP($AL92,LADataRange,VLOOKUP($A$50&$AP$6,DataItemDesc,2,FALSE),FALSE))) -> 599 | AP92: =IF(ISERROR(HLOOKUP($AL92,LADataRange,VLOOKUP($A$50&$AP$8,DataItemDesc,2,FALSE),FALSE)),"-",(HLOOKUP($AL92,LADataRange,VLOOKUP($A$50&$AP$8,DataItemDesc,2,FALSE),FALSE))) -> 564 | AQ92: =IF(ISERROR(HLOOKUP($AL92,LADataRange,VLOOKUP($A$50&$AP$10,DataItemDesc,2,FALSE),FALSE)),"-",(HLOOKUP($AL92,LADataRange,VLOOKUP($A$50&$AP$10,DataItemDesc,2,FALSE),FALSE))) -> - | AR92: =IF(ISERROR(HLOOKUP($AL92,LADataRange,VLOOKUP($A$51&$AP$5,DataItemDesc,2,FALSE),FALSE)),"-",(HLOOKUP($AL92,LADataRange,VLOOKUP($A$51&$AP$5,DataItemDesc,2,FALSE),FALSE))) -> 16 | AS92: =IF(ISERROR(HLOOKUP($AL92,LADataRange,VLOOKUP($A$51&$AP$6,DataItemDesc,2,FALSE),FALSE)),"-",(HLOOKUP($AL92,LADataRange,VLOOKUP($A$51&$AP$6,DataItemDesc,2,FALSE),FALSE))) -> 19 | AT92: =IF(ISERROR(HLOOKUP($AL92,LADataRange,VLOOKUP($A$51&$AP$8,DataItemDesc,2,FALSE),FALSE)),"-",(HLOOKUP($AL92,LADataRange,VLOOKUP($A$51&$AP$8,DataItemDesc,2,FALSE),FALSE))) -> 25 | AU92: =IF(ISERROR(HLOOKUP($AL92,LADataRange,VLOOKUP($A$51&$AP$10,DataItemDesc,2,FALSE),FALSE)),"-",(HLOOKUP($AL92,LADataRange,VLOOKUP($A$51&$AP$10,DataItemDesc,2,FALSE),FALSE))) -> 25 | AV92: =IF(ISERROR(HLOOKUP($AL92,LADataRange,VLOOKUP($A$52&$AP$5,DataItemDesc,2,FALSE),FALSE)),"-",(HLOOKUP($AL92,LADataRange,VLOOKUP($A$52&$AP$5,DataItemDesc,2,FALSE),FALSE))) -> 62 | AW92: =IF(ISERROR(HLOOKUP($AL92,LADataRange,VLOOKUP($A$52&$AP$6,DataItemDesc,2,FALSE),FALSE)),"-",(HLOOKUP($AL92,LADataRange,VLOOKUP($A$52&$AP$6,DataItemDesc,2,FALSE),FALSE))) -> 60 | AX92: =IF(ISERROR(HLOOKUP($AL92,LADataRange,VLOOKUP($A$52&$AP$8,DataItemDesc,2,FALSE),FALSE)),"-",(HLOOKUP($AL92,LADataRange,VLOOKUP($A$52&$AP$8,DataItemDesc,2,FALSE),FALSE))) -> 51 | AY92: =IF(ISERROR(HLOOKUP($AL92,LADataRange,VLOOKUP($A$52&$AP$10,DataItemDesc,2,FALSE),FALSE)),"-",(HLOOKUP($AL92,LADataRange,VLOOKUP($A$52&$AP$10,DataItemDesc,2,FALSE),FALSE))) -> -
AL93: =VLOOKUP(AL92,'LA SN Groups'!$A$4:$Y$155,6,FALSE) -> 373 | AM93: =VLOOKUP($AL93,'LA SN Groups'!$A$4:$B$155,2,FALSE) -> Sheffield | AN93: 607 | AO93: 596 | AP93: 593 | AQ93: - | AR93: 16 | AS93: 16 | AT93: 20 | AU93: 15 | AV93: 64 | AW93: 59 | AX93: 57 | AY93: -
AL94: =VLOOKUP(AL92,'LA SN Groups'!$A$4:$Y$155,8,FALSE) -> 841 | AM94: =VLOOKUP($AL94,'LA SN Groups'!$A$4:$B$155,2,FALSE) -> Darlington | AN94: 489 | AO94: 437 | AP94: 431 | AQ94: - | AR94: 15 | AS94: 9 | AT94: 20 | AU94: 26 | AV94: 80 | AW94: 80 | AX94: 68 | AY94: -
AL95: =VLOOKUP(AL92,'LA SN Groups'!$A$4:$Y$155,10,FALSE) -> 381 | AM95: =VLOOKUP($AL95,'LA SN Groups'!$A$4:$B$155,2,FALSE) -> Calderdale | AN95: 669 | AO95: 743 | AP95: 742 | AQ95: - | AR95: 9 | AS95: 19 | AT95: 26 | AU95: 21 | AV95: 48 | AW95: 41 | AX95: 33 | AY95: -
AL96: =VLOOKUP(AL92,'LA SN Groups'!$A$4:$Y$155,12,FALSE) -> 808 | AM96: =VLOOKUP($AL96,'LA SN Groups'!$A$4:$B$155,2,FALSE) -> Stockton-on-Tees | AN96: 674 | AO96: 676 | AP96: 598 | AQ96: - | AR96: 11 | AS96: 11 | AT96: 16 | AU96: 21 | AV96: 56 | AW96: 54 | AX96: 49 | AY96: -
AL97: =VLOOKUP(AL92,'LA SN Groups'!$A$4:$Y$155,14,FALSE) -> 391 | AM97: =VLOOKUP($AL97,'LA SN Groups'!$A$4:$B$155,2,FALSE) -> Newcastle upon Tyne | AN97: 561 | AO97: 559 | AP97: 532 | AQ97: - | AR97: 13 | AS97: 20 | AT97: 27 | AU97: 19 | AV97: 57 | AW97: 63 | AX97: 62 | AY97: -
AL98: =VLOOKUP(AL92,'LA SN Groups'!$A$4:$Y$155,16,FALSE) -> 351 | AM98: =VLOOKUP($AL98,'LA SN Groups'!$A$4:$B$155,2,FALSE) -> Bury | AN98: 753 | AO98: 689 | AP98: 679 | AQ98: - | AR98: 14 | AS98: 17 | AT98: 17 | AU98: 20 | AV98: 59 | AW98: 48 | AX98: 52 | AY98: -
AL99: =VLOOKUP(AL92,'LA SN Groups'!$A$4:$Y$155,18,FALSE) -> 350 | AM99: =VLOOKUP($AL99,'LA SN Groups'!$A$4:$B$155,2,FALSE) -> Bolton | AN99: 593 | AO99: 612 | AP99: 546 | AQ99: - | AR99: 28 | AS99: 28 | AT99: 35 | AU99: 31 | AV99: 64 | AW99: 63 | AX99: 56 | AY99: -
AL100: =VLOOKUP(AL92,'LA SN Groups'!$A$4:$Y$155,20,FALSE) -> 831 | AM100: =VLOOKUP($AL100,'LA SN Groups'!$A$4:$B$155,2,FALSE) -> Derby | AN100: 672 | AO100: 715 | AP100: 721 | AQ100: - | AR100: 22 | AS100: 21 | AT100: 29 | AU100: 32 | AV100: 58 | AW100: 50 | AX100: 41 | AY100: -
AL101: =VLOOKUP(AL92,'LA SN Groups'!$A$4:$Y$155,22,FALSE) -> 392 | AM101: =VLOOKUP($AL101,'LA SN Groups'!$A$4:$B$155,2,FALSE) -> North Tyneside | AN101: 589 | AO101: 590 | AP101: 655 | AQ101: - | AR101: 15 | AS101: 20 | AT101: 20 | AU101: 14 | AV101: 48 | AW101: 49 | AX101: 49 | AY101: -
AL102: =VLOOKUP(AL92,'LA SN Groups'!$A$4:$Y$155,24,FALSE) -> 382 | AM102: =VLOOKUP($AL102,'LA SN Groups'!$A$4:$B$155,2,FALSE) -> Kirklees | AN102: 665 | AO102: 712 | AP102: 702 | AQ102: - | AR102: 13 | AS102: 14 | AT102: 21 | AU102: 18 | AV102: 59 | AW102: 47 | AX102: 42 | AY102: -
AM103: Statistical Neighbour Average | AN103: =AVERAGE(AN93:AN102) -> 627.2 | AO103: =AVERAGE(AO93:AO102) -> 632.9 | AP103: =AVERAGE(AP93:AP102) -> 619.9 | AQ103: =AVERAGE(AQ93:AQ102) ->  | AR103: =AVERAGE(AR93:AR102) -> 15.6 | AS103: =AVERAGE(AS93:AS102) -> 17.5 | AT103: =AVERAGE(AT93:AT102) -> 23.1 | AU103: =AVERAGE(AU93:AU102) -> 21.7 | AV103: =AVERAGE(AV93:AV102) -> 59.3 | AW103: =AVERAGE(AW93:AW102) -> 55.4 | AX103: =AVERAGE(AX93:AX102) -> 50.9 | AY103: =AVERAGE(AY93:AY102) -> 
AL104: 970 | AM104: England Average | AN104: =IF(ISERROR(HLOOKUP($AL104,LADataRange,VLOOKUP($A$50&$AP$5,DataItemDesc,2,FALSE),FALSE)),"-",(HLOOKUP($AL104,LADataRange,VLOOKUP($A$50&$AP$5,DataItemDesc,2,FALSE),FALSE))) -> 636 | AO104: =IF(ISERROR(HLOOKUP($AL104,LADataRange,VLOOKUP($A$50&$AP$6,DataItemDesc,2,FALSE),FALSE)),"-",(HLOOKUP($AL104,LADataRange,VLOOKUP($A$50&$AP$6,DataItemDesc,2,FALSE),FALSE))) -> 647 | AP104: =IF(ISERROR(HLOOKUP($AL104,LADataRange,VLOOKUP($A$50&$AP$8,DataItemDesc,2,FALSE),FALSE)),"-",(HLOOKUP($AL104,LADataRange,VLOOKUP($A$50&$AP$8,DataItemDesc,2,FALSE),FALSE))) -> 628 | AQ104: =IF(ISERROR(HLOOKUP($AL104,LADataRange,VLOOKUP($A$50&$AP$10,DataItemDesc,2,FALSE),FALSE)),"-",(HLOOKUP($AL104,LADataRange,VLOOKUP($A$50&$AP$10,DataItemDesc,2,FALSE),FALSE))) -> - | AR104: =IF(ISERROR(HLOOKUP($AL104,LADataRange,VLOOKUP($A$51&$AP$5,DataItemDesc,2,FALSE),FALSE)),"-",(HLOOKUP($AL104,LADataRange,VLOOKUP($A$51&$AP$5,DataItemDesc,2,FALSE),FALSE))) -> 13 | AS104: =IF(ISERROR(HLOOKUP($AL104,LADataRange,VLOOKUP($A$51&$AP$6,DataItemDesc,2,FALSE),FALSE)),"-",(HLOOKUP($AL104,LADataRange,VLOOKUP($A$51&$AP$6,DataItemDesc,2,FALSE),FALSE))) -> 14 | AT104: =IF(ISERROR(HLOOKUP($AL104,LADataRange,VLOOKUP($A$51&$AP$8,DataItemDesc,2,FALSE),FALSE)),"-",(HLOOKUP($AL104,LADataRange,VLOOKUP($A$51&$AP$8,DataItemDesc,2,FALSE),FALSE))) -> 17 | AU104: =IF(ISERROR(HLOOKUP($AL104,LADataRange,VLOOKUP($A$51&$AP$10,DataItemDesc,2,FALSE),FALSE)),"-",(HLOOKUP($AL104,LADataRange,VLOOKUP($A$51&$AP$10,DataItemDesc,2,FALSE),FALSE))) -> 17 | AV104: =IF(ISERROR(HLOOKUP($AL104,LADataRange,VLOOKUP($A$52&$AP$5,DataItemDesc,2,FALSE),FALSE)),"-",(HLOOKUP($AL104,LADataRange,VLOOKUP($A$52&$AP$5,DataItemDesc,2,FALSE),FALSE))) -> 56 | AW104: =IF(ISERROR(HLOOKUP($AL104,LADataRange,VLOOKUP($A$52&$AP$6,DataItemDesc,2,FALSE),FALSE)),"-",(HLOOKUP($AL104,LADataRange,VLOOKUP($A$52&$AP$6,DataItemDesc,2,FALSE),FALSE))) -> 55 | AX104: =IF(ISERROR(HLOOKUP($AL104,LADataRange,VLOOKUP($A$52&$AP$8,DataItemDesc,2,FALSE),FALSE)),"-",(HLOOKUP($AL104,LADataRange,VLOOKUP($A$52&$AP$8,DataItemDesc,2,FALSE),FALSE))) -> 51 | AY104: =IF(ISERROR(HLOOKUP($AL104,LADataRange,VLOOKUP($A$52&$AP$10,DataItemDesc,2,FALSE),FALSE)),"-",(HLOOKUP($AL104,LADataRange,VLOOKUP($A$52&$AP$10,DataItemDesc,2,FALSE),FALSE))) -> -
AN108: Percentage of final SEN statements issued within 26 weeks (excluding exception cases) | AR108: Appeals registered with first tier tribunal per 10,000 of school population | AV108: GCSE % point attainment gap between Statemented SEN and Non-statemented SEN children in LA (5 A*-C GCSEs including English and Maths) | AZ108: Percentage of care leavers at 19 in Education, Employment or Training | BD108: Proportion of 16-17 year olds with learning difficulties and/or disabilities (LDD) recorded in education and training
AN109: 2010/11 | AO109: 2011/12 | AP109: 2012/13 | AQ109: 2013 | AR109: 2011 | AS109: 2012 | AT109: 2013 | AU109: 2014 | AV109: 2011 | AW109: 2012 | AX109: 2013 | AY109: 2014 | AZ109: 2011 | BA109: 2012 | BB109: 2013 | BC109: 2014 | BD109: 2011 | BE109: 2012 | BF109: 2013 | BG109: 2014
AL110: 205 | AM110: =VLOOKUP($AL110,'LA SN Groups'!$A$4:$B$155,2,FALSE) -> Hammersmith and Fulham | AN110: =IF(ISERROR(HLOOKUP($AL110,LADataRange,VLOOKUP($A$58&$AP$5,DataItemDesc,2,FALSE),FALSE)),"-",(HLOOKUP($AL110,LADataRange,VLOOKUP($A$58&$AP$5,DataItemDesc,2,FALSE),FALSE))) -> 100 | AO110: =IF(ISERROR(HLOOKUP($AL110,LADataRange,VLOOKUP($A$58&$AP$6,DataItemDesc,2,FALSE),FALSE)),"-",(HLOOKUP($AL110,LADataRange,VLOOKUP($A$58&$AP$6,DataItemDesc,2,FALSE),FALSE))) -> 100 | AP110: =IF(ISERROR(HLOOKUP($AL110,LADataRange,VLOOKUP($A$58&$AP$8,DataItemDesc,2,FALSE),FALSE)),"-",(HLOOKUP($AL110,LADataRange,VLOOKUP($A$58&$AP$8,DataItemDesc,2,FALSE),FALSE))) -> 85.1 | AQ110: =IF(ISERROR(HLOOKUP($AL110,LADataRange,VLOOKUP($A$58&$AP$10,DataItemDesc,2,FALSE),FALSE)),"-",(HLOOKUP($AL110,LADataRange,VLOOKUP($A$58&$AP$10,DataItemDesc,2,FALSE),FALSE))) -> - | AR110: =IF(ISERROR(HLOOKUP($AL110,LADataRange,VLOOKUP($A$60&$AP$5,DataItemDesc,2,FALSE),FALSE)),"-",(HLOOKUP($AL110,LADataRange,VLOOKUP($A$60&$AP$5,DataItemDesc,2,FALSE),FALSE))) -> 7.51 | AS110: =IF(ISERROR(HLOOKUP($AL110,LADataRange,VLOOKUP($A$60&$AP$6,DataItemDesc,2,FALSE),FALSE)),"-",(HLOOKUP($AL110,LADataRange,VLOOKUP($A$60&$AP$6,DataItemDesc,2,FALSE),FALSE))) -> 6.96 | AT110: =IF(ISERROR(HLOOKUP($AL110,LADataRange,VLOOKUP($A$60&$AP$8,DataItemDesc,2,FALSE),FALSE)),"-",(HLOOKUP($AL110,LADataRange,VLOOKUP($A$60&$AP$8,DataItemDesc,2,FALSE),FALSE))) -> 4.59 | AU110: =IF(ISERROR(HLOOKUP($AL110,LADataRange,VLOOKUP($A$60&$AP$10,DataItemDesc,2,FALSE),FALSE)),"-",(HLOOKUP($AL110,LADataRange,VLOOKUP($A$60&$AP$10,DataItemDesc,2,FALSE),FALSE))) -> - | AV110: =IF(ISERROR(HLOOKUP(AL110,LADataRange,VLOOKUP($A$61&$AP$5,DataItemDesc,2,FALSE),FALSE)),"-",IF(HLOOKUP(AL110,LADataRange,VLOOKUP($A$61&$AP$5,DataItemDesc,2,FALSE),FALSE)="-","-",IF(HLOOKUP(AL110,LADataRange,VLOOKUP($B$61&$AP$5,DataItemDesc,2,FALSE),FALSE)="-","-",HLOOKUP(AL110,LADataRange,VLOOKUP($B$61&$AP$5,DataItemDesc,2,FALSE),FALSE)-(HLOOKUP(AL110,LADataRange,VLOOKUP($A$61&$AP$5,DataItemDesc,2,FALSE),FALSE))))) -> 25.4 | AW110: =IF(ISERROR(HLOOKUP(AL110,LADataRange,VLOOKUP($A$61&$AP$6,DataItemDesc,2,FALSE),FALSE)),"-",IF(HLOOKUP(AL110,LADataRange,VLOOKUP($A$61&$AP$6,DataItemDesc,2,FALSE),FALSE)="-","-",IF(HLOOKUP(AL110,LADataRange,VLOOKUP($B$61&$AP$6,DataItemDesc,2,FALSE),FALSE)="-","-",HLOOKUP(AL110,LADataRange,VLOOKUP($B$61&$AP$6,DataItemDesc,2,FALSE),FALSE)-(HLOOKUP(AL110,LADataRange,VLOOKUP($A$61&$AP$6,DataItemDesc,2,FALSE),FALSE))))) -> 22 | AX110: =IF(ISERROR(HLOOKUP(AL110,LADataRange,VLOOKUP($A$61&$AP$8,DataItemDesc,2,FALSE),FALSE)),"-",IF(HLOOKUP(AL110,LADataRange,VLOOKUP($A$61&$AP$8,DataItemDesc,2,FALSE),FALSE)="-","-",IF(HLOOKUP(AL110,LADataRange,VLOOKUP($B$61&$AP$8,DataItemDesc,2,FALSE),FALSE)="-","-",HLOOKUP(AL110,LADataRange,VLOOKUP($B$61&$AP$8,DataItemDesc,2,FALSE),FALSE)-(HLOOKUP(AL110,LADataRange,VLOOKUP($A$61&$AP$8,DataItemDesc,2,FALSE),FALSE))))) -> - | AZ110: =IF(ISERROR(HLOOKUP($AL110,LADataRange,VLOOKUP($A$62&$AP$5,DataItemDesc,2,FALSE),FALSE)),"-",(HLOOKUP($AL110,LADataRange,VLOOKUP($A$62&$AP$5,DataItemDesc,2,FALSE),FALSE))) -> 84 | BA110: =IF(ISERROR(HLOOKUP($AL110,LADataRange,VLOOKUP($A$62&$AP$6,DataItemDesc,2,FALSE),FALSE)),"-",(HLOOKUP($AL110,LADataRange,VLOOKUP($A$62&$AP$6,DataItemDesc,2,FALSE),FALSE))) -> 83 | BB110: =IF(ISERROR(HLOOKUP($AL110,LADataRange,VLOOKUP($A$62&$AP$8,DataItemDesc,2,FALSE),FALSE)),"-",(HLOOKUP($AL110,LADataRange,VLOOKUP($A$62&$AP$8,DataItemDesc,2,FALSE),FALSE))) -> 86 | BC110: =IF(ISERROR(HLOOKUP($AL110,LADataRange,VLOOKUP($A$62&$AP$10,DataItemDesc,2,FALSE),FALSE)),"-",(HLOOKUP($AL110,LADataRange,VLOOKUP($A$62&$AP$10,DataItemDesc,2,FALSE),FALSE))) -> - | BD110: =IF(ISERROR(HLOOKUP($AL110,LADataRange,VLOOKUP($A$63&$AP$5,DataItemDesc,2,FALSE),FALSE)),"-",(HLOOKUP($AL110,LADataRange,VLOOKUP($A$63&$AP$5,DataItemDesc,2,FALSE),FALSE))) -> - | BE110: =IF(ISERROR(HLOOKUP($AL110,LADataRange,VLOOKUP($A$63&$AP$6,DataItemDesc,2,FALSE),FALSE)),"-",(HLOOKUP($AL110,LADataRange,VLOOKUP($A$63&$AP$6,DataItemDesc,2,FALSE),FALSE))) -> 91 | BF110: =IF(ISERROR(HLOOKUP($AL110,LADataRange,VLOOKUP($A$63&$AP$8,DataItemDesc,2,FALSE),FALSE)),"-",(HLOOKUP($AL110,LADataRange,VLOOKUP($A$63&$AP$8,DataItemDesc,2,FALSE),FALSE))) -> 89.6 | BG110: =IF(ISERROR(HLOOKUP($AL110,LADataRange,VLOOKUP($A$63&$AP$10,DataItemDesc,2,FALSE),FALSE)),"-",(HLOOKUP($AL110,LADataRange,VLOOKUP($A$63&$AP$10,DataItemDesc,2,FALSE),FALSE))) -> -
AL111: =VLOOKUP(AL110,'LA SN Groups'!$A$4:$Y$155,6,FALSE) -> 202 | AM111: =VLOOKUP($AL111,'LA SN Groups'!$A$4:$B$155,2,FALSE) -> Camden | AN111: 95 | AO111: 90.6 | AP111: 94.1 | AQ111: - | AR111: 5.24 | AS111: 5.44 | AT111: 4.75 | AU111: - | AV111: 20 | AW111: 21.8 | AX111: 27 | AZ111: 78 | BA111: 87 | BB111: 83 | BC111: - | BD111: - | BE111: 84.7 | BF111: 86.8 | BG111: -
AL112: =VLOOKUP(AL110,'LA SN Groups'!$A$4:$Y$155,8,FALSE) -> 212 | AM112: =VLOOKUP($AL112,'LA SN Groups'!$A$4:$B$155,2,FALSE) -> Wandsworth | AN112: 91 | AO112: 96.9 | AP112: 80.6 | AQ112: - | AR112: 9.33 | AS112: 11.64 | AT112: 8.59 | AU112: - | AV112: 29.6 | AW112: 25.5 | AX112: 29.3 | AZ112: 82 | BA112: 88 | BB112: 90 | BC112: - | BD112: - | BE112: 84.8 | BF112: 88.5 | BG112: -
AL113: =VLOOKUP(AL110,'LA SN Groups'!$A$4:$Y$155,10,FALSE) -> 213 | AM113: =VLOOKUP($AL113,'LA SN Groups'!$A$4:$B$155,2,FALSE) -> Westminster | AN113: 61 | AO113: 66.7 | AP113: 91.5 | AQ113: - | AR113: 4.35 | AS113: 4.65 | AT113: 6.58 | AU113: - | AV113: 42.8 | AW113: 37.4 | AX113: 34.6 | AZ113: 85 | BA113: 90 | BB113: 90 | BC113: - | BD113: - | BE113: 84.3 | BF113: 88.6 | BG113: -
AL114: =VLOOKUP(AL110,'LA SN Groups'!$A$4:$Y$155,12,FALSE) -> 206 | AM114: =VLOOKUP($AL114,'LA SN Groups'!$A$4:$B$155,2,FALSE) -> Islington | AN114: 94 | AO114: 93.5 | AP114: 100 | AQ114: - | AR114: 2.06 | AS114: 3.73 | AT114: 8.94 | AU114: - | AV114: 28 | AW114: 33.4 | AX114: 20.9 | AZ114: 82 | BA114: 85 | BB114: 90 | BC114: - | BD114: - | BE114: 88.5 | BF114: 89.1 | BG114: -
AL115: =VLOOKUP(AL110,'LA SN Groups'!$A$4:$Y$155,14,FALSE) -> 207 | AM115: =VLOOKUP($AL115,'LA SN Groups'!$A$4:$B$155,2,FALSE) -> Kensington and Chelsea | AN115: 93 | AO115: 94.4 | AP115: 86.2 | AQ115: - | AR115: 8.94 | AS115: 4.4 | AT115: 5.11 | AU115: - | AV115: 21.6 | AW115: - | AX115: - | AZ115: 79 | BA115: 88 | BB115: 89 | BC115: - | BD115: - | BE115: 89.6 | BF115: 90.5 | BG115: -
AL116: =VLOOKUP(AL110,'LA SN Groups'!$A$4:$Y$155,16,FALSE) -> 309 | AM116: =VLOOKUP($AL116,'LA SN Groups'!$A$4:$B$155,2,FALSE) -> Haringey | AN116: 98 | AO116: 96.5 | AP116: 100 | AQ116: - | AR116: 6.53 | AS116: 6.69 | AT116: 8.74 | AU116: - | AV116: 25 | AW116: 30.3 | AX116: 24.4 | AZ116: 86 | BA116: 87 | BB116: 89 | BC116: - | BD116: - | BE116: 88.6 | BF116: 91.2 | BG116: -
AL117: =VLOOKUP(AL110,'LA SN Groups'!$A$4:$Y$155,18,FALSE) -> 203 | AM117: =VLOOKUP($AL117,'LA SN Groups'!$A$4:$B$155,2,FALSE) -> Greenwich | AN117: 100 | AO117: 100 | AP117: 100 | AQ117: - | AR117: 8.15 | AS117: 7.59 | AT117: 9.15 | AU117: - | AV117: 14.2 | AW117: 18.9 | AX117: 22.8 | AZ117: 77 | BA117: 84 | BB117: 87 | BC117: - | BD117: - | BE117: 86.3 | BF117: 86.7 | BG117: -
AL118: =VLOOKUP(AL110,'LA SN Groups'!$A$4:$Y$155,20,FALSE) -> 210 | AM118: =VLOOKUP($AL118,'LA SN Groups'!$A$4:$B$155,2,FALSE) -> Southwark | AN118: 83 | AO118: 100 | AP118: 100 | AQ118: - | AR118: 7.84 | AS118: 9.71 | AT118: 10.82 | AU118: - | AV118: 28.5 | AW118: 28.9 | AX118: 26.6 | AZ118: 82 | BA118: 86 | BB118: 88 | BC118: - | BD118: - | BE118: 88.9 | BF118: 90.6 | BG118: -
AL119: =VLOOKUP(AL110,'LA SN Groups'!$A$4:$Y$155,22,FALSE) -> 352 | AM119: =VLOOKUP($AL119,'LA SN Groups'!$A$4:$B$155,2,FALSE) -> Manchester | AN119: 92 | AO119: 88.6 | AP119: 82.5 | AQ119: - | AR119: 3.69 | AS119: 4.64 | AT119: 6 | AU119: - | AV119: 15.3 | AW119: 12.2 | AX119: 17.1 | AZ119: 77 | BA119: 82 | BB119: 81 | BC119: - | BD119: - | BE119: 84.6 | BF119: 85.8 | BG119: -
AL120: =VLOOKUP(AL110,'LA SN Groups'!$A$4:$Y$155,24,FALSE) -> 315 | AM120: =VLOOKUP($AL120,'LA SN Groups'!$A$4:$B$155,2,FALSE) -> Merton | AN120: 98 | AO120: 93.5 | AP120: 91.9 | AQ120: - | AR120: 4.22 | AS120: 9.2 | AT120: 8.1 | AU120: - | AV120: 21.5 | AW120: 19.6 | AX120: 24.5 | AZ120: 82 | BA120: 85 | BB120: 88 | BC120: - | BD120: - | BE120: 89 | BF120: 89.4 | BG120: -
AM121: Statistical Neighbour Average | AN121: =AVERAGE(AN111:AN120) -> 90.5 | AO121: =AVERAGE(AO111:AO120) -> 92.07 | AP121: 92.68 | AR121: 6.035 | AS121: 6.769 | AT121: 7.678 | AV121: 24.65 | AW121: 25.33333333 | AX121: 25.24444444 | AZ121: 81 | BA121: 86.2 | BB121: 87.5 | BD121: =AVERAGE(BD111:BD120) ->  | BE121: 86.93 | BF121: 88.72
AL122: 970 | AM122: England Average | AN122: =IF(ISERROR(HLOOKUP($AL122,LADataRange,VLOOKUP($A$58&$AP$5,DataItemDesc,2,FALSE),FALSE)),"-",(HLOOKUP($AL122,LADataRange,VLOOKUP($A$58&$AP$5,DataItemDesc,2,FALSE),FALSE))) -> 90 | AO122: =IF(ISERROR(HLOOKUP($AL122,LADataRange,VLOOKUP($A$58&$AP$6,DataItemDesc,2,FALSE),FALSE)),"-",(HLOOKUP($AL122,LADataRange,VLOOKUP($A$58&$AP$6,DataItemDesc,2,FALSE),FALSE))) -> 89.7 | AP122: =IF(ISERROR(HLOOKUP($AL122,LADataRange,VLOOKUP($A$58&$AP$8,DataItemDesc,2,FALSE),FALSE)),"-",(HLOOKUP($AL122,LADataRange,VLOOKUP($A$58&$AP$8,DataItemDesc,2,FALSE),FALSE))) -> 89 | AQ122: =IF(ISERROR(HLOOKUP($AL122,LADataRange,VLOOKUP($A$58&$AP$10,DataItemDesc,2,FALSE),FALSE)),"-",(HLOOKUP($AL122,LADataRange,VLOOKUP($A$58&$AP$10,DataItemDesc,2,FALSE),FALSE))) -> - | AR122: =IF(ISERROR(HLOOKUP($AL122,LADataRange,VLOOKUP($A$60&$AP$5,DataItemDesc,2,FALSE),FALSE)),"-",(HLOOKUP($AL122,LADataRange,VLOOKUP($A$60&$AP$5,DataItemDesc,2,FALSE),FALSE))) -> 4.35 | AS122: =IF(ISERROR(HLOOKUP($AL122,LADataRange,VLOOKUP($A$60&$AP$6,DataItemDesc,2,FALSE),FALSE)),"-",(HLOOKUP($AL122,LADataRange,VLOOKUP($A$60&$AP$6,DataItemDesc,2,FALSE),FALSE))) -> 4.37 | AT122: =IF(ISERROR(HLOOKUP($AL122,LADataRange,VLOOKUP($A$60&$AP$8,DataItemDesc,2,FALSE),FALSE)),"-",(HLOOKUP($AL122,LADataRange,VLOOKUP($A$60&$AP$8,DataItemDesc,2,FALSE),FALSE))) -> 4.83 | AU122: =IF(ISERROR(HLOOKUP($AL122,LADataRange,VLOOKUP($A$60&$AP$10,DataItemDesc,2,FALSE),FALSE)),"-",(HLOOKUP($AL122,LADataRange,VLOOKUP($A$60&$AP$10,DataItemDesc,2,FALSE),FALSE))) -> - | AV122: =IF(ISERROR(HLOOKUP(AL122,LADataRange,VLOOKUP($A$61&$AP$5,DataItemDesc,2,FALSE),FALSE)),"-",IF(HLOOKUP(AL122,LADataRange,VLOOKUP($A$61&$AP$5,DataItemDesc,2,FALSE),FALSE)="-","-",IF(HLOOKUP(AL122,LADataRange,VLOOKUP($B$61&$AP$5,DataItemDesc,2,FALSE),FALSE)="-","-",HLOOKUP(AL122,LADataRange,VLOOKUP($B$61&$AP$5,DataItemDesc,2,FALSE),FALSE)-(HLOOKUP(AL122,LADataRange,VLOOKUP($A$61&$AP$5,DataItemDesc,2,FALSE),FALSE))))) -> 16.9 | AW122: =IF(ISERROR(HLOOKUP(AL122,LADataRange,VLOOKUP($A$61&$AP$6,DataItemDesc,2,FALSE),FALSE)),"-",IF(HLOOKUP(AL122,LADataRange,VLOOKUP($A$61&$AP$6,DataItemDesc,2,FALSE),FALSE)="-","-",IF(HLOOKUP(AL122,LADataRange,VLOOKUP($B$61&$AP$6,DataItemDesc,2,FALSE),FALSE)="-","-",HLOOKUP(AL122,LADataRange,VLOOKUP($B$61&$AP$6,DataItemDesc,2,FALSE),FALSE)-(HLOOKUP(AL122,LADataRange,VLOOKUP($A$61&$AP$6,DataItemDesc,2,FALSE),FALSE))))) -> 16.9 | AX122: =IF(ISERROR(HLOOKUP(AL122,LADataRange,VLOOKUP($A$61&$AP$8,DataItemDesc,2,FALSE),FALSE)),"-",IF(HLOOKUP(AL122,LADataRange,VLOOKUP($A$61&$AP$8,DataItemDesc,2,FALSE),FALSE)="-","-",IF(HLOOKUP(AL122,LADataRange,VLOOKUP($B$61&$AP$8,DataItemDesc,2,FALSE),FALSE)="-","-",HLOOKUP(AL122,LADataRange,VLOOKUP($B$61&$AP$8,DataItemDesc,2,FALSE),FALSE)-(HLOOKUP(AL122,LADataRange,VLOOKUP($A$61&$AP$8,DataItemDesc,2,FALSE),FALSE))))) -> 15.5 | AZ122: =IF(ISERROR(HLOOKUP($AL122,LADataRange,VLOOKUP($A$62&$AP$5,DataItemDesc,2,FALSE),FALSE)),"-",(HLOOKUP($AL122,LADataRange,VLOOKUP($A$62&$AP$5,DataItemDesc,2,FALSE),FALSE))) -> 81 | BA122: =IF(ISERROR(HLOOKUP($AL122,LADataRange,VLOOKUP($A$62&$AP$6,DataItemDesc,2,FALSE),FALSE)),"-",(HLOOKUP($AL122,LADataRange,VLOOKUP($A$62&$AP$6,DataItemDesc,2,FALSE),FALSE))) -> 84 | BB122: =IF(ISERROR(HLOOKUP($AL122,LADataRange,VLOOKUP($A$62&$AP$8,DataItemDesc,2,FALSE),FALSE)),"-",(HLOOKUP($AL122,LADataRange,VLOOKUP($A$62&$AP$8,DataItemDesc,2,FALSE),FALSE))) -> 85 | BC122: =IF(ISERROR(HLOOKUP($AL122,LADataRange,VLOOKUP($A$62&$AP$10,DataItemDesc,2,FALSE),FALSE)),"-",(HLOOKUP($AL122,LADataRange,VLOOKUP($A$62&$AP$10,DataItemDesc,2,FALSE),FALSE))) -> - | BD122: =IF(ISERROR(HLOOKUP($AL122,LADataRange,VLOOKUP($A$63&$AP$5,DataItemDesc,2,FALSE),FALSE)),"-",(HLOOKUP($AL122,LADataRange,VLOOKUP($A$63&$AP$5,DataItemDesc,2,FALSE),FALSE))) -> - | BE122: =IF(ISERROR(HLOOKUP($AL122,LADataRange,VLOOKUP($A$63&$AP$6,DataItemDesc,2,FALSE),FALSE)),"-",(HLOOKUP($AL122,LADataRange,VLOOKUP($A$63&$AP$6,DataItemDesc,2,FALSE),FALSE))) -> 85.9 | BF122: =IF(ISERROR(HLOOKUP($AL122,LADataRange,VLOOKUP($A$63&$AP$8,DataItemDesc,2,FALSE),FALSE)),"-",(HLOOKUP($AL122,LADataRange,VLOOKUP($A$63&$AP$8,DataItemDesc,2,FALSE),FALSE))) -> 85.8 | BG122: =IF(ISERROR(HLOOKUP($AL122,LADataRange,VLOOKUP($A$63&$AP$10,DataItemDesc,2,FALSE),FALSE)),"-",(HLOOKUP($AL122,LADataRange,VLOOKUP($A$63&$AP$10,DataItemDesc,2,FALSE),FALSE))) -> -

Sheet Technical Note (hidden)
B1: Technical Note
B2: Policy Area | C2: Measure | D2: Frequency | E2: Last Update | F2: Next Update | G2: Polarity | H2: Information | I2: Methodology | J2: Source
B3: Looked after Children | C3: Percentage of children at 31 March with three or more placements in the year | D3: Annual | E3: 2014-01-01 | F3: 2015-01-01 | G3: Low | H3: Denominator : The total number of children who were looked after at 31 March, excluding any children who were looked after on that date under an agreed series of short term-placements (under the provisions of Reg. 13 of the Arrangement for Placement of Children (General) Regulations, 1991) [Source - SSDA903] Numerator : Of the children looked after in the denominator, the number who had three or more separate placements (as defined by the SSDA903 collection) during the year. All placements of 24 hours or more are counted, regardless of duration [Source - SSDA903] | J3: https://www.gov.uk/government/publications/children-in-care-and-adoption-performance-tables-2013
C4: Percentage of children who have been looked after for more than 2.5 years and of those, have been in the same placement for at least 2 years or placed for adoption | D4: Annual | E4: 2014-01-01 | F4: 2015-01-01 | G4: High | H4: This represents 'Stability of placements' of looked after children. | I4: Length of placement' which is obtained from X/Y*100 where X = Of Y, all who have been living in the same placement for at least two years, i.e. at 31 March they have been in the same placement continuously for more than 729 days inclusive of 31 March. Note: Children who are placed for adoption at 31 March are only included in the numerator if their previous care placement, plus the adoptive placement, have together lasted more than 729 days. Y = All children aged under 16 on 31 March of the year of measurement who had been looked after for 2.5 years or more (i.e. for more than 912 days inclusive of 31 March) on 31 March of the year of measurement. Note: this excludes children who had been looked after at any time during the 2.5 year period under an agreed series of short term-placements. Percentages have been derived from unrounded numerator and denominator figures. | J4: https://www.gov.uk/government/publications/children-in-care-and-adoption-performance-tables-2013
C5: GCSE attainment - % point difference between LAC and all the children in the local authority (5 A*-C GCSEs including English and Maths) | D5: Annual | E5: 2013-12-01 | F5: 2014-12-01 | G5: Low | H5: Percentage of children continuously looked after for at least twelve months ending 31 March achieving 5 A* - C GCSEs (including English and Maths) qualification or equivalent. The new data source for the attainment of looked after children is produced by matching information from the Children Looked After (CLA) database, (collected annually from Local Authorities via the SSDA903 return), with information within the National Pupil database (NPD). | I5: Point difference is obtained from x-y where: x= % of All children achieving 5 A*-C GCSE inc English and Maths y= % of LAC achieving 5 A*-C GCSE inc English and Maths | J5: https://www.gov.uk/government/publications/outcomes-for-children-looked-after-by-local-authorities-in-england-31-march-2012
C6: Percentage of care leavers at 19 in Education, Employment or Training | D6: Annual | E6: 2013-12-01 | F6: 2014-12-01 | G6: High | H6: The data for the percentage of all young people in employment, training or education has been derived from the Labour Force Survey. N.B. Since these figures are from a survey and relate to the population aged 18-24 rather than at age 19 they are subject to a margin of error. | I6: The number of care leavers known to be in employment or training is divided by the total of care leavers to yield the percentage in employment or training. | J6: https://www.gov.uk/government/publications/children-looked-after-by-local-authorities-in-england-including-adoption
C7: Calculation of Unit Cost | D7: - | E7: - | F7: - | G7: - | H7: Funding line includes: 1) Special guardianship support - financial support paid to Special Guardianship families under the Special Guardianship Regulations 2005 and other staff and overhead costs associated with Special Guardianship Orders. 2) Other children in looked after services - support to looked after young people, which covers - those in NHS/other establishments providing nursing/medical care - residential, respite and emergency nights in residential beds at family centres - those in lodgings or hostels - those in mother and baby homes - those living independently in flats, beds and breakfast establishments or with friends - those in residential employment - independent visitor costs and relevant contact payments under sections 20/34 of the Children Act 1989 not included under Children’s homes or Fostering services) - those in Youth Detention accommodation (as set out at Legal Aid, Sentencing and Punishment of Offenders Act). - expenditure on Advocacy services for children looked after. 3) Short breaks (respite) for looked after disabled children - all provision for short-breaks (respite) services for disabled children who are deemed "looked after". This covers: - short breaks utilising a residential setting - family based overnight and day care short break services - including those provided through contract and family link carers; - sitting or sessional short break services in the child’s home, or supporting the child to access activities in the community. Data excludes any break exceeding 28 days continuous care and costs associated with providing disabled children’s access to residential universal services. | I7: (x/y)/365 * 7 where: x = Total funding on Looked after children recorded on either outturn or S251 financial statement y = Total number of Looked after children as at 31 March Result is rounded to nearest £5
H8: Note: By definition a child must be provided with accommodation for a continuous period of more than 24 hours before that child can be defined as being a Looked After Child (LAC) under the Children Act 1989 Section 20 and 21. If the provision period is under 24 hours then that child is not a LAC and the associated costs should be recorded in the Family Support Services section. 4) Children placed with family and friends - Where looked after children do not live with their birth parents, it is not uncommon for them to be placed with family and friend foster carers. This Includes expenditure on the authority’s functions in relation to looked after children placed with family and friends foster carers under the Children Act 1989. 5) Education of looked after children -This includes expenditure on the services provided to promote the education of the children looked after by your local authority (e.g. looked after children education service teams and training for designated teachers). This excludes any spend delegated to schools for looked after children. 6) Leaving care support services - This Includes local authority’s "leaving care" support services functions under the Children (Leaving Care) Act 2000. Asylum seekers services (for children) includes expenditure of those asylum seeking children who are not looked after. Costs for asylum seekers who are looked after would be distributed amongst the placement and other looked after child costs at line 16.
B9: Fostering Services | C9: Percentage of children looked after placed more than 20 miles from their home and outside LA boundary | D9: Annual | E9: 2013-12-01 | F9: 2014-12-01 | G9: Low | H9: Denominator: All children looked after at 31 March. Figures exclude children looked after under an agreed series of short term placements. Numerator: Of all children in the denominator, the number who were placed at March 31 more than 20 miles (outside LA boundary) from their home address from which first placed. | J9: https://www.gov.uk/government/publications/children-looked-after-in-england-including-adoption
C10: Proportion of children in foster care at 31st March with three of more placements in the year | D10: Annual | E10: - | F10: - | G10: Low | H10: - | J10: -
C11: Proportion of children in foster care who have been looked after for more than 2.5 years and of those, have been in the same placement for at least 2 years | D11: Annual | E11: - | F11: - | G11: High | H11: - | J11: -
C12: Calculation of Unit Cost | D12: - | E12: - | F12: - | G12: - | H12: Unit costs Include all in-house provision, fostering services purchased externally, fees and allowances paid to foster parents and the costs of social worker and other support staff who support foster carers. This covers: - mainstay placements - link placements - permanence placements - temporary /respite fostering - associated independent visitor costs and relevant contact payments under sections 20/34 of the Children Act 1989. This excludes remand fostering (youth justice) foster care placements with a relative or friend (Children placed with family and friends); social work costs related directly to the fostered children (Social Work); and short breaks (respite) for looked after disabled children. | I12: Calculation : (x/y)/365 * 7 where x = Total funding on Fostering Services recorded on either outturn or S251 financial statement y = Total number of Foster placements as at 31 March Result is rounded to nearest £5 | J12: -
B13: Adoption Services | C13: Average time between a child entering care and moving in with its adoptive family, for children who have been adopted (3yr ave.) | D13: Annual | E13: 2014-01-01 | F13: 2014-12-01 | G13: Low | H13: This indicator includes all children adopted in the period 1 April 2010 to 31 March 2013 that were placed for adoption immediately prior to their adoption. See Adoption Scorecards (https://www.gov.uk/government/publications/adoption-scorecards) | I13: Time is calculated between a child starting to be looked after and their placement for adoption, i.e. the date they move with their adoptive family, and rounded to the nearest day. Only children with valid data are included. | J13: https://www.gov.uk/government/publications/adoption-scorecards
C14: Percentage of looked after children who ceased to be looked after who were adopted | D14: Annual | E14: 2014-01-01 | F14: 2014-12-01 | G14: High | H14: Percentage of Looked after children adopted in year. | J14: https://www.gov.uk/government/publications/children-looked-after-in-england-including-adoption
C15: Percentage of children who wait less than 20 months between entering care and moving in with their adoptive family | D15: Annual | E15: 2014-01-01 | F15: 2014-12-01 | G15: Low | H15: 1. This indicator includes: - all children adopted in the period 1 April 2010 to 31 March 2013 that were placed for adoption immediately prior to their adoption - all children with a current adoption plan at 31 March 2013 (excluding those where the decision to adopt has been reversed). Note: When adoption is the preferred option for permanence this is referred to as the adoption plan. 2. Time is calculated between a child starting to be looked after and their placement for adoption, i.e. the date they move in with their adoptive family. Note: Only children with valid data are included. Children are flagged if they waited less than 20 months (measured at 20X days) between starting to be looked after and being placed for adoption or had not yet been looked after for 20 months at 31 March 2013. 3. The numerator includes: - all adopted children who were placed for adoption first less than 20 months after becoming looked after - all children looked after at 31 March 2013 with a current adoption decision who were placed less than 20 months after becoming looked after or who had not yet been looked after for 20 months. 4. The denominator is all adopted children who were placed for adoption first and all looked after at 31 March with a current adoption decision. | J15: https://www.gov.uk/government/publications/adoption-scorecards
C16: Calculation of Unit Cost | D16: - | E16: - | F16: - | G16: - | H16: This includes adoption allowances for paid and other staff, overhead costs associated with adoption (including the costs of social workers seeking new / supporting existing adoptive parents) and costs related to adoption support (e.g. cost of therapeutic services). NOTE: Adoption support services are defined as: - Financial support; - Services to enable groups of adoptive children, adoptive and natural parents or former guardians of an adoptive child to discuss matters relating to adoption; - Assistance, including mediation services, in relation to contact between an adoptive child and a natural parent, natural sibling, former guardian or a related person; - Therapeutic services for the adoptive child; - Assistance to ensure the relation between an adopted child and his or her adoptive parents continue, (includes training for adoptive parents to meet any special needs of the child); - Respite care - Assistance before and after the adoption order, where the placement/arrangement is in danger of disrupting; - Counselling, advice and information. Refer to the Adoption Support Services Regulations 2005 for further information. Provision of adoption support is based on assessed needs. Financial payments are made depending on the needs of the child and are means-tested. Children are placed with approved prospective adopters under the Adoption and Children Act 2002 and the Adoption Agencies Regulations 2005. This is the provision of care and accommodation of children placed for adoption under the Adoption Agencies Regulation 2005. It also covers payments made, in accordance with the Adoption Support Services Regulations 2005, to a family after an adoption order has been made. This excludes the costs of children placed for adoption (see fostering services) and social work costs directly relating to the adopted children (see Social work). | I16: Calculation : (x/y)/365 * 7 where x = Total funding on Adoption Services recorded on either outturn or S251 financial statement y = Total number of children freed for adoption or with a placement order as at 31 March (figures under 6 are subject to suppression) Result is rounded to nearest £5. | J16: -
B17: Residential Care | C17: Percentage of children placed over 20 miles outside local area | D17: Annual | E17: 2013-09-01 | F17: TBC | G17: Low | H17: The children's homes data pack provides information on the children in the homes, the homes and their quality, their location and ownership, their cost, and the children’s homes market. Denominator: All children looked after at 31 March. Figures exclude children looked after under an agreed series of short term placements. Numerator: Of all children in the denominator, the number who were placed in a residential care home at March 31 more than 20 miles (outside LA boundary) from their home address from which first placed. | J17: http://www.education.gov.uk/childrenandyoungpeople/families/childrenincare/childrenshomes/a00192000/childrens-homes-data-pack
C18: Quality of children's homes run by the local authority | D18: Annual | E18: - | F18: TBC | G18: High | H18: Information to be provided by Ofsted | J18: -
C19: Calculation of Unit Cost | D19: - | E19: - | F19: - | G19: - | H19: This Includes expenditure on residential care in Voluntary Children’s and Registered Children’s Homes as defined in Children Act 1989. This covers: - associated independent visitor costs and relevant contact payments under sections 20/34 of the Children Act 1989 - homes where education is provided, but does not attract education department funds - boarding schools. Include the social services share of the costs of community homes with education provision and the social services element of accommodating children with special education needs in schools where the education element is met by the education department. To note: the spend on children’s education is recorded in the education lines of the table. This excludes expenditure costs for: - short breaks for looked after disabled children. - mother and baby homes (included in Other Children Looked After Services). - Youth Detention Accommodation (include in Other Children Looked After Services). - respite care for those children not meeting the definition of children looked after. Explicitly excludes short breaks for looked after disabled children. | I19: Calculation : (x/y) * 7 where: x = Total funding on residential care recorded on either outturn or S251 financial statement y = Total number of residential care days provided Result is rounded to nearest £5 | J19: -
B20: Social Work & Commissioning | C20: Percentage of re-referrals to children's social care within 12 months of a previous referral | D20: Annual | E20: 2013-10-01 | F20: 2014-10-01 | G20: Low | H20: This measure details the percentage of re-referrals to children's social care within 12 months of a previous referral. A referral is defined as a request for services to be provided by children’s social care and is in respect of a child who is currently not assessed to be in need. A referral may result in an initial assessment of the child’s needs, the provision of information or advice, referral to another agency or no further action. New information relating to children who are already assessed to be a "Child in Need" is not counted as a referral. | J20: https://www.gov.uk/government/publications/characteristics-of-children-in-need-in-england-2012-to-2013
C21: Percentage of children registered on the Child Protection Register, previously registered | D21: Annual | E21: 2013-10-01 | F21: 2014-10-01 | G21: Low | H21: Denominator - The number of children registered, or having a child protection plan, at any time between 1 April and 31 March. This is a count of each occasion of registration in the year, and may count the same child more than once. [Source - CPR3] Numerator - Of the children in the denominator, the number who had previously been on the child protection register, or had a child protection plan, regardless of how long ago that was. [Source - CPR3] | J21: https://www.gov.uk/government/publications/characteristics-of-children-in-need-in-england-2012-to-2013
C22: Child Protection Plans lasting 2 years or more which cease during the year | D22: Annual | E22: 2013-10-01 | F22: 2014-10-01 | G22: Low, but see note. | H22: Note: Good performance is typified by a lower percentage. However it is recognised that some children will need child protection plans for longer than 2 years and are not necessarily expecting a zero percentage return. This indicator should be looked at alongside re-registrations on the CPR – a good (low) figure for this indicator may be explained by a poor (high) figure for re-registrations. Also, a poor (high) figure for this indicator may be explained by a poor (low) figure for reviewing child protection cases on time. | I22: X/Y * 100 X = Of the children in the denominator, the number who had been the subject of a Child Protection Plan continuously for two years or longer (i.e. for more than 729 calendar days including days of cessation). Y = The number of children ceasing to be the subject of a Child Protection Plan during the year ending 31 March. This may count a child more than once if they ceased to be the subject of a Child Protection Plan more than once during the year. | J22: https://www.gov.uk/government/publications/characteristics-of-children-in-need-in-england-2012-to-2013
C23: Calculation of Unit Cost | D23: - | E23: - | F23: - | G23: - | H23: 1) Social work (including LA functions in relation to child protection) - Social workers directly involved with the care of children and commissioning services for children. This Includes most of the direct social work costs, processes for assessing need, determining and defining service to be provided and reviewing the quality of and continued relevance of that care for children. This also includes: • field social work costs (include Hospital Social Workers); • Occupational Therapy Services to Children; • relevant support staff costs; • child protection social work costs. This excludes Social Work costs in support of foster carers and adoptive families as these are captured elsewhere in the return. This also includes spending on LA functions in relation to child protection; all expenditure on carrying out the authority’s functions in relation to children protection under the Children Act 1989 and under section 175 of the Education Act 2002 and other functions relating to child protection. 2) Commissioning and Children’s Services Strategy - this includes spending on overall commissioning within children’s and young people’s services; e.g. the cost of a central commissioning function. This also includes any additional expenditure on services that are bought in from outside the local authority to support the central commissioning function. Where joint commissioning units have been set up, e.g. between the local authority and the primary care trust, the overall costs of maintaining the joint unit should be given. This excludes the costs of the actual services commissioned as well as any social worker costs related to commissioning as these will be captured elsewhere in the return. It also excludes costs of commissioning services specifically for Sure Start Children’s Centres. 3) Children’s services strategy element - this includes partnership costs for multi-agency working i.e. contributions from the authority to partnership manager and other costs excluding pooled budget contributions for specific front line services. This also includes spending on statutory regulatory duties related to children’s services that are not included in the line on central administration related to education above (line 82). | I23: Calculation : (x/y)/365 * 7 where x = Total funding on Social work and Commissioning & Children's Services Strategy recorded on either outturn or S251 financial statement y = Total number of Children in need at 31 March Result is rounded to nearest £5 | J23: -
B24: Special Educational Needs (SEN) | C24: Percentage of final SEN statements issued within 26 weeks (excluding exception cases) | D24: Annual | E24: 2013-10-01 | F24: 2014-10-01 | G24: High | I24: Percentage of final statements of special education need issued within 26 weeks excluding exception cases as a proportion of all such statements issued in the year. (x/y)*100 Where: x = Final statements of special education need excluding exception cases issued within 26 weeks. y = All final statements of special education need issued (excluding exception cases). The exceptions are those set out in the Education (Special Educational Needs) (England) (Consolidation) Regulations 2001, sections 12(5), 12(7) and 12(9). | J24: https://www.gov.uk/government/publications/special-educational-needs-in-england-january-2013
C25: Percentage of EHC assessments conducted within 20 weeks from initial request | D25: Annual (New Data) | E25: - | F25: - | G25: High
C26: Appeals per 10,000 of school population | D26: Annual | E26: 2013-12-01 | F26: 2014-12-01 | G26: Low | H26: SEND appeals registered are broken down by local authority, however due to the differing local authority sizes, a rate of appeals per 10,000 school children is calculated. | J26: https://www.gov.uk/government/uploads/system/uploads/attachment_data/file/265399/send-tribunal-stats-tables.xls
C27: GCSE % point attainment gap between Statemented SEN and Non-statemented SEN children in LA (5 A*-C GCSEs including English and Maths) | D27: Annual | E27: 2014-04-01 | F27: 2015-01-01 | G27: Low | I27: Point difference is obtained from x-y where x= % of SEN children with a Statement achieving 5 A*-C GCSE inc English and Maths y= % of SEN children without a Statement achieving 5 A*-C GCSE inc English and Maths | J27: https://www.gov.uk/government/publications/gcse-and-equivalent-attainment-by-pupil-characteristics-2012-to-2013
C28: Percentage of KS4 SEN cohort in Education, Employment or Training at 17 | D28: Annual | E28: 2014-01-01 | F28: 2014-06-01 | G28: High | H28: This measure reports on all SEN young people in Key Stage 4 (KS4) in the 2009/10 academic year, and identifies their education and employment/training destinations in the 2010/11 academic year. The 2009/10 cohort is obtained from the published Performance Tables where Young people are identified as being at the end of KS4. In the majority of schools, pupils in Year 11 in the 2009/10 academic year were at the end of KS4, but some may have completed this Key Stage in an earlier or later year group. The base cohort includes students in English state-funded mainstream schools only. This measure is subject to time lag as the Destination Measures requires higher education (HESA) data to be matched to the pupil data in the National Pupil Database. | J28: https://www.gov.uk/government/publications/destinations-of-key-stage-4-and-key-stage-5-pupils-by-characteristics-academic-year-2010-to-2011
C29: Proportion of 16-17 year olds with learning difficulties and/or disabilities (LDD) recorded in education and training, December 2013 | D29: Annual | E29: 2014-03-01 | F29: 2015-03-01 | G29: High | H29: Local authorities have a responsibility to track young people's participation in education or training. They do this through exchange of information with schools and colleges, other youth services and through direct contact with young people. Information about a young person's activity is recorded on a client database. The accuracy of the data is therefore dependent on the quality of the data collection by each local authority. Local authorities are required to identify young people with learning difficulties and/or disabilities (LDD). For the purposes of this data collection, a young person is deemed to have a LDD if he/she - Had a statement of special educational need (SEN) at the time of completing compulsory education; or - Is still attending school and has been given a SEN since completing compulsory education; or - Has received a learning difficulty assessment. | J29: https://www.gov.uk/government/publications/participation-in-education-and-training-by-local-authority
C30: Calculation of Unit Cost | D30: - | E30: - | F30: - | G30: - | H30: Includes the Section 251 budget lines: Provision for pupils with SEN (including assigned resources); Provision for pupils with SEN provision not included in line 1.2.1; SEN transport' ; SEN administration assessment and co-ordination; Monitoring of SEN provision; Home to school transport: SEN transport expenditure; Home to college transport: SEN transport expenditure. | I30: Calculation : (x/y)/365 * 7 where x = Total funding on SEN Services recorded on S251 financial budget statement y = Total number of children with a statement as at January (school census) Result is rounded to nearest £5 | J30: -

Sheet EngAves
B1: England Averages for State Funded Schools only
B3: Where applicable, the England Averages displayed in the presentation views are for 'All Schools'. This page provides details of England Averages for state funded school only for comparison purposes.
D5: _1 | E5: _2 | F5: _3 | G5: _4 | H5: _5 | I5: _6 | J5: _7 | K5: _8 | L5: _9 | M5: _10
B6: Key Stage 2 | D6: 2006 | E6: 2007 | F6: 2008 | G6: 2009 | H6: 2010 | I6: 2011 | J6: 2012 | K6: 2013 | L6: 2014 | M6: 2015
A7: KS2E | C7: % Level 4+ English | D7: =IF(ISERROR(HLOOKUP(1000,LADataRange,VLOOKUP($A7&D$5,DataItemDesc,2,FALSE),FALSE)),"-",(HLOOKUP(1000,LADataRange,VLOOKUP($A7&D$5,DataItemDesc,2,FALSE),FALSE))) -> 79 | E7: 80 | F7: 81 | G7: 80 | H7: 80 | I7: 81 | J7: 85 | K7: 87 | L7: 88 | M7: 89
A8: KS2R | C8: % Level 4+ Reading | D8: - | E8: - | F8: - | G8: - | H8: 84 | I8: 84 | J8: 87 | K8: 86 | L8: 89 | M8: 89
A9: KS2W | C9: % Level 4+ Writing | D9: - | E9: - | F9: - | G9: - | H9: 71 | I9: 75 | J9: 81 | K9: 83 | L9: 86 | M9: 87
A10: KS2M | C10: % Level 4+ Maths | D10: 75 | E10: 77 | F10: 78 | G10: 79 | H10: 80 | I10: 80 | J10: 84 | K10: 85 | L10: 86 | M10: 87
A11: KS2S | C11: % Level 4+ Science | D11: 86 | E11: 88 | F11: 88 | G11: 88 | H11: 85 | I11: 85 | J11: 87 | K11: 88 | L11: 88 | M11: 89
A12: KS2G | C12: % Level 4+ Grammar, Punctuation and Spelling | D12: - | E12: - | F12: - | G12: - | H12: - | I12: - | J12: - | K12: 74 | L12: 77 | M12: 80
A13: KS2RWM | C13: % Level 4+ Reading, Writing and Maths | D13: - | E13: - | F13: - | G13: - | H13: - | I13: 67 | J13: 75 | K13: 75 | L13: 78 | M13: 80
A14: KS2E&M | C14: % Level 4+ English & Maths | D14: 70 | E14: 71 | F14: 73 | G14: 72 | H14: 74 | I14: 74 | J14: 79 | K14: - | L14: - | M14: -
A15: KS2E5 | C15: % Level 5+ English | D15: 32 | E15: 33 | F15: 29 | G15: 29 | H15: 33 | I15: 29 | J15: 37 | K15: - | L15: 41 | M15: 43
A16: KS2M5 | C16: % Level 5+ Maths | D16: 33 | E16: 32 | F16: 31 | G16: 34 | H16: 34 | I16: 35 | J16: 39 | K16: 41 | L16: 42 | M16: 42
A17: 5AC | B17: GCSE | C17: 5+ GCSEs A*-C or equivalent | D17: 57.3 | E17: 59.9 | F17: 64.4 | G17: 69.8 | H17: 76.3 | I17: 80.7 | J17: 83.2 | K17: 83.1 | L17: 65.8 | M17: 65.8
A18: GCSE_NI75 | C18: 5+ GCSEs A*-C or equivalent including English and mathematics GCSEs | D18: 44.1 | E18: 45.9 | F18: 48.4 | G18: 50.9 | H18: 55.3 | I18: 58.4 | J18: 59.1 | K18: 60.8 | L18: 56.8 | M18: 56.3
A19: 5AGEM | C19: 5+ GCSEs A*-G or equivalent including English and mathematics GCSEs | D19: 88.8 | E19: 89.6 | F19: 90.9 | G19: 92 | H19: 93.3 | I19: 93.9 | J19: 94.2 | K19: 94.2 | L19: 91.2 | M19: 91.4
A20: EngBac | C20: Percentage of pupils who achieved the English Baccalaureate | D20: - | E20: - | F20: - | G20: - | H20: 15.1 | I20: 15.4 | J20: 16.2 | K20: 22.8 | L20: 24.3 | M20: 24
A21: Progression2-4Eng | C21: Percentage making expected level of progress from KS2-KS4 in English | D21: - | E21: - | F21: 63.5 | G21: 65.3 | H21: 69.9 | I21: 72 | J21: 68.2 | K21: 70.5 | L21: 71.8 | M21: 70.2
A22: Progression2-4Maths | C22: Percentage making expected level of progress from KS2-KS4 in mathematics | D22: - | E22: - | F22: 56.3 | G22: 58.4 | H22: 62.5 | I22: 64.9 | J22: =IF(ISERROR(HLOOKUP(1000,LADataRange,VLOOKUP($A22&J$5,DataItemDesc,2,FALSE),FALSE)),"-",(HLOOKUP(1000,LADataRange,VLOOKUP($A22&J$5,DataItemDesc,2,FALSE),FALSE))) -> 68.7 | K22: 70.8 | L22: 65.6 | M22: 66.6
A23: APS_C | C23: Average capped GCSE and equivalents point score per pupil | D23: - | E23: - | F23: 306.3 | G23: 319 | H23: 331.1 | I23: 338.8 | J23: 343.3 | K23: 342 | L23: 311.1 | M23: 311.6
A24: UAPS_C | C24: Average GCSE and equivalents point score per pupil | D24: - | E24: - | F24: 387.5 | G24: 419.7 | H24: 449.5 | I24: 472.3 | J24: 481.2 | K24: 468.3 | L24: 367.2 | M24: 370.4
A25: Alevel_APSC | B25: A Levels | C25: All level 3 qualifications - Average Point Score per candidate | D25: 700.9 | E25: 711.2 | F25: 721.1 | G25: 721.1 | H25: 726.5 | I25: 728.2 | J25: 714.3 | K25: 706.3 | L25: 696 | M25: 682.6
A26: Alevel_APSE | C26: All level 3 qualifications - Average Point Score per entry | D26: 202.2 | E26: 203.6 | F26: 205.8 | G26: 208.3 | H26: 211.1 | I26: 213.1 | J26: 209.3 | K26: 210.5 | L26: 211.5 | M26: 211.9
A27: A3A | C27: Percentage of students achieving 3 A*-A grades or better at A level or Applied single/double award A level | D27: - | E27: - | F27: 9.2 | G27: 9.5 | H27: 9.8 | I27: 10.2 | J27: 10 | K27: 9.8 | L27: 9.4 | M27: 8.9
A28: Alevel_AAB | C28: Percentage of students achieving grades AAB or better at A level or Applied single/double award A level | D28: - | E28: - | F28: - | G28: - | H28: - | I28: 17.1 | J28: 16.8 | K28: 16.7 | L28: 16.1 | M28: 15.5
B30: Notes: | C30: 1.State-funded schools include Academies, Free Schools, City Technology Colleges and state-funded special schools but exclude independent schools, independent special schools, non-maintained special schools, hospital schools and Pupil Referral Units.
C31: 2. In 2012, KS2 English was calculated from reading test results and writing teacher assessment rather than from reading and writing tests as in previous years. English in 2012 is, therefore, not comparable to previous years.
C32: 3. From 2012 KS2 writing was assessed by teacher assessment only. Figures shown for writing prior to 2012 are based on tests.
C33: 4. Due to a change in methodology the percentage of pupils making the expected level of progress in English and mathematics (GCSEs) is only available from 2007/08.
C34: 5. From 2009/2010 iGCSEs, accredited at time of publication, have been counted as GCSE equivalents and also as English & mathematics GCSEs. Also provided are 2009/10 figures without iGCSEs to be consistent with earlier years’ data.
C35: 6. A level figures cover students who were entered for at least one substantial academic or vocational level 3 (advanced) qualification. A substantial level 3 academic or vocational qualification is defined as a qualification that is at least the size of an A level (180 guided learning hours per year).

Sheet BigDataSheet (hidden)
B1: Do not alter the structure of this sheet! | F1: 301 | G1: 302 | H1: 370 | I1: 800 | J1: 822 | K1: 303 | L1: 330 | M1: 889 | N1: 890 | O1: 350 | P1: 837 | Q1: 867 | R1: 380 | S1: 304 | T1: 846 | U1: 801 | V1: 305 | W1: 825 | X1: 351 | Y1: 381 | Z1: 873 | AA1: 202 | AB1: 823 | AC1: 895 | AD1: 896 | AE1: 201 | AF1: 908 | AG1: 331 | AH1: 306 | AI1: 909 | AJ1: 841 | AK1: 831 | AL1: 830 | AM1: 878 | AN1: 371 | AO1: 835 | AP1: 332 | AQ1: 840 | AR1: 307 | AS1: 811 | AT1: 845 | AU1: 308 | AV1: 881 | AW1: 390 | AX1: 916 | AY1: 203 | AZ1: 204 | BA1: 876 | BB1: 205 | BC1: 850 | BD1: 309 | BE1: 310 | BF1: 805 | BG1: 311 | BH1: 884 | BI1: 919 | BJ1: 312 | BK1: 313 | BL1: 921 | BM1: 420 | BN1: 206 | BO1: 207 | BP1: 886 | BQ1: 810 | BR1: 314 | BS1: 382 | BT1: 340 | BU1: 208 | BV1: 888 | BW1: 383 | BX1: 856 | BY1: 855 | BZ1: 209 | CA1: 925 | CB1: 341 | CC1: 821 | CD1: 352 | CE1: 887 | CF1: 315 | CG1: 806 | CH1: 826 | CI1: 391 | CJ1: 316 | CK1: 926 | CL1: 812 | CM1: 813 | CN1: 802 | CO1: 392 | CP1: 815 | CQ1: 928 | CR1: 929 | CS1: 892 | CT1: 891 | CU1: 353 | CV1: 931 | CW1: 874 | CX1: 879 | CY1: 836 | CZ1: 851 | DA1: 870 | DB1: 317 | DC1: 807 | DD1: 318 | DE1: 354 | DF1: 372 | DG1: 857 | DH1: 355 | DI1: 333 | DJ1: 343 | DK1: 373 | DL1: 893 | DM1: 871 | DN1: 334 | DO1: 933 | DP1: 803 | DQ1: 393 | DR1: 852 | DS1: 882 | DT1: 210 | DU1: 342 | DV1: 860 | DW1: 356 | DX1: 808 | DY1: 861 | DZ1: 935 | EA1: 394 | EB1: 936 | EC1: 319 | ED1: 866 | EE1: 357 | EF1: 894 | EG1: 883 | EH1: 880 | EI1: 211 | EJ1: 358 | EK1: 384 | EL1: 335 | EM1: 320 | EN1: 212 | EO1: 877 | EP1: 937 | EQ1: 869 | ER1: 938 | ES1: 213 | ET1: 359 | EU1: 865 | EV1: 868 | EW1: 344 | EX1: 872 | EY1: 336 | EZ1: 885 | FA1: 816 | FB1: 970 | FC1: 980 | FD1: 981 | FE1: 982 | FF1: 983 | FG1: 984 | FH1: 985 | FI1: 986 | FJ1: 989 | FK1: 990 | FL1: 1000 | FM1: 1001 | FN1: 1002
A2: Code | B2: Short Desc | C2: line | D2: Data item | E2: Years | F2: Barking and Dagenham | G2: Barnet | H2: Barnsley | I2: Bath and North East Somerset | J2: Bedford Borough | K2: Bexley | L2: Birmingham | M2: Blackburn with Darwen | N2: Blackpool | O2: Bolton | P2: Bournemouth | Q2: Bracknell Forest | R2: Bradford | S2: Brent | T2: Brighton and Hove | U2: Bristol, City of | V2: Bromley | W2: Buckinghamshire | X2: Bury | Y2: Calderdale | Z2: Cambridgeshire | AA2: Camden | AB2: Central Bedfordshire | AC2: Cheshire East | AD2: Cheshire West and Chester | AE2: City of London | AF2: Cornwall | AG2: Coventry | AH2: Croydon | AI2: Cumbria | AJ2: Darlington | AK2: Derby | AL2: Derbyshire | AM2: Devon | AN2: Doncaster | AO2: Dorset | AP2: Dudley | AQ2: Durham | AR2: Ealing | AS2: East Riding of Yorkshire | AT2: East Susse- | AU2: Enfield | AV2: Esse- | AW2: Gateshead | AX2: Gloucestershire | AY2: Greenwich | AZ2: Hackney | BA2: Halton | BB2: Hammersmith and Fulham | BC2: Hampshire | BD2: Haringey | BE2: Harrow | BF2: Hartlepool | BG2: Havering | BH2: Herefordshire | BI2: Hertfordshire | BJ2: Hillingdon | BK2: Hounslow | BL2: Isle of Wight | BM2: Isles of Scilly | BN2: Islington | BO2: Kensington and Chelsea | BP2: Kent | BQ2: Kingston Upon Hull, City of | BR2: Kingston upon Thames | BS2: Kirklees | BT2: Knowsley | BU2: Lambeth | BV2: Lancashire | BW2: Leeds | BX2: Leicester | BY2: Leicestershire | BZ2: Lewisham | CA2: Lincolnshire | CB2: Liverpool | CC2: Luton | CD2: Manchester | CE2: Medway | CF2: Merton | CG2: Middlesbrough | CH2: Milton Keynes | CI2: Newcastle upon Tyne | CJ2: Newham | CK2: Norfolk | CL2: North East Lincolnshire | CM2: North Lincolnshire | CN2: North Somerset | CO2: North Tyneside | CP2: North Yorkshire | CQ2: Northamptonshire | CR2: Northumberland | CS2: Nottingham | CT2: Nottinghamshire | CU2: Oldham | CV2: O-fordshire | CW2: Peterborough | CX2: Plymouth | CY2: Poole | CZ2: Portsmouth | DA2: Reading | DB2: Redbridge | DC2: Redcar and Cleveland | DD2: Richmond upon Thames | DE2: Rochdale | DF2: Rotherham | DG2: Rutland | DH2: Salford | DI2: Sandwell | DJ2: Sefton | DK2: Sheffield | DL2: Shropshire | DM2: Slough | DN2: Solihull | DO2: Somerset | DP2: South Gloucestershire | DQ2: South Tyneside | DR2: Southampton | DS2: Southend-on-Sea | DT2: Southwark | DU2: St. Helens | DV2: Staffordshire | DW2: Stockport | DX2: Stockton-on-Tees | DY2: Stoke-on-Trent | DZ2: Suffolk | EA2: Sunderland | EB2: Surrey | EC2: Sutton | ED2: Swindon | EE2: Tameside | EF2: Telford and Wrekin | EG2: Thurrock | EH2: Torbay | EI2: Tower Hamlets | EJ2: Trafford | EK2: Wakefield | EL2: Walsall | EM2: Waltham Forest | EN2: Wandsworth | EO2: Warrington | EP2: Warwickshire | EQ2: West Berkshire | ER2: West Susse- | ES2: Westminster | ET2: Wigan | EU2: Wiltshire | EV2: Windsor and Maidenhead | EW2: Wirral | EX2: Wokingham | EY2: Wolverhampton | EZ2: Worcestershire | FA2: York | FB2: England | FC2: North East | FD2: North West | FE2: Yorkshire and the Humber | FF2: East Midlands | FG2: West Midlands | FH2: East of England | FI2: London | FJ2: South East | FK2: South West | FL2: England | FM2: Quartile 1 (A) | FN2: Quartile 2 (B) | FO2: Quartile 3 (C ) | FP2: Quartile 4 (D)
B3: RTA_1 | C3: 3 | D3: Number of children killed and seriously injured in RTAs | E3: 2005-09 ave | F3: 8 | G3: 13 | H3: 17 | I3: 2 | J3: 5 | K3: 13 | L3: 84 | M3: 18 | N3: 13 | O3: 17 | P3: 8 | Q3: 2 | R3: 44 | S3: 13 | T3: 15 | U3: 17 | V3: 13 | W3: 16 | X3: 10 | Y3: 16 | Z3: 28 | AA3: 6 | AB3: 11 | AC3: 24 | AD3: 19 | AE3: 1 | AF3: 15 | AG3: 22 | AH3: 16 | AI3: 24 | AJ3: 5 | AK3: 16 | AL3: 39 | AM3: 19 | AN3: 16 | AO3: 18 | AP3: 21 | AQ3: 27 | AR3: 12 | AS3: 18 | AT3: 31 | AU3: 10 | AV3: 67 | AW3: 11 | AX3: 19 | AY3: 14 | AZ3: 14 | BA3: 9 | BB3: 8 | BC3: 48 | BD3: 12 | BE3: 5 | BF3: 7 | BG3: 12 | BH3: 10 | BI3: 40 | BJ3: 13 | BK3: 12 | BL3: 8 | BM3: 0 | BN3: 6 | BO3: 3 | BP3: 59 | BQ3: 22 | BR3: 5 | BS3: 28 | BT3: 11 | BU3: 15 | BV3: 114 | BW3: 42 | BX3: 14 | BY3: 17 | BZ3: 14 | CA3: 32 | CB3: 39 | CC3: 8 | CD3: 34 | CE3: 12 | CF3: 5 | CG3: 11 | CH3: 11 | CI3: 18 | CJ3: 14 | CK3: 33 | CL3: 19 | CM3: 13 | CN3: 7 | CO3: 8 | CP3: 42 | CQ3: 41 | CR3: 14 | CS3: 21 | CT3: 54 | CU3: 18 | CV3: 22 | CW3: 14 | CX3: 7 | CY3: 5 | CZ3: 13 | DA3: 5 | DB3: 9 | DC3: 6 | DD3: 4 | DE3: 12 | DF3: 14 | DG3: 1 | DH3: 12 | DI3: 22 | DJ3: 14 | DK3: 33 | DL3: 12 | DM3: 6 | DN3: 11 | DO3: 21 | DP3: 5 | DQ3: 12 | DR3: 11 | DS3: 10 | DT3: 10 | DU3: 10 | DV3: 25 | DW3: 10 | DX3: 11 | DY3: 11 | DZ3: 28 | EA3: 22 | EB3: 34 | EC3: 7 | ED3: 7 | EE3: 15 | EF3: 6 | EG3: 9 | EH3: 5 | EI3: 10 | EJ3: 9 | EK3: 21 | EL3: 20 | EM3: 15 | EN3: 10 | EO3: 13 | EP3: 22 | EQ3: 5 | ER3: 29 | ES3: 9 | ET3: 18 | EU3: 22 | EV3: 5 | EW3: 26 | EX3: 4 | EY3: 12 | EZ3: 18 | FA3: 7 | FB3: 2621 | FC3: 150 | FD3: 491 | FE3: 354 | FF3: 234 | FG3: 297 | FH3: 254 | FI3: 328 | FJ3: 337 | FK3: 177
B4: RTA_2 | C4: 4 | E4: 2007 | F4: 10 | G4: 13 | H4: 14 | I4: 4 | J4: - | K4: 16 | L4: 93 | M4: 16 | N4: 15 | O4: 13 | P4: 7 | Q4: 2 | R4: 58 | S4: 12 | T4: 12 | U4: 18 | V4: 15 | W4: 21 | X4: 8 | Y4: 19 | Z4: 29 | AA4: 1 | AB4: - | AC4: - | AD4: - | AE4: 3 | AF4: 17 | AG4: 21 | AH4: 14 | AI4: 18 | AJ4: 6 | AK4: 22 | AL4: 42 | AM4: 25 | AN4: 10 | AO4: 24 | AP4: 21 | AQ4: 21 | AR4: 9 | AS4: 22 | AT4: 28 | AU4: 9 | AV4: 74 | AW4: 12 | AX4: 12 | AY4: 12 | AZ4: 10 | BA4: 11 | BB4: 7 | BC4: 56 | BD4: 8 | BE4: 6 | BF4: 13 | BG4: 13 | BH4: 11 | BI4: 42 | BJ4: 13 | BK4: 13 | BL4: 10 | BM4: - | BN4: 5 | BO4: 2 | BP4: 61 | BQ4: 25 | BR4: 7 | BS4: 30 | BT4: 10 | BU4: 14 | BV4: 118 | BW4: 43 | BX4: 13 | BY4: 14 | BZ4: 17 | CA4: 36 | CB4: 39 | CC4: 9 | CD4: 33 | CE4: 14 | CF4: 1 | CG4: 3 | CH4: 9 | CI4: 13 | CJ4: 19 | CK4: 33 | CL4: 18 | CM4: 17 | CN4: 9 | CO4: 14 | CP4: 51 | CQ4: 28 | CR4: 15 | CS4: 21 | CT4: 44 | CU4: 22 | CV4: 24 | CW4: 20 | CX4: 9 | CY4: 6 | CZ4: 18 | DA4: 5 | DB4: 11 | DC4: 4 | DD4: 5 | DE4: 7 | DF4: 20 | DG4: 1 | DH4: 13 | DI4: 28 | DJ4: 15 | DK4: 33 | DL4: 12 | DM4: 11 | DN4: 8 | DO4: 28 | DP4: 5 | DQ4: 11 | DR4: 9 | DS4: 8 | DT4: 11 | DU4: 3 | DV4: 21 | DW4: 8 | DX4: 8 | DY4: 21 | DZ4: 25 | EA4: 29 | EB4: 37 | EC4: 10 | ED4: 8 | EE4: 10 | EF4: 6 | EG4: 12 | EH4: 5 | EI4: 7 | EJ4: 9 | EK4: 25 | EL4: 22 | EM4: 15 | EN4: 17 | EO4: 9 | EP4: 22 | EQ4: 7 | ER4: 20 | ES4: 6 | ET4: 17 | EU4: 13 | EV4: 3 | EW4: 23 | EX4: 3 | EY4: 13 | EZ4: 27 | FA4: 4 | FB4: 2671 | FC4: 149 | FD4: 450 | FE4: 389 | FF4: 221 | FG4: 326 | FH4: 265 | FI4: 331 | FJ4: 350 | FK4: 190
B5: RTA_3 | C5: 5 | E5: 2008 | F5: 5 | G5: 12 | H5: 21 | I5: 0 | J5: 4 | K5: 14 | L5: 73 | M5: 15 | N5: 9 | O5: 17 | P5: 8 | Q5: 1 | R5: 51 | S5: 13 | T5: 13 | U5: 12 | V5: 16 | W5: 18 | X5: 6 | Y5: 14 | Z5: 22 | AA5: 4 | AB5: 13 | AC5: 35 | AD5: 11 | AE5: 1 | AF5: 11 | AG5: 20 | AH5: 16 | AI5: 22 | AJ5: 1 | AK5: 13 | AL5: 34 | AM5: 18 | AN5: 14 | AO5: 12 | AP5: 27 | AQ5: 31 | AR5: 12 | AS5: 17 | AT5: 35 | AU5: 8 | AV5: 44 | AW5: 9 | AX5: 23 | AY5: 16 | AZ5: 17 | BA5: 11 | BB5: 5 | BC5: 49 | BD5: 9 | BE5: 5 | BF5: 3 | BG5: 8 | BH5: 6 | BI5: 37 | BJ5: 9 | BK5: 9 | BL5: 11 | BM5: 0 | BN5: 7 | BO5: 2 | BP5: 58 | BQ5: 20 | BR5: 2 | BS5: 41 | BT5: 8 | BU5: 12 | BV5: 107 | BW5: 35 | BX5: 18 | BY5: 14 | BZ5: 16 | CA5: 16 | CB5: 31 | CC5: 10 | CD5: 28 | CE5: 10 | CF5: 2 | CG5: 13 | CH5: 9 | CI5: 15 | CJ5: 17 | CK5: 33 | CL5: 16 | CM5: 15 | CN5: 4 | CO5: 7 | CP5: 34 | CQ5: 46 | CR5: 11 | CS5: 13 | CT5: 40 | CU5: 13 | CV5: 24 | CW5: 8 | CX5: 9 | CY5: 2 | CZ5: 11 | DA5: 6 | DB5: 8 | DC5: 4 | DD5: 4 | DE5: 12 | DF5: 13 | DG5: 0 | DH5: 13 | DI5: 20 | DJ5: 17 | DK5: 24 | DL5: 15 | DM5: 3 | DN5: 15 | DO5: 8 | DP5: 9 | DQ5: 13 | DR5: 12 | DS5: 5 | DT5: 8 | DU5: 11 | DV5: 17 | DW5: 10 | DX5: 10 | DY5: 4 | DZ5: 31 | EA5: 13 | EB5: 29 | EC5: 7 | ED5: 7 | EE5: 16 | EF5: 2 | EG5: 11 | EH5: 3 | EI5: 12 | EJ5: 8 | EK5: 11 | EL5: 20 | EM5: 17 | EN5: 9 | EO5: 19 | EP5: 25 | EQ5: 3 | ER5: 45 | ES5: 8 | ET5: 16 | EU5: 21 | EV5: 7 | EW5: 14 | EX5: 2 | EY5: 17 | EZ5: 14 | FA5: 7 | FB5: 2402 | FC5: 130 | FD5: 449 | FE5: 333 | FF5: 194 | FG5: 275 | FH5: 218 | FI5: 310 | FJ5: 346 | FK5: 147
B6: RTA_4 | C6: 6 | E6: 2009 | F6: 3 | G6: 6 | H6: 14 | I6: 0 | J6: 5 | K6: 14 | L6: 70 | M6: 17 | N6: 9 | O6: 11 | P6: 12 | Q6: 2 | R6: 41 | S6: 11 | T6: 14 | U6: 12 | V6: 7 | W6: 12 | X6: 11 | Y6: 20 | Z6: 23 | AA6: 9 | AB6: 8 | AC6: 28 | AD6: 22 | AE6: 1 | AF6: 11 | AG6: 26 | AH6: 19 | AI6: 22 | AJ6: 2 | AK6: 11 | AL6: 34 | AM6: 17 | AN6: 15 | AO6: 15 | AP6: 23 | AQ6: 21 | AR6: 11 | AS6: 15 | AT6: 32 | AU6: 8 | AV6: 56 | AW6: 11 | AX6: 20 | AY6: 12 | AZ6: 4 | BA6: 4 | BB6: 7 | BC6: 54 | BD6: 13 | BE6: 4 | BF6: 4 | BG6: 9 | BH6: 9 | BI6: 42 | BJ6: 6 | BK6: 10 | BL6: 4 | BM6: 0 | BN6: 5 | BO6: 6 | BP6: 55 | BQ6: 23 | BR6: 3 | BS6: 24 | BT6: 11 | BU6: 21 | BV6: 83 | BW6: 43 | BX6: 18 | BY6: 16 | BZ6: 8 | CA6: 27 | CB6: 20 | CC6: 6 | CD6: 32 | CE6: 10 | CF6: 2 | CG6: 13 | CH6: 9 | CI6: 18 | CJ6: 11 | CK6: 21 | CL6: 17 | CM6: 10 | CN6: 3 | CO6: 8 | CP6: 32 | CQ6: 38 | CR6: 14 | CS6: 16 | CT6: 41 | CU6: 15 | CV6: 20 | CW6: 10 | CX6: 6 | CY6: 4 | CZ6: 12 | DA6: 4 | DB6: 6 | DC6: 8 | DD6: 1 | DE6: 7 | DF6: 8 | DG6: 1 | DH6: 10 | DI6: 14 | DJ6: 12 | DK6: 26 | DL6: 5 | DM6: 8 | DN6: 10 | DO6: 23 | DP6: 3 | DQ6: 10 | DR6: 10 | DS6: 22 | DT6: 8 | DU6: 14 | DV6: 21 | DW6: 12 | DX6: 13 | DY6: 4 | DZ6: 35 | EA6: 23 | EB6: 43 | EC6: 6 | ED6: 6 | EE6: 11 | EF6: 8 | EG6: 3 | EH6: 0 | EI6: 12 | EJ6: 5 | EK6: 23 | EL6: 16 | EM6: 7 | EN6: 6 | EO6: 10 | EP6: 14 | EQ6: 5 | ER6: 23 | ES6: 7 | ET6: 15 | EU6: 21 | EV6: 4 | EW6: 22 | EX6: 5 | EY6: 6 | EZ6: 12 | FA6: 6 | FB6: 2278 | FC6: 145 | FD6: 403 | FE6: 317 | FF6: 202 | FG6: 238 | FH6: 231 | FI6: 263 | FJ6: 326 | FK6: 153
B7: RTA_5 | C7: 7 | E7: 2010 | F7: 11 | G7: 7 | H7: 8 | I7: 2 | J7: 14 | K7: 9 | L7: 79 | M7: 13 | N7: 9 | O7: 22 | P7: 4 | Q7: 2 | R7: 35 | S7: 10 | T7: 14 | U7: 8 | V7: 5 | W7: 15 | X7: 11 | Y7: 16 | Z7: 25 | AA7: 7 | AB7: 8 | AC7: 26 | AD7: 11 | AE7: 0 | AF7: 8 | AG7: 14 | AH7: 8 | AI7: 35 | AJ7: 2 | AK7: 17 | AL7: 31 | AM7: 13 | AN7: 19 | AO7: 7 | AP7: 19 | AQ7: 18 | AR7: 6 | AS7: 25 | AT7: 26 | AU7: 12 | AV7: 46 | AW7: 12 | AX7: 9 | AY7: 14 | AZ7: 6 | BA7: 7 | BB7: 2 | BC7: 53 | BD7: 5 | BE7: 1 | BF7: 5 | BG7: 7 | BH7: 3 | BI7: 41 | BJ7: 10 | BK7: 11 | BL7: 9 | BM7: 0 | BN7: 3 | BO7: 5 | BP7: 57 | BQ7: 19 | BR7: 2 | BS7: 17 | BT7: 5 | BU7: 10 | BV7: 96 | BW7: 38 | BX7: 21 | BY7: 14 | BZ7: 13 | CA7: 22 | CB7: 35 | CC7: 19 | CD7: 27 | CE7: 14 | CF7: 2 | CG7: 3 | CH7: 5 | CI7: 17 | CJ7: 10 | CK7: 18 | CL7: 10 | CM7: 10 | CN7: 8 | CO7: 11 | CP7: 27 | CQ7: 22 | CR7: 19 | CS7: 15 | CT7: 26 | CU7: 21 | CV7: 23 | CW7: 15 | CX7: 8 | CY7: 5 | CZ7: 12 | DA7: 5 | DB7: 14 | DC7: 8 | DD7: 9 | DE7: 9 | DF7: 4 | DG7: 0 | DH7: 5 | DI7: 19 | DJ7: 9 | DK7: 29 | DL7: 6 | DM7: 5 | DN7: 14 | DO7: 17 | DP7: 4 | DQ7: 7 | DR7: 13 | DS7: 13 | DT7: 22 | DU7: 9 | DV7: 16 | DW7: 3 | DX7: 9 | DY7: 6 | DZ7: 21 | EA7: 22 | EB7: 43 | EC7: 4 | ED7: 9 | EE7: 10 | EF7: 6 | EG7: 11 | EH7: 4 | EI7: 6 | EJ7: 6 | EK7: 18 | EL7: 14 | EM7: 5 | EN7: 4 | EO7: 10 | EP7: 24 | EQ7: 4 | ER7: 26 | ES7: 10 | ET7: 14 | EU7: 18 | EV7: 2 | EW7: 18 | EX7: 2 | EY7: 14 | EZ7: 10 | FA7: 2 | FB7: 2168 | FC7: 133 | FD7: 411 | FE7: 277 | FF7: 168 | FG7: 244 | FH7: 231 | FI7: 250 | FJ7: 330 | FK7: 124
B8: RTA_6 | C8: 8 | E8: 2011 | F8: 7 | G8: 7 | H8: 11 | I8: 3 | J8: 1 | K8: 7 | L8: 81 | M8: 19 | N8: 15 | O8: 13 | P8: 6 | Q8: 3 | R8: 47 | S8: 4 | T8: 16 | U8: 12 | V8: 8 | W8: 18 | X8: 9 | Y8: 16 | Z8: 22 | AA8: 4 | AB8: 6 | AC8: 21 | AD8: 10 | AE8: 1 | AF8: 8 | AG8: 26 | AH8: 10 | AI8: 18 | AJ8: 4 | AK8: 15 | AL8: 13 | AM8: 11 | AN8: 25 | AO8: 16 | AP8: 14 | AQ8: 24 | AR8: 7 | AS8: 10 | AT8: 17 | AU8: 12 | AV8: 50 | AW8: 9 | AX8: 19 | AY8: 20 | AZ8: 7 | BA8: 7 | BB8: 7 | BC8: 52 | BD8: 12 | BE8: 1 | BF8: 6 | BG8: 8 | BH8: 3 | BI8: 35 | BJ8: 9 | BK8: 6 | BL8: 11 | BM8: 0 | BN8: 5 | BO8: 3 | BP8: 44 | BQ8: 11 | BR8: 2 | BS8: 24 | BT8: 4 | BU8: 8 | BV8: 83 | BW8: 37 | BX8: 16 | BY8: 11 | BZ8: 9 | CA8: 29 | CB8: 26 | CC8: 11 | CD8: 24 | CE8: 6 | CF8: 3 | CG8: 5 | CH8: 3 | CI8: 14 | CJ8: 9 | CK8: 33 | CL8: 13 | CM8: 5 | CN8: 4 | CO8: 12 | CP8: 21 | CQ8: 29 | CR8: 10 | CS8: 15 | CT8: 41 | CU8: 16 | CV8: 19 | CW8: 5 | CX8: 14 | CY8: 1 | CZ8: 21 | DA8: 11 | DB8: 7 | DC8: 5 | DD8: 5 | DE8: 3 | DF8: 10 | DG8: 3 | DH8: 13 | DI8: 20 | DJ8: 13 | DK8: 28 | DL8: 8 | DM8: 6 | DN8: 5 | DO8: 13 | DP8: 4 | DQ8: 7 | DR8: 19 | DS8: 9 | DT8: 9 | DU8: 17 | DV8: 12 | DW8: 12 | DX8: 10 | DY8: 10 | DZ8: 23 | EA8: 16 | EB8: 33 | EC8: 4 | ED8: 6 | EE8: 8 | EF8: 7 | EG8: 3 | EH8: 5 | EI8: 9 | EJ8: 2 | EK8: 24 | EL8: 10 | EM8: 7 | EN8: 8 | EO8: 10 | EP8: 17 | EQ8: 6 | ER8: 30 | ES8: 5 | ET8: 13 | EU8: 13 | EV8: 2 | EW8: 15 | EX8: 1 | EY8: 18 | EZ8: 9 | FA8: 2 | FB8: 2070 | FC8: 122 | FD8: 371 | FE8: 284 | FF8: 172 | FG8: 240 | FH8: 198 | FI8: 230 | FJ8: 318 | FK8: 135
B9: RTA_7 | C9: 9 | E9: 2012 | F9: 4 | G9: 7 | H9: 13 | I9: 4 | J9: 6 | K9: 4 | L9: 79 | M9: 10 | N9: 4 | O9: 8 | P9: 8 | Q9: 3 | R9: 42 | S9: 10 | T9: 6 | U9: 14 | V9: 5 | W9: 13 | X9: 4 | Y9: 13 | Z9: 16 | AA9: 6 | AB9: 8 | AC9: 13 | AD9: 13 | AE9: 0 | AF9: 12 | AG9: 13 | AH9: 12 | AI9: 10 | AJ9: 3 | AK9: 14 | AL9: 22 | AM9: 17 | AN9: 19 | AO9: 12 | AP9: 8 | AQ9: 19 | AR9: 7 | AS9: 16 | AT9: 24 | AU9: 16 | AV9: 38 | AW9: 8 | AX9: 11 | AY9: 10 | AZ9: 9 | BA9: 10 | BB9: 3 | BC9: 45 | BD9: 16 | BE9: 9 | BF9: 6 | BG9: 14 | BH9: 10 | BI9: 27 | BJ9: 13 | BK9: 10 | BL9: 11 | BM9: 0 | BN9: 11 | BO9: 5 | BP9: 44 | BQ9: 17 | BR9: 3 | BS9: 21 | BT9: 7 | BU9: 12 | BV9: 67 | BW9: 38 | BX9: 11 | BY9: 13 | BZ9: 7 | CA9: 33 | CB9: 33 | CC9: 15 | CD9: 26 | CE9: 7 | CF9: 9 | CG9: 12 | CH9: 7 | CI9: 6 | CJ9: 11 | CK9: 22 | CL9: 11 | CM9: 7 | CN9: 5 | CO9: 7 | CP9: 28 | CQ9: 28 | CR9: 13 | CS9: 13 | CT9: 43 | CU9: 3 | CV9: 15 | CW9: 9 | CX9: 2 | CY9: 6 | CZ9: 13 | DA9: 6 | DB9: 8 | DC9: 10 | DD9: 6 | DE9: 9 | DF9: 14 | DG9: 0 | DH9: 9 | DI9: 24 | DJ9: 15 | DK9: 28 | DL9: 8 | DM9: 7 | DN9: 5 | DO9: 7 | DP9: 7 | DQ9: 3 | DR9: 12 | DS9: 9 | DT9: 10 | DU9: 7 | DV9: 23 | DW9: 5 | DX9: 8 | DY9: 8 | DZ9: 32 | EA9: 18 | EB9: 32 | EC9: 6 | ED9: 9 | EE9: 4 | EF9: 0 | EG9: 4 | EH9: 1 | EI9: 11 | EJ9: 10 | EK9: 17 | EL9: 18 | EM9: 9 | EN9: 1 | EO9: 8 | EP9: 21 | EQ9: 5 | ER9: 22 | ES9: 6 | ET9: 11 | EU9: 14 | EV9: 3 | EW9: 15 | EX9: 3 | EY9: 17 | EZ9: 10 | FA9: 4 | FB9: 1986 | FC9: 113 | FD9: 301 | FE9: 288 | FF9: 177 | FG9: 244 | FH9: 186 | FI9: 270 | FJ9: 278 | FK9: 129
B10: RTA_8 | C10: 10 | E10: 2013 | F10: 6 | G10: 9 | H10: 8 | I10: 3 | J10: 4 | K10: 4 | L10: 73 | M10: 13 | N10: 10 | O10: 15 | P10: 9 | Q10: 1 | R10: 32 | S10: 11 | T10: 6 | U10: 6 | V10: 10 | W10: 10 | X10: 4 | Y10: 8 | Z10: 18 | AA10: 1 | AB10: 6 | AC10: 13 | AD10: 15 | AE10: 1 | AF10: 7 | AG10: 15 | AH10: 6 | AI10: 17 | AJ10: 7 | AK10: 5 | AL10: 21 | AM10: 21 | AN10: 10 | AO10: 16 | AP10: 12 | AQ10: 24 | AR10: 10 | AS10: 8 | AT10: 19 | AU10: 8 | AV10: 37 | AW10: 7 | AX10: 19 | AY10: 5 | AZ10: 10 | BA10: 3 | BB10: 2 | BC10: 39 | BD10: 5 | BE10: 5 | BF10: 6 | BG10: 6 | BH10: 7 | BI10: 28 | BJ10: 7 | BK10: 4 | BL10: 9 | BM10: 0 | BN10: 6 | BO10: 3 | BP10: 45 | BQ10: 14 | BR10: 4 | BS10: 17 | BT10: 7 | BU10: 7 | BV10: 57 | BW10: 26 | BX10: 14 | BY10: 5 | BZ10: 6 | CA10: 21 | CB10: 30 | CC10: 9 | CD10: 17 | CE10: 6 | CF10: 5 | CG10: 11 | CH10: 7 | CI10: 14 | CJ10: 7 | CK10: 26 | CL10: 20 | CM10: 13 | CN10: 6 | CO10: 4 | CP10: 21 | CQ10: 22 | CR10: 8 | CS10: 15 | CT10: 28 | CU10: 11 | CV10: 11 | CW10: 6 | CX10: 8 | CY10: 2 | CZ10: 11 | DA10: 4 | DB10: 6 | DC10: 6 | DD10: 3 | DE10: 7 | DF10: 17 | DG10: 0 | DH10: 8 | DI10: 13 | DJ10: 8 | DK10: 27 | DL10: 9 | DM10: 6 | DN10: 2 | DO10: 6 | DP10: 5 | DQ10: 5 | DR10: 12 | DS10: 5 | DT10: 9 | DU10: 7 | DV10: 9 | DW10: 5 | DX10: 7 | DY10: 5 | DZ10: 18 | EA10: 13 | EB10: 45 | EC10: 2 | ED10: 5 | EE10: 9 | EF10: 5 | EG10: 4 | EH10: 5 | EI10: 4 | EJ10: 4 | EK10: 15 | EL10: 21 | EM10: 4 | EN10: 5 | EO10: 5 | EP10: 18 | EQ10: 1 | ER10: 26 | ES10: 6 | ET10: 12 | EU10: 11 | EV10: 3 | EW10: 18 | EX10: 4 | EY10: 8 | EZ10: 14 | FA10: 5 | FB10: 1732 | FC10: 112 | FD10: 295 | FE10: 241 | FF10: 131 | FG10: 211 | FH10: 161 | FI10: 187 | FJ10: 265 | FK10: 129
B11: RTA_9 | C11: 11 | E11: 2014 | F11: 9 | G11: 12 | H11: 9 | I11: 1 | J11: 4 | K11: 6 | L11: 49 | M11: 19 | N11: 9 | O11: 11 | P11: 5 | Q11: 0 | R11: 28 | S11: 6 | T11: 9 | U11: 13 | V11: 6 | W11: 17 | X11: 4 | Y11: 10 | Z11: 17 | AA11: 1 | AB11: 4 | AC11: 7 | AD11: 9 | AE11: 1 | AF11: 11 | AG11: 14 | AH11: 2 | AI11: 13 | AJ11: 2 | AK11: 11 | AL11: 27 | AM11: 22 | AN11: 14 | AO11: 14 | AP11: 9 | AQ11: 23 | AR11: 3 | AS11: 13 | AT11: 22 | AU11: 4 | AV11: 37 | AW11: 5 | AX11: 16 | AY11: 5 | AZ11: 4 | BA11: 4 | BB11: 3 | BC11: 48 | BD11: 9 | BE11: 7 | BF11: 1 | BG11: 3 | BH11: 4 | BI11: 36 | BJ11: 10 | BK11: 5 | BL11: 6 | BM11: 0 | BN11: 3 | BO11: 4 | BP11: 61 | BQ11: 16 | BR11: 1 | BS11: 23 | BT11: 8 | BU11: 3 | BV11: 69 | BW11: 31 | BX11: 19 | BY11: 23 | BZ11: 7 | CA11: 24 | CB11: 31 | CC11: 5 | CD11: 16 | CE11: 7 | CF11: 12 | CG11: 7 | CH11: 7 | CI11: 14 | CJ11: 9 | CK11: 26 | CL11: 16 | CM11: 13 | CN11: 3 | CO11: 8 | CP11: 27 | CQ11: 33 | CR11: 7 | CS11: 11 | CT11: 20 | CU11: 15 | CV11: 22 | CW11: 9 | CX11: 5 | CY11: 6 | CZ11: 9 | DA11: 0 | DB11: 3 | DC11: 6 | DD11: 2 | DE11: 8 | DF11: 11 | DG11: 0 | DH11: 10 | DI11: 20 | DJ11: 9 | DK11: 16 | DL11: 10 | DM11: 5 | DN11: 5 | DO11: 8 | DP11: 5 | DQ11: 5 | DR11: 16 | DS11: 10 | DT11: 4 | DU11: 10 | DV11: 17 | DW11: 7 | DX11: 8 | DY11: 4 | DZ11: 16 | EA11: 13 | EB11: 35 | EC11: 3 | ED11: 3 | EE11: 8 | EF11: 3 | EG11: 6 | EH11: 3 | EI11: 2 | EJ11: 7 | EK11: 11 | EL11: 15 | EM11: 9 | EN11: 4 | EO11: 7 | EP11: 20 | EQ11: 3 | ER11: 30 | ES11: 4 | ET11: 15 | EU11: 14 | EV11: 1 | EW11: 20 | EX11: 6 | EY11: 12 | EZ11: 8 | FA11: 2 | FB11: 1782 | FC11: 99 | FD11: 316 | FE11: 240 | FF11: 168 | FG11: 190 | FH11: 170 | FI11: 166 | FJ11: 304 | FK11: 129
B12: RTA_10 | C12: 12 | E12: - | F12: - | G12: - | H12: - | I12: - | J12: - | K12: - | L12: - | M12: - | N12: - | O12: - | P12: - | Q12: - | R12: - | S12: - | T12: - | U12: - | V12: - | W12: - | X12: - | Y12: - | Z12: - | AA12: - | AB12: - | AC12: - | AD12: - | AE12: - | AF12: - | AG12: - | AH12: - | AI12: - | AJ12: - | AK12: - | AL12: - | AM12: - | AN12: - | AO12: - | AP12: - | AQ12: - | AR12: - | AS12: - | AT12: - | AU12: - | AV12: - | AW12: - | AX12: - | AY12: - | AZ12: - | BA12: - | BB12: - | BC12: - | BD12: - | BE12: - | BF12: - | BG12: - | BH12: - | BI12: - | BJ12: - | BK12: - | BL12: - | BM12: - | BN12: - | BO12: - | BP12: - | BQ12: - | BR12: - | BS12: - | BT12: - | BU12: - | BV12: - | BW12: - | BX12: - | BY12: - | BZ12: - | CA12: - | CB12: - | CC12: - | CD12: - | CE12: - | CF12: - | CG12: - | CH12: - | CI12: - | CJ12: - | CK12: - | CL12: - | CM12: - | CN12: - | CO12: - | CP12: - | CQ12: - | CR12: - | CS12: - | CT12: - | CU12: - | CV12: - | CW12: - | CX12: - | CY12: - | CZ12: - | DA12: - | DB12: - | DC12: - | DD12: - | DE12: - | DF12: - | DG12: - | DH12: - | DI12: - | DJ12: - | DK12: - | DL12: - | DM12: - | DN12: - | DO12: - | DP12: - | DQ12: - | DR12: - | DS12: - | DT12: - | DU12: - | DV12: - | DW12: - | DX12: - | DY12: - | DZ12: - | EA12: - | EB12: - | EC12: - | ED12: - | EE12: - | EF12: - | EG12: - | EH12: - | EI12: - | EJ12: - | EK12: - | EL12: - | EM12: - | EN12: - | EO12: - | EP12: - | EQ12: - | ER12: - | ES12: - | ET12: - | EU12: - | EV12: - | EW12: - | EX12: - | EY12: - | EZ12: - | FA12: - | FB12: - | FC12: - | FD12: - | FE12: - | FF12: - | FG12: - | FH12: - | FI12: - | FJ12: - | FK12: -
B13: RTA_11 | C13: 13 | E13: Trend | F13: é | G13: ê | H13: ê | I13: ê | J13: ê | K13: ê | L13: ê | M13: é | N13: ê | O13: ê | P13: ê | Q13: ê | R13: ê | S13: ê | T13: ê | U13: ê | V13: ê | W13: é | X13: ê | Y13: ê | Z13: ê | AA13: ê | AB13: ê | AC13: ê | AD13: ê | AE13: à | AF13: ê | AG13: ê | AH13: ê | AI13: ê | AJ13: ê | AK13: ê | AL13: ê | AM13: é | AN13: ê | AO13: ê | AP13: ê | AQ13: ê | AR13: ê | AS13: ê | AT13: ê | AU13: ê | AV13: ê | AW13: ê | AX13: ê | AY13: ê | AZ13: ê | BA13: ê | BB13: ê | BC13: à | BD13: ê | BE13: é | BF13: ê | BG13: ê | BH13: ê | BI13: ê | BJ13: ê | BK13: ê | BL13: ê | BM13: à | BN13: ê | BO13: é | BP13: é | BQ13: ê | BR13: ê | BS13: ê | BT13: ê | BU13: ê | BV13: ê | BW13: ê | BX13: é | BY13: é | BZ13: ê | CA13: ê | CB13: ê | CC13: ê | CD13: ê | CE13: ê | CF13: é | CG13: ê | CH13: ê | CI13: ê | CJ13: ê | CK13: ê | CL13: ê | CM13: à | CN13: ê | CO13: à | CP13: ê | CQ13: ê | CR13: ê | CS13: ê | CT13: ê | CU13: ê | CV13: à | CW13: ê | CX13: ê | CY13: é | CZ13: ê | DA13: ê | DB13: ê | DC13: à | DD13: ê | DE13: ê | DF13: ê | DG13: ê | DH13: ê | DI13: ê | DJ13: ê | DK13: ê | DL13: ê | DM13: ê | DN13: ê | DO13: ê | DP13: à | DQ13: ê | DR13: é | DS13: à | DT13: ê | DU13: à | DV13: ê | DW13: ê | DX13: ê | DY13: ê | DZ13: ê | EA13: ê | EB13: é | EC13: ê | ED13: ê | EE13: ê | EF13: ê | EG13: ê | EH13: ê | EI13: ê | EJ13: ê | EK13: ê | EL13: ê | EM13: ê | EN13: ê | EO13: ê | EP13: ê | EQ13: ê | ER13: é | ES13: ê | ET13: ê | EU13: ê | EV13: ê | EW13: ê | EX13: é | EY13: à | EZ13: ê | FA13: ê | FB13: ê | FC13: ê | FD13: ê | FE13: ê | FF13: ê | FG13: ê | FH13: ê | FI13: ê | FJ13: ê | FK13: ê
B14: RTA_12 | C14: 14 | E14: Change from 2005-09 ave | F14: 1 | G14: -1 | H14: -8 | I14: -1 | J14: -1 | K14: -7 | L14: -35 | M14: 1 | N14: -4 | O14: -6 | P14: -3 | Q14: -2 | R14: -16 | S14: -7 | T14: -6 | U14: -4 | V14: -7 | W14: 1 | X14: -6 | Y14: -6 | Z14: -11 | AA14: -5 | AB14: -7 | AC14: -17 | AD14: -10 | AE14: 0 | AF14: -4 | AG14: -8 | AH14: -14 | AI14: -11 | AJ14: -3 | AK14: -5 | AL14: -12 | AM14: 3 | AN14: -2 | AO14: -4 | AP14: -12 | AQ14: -4 | AR14: -9 | AS14: -5 | AT14: -9 | AU14: -6 | AV14: -30 | AW14: -6 | AX14: -3 | AY14: -9 | AZ14: -10 | BA14: -5 | BB14: -5 | BC14: 0 | BD14: -3 | BE14: 2 | BF14: -6 | BG14: -9 | BH14: -6 | BI14: -4 | BJ14: -3 | BK14: -7 | BL14: -2 | BM14: 0 | BN14: -3 | BO14: 1 | BP14: 2 | BQ14: -6 | BR14: -4 | BS14: -5 | BT14: -3 | BU14: -12 | BV14: -45 | BW14: -11 | BX14: 5 | BY14: 6 | BZ14: -7 | CA14: -8 | CB14: -8 | CC14: -3 | CD14: -18 | CE14: -5 | CF14: 7 | CG14: -4 | CH14: -4 | CI14: -4 | CJ14: -5 | CK14: -7 | CL14: -3 | CM14: 0 | CN14: -4 | CO14: 0 | CP14: -15 | CQ14: -8 | CR14: -7 | CS14: -10 | CT14: -34 | CU14: -3 | CV14: 0 | CW14: -5 | CX14: -2 | CY14: 1 | CZ14: -4 | DA14: -5 | DB14: -6 | DC14: 0 | DD14: -2 | DE14: -4 | DF14: -3 | DG14: -1 | DH14: -2 | DI14: -2 | DJ14: -5 | DK14: -17 | DL14: -2 | DM14: -1 | DN14: -6 | DO14: -13 | DP14: 0 | DQ14: -7 | DR14: 5 | DS14: 0 | DT14: -6 | DU14: 0 | DV14: -8 | DW14: -3 | DX14: -3 | DY14: -7 | DZ14: -12 | EA14: -9 | EB14: 1 | EC14: -4 | ED14: -4 | EE14: -7 | EF14: -3 | EG14: -3 | EH14: -2 | EI14: -8 | EJ14: -2 | EK14: -10 | EL14: -5 | EM14: -6 | EN14: -6 | EO14: -6 | EP14: -2 | EQ14: -2 | ER14: 1 | ES14: -5 | ET14: -3 | EU14: -8 | EV14: -4 | EW14: -6 | EX14: 2 | EY14: 0 | EZ14: -10 | FA14: -5 | FB14: -839 | FC14: -51 | FD14: -175 | FE14: -114 | FF14: -66 | FG14: -107 | FH14: -84 | FI14: -162 | FJ14: -33 | FK14: -48
B15: RTA_13 | C15: 15 | E15: Rank | F15: 75 | G15: 99 | H15: 75 | I15: 5 | J15: 28 | K15: 50 | L15: 150 | M15: 125 | N15: 75 | O15: 93 | P15: 40 | Q15: 1 | R15: 141 | S15: 50 | T15: 75 | U15: 102 | V15: 50 | W15: 122 | X15: 28 | Y15: 87 | Z15: 122 | AA15: 5 | AB15: 28 | AC15: 58 | AD15: 75 | AE15: 5 | AF15: 93 | AG15: 107 | AH15: 11 | AI15: 102 | AJ15: 11 | AK15: 93 | AL15: 139 | AM15: 131 | AN15: 107 | AO15: 107 | AP15: 75 | AQ15: 134 | AR15: 16 | AS15: 102 | AT15: 131 | AU15: 28 | AV15: 148 | AW15: 40 | AX15: 115 | AY15: 40 | AZ15: 28 | BA15: 28 | BB15: 16 | BC15: 149 | BD15: 75 | BE15: 58 | BF15: 5 | BG15: 16 | BH15: 28 | BI15: 147 | BJ15: 87 | BK15: 40 | BL15: 50 | BM15: 1 | BN15: 16 | BO15: 28 | BP15: 151 | BQ15: 115 | BR15: 5 | BS15: 134 | BT15: 68 | BU15: 16 | BV15: 152 | BW15: 143 | BX15: 125 | BY15: 134 | BZ15: 58 | CA15: 137 | CB15: 143 | CC15: 40 | CD15: 115 | CE15: 58 | CF15: 99 | CG15: 58 | CH15: 58 | CI15: 107 | CJ15: 75 | CK15: 138 | CL15: 115 | CM15: 102 | CN15: 16 | CO15: 68 | CP15: 139 | CQ15: 145 | CR15: 58 | CS15: 93 | CT15: 127 | CU15: 112 | CV15: 131 | CW15: 75 | CX15: 40 | CY15: 50 | CZ15: 75 | DA15: 1 | DB15: 16 | DC15: 50 | DD15: 11 | DE15: 68 | DF15: 93 | DG15: 1 | DH15: 87 | DI15: 127 | DJ15: 75 | DK15: 115 | DL15: 87 | DM15: 40 | DN15: 40 | DO15: 68 | DP15: 40 | DQ15: 40 | DR15: 115 | DS15: 87 | DT15: 28 | DU15: 87 | DV15: 122 | DW15: 58 | DX15: 68 | DY15: 28 | DZ15: 115 | EA15: 102 | EB15: 146 | EC15: 16 | ED15: 16 | EE15: 68 | EF15: 16 | EG15: 50 | EH15: 16 | EI15: 11 | EJ15: 58 | EK15: 93 | EL15: 112 | EM15: 75 | EN15: 28 | EO15: 58 | EP15: 127 | EQ15: 16 | ER15: 142 | ES15: 28 | ET15: 112 | EU15: 107 | EV15: 5 | EW15: 127 | EX15: 50 | EY15: 99 | EZ15: 68 | FA15: 11 | FB15: - | FC15: - | FD15: - | FE15: - | FF15: - | FG15: - | FH15: - | FI15: - | FJ15: - | FK15: -
B16: RTA_14 | C16: 16 | E16: Target | F16: - | G16: - | H16: - | I16: - | J16: - | K16: - | L16: - | M16: - | N16: - | O16: - | P16: - | Q16: - | R16: - | S16: - | T16: - | U16: - | V16: - | W16: - | X16: - | Y16: - | Z16: - | AA16: - | AB16: - | AC16: - | AD16: - | AE16: - | AF16: - | AG16: - | AH16: - | AI16: - | AJ16: - | AK16: - | AL16: - | AM16: - | AN16: - | AO16: - | AP16: - | AQ16: - | AR16: - | AS16: - | AT16: - | AU16: - | AV16: - | AW16: - | AX16: - | AY16: - | AZ16: - | BA16: - | BB16: - | BC16: - | BD16: - | BE16: - | BF16: - | BG16: - | BH16: - | BI16: - | BJ16: - | BK16: - | BL16: - | BM16: - | BN16: - | BO16: - | BP16: - | BQ16: - | BR16: - | BS16: - | BT16: - | BU16: - | BV16: - | BW16: - | BX16: - | BY16: - | BZ16: - | CA16: - | CB16: - | CC16: - | CD16: - | CE16: - | CF16: - | CG16: - | CH16: - | CI16: - | CJ16: - | CK16: - | CL16: - | CM16: - | CN16: - | CO16: - | CP16: - | CQ16: - | CR16: - | CS16: - | CT16: - | CU16: - | CV16: - | CW16: - | CX16: - | CY16: - | CZ16: - | DA16: - | DB16: - | DC16: - | DD16: - | DE16: - | DF16: - | DG16: - | DH16: - | DI16: - | DJ16: - | DK16: - | DL16: - | DM16: - | DN16: - | DO16: - | DP16: - | DQ16: - | DR16: - | DS16: - | DT16: - | DU16: - | DV16: - | DW16: - | DX16: - | DY16: - | DZ16: - | EA16: - | EB16: - | EC16: - | ED16: - | EE16: - | EF16: - | EG16: - | EH16: - | EI16: - | EJ16: - | EK16: - | EL16: - | EM16: - | EN16: - | EO16: - | EP16: - | EQ16: - | ER16: - | ES16: - | ET16: - | EU16: - | EV16: - | EW16: - | EX16: - | EY16: - | EZ16: - | FA16: - | FB16: - | FC16: - | FD16: - | FE16: - | FF16: - | FG16: - | FH16: - | FI16: - | FJ16: - | FK16: -
B17: RTA_15 | C17: 17 | E17: Distance | F17: - | G17: - | H17: - | I17: - | J17: - | K17: - | L17: - | M17: - | N17: - | O17: - | P17: - | Q17: - | R17: - | S17: - | T17: - | U17: - | V17: - | W17: - | X17: - | Y17: - | Z17: - | AA17: - | AB17: - | AC17: - | AD17: - | AE17: - | AF17: - | AG17: - | AH17: - | AI17: - | AJ17: - | AK17: - | AL17: - | AM17: - | AN17: - | AO17: - | AP17: - | AQ17: - | AR17: - | AS17: - | AT17: - | AU17: - | AV17: - | AW17: - | AX17: - | AY17: - | AZ17: - | BA17: - | BB17: - | BC17: - | BD17: - | BE17: - | BF17: - | BG17: - | BH17: - | BI17: - | BJ17: - | BK17: - | BL17: - | BM17: - | BN17: - | BO17: - | BP17: - | BQ17: - | BR17: - | BS17: - | BT17: - | BU17: - | BV17: - | BW17: - | BX17: - | BY17: - | BZ17: - | CA17: - | CB17: - | CC17: - | CD17: - | CE17: - | CF17: - | CG17: - | CH17: - | CI17: - | CJ17: - | CK17: - | CL17: - | CM17: - | CN17: - | CO17: - | CP17: - | CQ17: - | CR17: - | CS17: - | CT17: - | CU17: - | CV17: - | CW17: - | CX17: - | CY17: - | CZ17: - | DA17: - | DB17: - | DC17: - | DD17: - | DE17: - | DF17: - | DG17: - | DH17: - | DI17: - | DJ17: - | DK17: - | DL17: - | DM17: - | DN17: - | DO17: - | DP17: - | DQ17: - | DR17: - | DS17: - | DT17: - | DU17: - | DV17: - | DW17: - | DX17: - | DY17: - | DZ17: - | EA17: - | EB17: - | EC17: - | ED17: - | EE17: - | EF17: - | EG17: - | EH17: - | EI17: - | EJ17: - | EK17: - | EL17: - | EM17: - | EN17: - | EO17: - | EP17: - | EQ17: - | ER17: - | ES17: - | ET17: - | EU17: - | EV17: - | EW17: - | EX17: - | EY17: - | EZ17: - | FA17: - | FB17: - | FC17: - | FD17: - | FE17: - | FF17: - | FG17: - | FH17: - | FI17: - | FJ17: - | FK17: -
B18: RTA_16 | C18: 18 | E18: Quartile | F18: B | G18: C | H18: B | I18: A | J18: A | K18: B | L18: D | M18: D | N18: B | O18: C | P18: B | Q18: A | R18: D | S18: B | T18: B | U18: C | V18: B | W18: D | X18: A | Y18: C | Z18: D | AA18: A | AB18: A | AC18: B | AD18: B | AE18: A | AF18: C | AG18: C | AH18: A | AI18: C | AJ18: A | AK18: C | AL18: D | AM18: D | AN18: C | AO18: C | AP18: B | AQ18: D | AR18: A | AS18: C | AT18: D | AU18: A | AV18: D | AW18: B | AX18: D | AY18: B | AZ18: A | BA18: A | BB18: A | BC18: D | BD18: B | BE18: B | BF18: A | BG18: A | BH18: A | BI18: D | BJ18: C | BK18: B | BL18: B | BM18: A | BN18: A | BO18: A | BP18: D | BQ18: D | BR18: A | BS18: D | BT18: B | BU18: A | BV18: D | BW18: D | BX18: D | BY18: D | BZ18: B | CA18: D | CB18: D | CC18: B | CD18: D | CE18: B | CF18: C | CG18: B | CH18: B | CI18: C | CJ18: B | CK18: D | CL18: D | CM18: C | CN18: A | CO18: B | CP18: D | CQ18: D | CR18: B | CS18: C | CT18: D | CU18: C | CV18: D | CW18: B | CX18: B | CY18: B | CZ18: B | DA18: A | DB18: A | DC18: B | DD18: A | DE18: B | DF18: C | DG18: A | DH18: C | DI18: D | DJ18: B | DK18: D | DL18: C | DM18: B | DN18: B | DO18: B | DP18: B | DQ18: B | DR18: D | DS18: C | DT18: A | DU18: C | DV18: D | DW18: B | DX18: B | DY18: A | DZ18: D | EA18: C | EB18: D | EC18: A | ED18: A | EE18: B | EF18: A | EG18: B | EH18: A | EI18: A | EJ18: B | EK18: C | EL18: C | EM18: B | EN18: A | EO18: B | EP18: D | EQ18: A | ER18: D | ES18: A | ET18: C | EU18: C | EV18: A | EW18: D | EX18: B | EY18: C | EZ18: B | FA18: A | FB18: - | FC18: - | FD18: - | FE18: - | FF18: - | FG18: - | FH18: - | FI18: - | FJ18: - | FK18: - | FM18: 4 | FN18: 9 | FO18: 15.25 | FP18: 69 | FQ18: Low
B19: LACFinance_1 | C19: 19 | D19: Looked after Children Finance | E19: - | F19: - | G19: - | H19: - | I19: - | J19: - | K19: - | L19: - | M19: - | N19: - | O19: - | P19: - | Q19: - | R19: - | S19: - | T19: - | U19: - | V19: - | W19: - | X19: - | Y19: - | Z19: - | AA19: - | AB19: - | AC19: - | AD19: - | AE19: - | AF19: - | AG19: - | AH19: - | AI19: - | AJ19: - | AK19: - | AL19: - | AM19: - | AN19: - | AO19: - | AP19: - | AQ19: - | AR19: - | AS19: - | AT19: - | AU19: - | AV19: - | AW19: - | AX19: - | AY19: - | AZ19: - | BA19: - | BB19: - | BC19: - | BD19: - | BE19: - | BF19: - | BG19: - | BH19: - | BI19: - | BJ19: - | BK19: - | BL19: - | BM19: - | BN19: - | BO19: - | BP19: - | BQ19: - | BR19: - | BS19: - | BT19: - | BU19: - | BV19: - | BW19: - | BX19: - | BY19: - | BZ19: - | CA19: - | CB19: - | CC19: - | CD19: - | CE19: - | CF19: - | CG19: - | CH19: - | CI19: - | CJ19: - | CK19: - | CL19: - | CM19: - | CN19: - | CO19: - | CP19: - | CQ19: - | CR19: - | CS19: - | CT19: - | CU19: - | CV19: - | CW19: - | CX19: - | CY19: - | CZ19: - | DA19: - | DB19: - | DC19: - | DD19: - | DE19: - | DF19: - | DG19: - | DH19: - | DI19: - | DJ19: - | DK19: - | DL19: - | DM19: - | DN19: - | DO19: - | DP19: - | DQ19: - | DR19: - | DS19: - | DT19: - | DU19: - | DV19: - | DW19: - | DX19: - | DY19: - | DZ19: - | EA19: - | EB19: - | EC19: - | ED19: - | EE19: - | EF19: - | EG19: - | EH19: - | EI19: - | EJ19: - | EK19: - | EL19: - | EM19: - | EN19: - | EO19: - | EP19: - | EQ19: - | ER19: - | ES19: - | ET19: - | EU19: - | EV19: - | EW19: - | EX19: - | EY19: - | EZ19: - | FA19: - | FB19: - | FC19: - | FD19: - | FE19: - | FF19: - | FG19: - | FH19: - | FI19: - | FJ19: - | FK19: -
B20: LACFinance_2 | C20: 20 | E20: - | F20: - | G20: - | H20: - | I20: - | J20: - | K20: - | L20: - | M20: - | N20: - | O20: - | P20: - | Q20: - | R20: - | S20: - | T20: - | U20: - | V20: - | W20: - | X20: - | Y20: - | Z20: - | AA20: - | AB20: - | AC20: - | AD20: - | AE20: - | AF20: - | AG20: - | AH20: - | AI20: - | AJ20: - | AK20: - | AL20: - | AM20: - | AN20: - | AO20: - | AP20: - | AQ20: - | AR20: - | AS20: - | AT20: - | AU20: - | AV20: - | AW20: - | AX20: - | AY20: - | AZ20: - | BA20: - | BB20: - | BC20: - | BD20: - | BE20: - | BF20: - | BG20: - | BH20: - | BI20: - | BJ20: - | BK20: - | BL20: - | BM20: - | BN20: - | BO20: - | BP20: - | BQ20: - | BR20: - | BS20: - | BT20: - | BU20: - | BV20: - | BW20: - | BX20: - | BY20: - | BZ20: - | CA20: - | CB20: - | CC20: - | CD20: - | CE20: - | CF20: - | CG20: - | CH20: - | CI20: - | CJ20: - | CK20: - | CL20: - | CM20: - | CN20: - | CO20: - | CP20: - | CQ20: - | CR20: - | CS20: - | CT20: - | CU20: - | CV20: - | CW20: - | CX20: - | CY20: - | CZ20: - | DA20: - | DB20: - | DC20: - | DD20: - | DE20: - | DF20: - | DG20: - | DH20: - | DI20: - | DJ20: - | DK20: - | DL20: - | DM20: - | DN20: - | DO20: - | DP20: - | DQ20: - | DR20: - | DS20: - | DT20: - | DU20: - | DV20: - | DW20: - | DX20: - | DY20: - | DZ20: - | EA20: - | EB20: - | EC20: - | ED20: - | EE20: - | EF20: - | EG20: - | EH20: - | EI20: - | EJ20: - | EK20: - | EL20: - | EM20: - | EN20: - | EO20: - | EP20: - | EQ20: - | ER20: - | ES20: - | ET20: - | EU20: - | EV20: - | EW20: - | EX20: - | EY20: - | EZ20: - | FA20: - | FB20: - | FC20: - | FD20: - | FE20: - | FF20: - | FG20: - | FH20: - | FI20: - | FJ20: - | FK20: -
B21: LACFinance_3 | C21: 21 | E21: - | F21: - | G21: - | H21: - | I21: - | J21: - | K21: - | L21: - | M21: - | N21: - | O21: - | P21: - | Q21: - | R21: - | S21: - | T21: - | U21: - | V21: - | W21: - | X21: - | Y21: - | Z21: - | AA21: - | AB21: - | AC21: - | AD21: - | AE21: - | AF21: - | AG21: - | AH21: - | AI21: - | AJ21: - | AK21: - | AL21: - | AM21: - | AN21: - | AO21: - | AP21: - | AQ21: - | AR21: - | AS21: - | AT21: - | AU21: - | AV21: - | AW21: - | AX21: - | AY21: - | AZ21: - | BA21: - | BB21: - | BC21: - | BD21: - | BE21: - | BF21: - | BG21: - | BH21: - | BI21: - | BJ21: - | BK21: - | BL21: - | BM21: - | BN21: - | BO21: - | BP21: - | BQ21: - | BR21: - | BS21: - | BT21: - | BU21: - | BV21: - | BW21: - | BX21: - | BY21: - | BZ21: - | CA21: - | CB21: - | CC21: - | CD21: - | CE21: - | CF21: - | CG21: - | CH21: - | CI21: - | CJ21: - | CK21: - | CL21: - | CM21: - | CN21: - | CO21: - | CP21: - | CQ21: - | CR21: - | CS21: - | CT21: - | CU21: - | CV21: - | CW21: - | CX21: - | CY21: - | CZ21: - | DA21: - | DB21: - | DC21: - | DD21: - | DE21: - | DF21: - | DG21: - | DH21: - | DI21: - | DJ21: - | DK21: - | DL21: - | DM21: - | DN21: - | DO21: - | DP21: - | DQ21: - | DR21: - | DS21: - | DT21: - | DU21: - | DV21: - | DW21: - | DX21: - | DY21: - | DZ21: - | EA21: - | EB21: - | EC21: - | ED21: - | EE21: - | EF21: - | EG21: - | EH21: - | EI21: - | EJ21: - | EK21: - | EL21: - | EM21: - | EN21: - | EO21: - | EP21: - | EQ21: - | ER21: - | ES21: - | ET21: - | EU21: - | EV21: - | EW21: - | EX21: - | EY21: - | EZ21: - | FA21: - | FB21: - | FC21: - | FD21: - | FE21: - | FF21: - | FG21: - | FH21: - | FI21: - | FJ21: - | FK21: -
B22: LACFinance_4 | C22: 22 | E22: 2009-10 (OT) | F22: 1035 | G22: 1100 | H22: 765 | I22: 915 | J22: 1315 | K22: 870 | L22: 880 | M22: 605 | N22: 660 | O22: 650 | P22: 940 | Q22: 1075 | R22: 665 | S22: 1200 | T22: 985 | U22: 905 | V22: 740 | W22: 1315 | X22: 665 | Y22: 800 | Z22: 1250 | AA22: 1590 | AB22: 1765 | AC22: 770 | AD22: 845 | AE22: 1145 | AF22: 915 | AG22: 840 | AH22: 1085 | AI22: 540 | AJ22: 645 | AK22: 880 | AL22: 920 | AM22: 920 | AN22: 800 | AO22: 955 | AP22: 645 | AQ22: 925 | AR22: 1010 | AS22: 840 | AT22: 715 | AU22: 995 | AV22: 965 | AW22: 740 | AX22: 855 | AY22: 1070 | AZ22: 1155 | BA22: 875 | BB22: 1110 | BC22: 790 | BD22: 1155 | BE22: 1935 | BF22: 670 | BG22: 945 | BH22: 1055 | BI22: 965 | BJ22: 1270 | BK22: 1050 | BL22: 830 | BM22: - | BN22: 1140 | BO22: 1480 | BP22: 915 | BQ22: 830 | BR22: 995 | BS22: 745 | BT22: 715 | BU22: 1180 | BV22: 820 | BW22: 585 | BX22: 745 | BY22: 1065 | BZ22: 1145 | CA22: 730 | CB22: 695 | CC22: 745 | CD22: 850 | CE22: 630 | CF22: 1170 | CG22: 775 | CH22: 920 | CI22: 935 | CJ22: 1115 | CK22: 1305 | CL22: 1285 | CM22: 775 | CN22: 750 | CO22: 695 | CP22: 920 | CQ22: 970 | CR22: 980 | CS22: 950 | CT22: 865 | CU22: 775 | CV22: 1025 | CW22: 1165 | CX22: 550 | CY22: 695 | CZ22: 665 | DA22: 860 | DB22: 940 | DC22: 915 | DD22: 1430 | DE22: 615 | DF22: 690 | DG22: 740 | DH22: 850 | DI22: 805 | DJ22: 870 | DK22: 1025 | DL22: 1240 | DM22: 3080 | DN22: 970 | DO22: 660 | DP22: 940 | DQ22: 690 | DR22: 630 | DS22: 840 | DT22: 1020 | DU22: 945 | DV22: 1080 | DW22: 820 | DX22: 705 | DY22: 855 | DZ22: 590 | EA22: 865 | EB22: 1155 | EC22: 965 | ED22: 830 | EE22: 600 | EF22: 960 | EG22: 740 | EH22: 915 | EI22: 1180 | EJ22: 735 | EK22: 925 | EL22: 780 | EM22: 1290 | EN22: 1245 | EO22: 580 | EP22: 585 | EQ22: 845 | ER22: 1100 | ES22: 1385 | ET22: 725 | EU22: 1030 | EV22: 830 | EW22: 565 | EX22: 1475 | EY22: 730 | EZ22: 790 | FA22: 570 | FB22: 900 | FC22: 820 | FD22: 740 | FE22: 770 | FF22: 885 | FG22: 850 | FH22: 1000 | FI22: 1135 | FJ22: 965 | FK22: 850
B23: LACFinance_5 | C23: 23 | E23: 2010-11 (OT) | F23: 995 | G23: 1200 | H23: 915 | I23: 785 | J23: 1320 | K23: 855 | L23: 850 | M23: 395 | N23: 635 | O23: 575 | P23: 920 | Q23: 1135 | R23: 660 | S23: 1060 | T23: 1015 | U23: 845 | V23: 980 | W23: 955 | X23: 600 | Y23: 700 | Z23: 1425 | AA23: 1280 | AB23: 1840 | AC23: 770 | AD23: 810 | AE23: 1470 | AF23: 860 | AG23: 965 | AH23: 1150 | AI23: 580 | AJ23: 630 | AK23: 955 | AL23: 800 | AM23: 870 | AN23: 880 | AO23: 1030 | AP23: 690 | AQ23: 970 | AR23: 1065 | AS23: 915 | AT23: 755 | AU23: 935 | AV23: 920 | AW23: 645 | AX23: 750 | AY23: 1130 | AZ23: 1165 | BA23: 975 | BB23: 1385 | BC23: 845 | BD23: 1240 | BE23: 2080 | BF23: 795 | BG23: 985 | BH23: 840 | BI23: 925 | BJ23: 800 | BK23: 1125 | BL23: 845 | BM23: - | BN23: 1370 | BO23: 1605 | BP23: 830 | BQ23: 740 | BR23: 1135 | BS23: 825 | BT23: 685 | BU23: 1225 | BV23: 820 | BW23: 700 | BX23: 725 | BY23: 945 | BZ23: 1190 | CA23: 750 | CB23: 695 | CC23: 620 | CD23: 875 | CE23: 580 | CF23: 1340 | CG23: 885 | CH23: 925 | CI23: 990 | CJ23: 1140 | CK23: 1165 | CL23: 1290 | CM23: 845 | CN23: 760 | CO23: 720 | CP23: 1005 | CQ23: 965 | CR23: 1220 | CS23: 985 | CT23: 905 | CU23: 795 | CV23: 1090 | CW23: 1040 | CX23: 685 | CY23: 665 | CZ23: 735 | DA23: 825 | DB23: 1140 | DC23: 965 | DD23: 1610 | DE23: 585 | DF23: 735 | DG23: 695 | DH23: 765 | DI23: 840 | DJ23: 885 | DK23: 960 | DL23: 1230 | DM23: 920 | DN23: 950 | DO23: 805 | DP23: 845 | DQ23: 730 | DR23: 740 | DS23: 715 | DT23: 1075 | DU23: 730 | DV23: 1070 | DW23: 900 | DX23: 840 | DY23: 855 | DZ23: 665 | EA23: 785 | EB23: 1055 | EC23: 950 | ED23: 885 | EE23: 610 | EF23: 985 | EG23: 180 | EH23: 765 | EI23: 1385 | EJ23: 750 | EK23: 785 | EL23: 660 | EM23: 1400 | EN23: 1150 | EO23: 810 | EP23: 620 | EQ23: 925 | ER23: 1055 | ES23: 1395 | ET23: 815 | EU23: 1020 | EV23: 980 | EW23: 550 | EX23: 1120 | EY23: 655 | EZ23: 795 | FA23: 595 | FB23: 890 | FC23: 860 | FD23: 730 | FE23: 795 | FF23: 880 | FG23: 840 | FH23: 955 | FI23: 1170 | FJ23: 890 | FK23: 840
B24: LACFinance_6 | C24: 24 | E24: 2011-12 (OT) | F24: 805 | G24: 1120 | H24: 870 | I24: 885 | J24: 950 | K24: - | L24: 850 | M24: 635 | N24: 590 | O24: 590 | P24: 800 | Q24: 1020 | R24: 680 | S24: 1050 | T24: 955 | U24: 815 | V24: 950 | W24: 945 | X24: 625 | Y24: 780 | Z24: 1260 | AA24: 1250 | AB24: 1215 | AC24: 980 | AD24: 815 | AE24: 1800 | AF24: 780 | AG24: 975 | AH24: 985 | AI24: 600 | AJ24: 685 | AK24: 880 | AL24: 985 | AM24: 1020 | AN24: 820 | AO24: 840 | AP24: 660 | AQ24: 800 | AR24: 1000 | AS24: 920 | AT24: 835 | AU24: 950 | AV24: 945 | AW24: 675 | AX24: 855 | AY24: 1075 | AZ24: 880 | BA24: 975 | BB24: 1190 | BC24: 825 | BD24: 1095 | BE24: 1525 | BF24: 665 | BG24: 1010 | BH24: 775 | BI24: 1020 | BJ24: 1290 | BK24: 1105 | BL24: 735 | BM24: - | BN24: 1255 | BO24: 1205 | BP24: 855 | BQ24: 765 | BR24: 1060 | BS24: 770 | BT24: 700 | BU24: 1125 | BV24: 775 | BW24: 765 | BX24: 765 | BY24: 1110 | BZ24: 1095 | CA24: 675 | CB24: 660 | CC24: 655 | CD24: 945 | CE24: 640 | CF24: 1285 | CG24: 1030 | CH24: 895 | CI24: 855 | CJ24: 1180 | CK24: 1215 | CL24: 1095 | CM24: 875 | CN24: 805 | CO24: 635 | CP24: 870 | CQ24: 815 | CR24: 915 | CS24: 845 | CT24: 880 | CU24: 865 | CV24: 860 | CW24: 1035 | CX24: 660 | CY24: 675 | CZ24: 675 | DA24: 940 | DB24: 1010 | DC24: 775 | DD24: 1680 | DE24: 620 | DF24: 870 | DG24: 655 | DH24: 880 | DI24: 680 | DJ24: 825 | DK24: 945 | DL24: 1170 | DM24: 905 | DN24: 905 | DO24: 905 | DP24: 810 | DQ24: 780 | DR24: 625 | DS24: 795 | DT24: 985 | DU24: 675 | DV24: 975 | DW24: 810 | DX24: 775 | DY24: 905 | DZ24: 755 | EA24: 730 | EB24: 955 | EC24: 910 | ED24: 715 | EE24: 705 | EF24: 995 | EG24: 760 | EH24: 835 | EI24: 1230 | EJ24: 700 | EK24: 710 | EL24: 685 | EM24: 1275 | EN24: 1090 | EO24: 790 | EP24: 625 | EQ24: 1030 | ER24: 1150 | ES24: 1165 | ET24: 755 | EU24: 910 | EV24: 1145 | EW24: 510 | EX24: 1060 | EY24: 765 | EZ24: 860 | FA24: 535 | FB24: 880 | FC24: 790 | FD24: 740 | FE24: 795 | FF24: 865 | FG24: 830 | FH24: 985 | FI24: 1155 | FJ24: 875 | FK24: 840
B25: LACFinance_7 | C25: 25 | E25: 2012-13 (OT) | F25: 900 | G25: 1250 | H25: 970 | I25: 1155 | J25: 930 | K25: 935 | L25: 920 | M25: 770 | N25: 635 | O25: 595 | P25: 980 | Q25: 1110 | R25: 795 | S25: 1425 | T25: 1170 | U25: 780 | V25: 930 | W25: 1080 | X25: 785 | Y25: 885 | Z25: 1255 | AA25: 1460 | AB25: 1350 | AC25: 1355 | AD25: 900 | AE25: 765 | AF25: 985 | AG25: 1005 | AH25: 995 | AI25: 675 | AJ25: 895 | AK25: 1010 | AL25: 1215 | AM25: 1135 | AN25: 995 | AO25: 1030 | AP25: 715 | AQ25: 970 | AR25: 1285 | AS25: 1040 | AT25: 970 | AU25: 1125 | AV25: 1120 | AW25: 800 | AX25: 855 | AY25: 1105 | AZ25: 1180 | BA25: 1030 | BB25: 1465 | BC25: 950 | BD25: 1190 | BE25: 1665 | BF25: 665 | BG25: 1300 | BH25: 700 | BI25: 1100 | BJ25: 1275 | BK25: 1290 | BL25: 885 | BM25: - | BN25: 1530 | BO25: 2040 | BP25: 985 | BQ25: 735 | BR25: 1460 | BS25: 885 | BT25: 835 | BU25: 1245 | BV25: 780 | BW25: 935 | BX25: 845 | BY25: 960 | BZ25: 1115 | CA25: 670 | CB25: 715 | CC25: 710 | CD25: 945 | CE25: 860 | CF25: 1250 | CG25: 1085 | CH25: 995 | CI25: 940 | CJ25: 1425 | CK25: 1235 | CL25: 1060 | CM25: 1090 | CN25: 750 | CO25: 730 | CP25: 785 | CQ25: 1015 | CR25: 970 | CS25: 935 | CT25: 1010 | CU25: 885 | CV25: 1060 | CW25: 1275 | CX25: 910 | CY25: 885 | CZ25: 840 | DA25: 1210 | DB25: 1250 | DC25: 1030 | DD25: 1915 | DE25: 700 | DF25: 1075 | DG25: 770 | DH25: 860 | DI25: 885 | DJ25: 920 | DK25: 1265 | DL25: 1090 | DM25: 1060 | DN25: 905 | DO25: 1100 | DP25: 950 | DQ25: 885 | DR25: 690 | DS25: 890 | DT25: 2210 | DU25: 675 | DV25: 1045 | DW25: 835 | DX25: 945 | DY25: 1090 | DZ25: 825 | EA25: 805 | EB25: 1100 | EC25: 1015 | ED25: 880 | EE25: 885 | EF25: 1100 | EG25: 810 | EH25: 785 | EI25: 1360 | EJ25: 755 | EK25: 765 | EL25: 700 | EM25: 1585 | EN25: 1275 | EO25: 1020 | EP25: 730 | EQ25: 1040 | ER25: 1265 | ES25: 1385 | ET25: 770 | EU25: 1130 | EV25: 1415 | EW25: 600 | EX25: 1095 | EY25: 840 | EZ25: 915 | FA25: 565 | FB25: 985 | FC25: 905 | FD25: 800 | FE25: 910 | FF25: 965 | FG25: 900 | FH25: 1075 | FI25: 1300 | FJ25: 1015 | FK25: 960
B26: LACFinance_8 | C26: 26 | E26: 2013-14 (OT) | F26: 875 | G26: 1425 | H26: 1120 | I26: 1045 | J26: 1085 | K26: 1095 | L26: 950 | M26: 830 | N26: 700 | O26: 730 | P26: 1115 | Q26: 1110 | R26: 795 | S26: 1195 | T26: 1090 | U26: 895 | V26: 1020 | W26: 1215 | X26: 860 | Y26: 865 | Z26: 1235 | AA26: 2420 | AB26: 1360 | AC26: 1390 | AD26: 890 | AE26: 590 | AF26: 1120 | AG26: 1060 | AH26: 870 | AI26: 790 | AJ26: 1025 | AK26: 1090 | AL26: 1365 | AM26: 1330 | AN26: 1015 | AO26: 950 | AP26: 800 | AQ26: 975 | AR26: 1345 | AS26: 1160 | AT26: 1055 | AU26: 1240 | AV26: 1170 | AW26: 840 | AX26: 985 | AY26: 1215 | AZ26: 1180 | BA26: 930 | BB26: 1725 | BC26: 890 | BD26: 1240 | BE26: 1455 | BF26: 695 | BG26: 1195 | BH26: 840 | BI26: 1185 | BJ26: 1250 | BK26: 1250 | BL26: 1080 | BM26: - | BN26: 1615 | BO26: 2295 | BP26: 980 | BQ26: 855 | BR26: 1625 | BS26: 1110 | BT26: 865 | BU26: 1215 | BV26: 860 | BW26: 895 | BX26: 850 | BY26: 1055 | BZ26: 1210 | CA26: 760 | CB26: 755 | CC26: 725 | CD26: 885 | CE26: 1030 | CF26: 1305 | CG26: 1155 | CH26: 1010 | CI26: 935 | CJ26: 1565 | CK26: 1225 | CL26: 895 | CM26: 1145 | CN26: 860 | CO26: 790 | CP26: 950 | CQ26: 915 | CR26: 940 | CS26: 1105 | CT26: 1250 | CU26: 830 | CV26: 915 | CW26: 1235 | CX26: 980 | CY26: 965 | CZ26: 920 | DA26: 1280 | DB26: 1205 | DC26: 1120 | DD26: 2070 | DE26: 795 | DF26: 1100 | DG26: 720 | DH26: 885 | DI26: 965 | DJ26: 880 | DK26: 1210 | DL26: 1030 | DM26: 1210 | DN26: 865 | DO26: 1345 | DP26: 955 | DQ26: 925 | DR26: 610 | DS26: 890 | DT26: 1175 | DU26: 740 | DV26: 1155 | DW26: 905 | DX26: 975 | DY26: 765 | DZ26: 850 | EA26: 805 | EB26: 1315 | EC26: 1230 | ED26: 945 | EE26: 865 | EF26: 1080 | EG26: 1275 | EH26: 1035 | EI26: 1345 | EJ26: 775 | EK26: 770 | EL26: 755 | EM26: 1725 | EN26: 1180 | EO26: 1050 | EP26: 730 | EQ26: 810 | ER26: 1365 | ES26: 1300 | ET26: 945 | EU26: 1295 | EV26: 1375 | EW26: 645 | EX26: 1460 | EY26: 800 | EZ26: 965 | FA26: 600 | FB26: 1020 | FC26: 930 | FD26: 845 | FE26: 950 | FF26: 1050 | FG26: 915 | FH26: 1125 | FI26: 1285 | FJ26: 1045 | FK26: 1085
B27: LACFinance_9 | C27: 27 | E27: 2014-15 (S251) | F27: 850 | G27: 1170 | H27: 900 | I27: 1260 | J27: 1095 | K27: 1000 | L27: 950 | M27: 730 | N27: 775 | O27: 715 | P27: 1090 | Q27: 965 | R27: 760 | S27: 1115 | T27: 1075 | U27: 885 | V27: 1135 | W27: 1075 | X27: 690 | Y27: 810 | Z27: 1195 | AA27: 2140 | AB27: 990 | AC27: 1500 | AD27: 830 | AE27: 1835 | AF27: 1125 | AG27: 1010 | AH27: 775 | AI27: 795 | AJ27: 1015 | AK27: 895 | AL27: 1110 | AM27: 1130 | AN27: 950 | AO27: 775 | AP27: 765 | AQ27: 960 | AR27: 1160 | AS27: 1055 | AT27: 940 | AU27: 1060 | AV27: 1210 | AW27: 840 | AX27: 975 | AY27: 1110 | AZ27: 1090 | BA27: 725 | BB27: 1240 | BC27: 890 | BD27: 950 | BE27: 1320 | BF27: 690 | BG27: 1120 | BH27: 785 | BI27: 1155 | BJ27: 1065 | BK27: 1115 | BL27: 995 | BM27: - | BN27: 1535 | BO27: 2130 | BP27: 790 | BQ27: 815 | BR27: 1385 | BS27: 890 | BT27: 760 | BU27: 1210 | BV27: 725 | BW27: 805 | BX27: 830 | BY27: 980 | BZ27: 1075 | CA27: 680 | CB27: 685 | CC27: 790 | CD27: 780 | CE27: 975 | CF27: 1160 | CG27: 1150 | CH27: 950 | CI27: 900 | CJ27: 1170 | CK27: 1110 | CL27: 820 | CM27: 1020 | CN27: 770 | CO27: 660 | CP27: 975 | CQ27: 840 | CR27: 720 | CS27: 1105 | CT27: 1185 | CU27: 760 | CV27: 975 | CW27: 1010 | CX27: 980 | CY27: 865 | CZ27: 735 | DA27: 1255 | DB27: 1160 | DC27: 1040 | DD27: 2020 | DE27: 715 | DF27: 925 | DG27: 800 | DH27: 810 | DI27: 890 | DJ27: 655 | DK27: 1045 | DL27: 990 | DM27: 1320 | DN27: 920 | DO27: 1290 | DP27: 955 | DQ27: 800 | DR27: 600 | DS27: 890 | DT27: 1100 | DU27: 590 | DV27: 1085 | DW27: 740 | DX27: 955 | DY27: 695 | DZ27: 855 | EA27: 730 | EB27: 1260 | EC27: 1110 | ED27: 835 | EE27: 485 | EF27: 780 | EG27: 1115 | EH27: 850 | EI27: 1290 | EJ27: 750 | EK27: 685 | EL27: 680 | EM27: 1610 | EN27: 1255 | EO27: 940 | EP27: 635 | EQ27: 765 | ER27: 1360 | ES27: 1275 | ET27: 730 | EU27: 1335 | EV27: 1350 | EW27: 600 | EX27: 1360 | EY27: 860 | EZ27: 870 | FA27: 465 | FB27: 940 | FC27: 870 | FD27: 745 | FE27: 855 | FF27: 960 | FG27: 870 | FH27: 1075 | FI27: 1155 | FJ27: 970 | FK27: 1025
B28: LACFinance_10 | C28: 28 | E28: - | F28: - | G28: - | H28: - | I28: - | J28: - | K28: - | L28: - | M28: - | N28: - | O28: - | P28: - | Q28: - | R28: - | S28: - | T28: - | U28: - | V28: - | W28: - | X28: - | Y28: - | Z28: - | AA28: - | AB28: - | AC28: - | AD28: - | AE28: - | AF28: - | AG28: - | AH28: - | AI28: - | AJ28: - | AK28: - | AL28: - | AM28: - | AN28: - | AO28: - | AP28: - | AQ28: - | AR28: - | AS28: - | AT28: - | AU28: - | AV28: - | AW28: - | AX28: - | AY28: - | AZ28: - | BA28: - | BB28: - | BC28: - | BD28: - | BE28: - | BF28: - | BG28: - | BH28: - | BI28: - | BJ28: - | BK28: - | BL28: - | BM28: - | BN28: - | BO28: - | BP28: - | BQ28: - | BR28: - | BS28: - | BT28: - | BU28: - | BV28: - | BW28: - | BX28: - | BY28: - | BZ28: - | CA28: - | CB28: - | CC28: - | CD28: - | CE28: - | CF28: - | CG28: - | CH28: - | CI28: - | CJ28: - | CK28: - | CL28: - | CM28: - | CN28: - | CO28: - | CP28: - | CQ28: - | CR28: - | CS28: - | CT28: - | CU28: - | CV28: - | CW28: - | CX28: - | CY28: - | CZ28: - | DA28: - | DB28: - | DC28: - | DD28: - | DE28: - | DF28: - | DG28: - | DH28: - | DI28: - | DJ28: - | DK28: - | DL28: - | DM28: - | DN28: - | DO28: - | DP28: - | DQ28: - | DR28: - | DS28: - | DT28: - | DU28: - | DV28: - | DW28: - | DX28: - | DY28: - | DZ28: - | EA28: - | EB28: - | EC28: - | ED28: - | EE28: - | EF28: - | EG28: - | EH28: - | EI28: - | EJ28: - | EK28: - | EL28: - | EM28: - | EN28: - | EO28: - | EP28: - | EQ28: - | ER28: - | ES28: - | ET28: - | EU28: - | EV28: - | EW28: - | EX28: - | EY28: - | EZ28: - | FA28: - | FB28: - | FC28: - | FD28: - | FE28: - | FF28: - | FG28: - | FH28: - | FI28: - | FJ28: - | FK28: - | FL28: -
B29: LACFinance_11 | C29: 29 | E29: Trend | F29: ê | G29: ê | H29: ê | I29: é | J29: é | K29: ê | L29: ó | M29: ê | N29: é | O29: ê | P29: ê | Q29: ê | R29: ê | S29: ê | T29: ê | U29: ê | V29: é | W29: ê | X29: ê | Y29: ê | Z29: ê | AA29: ê | AB29: ê | AC29: é | AD29: ê | AE29: é | AF29: é | AG29: ê | AH29: ê | AI29: é | AJ29: ê | AK29: ê | AL29: ê | AM29: ê | AN29: ê | AO29: ê | AP29: ê | AQ29: ê | AR29: ê | AS29: ê | AT29: ê | AU29: ê | AV29: é | AW29: ó | AX29: ê | AY29: ê | AZ29: ê | BA29: ê | BB29: ê | BC29: ó | BD29: ê | BE29: ê | BF29: ê | BG29: ê | BH29: ê | BI29: ê | BJ29: ê | BK29: ê | BL29: ê | BM29: ó | BN29: ê | BO29: ê | BP29: ê | BQ29: ê | BR29: ê | BS29: ê | BT29: ê | BU29: ê | BV29: ê | BW29: ê | BX29: ê | BY29: ê | BZ29: ê | CA29: ê | CB29: ê | CC29: é | CD29: ê | CE29: ê | CF29: ê | CG29: ê | CH29: ê | CI29: ê | CJ29: ê | CK29: ê | CL29: ê | CM29: ê | CN29: ê | CO29: ê | CP29: é | CQ29: ê | CR29: ê | CS29: ó | CT29: ê | CU29: ê | CV29: é | CW29: ê | CX29: ó | CY29: ê | CZ29: ê | DA29: ê | DB29: ê | DC29: ê | DD29: ê | DE29: ê | DF29: ê | DG29: é | DH29: ê | DI29: ê | DJ29: ê | DK29: ê | DL29: ê | DM29: é | DN29: é | DO29: ê | DP29: ó | DQ29: ê | DR29: ê | DS29: ó | DT29: ê | DU29: ê | DV29: ê | DW29: ê | DX29: ê | DY29: ê | DZ29: é | EA29: ê | EB29: ê | EC29: ê | ED29: ê | EE29: ê | EF29: ê | EG29: ê | EH29: ê | EI29: ê | EJ29: ê | EK29: ê | EL29: ê | EM29: ê | EN29: é | EO29: ê | EP29: ê | EQ29: ê | ER29: ê | ES29: ê | ET29: ê | EU29: é | EV29: ê | EW29: ê | EX29: ê | EY29: é | EZ29: ê | FA29: ê | FB29: ê | FC29: ê | FD29: ê | FE29: ê | FF29: ê | FG29: ê | FH29: ê | FI29: ê | FJ29: ê | FK29: ê
B30: LACFinance_12 | C30: 30 | E30: Change | F30: -25 | G30: -255 | H30: -220 | I30: 215 | J30: 10 | K30: -95 | L30: 0 | M30: -100 | N30: 75 | O30: -15 | P30: -25 | Q30: -145 | R30: -35 | S30: -80 | T30: -15 | U30: -10 | V30: 115 | W30: -140 | X30: -170 | Y30: -55 | Z30: -40 | AA30: -280 | AB30: -370 | AC30: 110 | AD30: -60 | AE30: 1245 | AF30: 5 | AG30: -50 | AH30: -95 | AI30: 5 | AJ30: -10 | AK30: -195 | AL30: -255 | AM30: -200 | AN30: -65 | AO30: -175 | AP30: -35 | AQ30: -15 | AR30: -185 | AS30: -105 | AT30: -115 | AU30: -180 | AV30: 40 | AW30: 0 | AX30: -10 | AY30: -105 | AZ30: -90 | BA30: -205 | BB30: -485 | BC30: 0 | BD30: -290 | BE30: -135 | BF30: -5 | BG30: -75 | BH30: -55 | BI30: -30 | BJ30: -185 | BK30: -135 | BL30: -85 | BM30: - | BN30: -80 | BO30: -165 | BP30: -190 | BQ30: -40 | BR30: -240 | BS30: -220 | BT30: -105 | BU30: -5 | BV30: -135 | BW30: -90 | BX30: -20 | BY30: -75 | BZ30: -135 | CA30: -80 | CB30: -70 | CC30: 65 | CD30: -105 | CE30: -55 | CF30: -145 | CG30: -5 | CH30: -60 | CI30: -35 | CJ30: -395 | CK30: -115 | CL30: -75 | CM30: -125 | CN30: -90 | CO30: -130 | CP30: 25 | CQ30: -75 | CR30: -220 | CS30: 0 | CT30: -65 | CU30: -70 | CV30: 60 | CW30: -225 | CX30: 0 | CY30: -100 | CZ30: -185 | DA30: -25 | DB30: -45 | DC30: -80 | DD30: -50 | DE30: -80 | DF30: -175 | DG30: 80 | DH30: -75 | DI30: -75 | DJ30: -225 | DK30: -165 | DL30: -40 | DM30: 110 | DN30: 55 | DO30: -55 | DP30: 0 | DQ30: -125 | DR30: -10 | DS30: 0 | DT30: -75 | DU30: -150 | DV30: -70 | DW30: -165 | DX30: -20 | DY30: -70 | DZ30: 5 | EA30: -75 | EB30: -55 | EC30: -120 | ED30: -110 | EE30: -380 | EF30: -300 | EG30: -160 | EH30: -185 | EI30: -55 | EJ30: -25 | EK30: -85 | EL30: -75 | EM30: -115 | EN30: 75 | EO30: -110 | EP30: -95 | EQ30: -45 | ER30: -5 | ES30: -25 | ET30: -215 | EU30: 40 | EV30: -25 | EW30: -45 | EX30: -100 | EY30: 60 | EZ30: -95 | FA30: -135 | FB30: -80 | FC30: -60 | FD30: -100 | FE30: -95 | FF30: -90 | FG30: -45 | FH30: -50 | FI30: -130 | FJ30: -75 | FK30: -60
B31: LACFinance_13 | C31: 31 | E31: Rank | F31: - | G31: - | H31: - | I31: - | J31: - | K31: - | L31: - | M31: - | N31: - | O31: - | P31: - | Q31: - | R31: - | S31: - | T31: - | U31: - | V31: - | W31: - | X31: - | Y31: - | Z31: - | AA31: - | AB31: - | AC31: - | AD31: - | AE31: - | AF31: - | AG31: - | AH31: - | AI31: - | AJ31: - | AK31: - | AL31: - | AM31: - | AN31: - | AO31: - | AP31: - | AQ31: - | AR31: - | AS31: - | AT31: - | AU31: - | AV31: - | AW31: - | AX31: - | AY31: - | AZ31: - | BA31: - | BB31: - | BC31: - | BD31: - | BE31: - | BF31: - | BG31: - | BH31: - | BI31: - | BJ31: - | BK31: - | BL31: - | BM31: - | BN31: - | BO31: - | BP31: - | BQ31: - | BR31: - | BS31: - | BT31: - | BU31: - | BV31: - | BW31: - | BX31: - | BY31: - | BZ31: - | CA31: - | CB31: - | CC31: - | CD31: - | CE31: - | CF31: - | CG31: - | CH31: - | CI31: - | CJ31: - | CK31: - | CL31: - | CM31: - | CN31: - | CO31: - | CP31: - | CQ31: - | CR31: - | CS31: - | CT31: - | CU31: - | CV31: - | CW31: - | CX31: - | CY31: - | CZ31: - | DA31: - | DB31: - | DC31: - | DD31: - | DE31: - | DF31: - | DG31: - | DH31: - | DI31: - | DJ31: - | DK31: - | DL31: - | DM31: - | DN31: - | DO31: - | DP31: - | DQ31: - | DR31: - | DS31: - | DT31: - | DU31: - | DV31: - | DW31: - | DX31: - | DY31: - | DZ31: - | EA31: - | EB31: - | EC31: - | ED31: - | EE31: - | EF31: - | EG31: - | EH31: - | EI31: - | EJ31: - | EK31: - | EL31: - | EM31: - | EN31: - | EO31: - | EP31: - | EQ31: - | ER31: - | ES31: - | ET31: - | EU31: - | EV31: - | EW31: - | EX31: - | EY31: - | EZ31: - | FA31: - | FB31: - | FC31: - | FD31: - | FE31: - | FF31: - | FG31: - | FH31: - | FI31: - | FJ31: - | FK31: -
B32: LACFinance_14 | C32: 32 | F32: - | G32: - | H32: - | I32: - | J32: - | K32: - | L32: - | M32: - | N32: - | O32: - | P32: - | Q32: - | R32: - | S32: - | T32: - | U32: - | V32: - | W32: - | X32: - | Y32: - | Z32: - | AA32: - | AB32: - | AC32: - | AD32: - | AE32: - | AF32: - | AG32: - | AH32: - | AI32: - | AJ32: - | AK32: - | AL32: - | AM32: - | AN32: - | AO32: - | AP32: - | AQ32: - | AR32: - | AS32: - | AT32: - | AU32: - | AV32: - | AW32: - | AX32: - | AY32: - | AZ32: - | BA32: - | BB32: - | BC32: - | BD32: - | BE32: - | BF32: - | BG32: - | BH32: - | BI32: - | BJ32: - | BK32: - | BL32: - | BM32: - | BN32: - | BO32: - | BP32: - | BQ32: - | BR32: - | BS32: - | BT32: - | BU32: - | BV32: - | BW32: - | BX32: - | BY32: - | BZ32: - | CA32: - | CB32: - | CC32: - | CD32: - | CE32: - | CF32: - | CG32: - | CH32: - | CI32: - | CJ32: - | CK32: - | CL32: - | CM32: - | CN32: - | CO32: - | CP32: - | CQ32: - | CR32: - | CS32: - | CT32: - | CU32: - | CV32: - | CW32: - | CX32: - | CY32: - | CZ32: - | DA32: - | DB32: - | DC32: - | DD32: - | DE32: - | DF32: - | DG32: - | DH32: - | DI32: - | DJ32: - | DK32: - | DL32: - | DM32: - | DN32: - | DO32: - | DP32: - | DQ32: - | DR32: - | DS32: - | DT32: - | DU32: - | DV32: - | DW32: - | DX32: - | DY32: - | DZ32: - | EA32: - | EB32: - | EC32: - | ED32: - | EE32: - | EF32: - | EG32: - | EH32: - | EI32: - | EJ32: - | EK32: - | EL32: - | EM32: - | EN32: - | EO32: - | EP32: - | EQ32: - | ER32: - | ES32: - | ET32: - | EU32: - | EV32: - | EW32: - | EX32: - | EY32: - | EZ32: - | FA32: - | FB32: - | FC32: - | FD32: - | FE32: - | FF32: - | FG32: - | FH32: - | FI32: - | FJ32: - | FK32: -
B33: LACFinance_15 | C33: 33 | E33: Deviation National | F33: - | G33: - | H33: - | I33: - | J33: - | K33: - | L33: - | M33: - | N33: - | O33: - | P33: - | Q33: - | R33: - | S33: - | T33: - | U33: - | V33: - | W33: - | X33: - | Y33: - | Z33: - | AA33: - | AB33: - | AC33: - | AD33: - | AE33: - | AF33: - | AG33: - | AH33: - | AI33: - | AJ33: - | AK33: - | AL33: - | AM33: - | AN33: - | AO33: - | AP33: - | AQ33: - | AR33: - | AS33: - | AT33: - | AU33: - | AV33: - | AW33: - | AX33: - | AY33: - | AZ33: - | BA33: - | BB33: - | BC33: - | BD33: - | BE33: - | BF33: - | BG33: - | BH33: - | BI33: - | BJ33: - | BK33: - | BL33: - | BM33: - | BN33: - | BO33: - | BP33: - | BQ33: - | BR33: - | BS33: - | BT33: - | BU33: - | BV33: - | BW33: - | BX33: - | BY33: - | BZ33: - | CA33: - | CB33: - | CC33: - | CD33: - | CE33: - | CF33: - | CG33: - | CH33: - | CI33: - | CJ33: - | CK33: - | CL33: - | CM33: - | CN33: - | CO33: - | CP33: - | CQ33: - | CR33: - | CS33: - | CT33: - | CU33: - | CV33: - | CW33: - | CX33: - | CY33: - | CZ33: - | DA33: - | DB33: - | DC33: - | DD33: - | DE33: - | DF33: - | DG33: - | DH33: - | DI33: - | DJ33: - | DK33: - | DL33: - | DM33: - | DN33: - | DO33: - | DP33: - | DQ33: - | DR33: - | DS33: - | DT33: - | DU33: - | DV33: - | DW33: - | DX33: - | DY33: - | DZ33: - | EA33: - | EB33: - | EC33: - | ED33: - | EE33: - | EF33: - | EG33: - | EH33: - | EI33: - | EJ33: - | EK33: - | EL33: - | EM33: - | EN33: - | EO33: - | EP33: - | EQ33: - | ER33: - | ES33: - | ET33: - | EU33: - | EV33: - | EW33: - | EX33: - | EY33: - | EZ33: - | FA33: - | FB33: - | FC33: - | FD33: - | FE33: - | FF33: - | FG33: - | FH33: - | FI33: - | FJ33: - | FK33: -
B34: LACFinance_16 | C34: 34 | E34: Quartile | F34: - | G34: - | H34: - | I34: - | J34: - | K34: - | L34: - | M34: - | N34: - | O34: - | P34: - | Q34: - | R34: - | S34: - | T34: - | U34: - | V34: - | W34: - | X34: - | Y34: - | Z34: - | AA34: - | AB34: - | AC34: - | AD34: - | AE34: - | AF34: - | AG34: - | AH34: - | AI34: - | AJ34: - | AK34: - | AL34: - | AM34: - | AN34: - | AO34: - | AP34: - | AQ34: - | AR34: - | AS34: - | AT34: - | AU34: - | AV34: - | AW34: - | AX34: - | AY34: - | AZ34: - | BA34: - | BB34: - | BC34: - | BD34: - | BE34: - | BF34: - | BG34: - | BH34: - | BI34: - | BJ34: - | BK34: - | BL34: - | BM34: - | BN34: - | BO34: - | BP34: - | BQ34: - | BR34: - | BS34: - | BT34: - | BU34: - | BV34: - | BW34: - | BX34: - | BY34: - | BZ34: - | CA34: - | CB34: - | CC34: - | CD34: - | CE34: - | CF34: - | CG34: - | CH34: - | CI34: - | CJ34: - | CK34: - | CL34: - | CM34: - | CN34: - | CO34: - | CP34: - | CQ34: - | CR34: - | CS34: - | CT34: - | CU34: - | CV34: - | CW34: - | CX34: - | CY34: - | CZ34: - | DA34: - | DB34: - | DC34: - | DD34: - | DE34: - | DF34: - | DG34: - | DH34: - | DI34: - | DJ34: - | DK34: - | DL34: - | DM34: - | DN34: - | DO34: - | DP34: - | DQ34: - | DR34: - | DS34: - | DT34: - | DU34: - | DV34: - | DW34: - | DX34: - | DY34: - | DZ34: - | EA34: - | EB34: - | EC34: - | ED34: - | EE34: - | EF34: - | EG34: - | EH34: - | EI34: - | EJ34: - | EK34: - | EL34: - | EM34: - | EN34: - | EO34: - | EP34: - | EQ34: - | ER34: - | ES34: - | ET34: - | EU34: - | EV34: - | EW34: - | EX34: - | EY34: - | EZ34: - | FA34: - | FB34: - | FC34: - | FD34: - | FE34: - | FF34: - | FG34: - | FH34: - | FI34: - | FJ34: - | FK34: -
B35: FosteringFinance_1 | C35: 35 | D35: Fostering Finance | E35: - | F35: - | G35: - | H35: - | I35: - | J35: - | K35: - | L35: - | M35: - | N35: - | O35: - | P35: - | Q35: - | R35: - | S35: - | T35: - | U35: - | V35: - | W35: - | X35: - | Y35: - | Z35: - | AA35: - | AB35: - | AC35: - | AD35: - | AE35: - | AF35: - | AG35: - | AH35: - | AI35: - | AJ35: - | AK35: - | AL35: - | AM35: - | AN35: - | AO35: - | AP35: - | AQ35: - | AR35: - | AS35: - | AT35: - | AU35: - | AV35: - | AW35: - | AX35: - | AY35: - | AZ35: - | BA35: - | BB35: - | BC35: - | BD35: - | BE35: - | BF35: - | BG35: - | BH35: - | BI35: - | BJ35: - | BK35: - | BL35: - | BM35: - | BN35: - | BO35: - | BP35: - | BQ35: - | BR35: - | BS35: - | BT35: - | BU35: - | BV35: - | BW35: - | BX35: - | BY35: - | BZ35: - | CA35: - | CB35: - | CC35: - | CD35: - | CE35: - | CF35: - | CG35: - | CH35: - | CI35: - | CJ35: - | CK35: - | CL35: - | CM35: - | CN35: - | CO35: - | CP35: - | CQ35: - | CR35: - | CS35: - | CT35: - | CU35: - | CV35: - | CW35: - | CX35: - | CY35: - | CZ35: - | DA35: - | DB35: - | DC35: - | DD35: - | DE35: - | DF35: - | DG35: - | DH35: - | DI35: - | DJ35: - | DK35: - | DL35: - | DM35: - | DN35: - | DO35: - | DP35: - | DQ35: - | DR35: - | DS35: - | DT35: - | DU35: - | DV35: - | DW35: - | DX35: - | DY35: - | DZ35: - | EA35: - | EB35: - | EC35: - | ED35: - | EE35: - | EF35: - | EG35: - | EH35: - | EI35: - | EJ35: - | EK35: - | EL35: - | EM35: - | EN35: - | EO35: - | EP35: - | EQ35: - | ER35: - | ES35: - | ET35: - | EU35: - | EV35: - | EW35: - | EX35: - | EY35: - | EZ35: - | FA35: - | FB35: - | FC35: - | FD35: - | FE35: - | FF35: - | FG35: - | FH35: - | FI35: - | FJ35: - | FK35: -
B36: FosteringFinance_2 | C36: 36 | E36: - | F36: - | G36: - | H36: - | I36: - | J36: - | K36: - | L36: - | M36: - | N36: - | O36: - | P36: - | Q36: - | R36: - | S36: - | T36: - | U36: - | V36: - | W36: - | X36: - | Y36: - | Z36: - | AA36: - | AB36: - | AC36: - | AD36: - | AE36: - | AF36: - | AG36: - | AH36: - | AI36: - | AJ36: - | AK36: - | AL36: - | AM36: - | AN36: - | AO36: - | AP36: - | AQ36: - | AR36: - | AS36: - | AT36: - | AU36: - | AV36: - | AW36: - | AX36: - | AY36: - | AZ36: - | BA36: - | BB36: - | BC36: - | BD36: - | BE36: - | BF36: - | BG36: - | BH36: - | BI36: - | BJ36: - | BK36: - | BL36: - | BM36: - | BN36: - | BO36: - | BP36: - | BQ36: - | BR36: - | BS36: - | BT36: - | BU36: - | BV36: - | BW36: - | BX36: - | BY36: - | BZ36: - | CA36: - | CB36: - | CC36: - | CD36: - | CE36: - | CF36: - | CG36: - | CH36: - | CI36: - | CJ36: - | CK36: - | CL36: - | CM36: - | CN36: - | CO36: - | CP36: - | CQ36: - | CR36: - | CS36: - | CT36: - | CU36: - | CV36: - | CW36: - | CX36: - | CY36: - | CZ36: - | DA36: - | DB36: - | DC36: - | DD36: - | DE36: - | DF36: - | DG36: - | DH36: - | DI36: - | DJ36: - | DK36: - | DL36: - | DM36: - | DN36: - | DO36: - | DP36: - | DQ36: - | DR36: - | DS36: - | DT36: - | DU36: - | DV36: - | DW36: - | DX36: - | DY36: - | DZ36: - | EA36: - | EB36: - | EC36: - | ED36: - | EE36: - | EF36: - | EG36: - | EH36: - | EI36: - | EJ36: - | EK36: - | EL36: - | EM36: - | EN36: - | EO36: - | EP36: - | EQ36: - | ER36: - | ES36: - | ET36: - | EU36: - | EV36: - | EW36: - | EX36: - | EY36: - | EZ36: - | FA36: - | FB36: - | FC36: - | FD36: - | FE36: - | FF36: - | FG36: - | FH36: - | FI36: - | FJ36: - | FK36: -
B37: FosteringFinance_3 | C37: 37 | E37: - | F37: - | G37: - | H37: - | I37: - | J37: - | K37: - | L37: - | M37: - | N37: - | O37: - | P37: - | Q37: - | R37: - | S37: - | T37: - | U37: - | V37: - | W37: - | X37: - | Y37: - | Z37: - | AA37: - | AB37: - | AC37: - | AD37: - | AE37: - | AF37: - | AG37: - | AH37: - | AI37: - | AJ37: - | AK37: - | AL37: - | AM37: - | AN37: - | AO37: - | AP37: - | AQ37: - | AR37: - | AS37: - | AT37: - | AU37: - | AV37: - | AW37: - | AX37: - | AY37: - | AZ37: - | BA37: - | BB37: - | BC37: - | BD37: - | BE37: - | BF37: - | BG37: - | BH37: - | BI37: - | BJ37: - | BK37: - | BL37: - | BM37: - | BN37: - | BO37: - | BP37: - | BQ37: - | BR37: - | BS37: - | BT37: - | BU37: - | BV37: - | BW37: - | BX37: - | BY37: - | BZ37: - | CA37: - | CB37: - | CC37: - | CD37: - | CE37: - | CF37: - | CG37: - | CH37: - | CI37: - | CJ37: - | CK37: - | CL37: - | CM37: - | CN37: - | CO37: - | CP37: - | CQ37: - | CR37: - | CS37: - | CT37: - | CU37: - | CV37: - | CW37: - | CX37: - | CY37: - | CZ37: - | DA37: - | DB37: - | DC37: - | DD37: - | DE37: - | DF37: - | DG37: - | DH37: - | DI37: - | DJ37: - | DK37: - | DL37: - | DM37: - | DN37: - | DO37: - | DP37: - | DQ37: - | DR37: - | DS37: - | DT37: - | DU37: - | DV37: - | DW37: - | DX37: - | DY37: - | DZ37: - | EA37: - | EB37: - | EC37: - | ED37: - | EE37: - | EF37: - | EG37: - | EH37: - | EI37: - | EJ37: - | EK37: - | EL37: - | EM37: - | EN37: - | EO37: - | EP37: - | EQ37: - | ER37: - | ES37: - | ET37: - | EU37: - | EV37: - | EW37: - | EX37: - | EY37: - | EZ37: - | FA37: - | FB37: - | FC37: - | FD37: - | FE37: - | FF37: - | FG37: - | FH37: - | FI37: - | FJ37: - | FK37: -
B38: FosteringFinance_4 | C38: 38 | E38: 2009-10 (OT) | F38: 610 | G38: 620 | H38: 495 | I38: 505 | J38: 880 | K38: 450 | L38: 590 | M38: 480 | N38: 270 | O38: 425 | P38: 590 | Q38: 635 | R38: 345 | S38: 700 | T38: 615 | U38: 555 | V38: 525 | W38: 485 | X38: 280 | Y38: 430 | Z38: 650 | AA38: 930 | AB38: 1325 | AC38: 305 | AD38: 495 | AE38: 220 | AF38: 530 | AG38: 500 | AH38: 320 | AI38: 395 | AJ38: 420 | AK38: 490 | AL38: 505 | AM38: 630 | AN38: 455 | AO38: 415 | AP38: 400 | AQ38: 600 | AR38: 230 | AS38: 500 | AT38: 410 | AU38: 610 | AV38: 510 | AW38: 365 | AX38: 475 | AY38: 720 | AZ38: 630 | BA38: 950 | BB38: 640 | BC38: 385 | BD38: 760 | BE38: 440 | BF38: 545 | BG38: 285 | BH38: 725 | BI38: 555 | BJ38: 630 | BK38: 640 | BL38: 500 | BM38: - | BN38: 575 | BO38: 1015 | BP38: 545 | BQ38: 405 | BR38: 590 | BS38: 500 | BT38: 330 | BU38: 795 | BV38: 575 | BW38: 400 | BX38: 420 | BY38: 425 | BZ38: 740 | CA38: 375 | CB38: 475 | CC38: 570 | CD38: 440 | CE38: 435 | CF38: 815 | CG38: 505 | CH38: 475 | CI38: 535 | CJ38: 755 | CK38: 560 | CL38: 520 | CM38: 455 | CN38: 465 | CO38: 415 | CP38: 435 | CQ38: 655 | CR38: 580 | CS38: 495 | CT38: 455 | CU38: 290 | CV38: 440 | CW38: 1085 | CX38: 410 | CY38: 460 | CZ38: 495 | DA38: 595 | DB38: 530 | DC38: 495 | DD38: 765 | DE38: 500 | DF38: 470 | DG38: 500 | DH38: 440 | DI38: 480 | DJ38: 640 | DK38: 525 | DL38: 430 | DM38: 3505 | DN38: 730 | DO38: 240 | DP38: 555 | DQ38: 520 | DR38: 460 | DS38: 525 | DT38: 500 | DU38: 490 | DV38: 480 | DW38: 425 | DX38: 455 | DY38: 550 | DZ38: 505 | EA38: 335 | EB38: 660 | EC38: 685 | ED38: 505 | EE38: 355 | EF38: 525 | EG38: 475 | EH38: 525 | EI38: 665 | EJ38: 410 | EK38: 535 | EL38: 590 | EM38: 890 | EN38: 700 | EO38: 165 | EP38: 450 | EQ38: 475 | ER38: 255 | ES38: 600 | ET38: 375 | EU38: 600 | EV38: 535 | EW38: 320 | EX38: 740 | EY38: 455 | EZ38: 755 | FA38: 395 | FB38: 520 | FC38: 485 | FD38: 435 | FE38: 440 | FF38: 485 | FG38: 545 | FH38: 595 | FI38: 620 | FJ38: 545 | FK38: 500
B39: FosteringFinance_5 | C39: 39 | E39: 2010-11 (OT) | F39: 555 | G39: 655 | H39: 615 | I39: 495 | J39: 745 | K39: 525 | L39: 575 | M39: 285 | N39: 310 | O39: 350 | P39: 585 | Q39: 465 | R39: 340 | S39: 630 | T39: 655 | U39: 545 | V39: 575 | W39: 465 | X39: 200 | Y39: 385 | Z39: 760 | AA39: 715 | AB39: 1295 | AC39: 10 | AD39: 520 | AE39: 130 | AF39: 695 | AG39: 555 | AH39: 170 | AI39: 400 | AJ39: 380 | AK39: 475 | AL39: 570 | AM39: 550 | AN39: 605 | AO39: 455 | AP39: 425 | AQ39: 630 | AR39: 230 | AS39: 550 | AT39: 430 | AU39: 595 | AV39: 590 | AW39: 315 | AX39: 500 | AY39: 795 | AZ39: 720 | BA39: 955 | BB39: 635 | BC39: 470 | BD39: 695 | BE39: 650 | BF39: 525 | BG39: 320 | BH39: 480 | BI39: 500 | BJ39: 525 | BK39: 725 | BL39: 535 | BM39: - | BN39: 735 | BO39: 910 | BP39: 530 | BQ39: 365 | BR39: 700 | BS39: 550 | BT39: 285 | BU39: 870 | BV39: 575 | BW39: 460 | BX39: 405 | BY39: 450 | BZ39: 795 | CA39: 390 | CB39: 495 | CC39: 550 | CD39: 500 | CE39: 365 | CF39: 1005 | CG39: 525 | CH39: 540 | CI39: 570 | CJ39: 725 | CK39: 595 | CL39: 485 | CM39: 475 | CN39: 435 | CO39: 445 | CP39: 520 | CQ39: 610 | CR39: 570 | CS39: 565 | CT39: 450 | CU39: 320 | CV39: 555 | CW39: 580 | CX39: 465 | CY39: 495 | CZ39: 565 | DA39: 575 | DB39: 605 | DC39: 605 | DD39: 885 | DE39: 525 | DF39: 665 | DG39: 525 | DH39: 370 | DI39: 560 | DJ39: 555 | DK39: 510 | DL39: 450 | DM39: 675 | DN39: 835 | DO39: 350 | DP39: 465 | DQ39: 510 | DR39: 485 | DS39: 515 | DT39: 510 | DU39: 500 | DV39: 500 | DW39: 515 | DX39: 555 | DY39: 435 | DZ39: 445 | EA39: 320 | EB39: 545 | EC39: 690 | ED39: 375 | EE39: 310 | EF39: 530 | EG39: 0 | EH39: 575 | EI39: 765 | EJ39: 405 | EK39: 550 | EL39: 505 | EM39: 940 | EN39: 695 | EO39: 430 | EP39: 445 | EQ39: 500 | ER39: 270 | ES39: 625 | ET39: 420 | EU39: 460 | EV39: 610 | EW39: 320 | EX39: 760 | EY39: 400 | EZ39: 525 | FA39: 450 | FB39: 515 | FC39: 500 | FD39: 425 | FE39: 480 | FF39: 495 | FG39: 520 | FH39: 565 | FI39: 635 | FJ39: 500 | FK39: 505
B40: FosteringFinance_6 | C40: 40 | E40: 2011-12 (OT) | F40: 570 | G40: 600 | H40: 545 | I40: 670 | J40: 535 | K40: 370 | L40: 600 | M40: 560 | N40: 315 | O40: 320 | P40: 600 | Q40: 500 | R40: 320 | S40: 545 | T40: 640 | U40: 585 | V40: 595 | W40: 550 | X40: 185 | Y40: 480 | Z40: 735 | AA40: 780 | AB40: 1115 | AC40: 360 | AD40: 535 | AE40: 295 | AF40: 585 | AG40: 585 | AH40: 705 | AI40: 395 | AJ40: 515 | AK40: 475 | AL40: 635 | AM40: 625 | AN40: 490 | AO40: 435 | AP40: 405 | AQ40: 510 | AR40: 625 | AS40: 540 | AT40: 460 | AU40: 590 | AV40: 660 | AW40: 355 | AX40: 535 | AY40: 700 | AZ40: 470 | BA40: 990 | BB40: 725 | BC40: 455 | BD40: 215 | BE40: 635 | BF40: 430 | BG40: 575 | BH40: 520 | BI40: 555 | BJ40: 750 | BK40: 685 | BL40: 375 | BM40: - | BN40: 800 | BO40: 875 | BP40: 610 | BQ40: 355 | BR40: 540 | BS40: 515 | BT40: 280 | BU40: 755 | BV40: 570 | BW40: 465 | BX40: 310 | BY40: 465 | BZ40: 725 | CA40: 380 | CB40: 525 | CC40: 555 | CD40: 640 | CE40: 410 | CF40: 990 | CG40: 565 | CH40: 515 | CI40: 530 | CJ40: 680 | CK40: 640 | CL40: 455 | CM40: 465 | CN40: 465 | CO40: 395 | CP40: 440 | CQ40: 540 | CR40: 525 | CS40: 540 | CT40: 535 | CU40: 385 | CV40: 550 | CW40: 640 | CX40: 500 | CY40: 485 | CZ40: 505 | DA40: 645 | DB40: 470 | DC40: 535 | DD40: 925 | DE40: 530 | DF40: 695 | DG40: 440 | DH40: 485 | DI40: 505 | DJ40: 525 | DK40: 545 | DL40: 465 | DM40: 615 | DN40: 710 | DO40: 365 | DP40: 535 | DQ40: 540 | DR40: 475 | DS40: 525 | DT40: 515 | DU40: 485 | DV40: 490 | DW40: 545 | DX40: 525 | DY40: 250 | DZ40: 310 | EA40: 440 | EB40: 500 | EC40: 685 | ED40: 425 | EE40: 390 | EF40: 495 | EG40: 500 | EH40: 605 | EI40: 715 | EJ40: 380 | EK40: 485 | EL40: 490 | EM40: 840 | EN40: 685 | EO40: 430 | EP40: 490 | EQ40: 375 | ER40: 570 | ES40: 640 | ET40: 430 | EU40: 210 | EV40: 650 | EW40: 265 | EX40: 790 | EY40: 525 | EZ40: 640 | FA40: 415 | FB40: 530 | FC40: 490 | FD40: 470 | FE40: 465 | FF40: 495 | FG40: 520 | FH40: 595 | FI40: 635 | FJ40: 535 | FK40: 510
B41: FosteringFinance_7 | C41: 41 | E41: 2012-13 (OT) | F41: 565 | G41: 615 | H41: 505 | I41: 775 | J41: 640 | K41: 615 | L41: 620 | M41: 630 | N41: 330 | O41: 355 | P41: 635 | Q41: 560 | R41: 370 | S41: 555 | T41: 740 | U41: 525 | V41: 495 | W41: 580 | X41: 190 | Y41: 525 | Z41: 715 | AA41: 835 | AB41: 1030 | AC41: 415 | AD41: 540 | AE41: 200 | AF41: 585 | AG41: 565 | AH41: 605 | AI41: 395 | AJ41: 605 | AK41: 575 | AL41: 665 | AM41: 655 | AN41: 585 | AO41: 455 | AP41: 445 | AQ41: 565 | AR41: 690 | AS41: 580 | AT41: 525 | AU41: 650 | AV41: 865 | AW41: 425 | AX41: 470 | AY41: 780 | AZ41: 650 | BA41: 835 | BB41: 690 | BC41: 470 | BD41: 780 | BE41: 560 | BF41: 385 | BG41: 765 | BH41: 490 | BI41: 585 | BJ41: 685 | BK41: 660 | BL41: 355 | BM41: - | BN41: 835 | BO41: 955 | BP41: 635 | BQ41: 300 | BR41: 565 | BS41: 605 | BT41: 390 | BU41: 700 | BV41: 525 | BW41: 520 | BX41: 375 | BY41: 430 | BZ41: 680 | CA41: 320 | CB41: 485 | CC41: 550 | CD41: 580 | CE41: 680 | CF41: 915 | CG41: 620 | CH41: 520 | CI41: 510 | CJ41: 875 | CK41: 610 | CL41: 390 | CM41: 565 | CN41: 435 | CO41: 395 | CP41: 490 | CQ41: 610 | CR41: 490 | CS41: 440 | CT41: 565 | CU41: 455 | CV41: 615 | CW41: 605 | CX41: 505 | CY41: 580 | CZ41: 545 | DA41: 675 | DB41: 475 | DC41: 600 | DD41: 860 | DE41: 440 | DF41: 745 | DG41: 345 | DH41: 480 | DI41: 535 | DJ41: 665 | DK41: 575 | DL41: 435 | DM41: 575 | DN41: 625 | DO41: 500 | DP41: 645 | DQ41: 545 | DR41: 480 | DS41: 515 | DT41: 1100 | DU41: 420 | DV41: 540 | DW41: 430 | DX41: 535 | DY41: 275 | DZ41: 450 | EA41: 490 | EB41: 560 | EC41: 660 | ED41: 455 | EE41: 355 | EF41: 565 | EG41: 305 | EH41: 525 | EI41: 755 | EJ41: 360 | EK41: 500 | EL41: 415 | EM41: 900 | EN41: 665 | EO41: 560 | EP41: 495 | EQ41: 350 | ER41: 600 | ES41: 770 | ET41: 415 | EU41: 495 | EV41: 690 | EW41: 260 | EX41: 600 | EY41: 550 | EZ41: 595 | FA41: 475 | FB41: 555 | FC41: 515 | FD41: 460 | FE41: 505 | FF41: 505 | FG41: 530 | FH41: 640 | FI41: 715 | FJ41: 575 | FK41: 540
B42: FosteringFinance_8 | C42: 42 | E42: 2013-14 (OT) | F42: 555 | G42: 715 | H42: 615 | I42: 855 | J42: 755 | K42: 665 | L42: 630 | M42: 635 | N42: 400 | O42: 375 | P42: 635 | Q42: 465 | R42: 370 | S42: 545 | T42: 660 | U42: 620 | V42: 530 | W42: 520 | X42: 225 | Y42: 495 | Z42: 700 | AA42: 455 | AB42: 840 | AC42: 690 | AD42: 545 | AE42: 0 | AF42: 615 | AG42: 640 | AH42: 365 | AI42: 505 | AJ42: 555 | AK42: 640 | AL42: 730 | AM42: 735 | AN42: 605 | AO42: 455 | AP42: 490 | AQ42: 515 | AR42: 695 | AS42: 635 | AT42: 620 | AU42: 655 | AV42: 890 | AW42: 490 | AX42: 560 | AY42: 790 | AZ42: 685 | BA42: 555 | BB42: 850 | BC42: 465 | BD42: 905 | BE42: 685 | BF42: 430 | BG42: 760 | BH42: 490 | BI42: 615 | BJ42: 690 | BK42: 625 | BL42: 490 | BM42: - | BN42: 880 | BO42: 915 | BP42: 665 | BQ42: 385 | BR42: 835 | BS42: 600 | BT42: 420 | BU42: 685 | BV42: 560 | BW42: 500 | BX42: 360 | BY42: 460 | BZ42: 735 | CA42: 335 | CB42: 475 | CC42: 555 | CD42: 565 | CE42: 590 | CF42: 690 | CG42: 645 | CH42: 525 | CI42: 495 | CJ42: 475 | CK42: 625 | CL42: 395 | CM42: 525 | CN42: 520 | CO42: 395 | CP42: 575 | CQ42: 480 | CR42: 635 | CS42: 625 | CT42: 720 | CU42: 440 | CV42: 520 | CW42: 520 | CX42: 530 | CY42: 650 | CZ42: 600 | DA42: 985 | DB42: 450 | DC42: 625 | DD42: 800 | DE42: 485 | DF42: 630 | DG42: 395 | DH42: 425 | DI42: 545 | DJ42: 610 | DK42: 555 | DL42: 455 | DM42: 770 | DN42: 520 | DO42: 555 | DP42: 535 | DQ42: 520 | DR42: 510 | DS42: 280 | DT42: 580 | DU42: 515 | DV42: 560 | DW42: 575 | DX42: 555 | DY42: 425 | DZ42: 470 | EA42: 495 | EB42: 695 | EC42: 750 | ED42: 325 | EE42: 375 | EF42: 620 | EG42: 545 | EH42: 560 | EI42: 745 | EJ42: 440 | EK42: 455 | EL42: 455 | EM42: 955 | EN42: 630 | EO42: 355 | EP42: 525 | EQ42: 390 | ER42: 665 | ES42: 715 | ET42: 390 | EU42: 480 | EV42: 685 | EW42: 245 | EX42: 835 | EY42: 520 | EZ42: 600 | FA42: 515 | FB42: 565 | FC42: 525 | FD42: 480 | FE42: 510 | FF42: 545 | FG42: 550 | FH42: 645 | FI42: 660 | FJ42: 605 | FK42: 580
B43: FosteringFinance_9 | C43: 43 | E43: 2014-15 (S251) | F43: 530 | G43: 630 | H43: 470 | I43: 900 | J43: 780 | K43: 625 | L43: 600 | M43: 545 | N43: 380 | O43: 390 | P43: 625 | Q43: 385 | R43: 360 | S43: 515 | T43: 650 | U43: 605 | V43: 570 | W43: 505 | X43: 220 | Y43: 515 | Z43: 640 | AA43: 815 | AB43: 580 | AC43: 795 | AD43: 495 | AE43: 765 | AF43: 635 | AG43: 525 | AH43: 505 | AI43: 460 | AJ43: 570 | AK43: 440 | AL43: 590 | AM43: 640 | AN43: 635 | AO43: 395 | AP43: 490 | AQ43: 520 | AR43: 620 | AS43: 610 | AT43: 565 | AU43: 625 | AV43: 805 | AW43: 430 | AX43: 605 | AY43: 805 | AZ43: 630 | BA43: 765 | BB43: 685 | BC43: 450 | BD43: 675 | BE43: 550 | BF43: 395 | BG43: 695 | BH43: 480 | BI43: 605 | BJ43: 555 | BK43: 655 | BL43: 485 | BM43: - | BN43: 805 | BO43: 805 | BP43: 515 | BQ43: 345 | BR43: 740 | BS43: 510 | BT43: 395 | BU43: 715 | BV43: 530 | BW43: 425 | BX43: 445 | BY43: 405 | BZ43: 625 | CA43: 345 | CB43: 480 | CC43: 455 | CD43: 605 | CE43: 530 | CF43: 615 | CG43: 550 | CH43: 525 | CI43: 520 | CJ43: 705 | CK43: 585 | CL43: 340 | CM43: 555 | CN43: 505 | CO43: 360 | CP43: 600 | CQ43: 385 | CR43: 450 | CS43: 660 | CT43: 700 | CU43: 400 | CV43: 495 | CW43: 495 | CX43: 520 | CY43: 615 | CZ43: 525 | DA43: 885 | DB43: 485 | DC43: 600 | DD43: 890 | DE43: 400 | DF43: 570 | DG43: 410 | DH43: 400 | DI43: 570 | DJ43: 445 | DK43: 540 | DL43: 380 | DM43: 930 | DN43: 670 | DO43: 560 | DP43: 565 | DQ43: 520 | DR43: 540 | DS43: 500 | DT43: 680 | DU43: 380 | DV43: 515 | DW43: 515 | DX43: 540 | DY43: 380 | DZ43: 470 | EA43: 415 | EB43: 520 | EC43: 805 | ED43: 295 | EE43: 220 | EF43: 470 | EG43: 700 | EH43: 580 | EI43: 715 | EJ43: 435 | EK43: 385 | EL43: 390 | EM43: 905 | EN43: 700 | EO43: 615 | EP43: 460 | EQ43: 360 | ER43: 640 | ES43: 835 | ET43: 395 | EU43: 470 | EV43: 745 | EW43: 250 | EX43: 1140 | EY43: 515 | EZ43: 745 | FA43: 425 | FB43: 540 | FC43: 485 | FD43: 460 | FE43: 470 | FF43: 505 | FG43: 530 | FH43: 615 | FI43: 660 | FJ43: 545 | FK43: 565
B44: FosteringFinance_10 | C44: 44 | E44: - | F44: - | G44: - | H44: - | I44: - | J44: - | K44: - | L44: - | M44: - | N44: - | O44: - | P44: - | Q44: - | R44: - | S44: - | T44: - | U44: - | V44: - | W44: - | X44: - | Y44: - | Z44: - | AA44: - | AB44: - | AC44: - | AD44: - | AE44: - | AF44: - | AG44: - | AH44: - | AI44: - | AJ44: - | AK44: - | AL44: - | AM44: - | AN44: - | AO44: - | AP44: - | AQ44: - | AR44: - | AS44: - | AT44: - | AU44: - | AV44: - | AW44: - | AX44: - | AY44: - | AZ44: - | BA44: - | BB44: - | BC44: - | BD44: - | BE44: - | BF44: - | BG44: - | BH44: - | BI44: - | BJ44: - | BK44: - | BL44: - | BM44: - | BN44: - | BO44: - | BP44: - | BQ44: - | BR44: - | BS44: - | BT44: - | BU44: - | BV44: - | BW44: - | BX44: - | BY44: - | BZ44: - | CA44: - | CB44: - | CC44: - | CD44: - | CE44: - | CF44: - | CG44: - | CH44: - | CI44: - | CJ44: - | CK44: - | CL44: - | CM44: - | CN44: - | CO44: - | CP44: - | CQ44: - | CR44: - | CS44: - | CT44: - | CU44: - | CV44: - | CW44: - | CX44: - | CY44: - | CZ44: - | DA44: - | DB44: - | DC44: - | DD44: - | DE44: - | DF44: - | DG44: - | DH44: - | DI44: - | DJ44: - | DK44: - | DL44: - | DM44: - | DN44: - | DO44: - | DP44: - | DQ44: - | DR44: - | DS44: - | DT44: - | DU44: - | DV44: - | DW44: - | DX44: - | DY44: - | DZ44: - | EA44: - | EB44: - | EC44: - | ED44: - | EE44: - | EF44: - | EG44: - | EH44: - | EI44: - | EJ44: - | EK44: - | EL44: - | EM44: - | EN44: - | EO44: - | EP44: - | EQ44: - | ER44: - | ES44: - | ET44: - | EU44: - | EV44: - | EW44: - | EX44: - | EY44: - | EZ44: - | FA44: - | FB44: - | FC44: - | FD44: - | FE44: - | FF44: - | FG44: - | FH44: - | FI44: - | FJ44: - | FK44: - | FL44: -
B45: FosteringFinance_11 | C45: 45 | E45: Trend | F45: ê | G45: ê | H45: ê | I45: é | J45: é | K45: ê | L45: ê | M45: ê | N45: ê | O45: é | P45: ê | Q45: ê | R45: ê | S45: ê | T45: ê | U45: ê | V45: é | W45: ê | X45: ê | Y45: é | Z45: ê | AA45: é | AB45: ê | AC45: é | AD45: ê | AE45: é | AF45: é | AG45: ê | AH45: é | AI45: ê | AJ45: é | AK45: ê | AL45: ê | AM45: ê | AN45: é | AO45: ê | AP45: ó | AQ45: é | AR45: ê | AS45: ê | AT45: ê | AU45: ê | AV45: ê | AW45: ê | AX45: é | AY45: é | AZ45: ê | BA45: é | BB45: ê | BC45: ê | BD45: ê | BE45: ê | BF45: ê | BG45: ê | BH45: ê | BI45: ê | BJ45: ê | BK45: é | BL45: ê | BM45: ó | BN45: ê | BO45: ê | BP45: ê | BQ45: ê | BR45: ê | BS45: ê | BT45: ê | BU45: é | BV45: ê | BW45: ê | BX45: é | BY45: ê | BZ45: ê | CA45: é | CB45: é | CC45: ê | CD45: é | CE45: ê | CF45: ê | CG45: ê | CH45: ó | CI45: é | CJ45: é | CK45: ê | CL45: ê | CM45: é | CN45: ê | CO45: ê | CP45: é | CQ45: ê | CR45: ê | CS45: é | CT45: ê | CU45: ê | CV45: ê | CW45: ê | CX45: ê | CY45: ê | CZ45: ê | DA45: ê | DB45: é | DC45: ê | DD45: é | DE45: ê | DF45: ê | DG45: é | DH45: ê | DI45: é | DJ45: ê | DK45: ê | DL45: ê | DM45: é | DN45: é | DO45: é | DP45: é | DQ45: ó | DR45: é | DS45: é | DT45: é | DU45: ê | DV45: ê | DW45: ê | DX45: ê | DY45: ê | DZ45: ó | EA45: ê | EB45: ê | EC45: é | ED45: ê | EE45: ê | EF45: ê | EG45: é | EH45: é | EI45: ê | EJ45: ê | EK45: ê | EL45: ê | EM45: ê | EN45: é | EO45: é | EP45: ê | EQ45: ê | ER45: ê | ES45: é | ET45: é | EU45: ê | EV45: é | EW45: é | EX45: é | EY45: ê | EZ45: é | FA45: ê | FB45: ê | FC45: ê | FD45: ê | FE45: ê | FF45: ê | FG45: ê | FH45: ê | FI45: ó | FJ45: ê | FK45: ê
B46: FosteringFinance_12 | C46: 46 | E46: Change | F46: -25 | G46: -85 | H46: -145 | I46: 45 | J46: 25 | K46: -40 | L46: -30 | M46: -90 | N46: -20 | O46: 15 | P46: -10 | Q46: -80 | R46: -10 | S46: -30 | T46: -10 | U46: -15 | V46: 40 | W46: -15 | X46: -5 | Y46: 20 | Z46: -60 | AA46: 360 | AB46: -260 | AC46: 105 | AD46: -50 | AE46: 765 | AF46: 20 | AG46: -115 | AH46: 140 | AI46: -45 | AJ46: 15 | AK46: -200 | AL46: -140 | AM46: -95 | AN46: 30 | AO46: -60 | AP46: 0 | AQ46: 5 | AR46: -75 | AS46: -25 | AT46: -55 | AU46: -30 | AV46: -85 | AW46: -60 | AX46: 45 | AY46: 15 | AZ46: -55 | BA46: 210 | BB46: -165 | BC46: -15 | BD46: -230 | BE46: -135 | BF46: -35 | BG46: -65 | BH46: -10 | BI46: -10 | BJ46: -135 | BK46: 30 | BL46: -5 | BM46: - | BN46: -75 | BO46: -110 | BP46: -150 | BQ46: -40 | BR46: -95 | BS46: -90 | BT46: -25 | BU46: 30 | BV46: -30 | BW46: -75 | BX46: 85 | BY46: -55 | BZ46: -110 | CA46: 10 | CB46: 5 | CC46: -100 | CD46: 40 | CE46: -60 | CF46: -75 | CG46: -95 | CH46: 0 | CI46: 25 | CJ46: 230 | CK46: -40 | CL46: -55 | CM46: 30 | CN46: -15 | CO46: -35 | CP46: 25 | CQ46: -95 | CR46: -185 | CS46: 35 | CT46: -20 | CU46: -40 | CV46: -25 | CW46: -25 | CX46: -10 | CY46: -35 | CZ46: -75 | DA46: -100 | DB46: 35 | DC46: -25 | DD46: 90 | DE46: -85 | DF46: -60 | DG46: 15 | DH46: -25 | DI46: 25 | DJ46: -165 | DK46: -15 | DL46: -75 | DM46: 160 | DN46: 150 | DO46: 5 | DP46: 30 | DQ46: 0 | DR46: 30 | DS46: 220 | DT46: 100 | DU46: -135 | DV46: -45 | DW46: -60 | DX46: -15 | DY46: -45 | DZ46: 0 | EA46: -80 | EB46: -175 | EC46: 55 | ED46: -30 | EE46: -155 | EF46: -150 | EG46: 155 | EH46: 20 | EI46: -30 | EJ46: -5 | EK46: -70 | EL46: -65 | EM46: -50 | EN46: 70 | EO46: 260 | EP46: -65 | EQ46: -30 | ER46: -25 | ES46: 120 | ET46: 5 | EU46: -10 | EV46: 60 | EW46: 5 | EX46: 305 | EY46: -5 | EZ46: 145 | FA46: -90 | FB46: -25 | FC46: -40 | FD46: -20 | FE46: -40 | FF46: -40 | FG46: -20 | FH46: -30 | FI46: 0 | FJ46: -60 | FK46: -15
B47: FosteringFinance_13 | C47: 47 | E47: Rank | F47: - | G47: - | H47: - | I47: - | J47: - | K47: - | L47: - | M47: - | N47: - | O47: - | P47: - | Q47: - | R47: - | S47: - | T47: - | U47: - | V47: - | W47: - | X47: - | Y47: - | Z47: - | AA47: - | AB47: - | AC47: - | AD47: - | AE47: - | AF47: - | AG47: - | AH47: - | AI47: - | AJ47: - | AK47: - | AL47: - | AM47: - | AN47: - | AO47: - | AP47: - | AQ47: - | AR47: - | AS47: - | AT47: - | AU47: - | AV47: - | AW47: - | AX47: - | AY47: - | AZ47: - | BA47: - | BB47: - | BC47: - | BD47: - | BE47: - | BF47: - | BG47: - | BH47: - | BI47: - | BJ47: - | BK47: - | BL47: - | BM47: - | BN47: - | BO47: - | BP47: - | BQ47: - | BR47: - | BS47: - | BT47: - | BU47: - | BV47: - | BW47: - | BX47: - | BY47: - | BZ47: - | CA47: - | CB47: - | CC47: - | CD47: - | CE47: - | CF47: - | CG47: - | CH47: - | CI47: - | CJ47: - | CK47: - | CL47: - | CM47: - | CN47: - | CO47: - | CP47: - | CQ47: - | CR47: - | CS47: - | CT47: - | CU47: - | CV47: - | CW47: - | CX47: - | CY47: - | CZ47: - | DA47: - | DB47: - | DC47: - | DD47: - | DE47: - | DF47: - | DG47: - | DH47: - | DI47: - | DJ47: - | DK47: - | DL47: - | DM47: - | DN47: - | DO47: - | DP47: - | DQ47: - | DR47: - | DS47: - | DT47: - | DU47: - | DV47: - | DW47: - | DX47: - | DY47: - | DZ47: - | EA47: - | EB47: - | EC47: - | ED47: - | EE47: - | EF47: - | EG47: - | EH47: - | EI47: - | EJ47: - | EK47: - | EL47: - | EM47: - | EN47: - | EO47: - | EP47: - | EQ47: - | ER47: - | ES47: - | ET47: - | EU47: - | EV47: - | EW47: - | EX47: - | EY47: - | EZ47: - | FA47: - | FB47: - | FC47: - | FD47: - | FE47: - | FF47: - | FG47: - | FH47: - | FI47: - | FJ47: - | FK47: -
B48: FosteringFinance_14 | C48: 48 | F48: - | G48: - | H48: - | I48: - | J48: - | K48: - | L48: - | M48: - | N48: - | O48: - | P48: - | Q48: - | R48: - | S48: - | T48: - | U48: - | V48: - | W48: - | X48: - | Y48: - | Z48: - | AA48: - | AB48: - | AC48: - | AD48: - | AE48: - | AF48: - | AG48: - | AH48: - | AI48: - | AJ48: - | AK48: - | AL48: - | AM48: - | AN48: - | AO48: - | AP48: - | AQ48: - | AR48: - | AS48: - | AT48: - | AU48: - | AV48: - | AW48: - | AX48: - | AY48: - | AZ48: - | BA48: - | BB48: - | BC48: - | BD48: - | BE48: - | BF48: - | BG48: - | BH48: - | BI48: - | BJ48: - | BK48: - | BL48: - | BM48: - | BN48: - | BO48: - | BP48: - | BQ48: - | BR48: - | BS48: - | BT48: - | BU48: - | BV48: - | BW48: - | BX48: - | BY48: - | BZ48: - | CA48: - | CB48: - | CC48: - | CD48: - | CE48: - | CF48: - | CG48: - | CH48: - | CI48: - | CJ48: - | CK48: - | CL48: - | CM48: - | CN48: - | CO48: - | CP48: - | CQ48: - | CR48: - | CS48: - | CT48: - | CU48: - | CV48: - | CW48: - | CX48: - | CY48: - | CZ48: - | DA48: - | DB48: - | DC48: - | DD48: - | DE48: - | DF48: - | DG48: - | DH48: - | DI48: - | DJ48: - | DK48: - | DL48: - | DM48: - | DN48: - | DO48: - | DP48: - | DQ48: - | DR48: - | DS48: - | DT48: - | DU48: - | DV48: - | DW48: - | DX48: - | DY48: - | DZ48: - | EA48: - | EB48: - | EC48: - | ED48: - | EE48: - | EF48: - | EG48: - | EH48: - | EI48: - | EJ48: - | EK48: - | EL48: - | EM48: - | EN48: - | EO48: - | EP48: - | EQ48: - | ER48: - | ES48: - | ET48: - | EU48: - | EV48: - | EW48: - | EX48: - | EY48: - | EZ48: - | FA48: - | FB48: - | FC48: - | FD48: - | FE48: - | FF48: - | FG48: - | FH48: - | FI48: - | FJ48: - | FK48: -
B49: FosteringFinance_15 | C49: 49 | E49: Deviation National | F49: - | G49: - | H49: - | I49: - | J49: - | K49: - | L49: - | M49: - | N49: - | O49: - | P49: - | Q49: - | R49: - | S49: - | T49: - | U49: - | V49: - | W49: - | X49: - | Y49: - | Z49: - | AA49: - | AB49: - | AC49: - | AD49: - | AE49: - | AF49: - | AG49: - | AH49: - | AI49: - | AJ49: - | AK49: - | AL49: - | AM49: - | AN49: - | AO49: - | AP49: - | AQ49: - | AR49: - | AS49: - | AT49: - | AU49: - | AV49: - | AW49: - | AX49: - | AY49: - | AZ49: - | BA49: - | BB49: - | BC49: - | BD49: - | BE49: - | BF49: - | BG49: - | BH49: - | BI49: - | BJ49: - | BK49: - | BL49: - | BM49: - | BN49: - | BO49: - | BP49: - | BQ49: - | BR49: - | BS49: - | BT49: - | BU49: - | BV49: - | BW49: - | BX49: - | BY49: - | BZ49: - | CA49: - | CB49: - | CC49: - | CD49: - | CE49: - | CF49: - | CG49: - | CH49: - | CI49: - | CJ49: - | CK49: - | CL49: - | CM49: - | CN49: - | CO49: - | CP49: - | CQ49: - | CR49: - | CS49: - | CT49: - | CU49: - | CV49: - | CW49: - | CX49: - | CY49: - | CZ49: - | DA49: - | DB49: - | DC49: - | DD49: - | DE49: - | DF49: - | DG49: - | DH49: - | DI49: - | DJ49: - | DK49: - | DL49: - | DM49: - | DN49: - | DO49: - | DP49: - | DQ49: - | DR49: - | DS49: - | DT49: - | DU49: - | DV49: - | DW49: - | DX49: - | DY49: - | DZ49: - | EA49: - | EB49: - | EC49: - | ED49: - | EE49: - | EF49: - | EG49: - | EH49: - | EI49: - | EJ49: - | EK49: - | EL49: - | EM49: - | EN49: - | EO49: - | EP49: - | EQ49: - | ER49: - | ES49: - | ET49: - | EU49: - | EV49: - | EW49: - | EX49: - | EY49: - | EZ49: - | FA49: - | FB49: - | FC49: - | FD49: - | FE49: - | FF49: - | FG49: - | FH49: - | FI49: - | FJ49: - | FK49: -
B50: FosteringFinance_16 | C50: 50 | E50: Quartile | F50: - | G50: - | H50: - | I50: - | J50: - | K50: - | L50: - | M50: - | N50: - | O50: - | P50: - | Q50: - | R50: - | S50: - | T50: - | U50: - | V50: - | W50: - | X50: - | Y50: - | Z50: - | AA50: - | AB50: - | AC50: - | AD50: - | AE50: - | AF50: - | AG50: - | AH50: - | AI50: - | AJ50: - | AK50: - | AL50: - | AM50: - | AN50: - | AO50: - | AP50: - | AQ50: - | AR50: - | AS50: - | AT50: - | AU50: - | AV50: - | AW50: - | AX50: - | AY50: - | AZ50: - | BA50: - | BB50: - | BC50: - | BD50: - | BE50: - | BF50: - | BG50: - | BH50: - | BI50: - | BJ50: - | BK50: - | BL50: - | BM50: - | BN50: - | BO50: - | BP50: - | BQ50: - | BR50: - | BS50: - | BT50: - | BU50: - | BV50: - | BW50: - | BX50: - | BY50: - | BZ50: - | CA50: - | CB50: - | CC50: - | CD50: - | CE50: - | CF50: - | CG50: - | CH50: - | CI50: - | CJ50: - | CK50: - | CL50: - | CM50: - | CN50: - | CO50: - | CP50: - | CQ50: - | CR50: - | CS50: - | CT50: - | CU50: - | CV50: - | CW50: - | CX50: - | CY50: - | CZ50: - | DA50: - | DB50: - | DC50: - | DD50: - | DE50: - | DF50: - | DG50: - | DH50: - | DI50: - | DJ50: - | DK50: - | DL50: - | DM50: - | DN50: - | DO50: - | DP50: - | DQ50: - | DR50: - | DS50: - | DT50: - | DU50: - | DV50: - | DW50: - | DX50: - | DY50: - | DZ50: - | EA50: - | EB50: - | EC50: - | ED50: - | EE50: - | EF50: - | EG50: - | EH50: - | EI50: - | EJ50: - | EK50: - | EL50: - | EM50: - | EN50: - | EO50: - | EP50: - | EQ50: - | ER50: - | ES50: - | ET50: - | EU50: - | EV50: - | EW50: - | EX50: - | EY50: - | EZ50: - | FA50: - | FB50: - | FC50: - | FD50: - | FE50: - | FF50: - | FG50: - | FH50: - | FI50: - | FJ50: - | FK50: -
B51: AdoptionFinance_1 | C51: 51 | D51: Adoption Finance | E51: - | F51: - | G51: - | H51: - | I51: - | J51: - | K51: - | L51: - | M51: - | N51: - | O51: - | P51: - | Q51: - | R51: - | S51: - | T51: - | U51: - | V51: - | W51: - | X51: - | Y51: - | Z51: - | AA51: - | AB51: - | AC51: - | AD51: - | AE51: - | AF51: - | AG51: - | AH51: - | AI51: - | AJ51: - | AK51: - | AL51: - | AM51: - | AN51: - | AO51: - | AP51: - | AQ51: - | AR51: - | AS51: - | AT51: - | AU51: - | AV51: - | AW51: - | AX51: - | AY51: - | AZ51: - | BA51: - | BB51: - | BC51: - | BD51: - | BE51: - | BF51: - | BG51: - | BH51: - | BI51: - | BJ51: - | BK51: - | BL51: - | BM51: - | BN51: - | BO51: - | BP51: - | BQ51: - | BR51: - | BS51: - | BT51: - | BU51: - | BV51: - | BW51: - | BX51: - | BY51: - | BZ51: - | CA51: - | CB51: - | CC51: - | CD51: - | CE51: - | CF51: - | CG51: - | CH51: - | CI51: - | CJ51: - | CK51: - | CL51: - | CM51: - | CN51: - | CO51: - | CP51: - | CQ51: - | CR51: - | CS51: - | CT51: - | CU51: - | CV51: - | CW51: - | CX51: - | CY51: - | CZ51: - | DA51: - | DB51: - | DC51: - | DD51: - | DE51: - | DF51: - | DG51: - | DH51: - | DI51: - | DJ51: - | DK51: - | DL51: - | DM51: - | DN51: - | DO51: - | DP51: - | DQ51: - | DR51: - | DS51: - | DT51: - | DU51: - | DV51: - | DW51: - | DX51: - | DY51: - | DZ51: - | EA51: - | EB51: - | EC51: - | ED51: - | EE51: - | EF51: - | EG51: - | EH51: - | EI51: - | EJ51: - | EK51: - | EL51: - | EM51: - | EN51: - | EO51: - | EP51: - | EQ51: - | ER51: - | ES51: - | ET51: - | EU51: - | EV51: - | EW51: - | EX51: - | EY51: - | EZ51: - | FA51: - | FB51: - | FC51: - | FD51: - | FE51: - | FF51: - | FG51: - | FH51: - | FI51: - | FJ51: - | FK51: -
B52: AdoptionFinance_2 | C52: 52 | E52: - | F52: - | G52: - | H52: - | I52: - | J52: - | K52: - | L52: - | M52: - | N52: - | O52: - | P52: - | Q52: - | R52: - | S52: - | T52: - | U52: - | V52: - | W52: - | X52: - | Y52: - | Z52: - | AA52: - | AB52: - | AC52: - | AD52: - | AE52: - | AF52: - | AG52: - | AH52: - | AI52: - | AJ52: - | AK52: - | AL52: - | AM52: - | AN52: - | AO52: - | AP52: - | AQ52: - | AR52: - | AS52: - | AT52: - | AU52: - | AV52: - | AW52: - | AX52: - | AY52: - | AZ52: - | BA52: - | BB52: - | BC52: - | BD52: - | BE52: - | BF52: - | BG52: - | BH52: - | BI52: - | BJ52: - | BK52: - | BL52: - | BM52: - | BN52: - | BO52: - | BP52: - | BQ52: - | BR52: - | BS52: - | BT52: - | BU52: - | BV52: - | BW52: - | BX52: - | BY52: - | BZ52: - | CA52: - | CB52: - | CC52: - | CD52: - | CE52: - | CF52: - | CG52: - | CH52: - | CI52: - | CJ52: - | CK52: - | CL52: - | CM52: - | CN52: - | CO52: - | CP52: - | CQ52: - | CR52: - | CS52: - | CT52: - | CU52: - | CV52: - | CW52: - | CX52: - | CY52: - | CZ52: - | DA52: - | DB52: - | DC52: - | DD52: - | DE52: - | DF52: - | DG52: - | DH52: - | DI52: - | DJ52: - | DK52: - | DL52: - | DM52: - | DN52: - | DO52: - | DP52: - | DQ52: - | DR52: - | DS52: - | DT52: - | DU52: - | DV52: - | DW52: - | DX52: - | DY52: - | DZ52: - | EA52: - | EB52: - | EC52: - | ED52: - | EE52: - | EF52: - | EG52: - | EH52: - | EI52: - | EJ52: - | EK52: - | EL52: - | EM52: - | EN52: - | EO52: - | EP52: - | EQ52: - | ER52: - | ES52: - | ET52: - | EU52: - | EV52: - | EW52: - | EX52: - | EY52: - | EZ52: - | FA52: - | FB52: - | FC52: - | FD52: - | FE52: - | FF52: - | FG52: - | FH52: - | FI52: - | FJ52: - | FK52: -
B53: AdoptionFinance_3 | C53: 53 | E53: - | F53: - | G53: - | H53: - | I53: - | J53: - | K53: - | L53: - | M53: - | N53: - | O53: - | P53: - | Q53: - | R53: - | S53: - | T53: - | U53: - | V53: - | W53: - | X53: - | Y53: - | Z53: - | AA53: - | AB53: - | AC53: - | AD53: - | AE53: - | AF53: - | AG53: - | AH53: - | AI53: - | AJ53: - | AK53: - | AL53: - | AM53: - | AN53: - | AO53: - | AP53: - | AQ53: - | AR53: - | AS53: - | AT53: - | AU53: - | AV53: - | AW53: - | AX53: - | AY53: - | AZ53: - | BA53: - | BB53: - | BC53: - | BD53: - | BE53: - | BF53: - | BG53: - | BH53: - | BI53: - | BJ53: - | BK53: - | BL53: - | BM53: - | BN53: - | BO53: - | BP53: - | BQ53: - | BR53: - | BS53: - | BT53: - | BU53: - | BV53: - | BW53: - | BX53: - | BY53: - | BZ53: - | CA53: - | CB53: - | CC53: - | CD53: - | CE53: - | CF53: - | CG53: - | CH53: - | CI53: - | CJ53: - | CK53: - | CL53: - | CM53: - | CN53: - | CO53: - | CP53: - | CQ53: - | CR53: - | CS53: - | CT53: - | CU53: - | CV53: - | CW53: - | CX53: - | CY53: - | CZ53: - | DA53: - | DB53: - | DC53: - | DD53: - | DE53: - | DF53: - | DG53: - | DH53: - | DI53: - | DJ53: - | DK53: - | DL53: - | DM53: - | DN53: - | DO53: - | DP53: - | DQ53: - | DR53: - | DS53: - | DT53: - | DU53: - | DV53: - | DW53: - | DX53: - | DY53: - | DZ53: - | EA53: - | EB53: - | EC53: - | ED53: - | EE53: - | EF53: - | EG53: - | EH53: - | EI53: - | EJ53: - | EK53: - | EL53: - | EM53: - | EN53: - | EO53: - | EP53: - | EQ53: - | ER53: - | ES53: - | ET53: - | EU53: - | EV53: - | EW53: - | EX53: - | EY53: - | EZ53: - | FA53: - | FB53: - | FC53: - | FD53: - | FE53: - | FF53: - | FG53: - | FH53: - | FI53: - | FJ53: - | FK53: -
B54: AdoptionFinance_4 | C54: 54 | E54: 2009-10 (OT) | F54: 6780 | G54: 1265 | H54: 680 | I54: 800 | J54: 1655 | K54: 280 | L54: 645 | M54: 580 | N54: 335 | O54: 525 | P54: 690 | Q54: - | R54: 475 | S54: 1535 | T54: 1225 | U54: 440 | V54: 615 | W54: 1000 | X54: 555 | Y54: 305 | Z54: 1890 | AA54: 2775 | AB54: - | AC54: 1010 | AD54: 1030 | AE54: - | AF54: 690 | AG54: 660 | AH54: 1620 | AI54: 550 | AJ54: - | AK54: 330 | AL54: 595 | AM54: 1695 | AN54: 590 | AO54: 965 | AP54: 460 | AQ54: 885 | AR54: 2360 | AS54: 1175 | AT54: 880 | AU54: 2230 | AV54: 890 | AW54: 510 | AX54: 1020 | AY54: 740 | AZ54: 3330 | BA54: 585 | BB54: 1970 | BC54: 1080 | BD54: 1715 | BE54: 3435 | BF54: 400 | BG54: 1630 | BH54: 920 | BI54: 1360 | BJ54: 390 | BK54: 1255 | BL54: 1790 | BM54: - | BN54: 2925 | BO54: - | BP54: 1070 | BQ54: 580 | BR54: - | BS54: 440 | BT54: 430 | BU54: 735 | BV54: 735 | BW54: 220 | BX54: 990 | BY54: 1150 | BZ54: 960 | CA54: 705 | CB54: 2240 | CC54: 875 | CD54: 1195 | CE54: 750 | CF54: 1385 | CG54: 590 | CH54: 690 | CI54: 820 | CJ54: 1740 | CK54: 815 | CL54: 360 | CM54: 485 | CN54: 250 | CO54: 1035 | CP54: 875 | CQ54: 720 | CR54: 985 | CS54: 960 | CT54: 950 | CU54: 680 | CV54: 890 | CW54: 775 | CX54: 695 | CY54: 895 | CZ54: 1265 | DA54: 1005 | DB54: 655 | DC54: 485 | DD54: - | DE54: 375 | DF54: 345 | DG54: - | DH54: 885 | DI54: 2575 | DJ54: 1210 | DK54: 380 | DL54: 1760 | DM54: 1645 | DN54: 940 | DO54: 615 | DP54: - | DQ54: 880 | DR54: 1035 | DS54: 705 | DT54: 800 | DU54: 580 | DV54: 430 | DW54: 480 | DX54: 380 | DY54: 1090 | DZ54: 425 | EA54: 400 | EB54: 1665 | EC54: 1290 | ED54: 380 | EE54: 570 | EF54: 300 | EG54: 1090 | EH54: 600 | EI54: 5475 | EJ54: 1685 | EK54: 730 | EL54: 450 | EM54: 1190 | EN54: 1110 | EO54: 1200 | EP54: 535 | EQ54: - | ER54: 625 | ES54: - | ET54: 515 | EU54: 380 | EV54: 1050 | EW54: 1380 | EX54: 955 | EY54: 625 | EZ54: 545 | FA54: 345 | FB54: 815 | FC54: 675 | FD54: 750 | FE54: 455 | FF54: 705 | FG54: 645 | FH54: 945 | FI54: 1530 | FJ54: 1055 | FK54: 680
B55: AdoptionFinance_5 | C55: 55 | E55: 2010-11 (OT) | F55: 2605 | G55: 1050 | H55: 650 | I55: 355 | J55: 2035 | K55: 420 | L55: 600 | M55: 595 | N55: 275 | O55: 260 | P55: 730 | Q55: - | R55: 475 | S55: 1205 | T55: 700 | U55: 340 | V55: 635 | W55: 920 | X55: 545 | Y55: 300 | Z55: 925 | AA55: 1615 | AB55: - | AC55: 780 | AD55: 755 | AE55: - | AF55: 500 | AG55: 460 | AH55: 1565 | AI55: 425 | AJ55: - | AK55: 295 | AL55: 365 | AM55: 925 | AN55: 645 | AO55: 820 | AP55: 385 | AQ55: 645 | AR55: 1495 | AS55: 880 | AT55: 835 | AU55: 1980 | AV55: 635 | AW55: 535 | AX55: 1165 | AY55: 750 | AZ55: 2730 | BA55: 645 | BB55: 1790 | BC55: 870 | BD55: 770 | BE55: - | BF55: 610 | BG55: 2210 | BH55: 1095 | BI55: 840 | BJ55: 640 | BK55: 1920 | BL55: 685 | BM55: - | BN55: 2160 | BO55: - | BP55: 885 | BQ55: 480 | BR55: - | BS55: 365 | BT55: 495 | BU55: 690 | BV55: 455 | BW55: 325 | BX55: 900 | BY55: 460 | BZ55: 1085 | CA55: 475 | CB55: 760 | CC55: 760 | CD55: 795 | CE55: 610 | CF55: 1070 | CG55: 640 | CH55: 500 | CI55: 785 | CJ55: 1700 | CK55: 630 | CL55: 555 | CM55: 525 | CN55: 305 | CO55: 775 | CP55: 710 | CQ55: 580 | CR55: 795 | CS55: 565 | CT55: 590 | CU55: 515 | CV55: 1130 | CW55: 620 | CX55: 625 | CY55: 1045 | CZ55: 750 | DA55: 555 | DB55: 890 | DC55: 425 | DD55: 1720 | DE55: 415 | DF55: 490 | DG55: 300 | DH55: 945 | DI55: 1115 | DJ55: 1105 | DK55: 465 | DL55: 1285 | DM55: 830 | DN55: 1480 | DO55: 685 | DP55: 495 | DQ55: 1050 | DR55: 685 | DS55: 415 | DT55: 700 | DU55: 535 | DV55: 405 | DW55: 495 | DX55: 305 | DY55: 655 | DZ55: 345 | EA55: 270 | EB55: 1285 | EC55: 720 | ED55: 385 | EE55: 430 | EF55: 265 | EG55: 1515 | EH55: 525 | EI55: 2415 | EJ55: 1175 | EK55: 450 | EL55: 470 | EM55: 1330 | EN55: 870 | EO55: 525 | EP55: 485 | EQ55: 700 | ER55: 525 | ES55: 2690 | ET55: 275 | EU55: 770 | EV55: 660 | EW55: 1415 | EX55: - | EY55: 525 | EZ55: 440 | FA55: 315 | FB55: 665 | FC55: 570 | FD55: 575 | FE55: 470 | FF55: 485 | FG55: 550 | FH55: 690 | FI55: 1330 | FJ55: 805 | FK55: 620
B56: AdoptionFinance_6 | C56: 56 | E56: 2011-12 (OT) | F56: 1100 | G56: 1385 | H56: 660 | I56: 1195 | J56: 1430 | K56: 645 | L56: 505 | M56: 540 | N56: 180 | O56: 290 | P56: 580 | Q56: 620 | R56: 620 | S56: 1475 | T56: 430 | U56: 490 | V56: 965 | W56: 765 | X56: 500 | Y56: 315 | Z56: 785 | AA56: 1790 | AB56: 2900 | AC56: 745 | AD56: 710 | AE56: - | AF56: 520 | AG56: 505 | AH56: 950 | AI56: 530 | AJ56: - | AK56: 270 | AL56: 320 | AM56: 710 | AN56: 845 | AO56: 465 | AP56: 300 | AQ56: 445 | AR56: 930 | AS56: 720 | AT56: 440 | AU56: 1120 | AV56: 680 | AW56: 550 | AX56: 995 | AY56: 745 | AZ56: 1460 | BA56: 645 | BB56: 1535 | BC56: 725 | BD56: 745 | BE56: 2370 | BF56: 360 | BG56: 1110 | BH56: 700 | BI56: 670 | BJ56: 1020 | BK56: 1215 | BL56: 495 | BM56: - | BN56: 1930 | BO56: - | BP56: 710 | BQ56: 435 | BR56: 590 | BS56: 300 | BT56: 515 | BU56: 630 | BV56: 310 | BW56: 410 | BX56: 500 | BY56: 545 | BZ56: 1045 | CA56: 415 | CB56: 560 | CC56: 405 | CD56: 470 | CE56: 460 | CF56: 1350 | CG56: 470 | CH56: 420 | CI56: 440 | CJ56: 1590 | CK56: 580 | CL56: 595 | CM56: 490 | CN56: 290 | CO56: 615 | CP56: 625 | CQ56: 375 | CR56: 710 | CS56: 285 | CT56: 475 | CU56: 680 | CV56: 490 | CW56: 455 | CX56: 610 | CY56: 540 | CZ56: 545 | DA56: 645 | DB56: 790 | DC56: 290 | DD56: 2040 | DE56: 345 | DF56: 275 | DG56: - | DH56: 345 | DI56: 365 | DJ56: 830 | DK56: 475 | DL56: 1185 | DM56: 1105 | DN56: 735 | DO56: 565 | DP56: 245 | DQ56: 620 | DR56: 500 | DS56: 550 | DT56: 595 | DU56: 310 | DV56: 350 | DW56: 580 | DX56: 250 | DY56: 535 | DZ56: 395 | EA56: 320 | EB56: 875 | EC56: 565 | ED56: 390 | EE56: 480 | EF56: 320 | EG56: 915 | EH56: 540 | EI56: 1810 | EJ56: 1080 | EK56: 340 | EL56: 865 | EM56: 1055 | EN56: 875 | EO56: 335 | EP56: 345 | EQ56: 275 | ER56: 530 | ES56: 1770 | ET56: 380 | EU56: 990 | EV56: 795 | EW56: 1575 | EX56: - | EY56: 250 | EZ56: 335 | FA56: 225 | FB56: 565 | FC56: 450 | FD56: 485 | FE56: 465 | FF56: 370 | FG56: 450 | FH56: 630 | FI56: 1075 | FJ56: 610 | FK56: 595
B57: AdoptionFinance_7 | C57: 57 | E57: 2012-13 (OT) | F57: 1145 | G57: 1090 | H57: 710 | I57: - | J57: 1585 | K57: 520 | L57: 470 | M57: 365 | N57: 250 | O57: 300 | P57: 555 | Q57: 330 | R57: 545 | S57: 1955 | T57: 495 | U57: 405 | V57: 765 | W57: 710 | X57: 435 | Y57: 305 | Z57: 805 | AA57: 1385 | AB57: 1215 | AC57: 815 | AD57: 645 | AE57: - | AF57: 460 | AG57: 440 | AH57: 1020 | AI57: 395 | AJ57: 545 | AK57: 255 | AL57: 500 | AM57: 540 | AN57: 670 | AO57: 505 | AP57: 300 | AQ57: 400 | AR57: 865 | AS57: 630 | AT57: 520 | AU57: 930 | AV57: 815 | AW57: 400 | AX57: 680 | AY57: 700 | AZ57: 1765 | BA57: 885 | BB57: 1235 | BC57: 780 | BD57: 620 | BE57: 1940 | BF57: 610 | BG57: 955 | BH57: 520 | BI57: 700 | BJ57: 1030 | BK57: 1045 | BL57: 1345 | BM57: - | BN57: 2260 | BO57: - | BP57: 610 | BQ57: 420 | BR57: 720 | BS57: 305 | BT57: 480 | BU57: 510 | BV57: 310 | BW57: 375 | BX57: 540 | BY57: 430 | BZ57: 1195 | CA57: 295 | CB57: 580 | CC57: 415 | CD57: 370 | CE57: 375 | CF57: 1615 | CG57: 490 | CH57: 455 | CI57: 620 | CJ57: 1465 | CK57: 450 | CL57: 665 | CM57: 460 | CN57: 245 | CO57: 580 | CP57: 635 | CQ57: 410 | CR57: 1245 | CS57: 185 | CT57: 415 | CU57: 420 | CV57: 530 | CW57: 290 | CX57: 725 | CY57: 730 | CZ57: 690 | DA57: 505 | DB57: 705 | DC57: 275 | DD57: 1355 | DE57: 410 | DF57: 430 | DG57: - | DH57: 390 | DI57: 420 | DJ57: 425 | DK57: 540 | DL57: 2695 | DM57: 930 | DN57: 595 | DO57: 445 | DP57: 835 | DQ57: 595 | DR57: 415 | DS57: 560 | DT57: 1050 | DU57: 195 | DV57: 360 | DW57: 425 | DX57: 235 | DY57: 400 | DZ57: 385 | EA57: 305 | EB57: 800 | EC57: 730 | ED57: 285 | EE57: 485 | EF57: 310 | EG57: 1125 | EH57: 505 | EI57: 1705 | EJ57: 2010 | EK57: 295 | EL57: 930 | EM57: 1135 | EN57: 575 | EO57: 270 | EP57: 745 | EQ57: 340 | ER57: 585 | ES57: 2835 | ET57: 245 | EU57: 625 | EV57: 540 | EW57: 760 | EX57: - | EY57: 380 | EZ57: 315 | FA57: 155 | FB57: 540 | FC57: 455 | FD57: 415 | FE57: 445 | FF57: 370 | FG57: 465 | FH57: 600 | FI57: 1070 | FJ57: 600 | FK57: 540
B58: AdoptionFinance_8 | C58: 58 | E58: 2013-14 (OT) | F58: 960 | G58: 1385 | H58: 545 | I58: 765 | J58: 385 | K58: 630 | L58: 635 | M58: 690 | N58: 345 | O58: 545 | P58: 535 | Q58: 715 | R58: 650 | S58: 2235 | T58: 515 | U58: 515 | V58: 1505 | W58: 875 | X58: 750 | Y58: 420 | Z58: 580 | AA58: 4285 | AB58: 515 | AC58: 1860 | AD58: 930 | AE58: - | AF58: 555 | AG58: 555 | AH58: 1295 | AI58: 330 | AJ58: 870 | AK58: 395 | AL58: 545 | AM58: 890 | AN58: 865 | AO58: 790 | AP58: 410 | AQ58: 635 | AR58: 1675 | AS58: 890 | AT58: 560 | AU58: 990 | AV58: 890 | AW58: 575 | AX58: 985 | AY58: 1980 | AZ58: 1025 | BA58: 830 | BB58: 1860 | BC58: 725 | BD58: 745 | BE58: 1445 | BF58: 520 | BG58: 1180 | BH58: 720 | BI58: 965 | BJ58: 1250 | BK58: 1295 | BL58: 1480 | BM58: - | BN58: 5170 | BO58: - | BP58: 640 | BQ58: 655 | BR58: 795 | BS58: 830 | BT58: 520 | BU58: 835 | BV58: 580 | BW58: 355 | BX58: 515 | BY58: 765 | BZ58: 1260 | CA58: 605 | CB58: 730 | CC58: 490 | CD58: 515 | CE58: 540 | CF58: 1495 | CG58: 600 | CH58: 805 | CI58: 605 | CJ58: 4130 | CK58: 775 | CL58: 460 | CM58: 1225 | CN58: 470 | CO58: 895 | CP58: 955 | CQ58: 550 | CR58: 645 | CS58: 315 | CT58: 710 | CU58: 585 | CV58: 550 | CW58: 345 | CX58: 650 | CY58: 725 | CZ58: 645 | DA58: 490 | DB58: 1145 | DC58: 555 | DD58: 1565 | DE58: 475 | DF58: 730 | DG58: - | DH58: 575 | DI58: 515 | DJ58: 840 | DK58: 765 | DL58: 1520 | DM58: 1045 | DN58: 470 | DO58: 915 | DP58: 1050 | DQ58: 730 | DR58: 295 | DS58: 1140 | DT58: 940 | DU58: 205 | DV58: 885 | DW58: 725 | DX58: 315 | DY58: 630 | DZ58: 670 | EA58: 345 | EB58: 880 | EC58: 785 | ED58: 825 | EE58: 905 | EF58: 480 | EG58: 1975 | EH58: 645 | EI58: 1960 | EJ58: 2795 | EK58: 365 | EL58: 745 | EM58: 1605 | EN58: 1185 | EO58: 545 | EP58: 295 | EQ58: 375 | ER58: 685 | ES58: 3405 | ET58: 515 | EU58: 1195 | EV58: 760 | EW58: 1215 | EX58: - | EY58: 280 | EZ58: 470 | FA58: 335 | FB58: 700 | FC58: 565 | FD58: 605 | FE58: 620 | FF58: 540 | FG58: 555 | FH58: 740 | FI58: 1445 | FJ58: 640 | FK58: 750
B59: AdoptionFinance_9 | C59: 59 | E59: 2014-15 (S251) | F59: 785 | G59: 940 | H59: 485 | I59: 515 | J59: 425 | K59: 355 | L59: 615 | M59: 490 | N59: 415 | O59: 325 | P59: 540 | Q59: 475 | R59: 525 | S59: 1445 | T59: 370 | U59: 440 | V59: 905 | W59: 800 | X59: 570 | Y59: 430 | Z59: 455 | AA59: 2475 | AB59: 355 | AC59: 2015 | AD59: 820 | AE59: - | AF59: 700 | AG59: 530 | AH59: 1165 | AI59: 295 | AJ59: 970 | AK59: 295 | AL59: 345 | AM59: 770 | AN59: 715 | AO59: 675 | AP59: 220 | AQ59: 565 | AR59: 1655 | AS59: 820 | AT59: 455 | AU59: 905 | AV59: 940 | AW59: 485 | AX59: 795 | AY59: 1595 | AZ59: 875 | BA59: 470 | BB59: 2225 | BC59: 585 | BD59: 590 | BE59: 1185 | BF59: 450 | BG59: 1075 | BH59: 590 | BI59: 805 | BJ59: 1620 | BK59: 1190 | BL59: 1215 | BM59: - | BN59: 4350 | BO59: 10285 | BP59: 465 | BQ59: 415 | BR59: 585 | BS59: 485 | BT59: 450 | BU59: 405 | BV59: 365 | BW59: 415 | BX59: 530 | BY59: 445 | BZ59: 1265 | CA59: 430 | CB59: 610 | CC59: 465 | CD59: 535 | CE59: 475 | CF59: 1325 | CG59: 990 | CH59: 670 | CI59: 435 | CJ59: 1765 | CK59: 450 | CL59: 410 | CM59: 725 | CN59: 430 | CO59: 640 | CP59: 770 | CQ59: 465 | CR59: 530 | CS59: 215 | CT59: 540 | CU59: 475 | CV59: 715 | CW59: 275 | CX59: 530 | CY59: 695 | CZ59: 530 | DA59: 470 | DB59: 1380 | DC59: 400 | DD59: 1265 | DE59: 465 | DF59: 815 | DG59: 1380 | DH59: 520 | DI59: 330 | DJ59: 480 | DK59: 560 | DL59: 1410 | DM59: 170 | DN59: 735 | DO59: 735 | DP59: 805 | DQ59: 645 | DR59: 235 | DS59: 1125 | DT59: 720 | DU59: 155 | DV59: 815 | DW59: 440 | DX59: 345 | DY59: 470 | DZ59: 820 | EA59: 300 | EB59: 865 | EC59: 1090 | ED59: 525 | EE59: 635 | EF59: 380 | EG59: 770 | EH59: 535 | EI59: 2295 | EJ59: 3265 | EK59: 210 | EL59: 655 | EM59: 1585 | EN59: 1145 | EO59: 370 | EP59: 305 | EQ59: 410 | ER59: 800 | ES59: 2885 | ET59: 275 | EU59: 1335 | EV59: 455 | EW59: 990 | EX59: 410 | EY59: 305 | EZ59: 305 | FA59: 335 | FB59: 580 | FC59: 510 | FD59: 490 | FE59: 515 | FF59: 405 | FG59: 490 | FH59: 620 | FI59: 1170 | FJ59: 525 | FK59: 660
B60: AdoptionFinance_10 | C60: 60 | E60: - | F60: - | G60: - | H60: - | I60: - | J60: - | K60: - | L60: - | M60: - | N60: - | O60: - | P60: - | Q60: - | R60: - | S60: - | T60: - | U60: - | V60: - | W60: - | X60: - | Y60: - | Z60: - | AA60: - | AB60: - | AC60: - | AD60: - | AE60: - | AF60: - | AG60: - | AH60: - | AI60: - | AJ60: - | AK60: - | AL60: - | AM60: - | AN60: - | AO60: - | AP60: - | AQ60: - | AR60: - | AS60: - | AT60: - | AU60: - | AV60: - | AW60: - | AX60: - | AY60: - | AZ60: - | BA60: - | BB60: - | BC60: - | BD60: - | BE60: - | BF60: - | BG60: - | BH60: - | BI60: - | BJ60: - | BK60: - | BL60: - | BM60: - | BN60: - | BO60: - | BP60: - | BQ60: - | BR60: - | BS60: - | BT60: - | BU60: - | BV60: - | BW60: - | BX60: - | BY60: - | BZ60: - | CA60: - | CB60: - | CC60: - | CD60: - | CE60: - | CF60: - | CG60: - | CH60: - | CI60: - | CJ60: - | CK60: - | CL60: - | CM60: - | CN60: - | CO60: - | CP60: - | CQ60: - | CR60: - | CS60: - | CT60: - | CU60: - | CV60: - | CW60: - | CX60: - | CY60: - | CZ60: - | DA60: - | DB60: - | DC60: - | DD60: - | DE60: - | DF60: - | DG60: - | DH60: - | DI60: - | DJ60: - | DK60: - | DL60: - | DM60: - | DN60: - | DO60: - | DP60: - | DQ60: - | DR60: - | DS60: - | DT60: - | DU60: - | DV60: - | DW60: - | DX60: - | DY60: - | DZ60: - | EA60: - | EB60: - | EC60: - | ED60: - | EE60: - | EF60: - | EG60: - | EH60: - | EI60: - | EJ60: - | EK60: - | EL60: - | EM60: - | EN60: - | EO60: - | EP60: - | EQ60: - | ER60: - | ES60: - | ET60: - | EU60: - | EV60: - | EW60: - | EX60: - | EY60: - | EZ60: - | FA60: - | FB60: - | FC60: - | FD60: - | FE60: - | FF60: - | FG60: - | FH60: - | FI60: - | FJ60: - | FK60: - | FL60: -
B61: AdoptionFinance_11 | C61: 61 | E61: Trend | F61: ê | G61: ê | H61: ê | I61: ê | J61: é | K61: ê | L61: ê | M61: ê | N61: é | O61: ê | P61: é | Q61: ê | R61: ê | S61: ê | T61: ê | U61: ê | V61: ê | W61: ê | X61: ê | Y61: é | Z61: ê | AA61: ê | AB61: ê | AC61: é | AD61: ê | AE61: ó | AF61: é | AG61: ê | AH61: ê | AI61: ê | AJ61: é | AK61: ê | AL61: ê | AM61: ê | AN61: ê | AO61: ê | AP61: ê | AQ61: ê | AR61: ê | AS61: ê | AT61: ê | AU61: ê | AV61: é | AW61: ê | AX61: ê | AY61: ê | AZ61: ê | BA61: ê | BB61: é | BC61: ê | BD61: ê | BE61: ê | BF61: ê | BG61: ê | BH61: ê | BI61: ê | BJ61: é | BK61: ê | BL61: ê | BM61: ó | BN61: ê | BO61: ó | BP61: ê | BQ61: ê | BR61: ê | BS61: ê | BT61: ê | BU61: ê | BV61: ê | BW61: é | BX61: é | BY61: ê | BZ61: é | CA61: ê | CB61: ê | CC61: ê | CD61: é | CE61: ê | CF61: ê | CG61: é | CH61: ê | CI61: ê | CJ61: ê | CK61: ê | CL61: ê | CM61: ê | CN61: ê | CO61: ê | CP61: ê | CQ61: ê | CR61: ê | CS61: ê | CT61: ê | CU61: ê | CV61: é | CW61: ê | CX61: ê | CY61: ê | CZ61: ê | DA61: ê | DB61: é | DC61: ê | DD61: ê | DE61: ê | DF61: é | DG61: ó | DH61: ê | DI61: ê | DJ61: ê | DK61: ê | DL61: ê | DM61: ê | DN61: é | DO61: ê | DP61: ê | DQ61: ê | DR61: ê | DS61: ê | DT61: ê | DU61: ê | DV61: ê | DW61: ê | DX61: é | DY61: ê | DZ61: é | EA61: ê | EB61: ê | EC61: é | ED61: ê | EE61: ê | EF61: ê | EG61: ê | EH61: ê | EI61: é | EJ61: é | EK61: ê | EL61: ê | EM61: ê | EN61: ê | EO61: ê | EP61: é | EQ61: é | ER61: é | ES61: ê | ET61: ê | EU61: é | EV61: ê | EW61: ê | EX61: ó | EY61: é | EZ61: ê | FA61: ó | FB61: ê | FC61: ê | FD61: ê | FE61: ê | FF61: ê | FG61: ê | FH61: ê | FI61: ê | FJ61: ê | FK61: ê
B62: AdoptionFinance_12 | C62: 62 | E62: Change | F62: -175 | G62: -445 | H62: -60 | I62: -250 | J62: 40 | K62: -275 | L62: -20 | M62: -200 | N62: 70 | O62: -220 | P62: 5 | Q62: -240 | R62: -125 | S62: -790 | T62: -145 | U62: -75 | V62: -600 | W62: -75 | X62: -180 | Y62: 10 | Z62: -125 | AA62: -1810 | AB62: -160 | AC62: 155 | AD62: -110 | AE62: - | AF62: 145 | AG62: -25 | AH62: -130 | AI62: -35 | AJ62: 100 | AK62: -100 | AL62: -200 | AM62: -120 | AN62: -150 | AO62: -115 | AP62: -190 | AQ62: -70 | AR62: -20 | AS62: -70 | AT62: -105 | AU62: -85 | AV62: 50 | AW62: -90 | AX62: -190 | AY62: -385 | AZ62: -150 | BA62: -360 | BB62: 365 | BC62: -140 | BD62: -155 | BE62: -260 | BF62: -70 | BG62: -105 | BH62: -130 | BI62: -160 | BJ62: 370 | BK62: -105 | BL62: -265 | BM62: - | BN62: -820 | BO62: - | BP62: -175 | BQ62: -240 | BR62: -210 | BS62: -345 | BT62: -70 | BU62: -430 | BV62: -215 | BW62: 60 | BX62: 15 | BY62: -320 | BZ62: 5 | CA62: -175 | CB62: -120 | CC62: -25 | CD62: 20 | CE62: -65 | CF62: -170 | CG62: 390 | CH62: -135 | CI62: -170 | CJ62: -2365 | CK62: -325 | CL62: -50 | CM62: -500 | CN62: -40 | CO62: -255 | CP62: -185 | CQ62: -85 | CR62: -115 | CS62: -100 | CT62: -170 | CU62: -110 | CV62: 165 | CW62: -70 | CX62: -120 | CY62: -30 | CZ62: -115 | DA62: -20 | DB62: 235 | DC62: -155 | DD62: -300 | DE62: -10 | DF62: 85 | DG62: - | DH62: -55 | DI62: -185 | DJ62: -360 | DK62: -205 | DL62: -110 | DM62: -875 | DN62: 265 | DO62: -180 | DP62: -245 | DQ62: -85 | DR62: -60 | DS62: -15 | DT62: -220 | DU62: -50 | DV62: -70 | DW62: -285 | DX62: 30 | DY62: -160 | DZ62: 150 | EA62: -45 | EB62: -15 | EC62: 305 | ED62: -300 | EE62: -270 | EF62: -100 | EG62: -1205 | EH62: -110 | EI62: 335 | EJ62: 470 | EK62: -155 | EL62: -90 | EM62: -20 | EN62: -40 | EO62: -175 | EP62: 10 | EQ62: 35 | ER62: 115 | ES62: -520 | ET62: -240 | EU62: 140 | EV62: -305 | EW62: -225 | EX62: - | EY62: 25 | EZ62: -165 | FA62: 0 | FB62: -120 | FC62: -55 | FD62: -115 | FE62: -105 | FF62: -135 | FG62: -65 | FH62: -120 | FI62: -275 | FJ62: -115 | FK62: -90
B63: AdoptionFinance_13 | C63: 63 | E63: Rank | F63: - | G63: - | H63: - | I63: - | J63: - | K63: - | L63: - | M63: - | N63: - | O63: - | P63: - | Q63: - | R63: - | S63: - | T63: - | U63: - | V63: - | W63: - | X63: - | Y63: - | Z63: - | AA63: - | AB63: - | AC63: - | AD63: - | AE63: - | AF63: - | AG63: - | AH63: - | AI63: - | AJ63: - | AK63: - | AL63: - | AM63: - | AN63: - | AO63: - | AP63: - | AQ63: - | AR63: - | AS63: - | AT63: - | AU63: - | AV63: - | AW63: - | AX63: - | AY63: - | AZ63: - | BA63: - | BB63: - | BC63: - | BD63: - | BE63: - | BF63: - | BG63: - | BH63: - | BI63: - | BJ63: - | BK63: - | BL63: - | BM63: - | BN63: - | BO63: - | BP63: - | BQ63: - | BR63: - | BS63: - | BT63: - | BU63: - | BV63: - | BW63: - | BX63: - | BY63: - | BZ63: - | CA63: - | CB63: - | CC63: - | CD63: - | CE63: - | CF63: - | CG63: - | CH63: - | CI63: - | CJ63: - | CK63: - | CL63: - | CM63: - | CN63: - | CO63: - | CP63: - | CQ63: - | CR63: - | CS63: - | CT63: - | CU63: - | CV63: - | CW63: - | CX63: - | CY63: - | CZ63: - | DA63: - | DB63: - | DC63: - | DD63: - | DE63: - | DF63: - | DG63: - | DH63: - | DI63: - | DJ63: - | DK63: - | DL63: - | DM63: - | DN63: - | DO63: - | DP63: - | DQ63: - | DR63: - | DS63: - | DT63: - | DU63: - | DV63: - | DW63: - | DX63: - | DY63: - | DZ63: - | EA63: - | EB63: - | EC63: - | ED63: - | EE63: - | EF63: - | EG63: - | EH63: - | EI63: - | EJ63: - | EK63: - | EL63: - | EM63: - | EN63: - | EO63: - | EP63: - | EQ63: - | ER63: - | ES63: - | ET63: - | EU63: - | EV63: - | EW63: - | EX63: - | EY63: - | EZ63: - | FA63: - | FB63: - | FC63: - | FD63: - | FE63: - | FF63: - | FG63: - | FH63: - | FI63: - | FJ63: - | FK63: -
B64: AdoptionFinance_14 | C64: 64 | F64: - | G64: - | H64: - | I64: - | J64: - | K64: - | L64: - | M64: - | N64: - | O64: - | P64: - | Q64: - | R64: - | S64: - | T64: - | U64: - | V64: - | W64: - | X64: - | Y64: - | Z64: - | AA64: - | AB64: - | AC64: - | AD64: - | AE64: - | AF64: - | AG64: - | AH64: - | AI64: - | AJ64: - | AK64: - | AL64: - | AM64: - | AN64: - | AO64: - | AP64: - | AQ64: - | AR64: - | AS64: - | AT64: - | AU64: - | AV64: - | AW64: - | AX64: - | AY64: - | AZ64: - | BA64: - | BB64: - | BC64: - | BD64: - | BE64: - | BF64: - | BG64: - | BH64: - | BI64: - | BJ64: - | BK64: - | BL64: - | BM64: - | BN64: - | BO64: - | BP64: - | BQ64: - | BR64: - | BS64: - | BT64: - | BU64: - | BV64: - | BW64: - | BX64: - | BY64: - | BZ64: - | CA64: - | CB64: - | CC64: - | CD64: - | CE64: - | CF64: - | CG64: - | CH64: - | CI64: - | CJ64: - | CK64: - | CL64: - | CM64: - | CN64: - | CO64: - | CP64: - | CQ64: - | CR64: - | CS64: - | CT64: - | CU64: - | CV64: - | CW64: - | CX64: - | CY64: - | CZ64: - | DA64: - | DB64: - | DC64: - | DD64: - | DE64: - | DF64: - | DG64: - | DH64: - | DI64: - | DJ64: - | DK64: - | DL64: - | DM64: - | DN64: - | DO64: - | DP64: - | DQ64: - | DR64: - | DS64: - | DT64: - | DU64: - | DV64: - | DW64: - | DX64: - | DY64: - | DZ64: - | EA64: - | EB64: - | EC64: - | ED64: - | EE64: - | EF64: - | EG64: - | EH64: - | EI64: - | EJ64: - | EK64: - | EL64: - | EM64: - | EN64: - | EO64: - | EP64: - | EQ64: - | ER64: - | ES64: - | ET64: - | EU64: - | EV64: - | EW64: - | EX64: - | EY64: - | EZ64: - | FA64: - | FB64: - | FC64: - | FD64: - | FE64: - | FF64: - | FG64: - | FH64: - | FI64: - | FJ64: - | FK64: -
B65: AdoptionFinance_15 | C65: 65 | E65: Deviation National | F65: - | G65: - | H65: - | I65: - | J65: - | K65: - | L65: - | M65: - | N65: - | O65: - | P65: - | Q65: - | R65: - | S65: - | T65: - | U65: - | V65: - | W65: - | X65: - | Y65: - | Z65: - | AA65: - | AB65: - | AC65: - | AD65: - | AE65: - | AF65: - | AG65: - | AH65: - | AI65: - | AJ65: - | AK65: - | AL65: - | AM65: - | AN65: - | AO65: - | AP65: - | AQ65: - | AR65: - | AS65: - | AT65: - | AU65: - | AV65: - | AW65: - | AX65: - | AY65: - | AZ65: - | BA65: - | BB65: - | BC65: - | BD65: - | BE65: - | BF65: - | BG65: - | BH65: - | BI65: - | BJ65: - | BK65: - | BL65: - | BM65: - | BN65: - | BO65: - | BP65: - | BQ65: - | BR65: - | BS65: - | BT65: - | BU65: - | BV65: - | BW65: - | BX65: - | BY65: - | BZ65: - | CA65: - | CB65: - | CC65: - | CD65: - | CE65: - | CF65: - | CG65: - | CH65: - | CI65: - | CJ65: - | CK65: - | CL65: - | CM65: - | CN65: - | CO65: - | CP65: - | CQ65: - | CR65: - | CS65: - | CT65: - | CU65: - | CV65: - | CW65: - | CX65: - | CY65: - | CZ65: - | DA65: - | DB65: - | DC65: - | DD65: - | DE65: - | DF65: - | DG65: - | DH65: - | DI65: - | DJ65: - | DK65: - | DL65: - | DM65: - | DN65: - | DO65: - | DP65: - | DQ65: - | DR65: - | DS65: - | DT65: - | DU65: - | DV65: - | DW65: - | DX65: - | DY65: - | DZ65: - | EA65: - | EB65: - | EC65: - | ED65: - | EE65: - | EF65: - | EG65: - | EH65: - | EI65: - | EJ65: - | EK65: - | EL65: - | EM65: - | EN65: - | EO65: - | EP65: - | EQ65: - | ER65: - | ES65: - | ET65: - | EU65: - | EV65: - | EW65: - | EX65: - | EY65: - | EZ65: - | FA65: - | FB65: - | FC65: - | FD65: - | FE65: - | FF65: - | FG65: - | FH65: - | FI65: - | FJ65: - | FK65: -
B66: AdoptionFinance_16 | C66: 66 | E66: Quartile | F66: - | G66: - | H66: - | I66: - | J66: - | K66: - | L66: - | M66: - | N66: - | O66: - | P66: - | Q66: - | R66: - | S66: - | T66: - | U66: - | V66: - | W66: - | X66: - | Y66: - | Z66: - | AA66: - | AB66: - | AC66: - | AD66: - | AE66: - | AF66: - | AG66: - | AH66: - | AI66: - | AJ66: - | AK66: - | AL66: - | AM66: - | AN66: - | AO66: - | AP66: - | AQ66: - | AR66: - | AS66: - | AT66: - | AU66: - | AV66: - | AW66: - | AX66: - | AY66: - | AZ66: - | BA66: - | BB66: - | BC66: - | BD66: - | BE66: - | BF66: - | BG66: - | BH66: - | BI66: - | BJ66: - | BK66: - | BL66: - | BM66: - | BN66: - | BO66: - | BP66: - | BQ66: - | BR66: - | BS66: - | BT66: - | BU66: - | BV66: - | BW66: - | BX66: - | BY66: - | BZ66: - | CA66: - | CB66: - | CC66: - | CD66: - | CE66: - | CF66: - | CG66: - | CH66: - | CI66: - | CJ66: - | CK66: - | CL66: - | CM66: - | CN66: - | CO66: - | CP66: - | CQ66: - | CR66: - | CS66: - | CT66: - | CU66: - | CV66: - | CW66: - | CX66: - | CY66: - | CZ66: - | DA66: - | DB66: - | DC66: - | DD66: - | DE66: - | DF66: - | DG66: - | DH66: - | DI66: - | DJ66: - | DK66: - | DL66: - | DM66: - | DN66: - | DO66: - | DP66: - | DQ66: - | DR66: - | DS66: - | DT66: - | DU66: - | DV66: - | DW66: - | DX66: - | DY66: - | DZ66: - | EA66: - | EB66: - | EC66: - | ED66: - | EE66: - | EF66: - | EG66: - | EH66: - | EI66: - | EJ66: - | EK66: - | EL66: - | EM66: - | EN66: - | EO66: - | EP66: - | EQ66: - | ER66: - | ES66: - | ET66: - | EU66: - | EV66: - | EW66: - | EX66: - | EY66: - | EZ66: - | FA66: - | FB66: - | FC66: - | FD66: - | FE66: - | FF66: - | FG66: - | FH66: - | FI66: - | FJ66: - | FK66: -
B67: RescareFinance_1 | C67: 67 | D67: Residential Care Finance | E67: - | F67: - | G67: - | H67: - | I67: - | J67: - | K67: - | L67: - | M67: - | N67: - | O67: - | P67: - | Q67: - | R67: - | S67: - | T67: - | U67: - | V67: - | W67: - | X67: - | Y67: - | Z67: - | AA67: - | AB67: - | AC67: - | AD67: - | AE67: - | AF67: - | AG67: - | AH67: - | AI67: - | AJ67: - | AK67: - | AL67: - | AM67: - | AN67: - | AO67: - | AP67: - | AQ67: - | AR67: - | AS67: - | AT67: - | AU67: - | AV67: - | AW67: - | AX67: - | AY67: - | AZ67: - | BA67: - | BB67: - | BC67: - | BD67: - | BE67: - | BF67: - | BG67: - | BH67: - | BI67: - | BJ67: - | BK67: - | BL67: - | BM67: - | BN67: - | BO67: - | BP67: - | BQ67: - | BR67: - | BS67: - | BT67: - | BU67: - | BV67: - | BW67: - | BX67: - | BY67: - | BZ67: - | CA67: - | CB67: - | CC67: - | CD67: - | CE67: - | CF67: - | CG67: - | CH67: - | CI67: - | CJ67: - | CK67: - | CL67: - | CM67: - | CN67: - | CO67: - | CP67: - | CQ67: - | CR67: - | CS67: - | CT67: - | CU67: - | CV67: - | CW67: - | CX67: - | CY67: - | CZ67: - | DA67: - | DB67: - | DC67: - | DD67: - | DE67: - | DF67: - | DG67: - | DH67: - | DI67: - | DJ67: - | DK67: - | DL67: - | DM67: - | DN67: - | DO67: - | DP67: - | DQ67: - | DR67: - | DS67: - | DT67: - | DU67: - | DV67: - | DW67: - | DX67: - | DY67: - | DZ67: - | EA67: - | EB67: - | EC67: - | ED67: - | EE67: - | EF67: - | EG67: - | EH67: - | EI67: - | EJ67: - | EK67: - | EL67: - | EM67: - | EN67: - | EO67: - | EP67: - | EQ67: - | ER67: - | ES67: - | ET67: - | EU67: - | EV67: - | EW67: - | EX67: - | EY67: - | EZ67: - | FA67: - | FB67: - | FC67: - | FD67: - | FE67: - | FF67: - | FG67: - | FH67: - | FI67: - | FJ67: - | FK67: -
B68: RescareFinance_2 | C68: 68 | E68: - | F68: - | G68: - | H68: - | I68: - | J68: - | K68: - | L68: - | M68: - | N68: - | O68: - | P68: - | Q68: - | R68: - | S68: - | T68: - | U68: - | V68: - | W68: - | X68: - | Y68: - | Z68: - | AA68: - | AB68: - | AC68: - | AD68: - | AE68: - | AF68: - | AG68: - | AH68: - | AI68: - | AJ68: - | AK68: - | AL68: - | AM68: - | AN68: - | AO68: - | AP68: - | AQ68: - | AR68: - | AS68: - | AT68: - | AU68: - | AV68: - | AW68: - | AX68: - | AY68: - | AZ68: - | BA68: - | BB68: - | BC68: - | BD68: - | BE68: - | BF68: - | BG68: - | BH68: - | BI68: - | BJ68: - | BK68: - | BL68: - | BM68: - | BN68: - | BO68: - | BP68: - | BQ68: - | BR68: - | BS68: - | BT68: - | BU68: - | BV68: - | BW68: - | BX68: - | BY68: - | BZ68: - | CA68: - | CB68: - | CC68: - | CD68: - | CE68: - | CF68: - | CG68: - | CH68: - | CI68: - | CJ68: - | CK68: - | CL68: - | CM68: - | CN68: - | CO68: - | CP68: - | CQ68: - | CR68: - | CS68: - | CT68: - | CU68: - | CV68: - | CW68: - | CX68: - | CY68: - | CZ68: - | DA68: - | DB68: - | DC68: - | DD68: - | DE68: - | DF68: - | DG68: - | DH68: - | DI68: - | DJ68: - | DK68: - | DL68: - | DM68: - | DN68: - | DO68: - | DP68: - | DQ68: - | DR68: - | DS68: - | DT68: - | DU68: - | DV68: - | DW68: - | DX68: - | DY68: - | DZ68: - | EA68: - | EB68: - | EC68: - | ED68: - | EE68: - | EF68: - | EG68: - | EH68: - | EI68: - | EJ68: - | EK68: - | EL68: - | EM68: - | EN68: - | EO68: - | EP68: - | EQ68: - | ER68: - | ES68: - | ET68: - | EU68: - | EV68: - | EW68: - | EX68: - | EY68: - | EZ68: - | FA68: - | FB68: - | FC68: - | FD68: - | FE68: - | FF68: - | FG68: - | FH68: - | FI68: - | FJ68: - | FK68: -
B69: RescareFinance_3 | C69: 69 | E69: - | F69: - | G69: - | H69: - | I69: - | J69: - | K69: - | L69: - | M69: - | N69: - | O69: - | P69: - | Q69: - | R69: - | S69: - | T69: - | U69: - | V69: - | W69: - | X69: - | Y69: - | Z69: - | AA69: - | AB69: - | AC69: - | AD69: - | AE69: - | AF69: - | AG69: - | AH69: - | AI69: - | AJ69: - | AK69: - | AL69: - | AM69: - | AN69: - | AO69: - | AP69: - | AQ69: - | AR69: - | AS69: - | AT69: - | AU69: - | AV69: - | AW69: - | AX69: - | AY69: - | AZ69: - | BA69: - | BB69: - | BC69: - | BD69: - | BE69: - | BF69: - | BG69: - | BH69: - | BI69: - | BJ69: - | BK69: - | BL69: - | BM69: - | BN69: - | BO69: - | BP69: - | BQ69: - | BR69: - | BS69: - | BT69: - | BU69: - | BV69: - | BW69: - | BX69: - | BY69: - | BZ69: - | CA69: - | CB69: - | CC69: - | CD69: - | CE69: - | CF69: - | CG69: - | CH69: - | CI69: - | CJ69: - | CK69: - | CL69: - | CM69: - | CN69: - | CO69: - | CP69: - | CQ69: - | CR69: - | CS69: - | CT69: - | CU69: - | CV69: - | CW69: - | CX69: - | CY69: - | CZ69: - | DA69: - | DB69: - | DC69: - | DD69: - | DE69: - | DF69: - | DG69: - | DH69: - | DI69: - | DJ69: - | DK69: - | DL69: - | DM69: - | DN69: - | DO69: - | DP69: - | DQ69: - | DR69: - | DS69: - | DT69: - | DU69: - | DV69: - | DW69: - | DX69: - | DY69: - | DZ69: - | EA69: - | EB69: - | EC69: - | ED69: - | EE69: - | EF69: - | EG69: - | EH69: - | EI69: - | EJ69: - | EK69: - | EL69: - | EM69: - | EN69: - | EO69: - | EP69: - | EQ69: - | ER69: - | ES69: - | ET69: - | EU69: - | EV69: - | EW69: - | EX69: - | EY69: - | EZ69: - | FA69: - | FB69: - | FC69: - | FD69: - | FE69: - | FF69: - | FG69: - | FH69: - | FI69: - | FJ69: - | FK69: -
B70: RescareFinance_4 | C70: 70 | E70: - | F70: - | G70: - | H70: - | I70: - | J70: - | K70: - | L70: - | M70: - | N70: - | O70: - | P70: - | Q70: - | R70: - | S70: - | T70: - | U70: - | V70: - | W70: - | X70: - | Y70: - | Z70: - | AA70: - | AB70: - | AC70: - | AD70: - | AE70: - | AF70: - | AG70: - | AH70: - | AI70: - | AJ70: - | AK70: - | AL70: - | AM70: - | AN70: - | AO70: - | AP70: - | AQ70: - | AR70: - | AS70: - | AT70: - | AU70: - | AV70: - | AW70: - | AX70: - | AY70: - | AZ70: - | BA70: - | BB70: - | BC70: - | BD70: - | BE70: - | BF70: - | BG70: - | BH70: - | BI70: - | BJ70: - | BK70: - | BL70: - | BM70: - | BN70: - | BO70: - | BP70: - | BQ70: - | BR70: - | BS70: - | BT70: - | BU70: - | BV70: - | BW70: - | BX70: - | BY70: - | BZ70: - | CA70: - | CB70: - | CC70: - | CD70: - | CE70: - | CF70: - | CG70: - | CH70: - | CI70: - | CJ70: - | CK70: - | CL70: - | CM70: - | CN70: - | CO70: - | CP70: - | CQ70: - | CR70: - | CS70: - | CT70: - | CU70: - | CV70: - | CW70: - | CX70: - | CY70: - | CZ70: - | DA70: - | DB70: - | DC70: - | DD70: - | DE70: - | DF70: - | DG70: - | DH70: - | DI70: - | DJ70: - | DK70: - | DL70: - | DM70: - | DN70: - | DO70: - | DP70: - | DQ70: - | DR70: - | DS70: - | DT70: - | DU70: - | DV70: - | DW70: - | DX70: - | DY70: - | DZ70: - | EA70: - | EB70: - | EC70: - | ED70: - | EE70: - | EF70: - | EG70: - | EH70: - | EI70: - | EJ70: - | EK70: - | EL70: - | EM70: - | EN70: - | EO70: - | EP70: - | EQ70: - | ER70: - | ES70: - | ET70: - | EU70: - | EV70: - | EW70: - | EX70: - | EY70: - | EZ70: - | FA70: - | FB70: - | FC70: - | FD70: - | FE70: - | FF70: - | FG70: - | FH70: - | FI70: - | FJ70: - | FK70: -
B71: RescareFinance_5 | C71: 71 | E71: - | F71: - | G71: - | H71: - | I71: - | J71: - | K71: - | L71: - | M71: - | N71: - | O71: - | P71: - | Q71: - | R71: - | S71: - | T71: - | U71: - | V71: - | W71: - | X71: - | Y71: - | Z71: - | AA71: - | AB71: - | AC71: - | AD71: - | AE71: - | AF71: - | AG71: - | AH71: - | AI71: - | AJ71: - | AK71: - | AL71: - | AM71: - | AN71: - | AO71: - | AP71: - | AQ71: - | AR71: - | AS71: - | AT71: - | AU71: - | AV71: - | AW71: - | AX71: - | AY71: - | AZ71: - | BA71: - | BB71: - | BC71: - | BD71: - | BE71: - | BF71: - | BG71: - | BH71: - | BI71: - | BJ71: - | BK71: - | BL71: - | BM71: - | BN71: - | BO71: - | BP71: - | BQ71: - | BR71: - | BS71: - | BT71: - | BU71: - | BV71: - | BW71: - | BX71: - | BY71: - | BZ71: - | CA71: - | CB71: - | CC71: - | CD71: - | CE71: - | CF71: - | CG71: - | CH71: - | CI71: - | CJ71: - | CK71: - | CL71: - | CM71: - | CN71: - | CO71: - | CP71: - | CQ71: - | CR71: - | CS71: - | CT71: - | CU71: - | CV71: - | CW71: - | CX71: - | CY71: - | CZ71: - | DA71: - | DB71: - | DC71: - | DD71: - | DE71: - | DF71: - | DG71: - | DH71: - | DI71: - | DJ71: - | DK71: - | DL71: - | DM71: - | DN71: - | DO71: - | DP71: - | DQ71: - | DR71: - | DS71: - | DT71: - | DU71: - | DV71: - | DW71: - | DX71: - | DY71: - | DZ71: - | EA71: - | EB71: - | EC71: - | ED71: - | EE71: - | EF71: - | EG71: - | EH71: - | EI71: - | EJ71: - | EK71: - | EL71: - | EM71: - | EN71: - | EO71: - | EP71: - | EQ71: - | ER71: - | ES71: - | ET71: - | EU71: - | EV71: - | EW71: - | EX71: - | EY71: - | EZ71: - | FA71: - | FB71: - | FC71: - | FD71: - | FE71: - | FF71: - | FG71: - | FH71: - | FI71: - | FJ71: - | FK71: -
B72: RescareFinance_6 | C72: 72 | E72: 2011-12 (OT) | F72: 1560 | G72: 2675 | H72: 3010 | I72: 9270 | J72: 3310 | K72: - | L72: 2820 | M72: 1625 | N72: 2195 | O72: 2870 | P72: 2810 | Q72: 2440 | R72: 2145 | S72: 2665 | T72: 3330 | U72: 3080 | V72: 2380 | W72: 1835 | X72: 5075 | Y72: 2330 | Z72: 2860 | AA72: 1620 | AB72: 1185 | AC72: 4445 | AD72: 2365 | AE72: - | AF72: 1970 | AG72: 2495 | AH72: 1910 | AI72: 2955 | AJ72: 1885 | AK72: 1815 | AL72: 2775 | AM72: 4350 | AN72: 2330 | AO72: 3015 | AP72: 3125 | AQ72: 2875 | AR72: 3550 | AS72: 5055 | AT72: 3345 | AU72: 2300 | AV72: 2935 | AW72: 2695 | AX72: 2230 | AY72: 3470 | AZ72: 2645 | BA72: 805 | BB72: 2830 | BC72: 3355 | BD72: 7225 | BE72: 3695 | BF72: 2330 | BG72: 2390 | BH72: 2850 | BI72: 3560 | BJ72: 2555 | BK72: 1950 | BL72: 2955 | BM72: - | BN72: 5065 | BO72: 1440 | BP72: 4285 | BQ72: 3640 | BR72: 1580 | BS72: 2885 | BT72: 4005 | BU72: 3470 | BV72: 2005 | BW72: 3025 | BX72: 3575 | BY72: 2360 | BZ72: 3905 | CA72: 2455 | CB72: 3230 | CC72: 2390 | CD72: 2535 | CE72: 2730 | CF72: 1820 | CG72: 2950 | CH72: 2505 | CI72: 3330 | CJ72: 3465 | CK72: 3380 | CL72: 4540 | CM72: 2680 | CN72: 4015 | CO72: 2385 | CP72: 2590 | CQ72: 2765 | CR72: 2700 | CS72: 2700 | CT72: 3910 | CU72: 3245 | CV72: 2790 | CW72: 3665 | CX72: 3700 | CY72: 2870 | CZ72: 2225 | DA72: 2805 | DB72: 1610 | DC72: 2615 | DD72: 3030 | DE72: 3030 | DF72: 2410 | DG72: 3100 | DH72: 2770 | DI72: 2675 | DJ72: 2615 | DK72: 2895 | DL72: 2855 | DM72: 1925 | DN72: 2510 | DO72: 2330 | DP72: 2835 | DQ72: 3050 | DR72: 4855 | DS72: 2165 | DT72: 1865 | DU72: 2155 | DV72: 3155 | DW72: 2720 | DX72: 2640 | DY72: 4455 | DZ72: 3550 | EA72: 2220 | EB72: 2705 | EC72: 2420 | ED72: 3400 | EE72: 2285 | EF72: 3785 | EG72: 2845 | EH72: 3395 | EI72: 2665 | EJ72: 2425 | EK72: 2335 | EL72: 2890 | EM72: 2485 | EN72: 2175 | EO72: 3520 | EP72: 2660 | EQ72: 3870 | ER72: 3080 | ES72: 1185 | ET72: 2655 | EU72: 5720 | EV72: 2470 | EW72: 2910 | EX72: 2115 | EY72: 3210 | EZ72: 2595 | FA72: 500 | FB72: 3015 | FC72: 2730 | FD72: 2700 | FE72: 2780 | FF72: 2870 | FG72: 2965 | FH72: 3110 | FI72: - | FJ72: 3000 | FK72: 3320
B73: RescareFinance_7 | C73: 73 | E73: 2012-13 (OT) | F73: 2015 | G73: 2785 | H73: 3220 | I73: 4695 | J73: 2515 | K73: 1575 | L73: 2875 | M73: 1590 | N73: 2360 | O73: 2600 | P73: 2875 | Q73: 2835 | R73: 2290 | S73: 3605 | T73: 3230 | U73: 3040 | V73: 1950 | W73: 1785 | X73: 4305 | Y73: 2255 | Z73: 2985 | AA73: 1475 | AB73: 965 | AC73: 4310 | AD73: 2730 | AE73: - | AF73: 2375 | AG73: 2710 | AH73: 2040 | AI73: 2980 | AJ73: 2005 | AK73: 3035 | AL73: 3060 | AM73: 3575 | AN73: 1980 | AO73: 3220 | AP73: 3155 | AQ73: 2835 | AR73: 2970 | AS73: 4405 | AT73: 3200 | AU73: 2095 | AV73: 2305 | AW73: 2735 | AX73: 2170 | AY73: 3615 | AZ73: 2650 | BA73: 1570 | BB73: 3625 | BC73: 3610 | BD73: 3835 | BE73: 3720 | BF73: 2560 | BG73: 2455 | BH73: 1325 | BI73: 3355 | BJ73: 2270 | BK73: 1925 | BL73: 3440 | BM73: - | BN73: 4525 | BO73: 2145 | BP73: 4050 | BQ73: 3120 | BR73: 2930 | BS73: 2645 | BT73: 3230 | BU73: 5120 | BV73: 2235 | BW73: 3300 | BX73: 3155 | BY73: 1865 | BZ73: 2965 | CA73: 2715 | CB73: 2590 | CC73: 3025 | CD73: 2510 | CE73: - | CF73: 2445 | CG73: 2835 | CH73: 2475 | CI73: 3380 | CJ73: 3580 | CK73: 3100 | CL73: 3805 | CM73: 2285 | CN73: 2660 | CO73: 2130 | CP73: 2170 | CQ73: 2600 | CR73: 2710 | CS73: 2940 | CT73: 3180 | CU73: 2500 | CV73: 3010 | CW73: 5090 | CX73: 2800 | CY73: 3200 | CZ73: 2475 | DA73: 2995 | DB73: 1080 | DC73: 2510 | DD73: 2535 | DE73: 2790 | DF73: 2615 | DG73: 4090 | DH73: 2725 | DI73: 3070 | DJ73: 2555 | DK73: 3780 | DL73: 2620 | DM73: 2630 | DN73: 2165 | DO73: 2435 | DP73: 2120 | DQ73: 2745 | DR73: 3935 | DS73: 2640 | DT73: 4085 | DU73: 2195 | DV73: 3235 | DW73: 3055 | DX73: 2865 | DY73: 4640 | DZ73: 2145 | EA73: 2150 | EB73: 2505 | EC73: 2405 | ED73: 3335 | EE73: 2535 | EF73: 3455 | EG73: 2375 | EH73: 2235 | EI73: 2550 | EJ73: 2650 | EK73: 2465 | EL73: 3040 | EM73: 2425 | EN73: 1940 | EO73: 3285 | EP73: 2965 | EQ73: 3155 | ER73: 3150 | ES73: 1670 | ET73: 2840 | EU73: 4205 | EV73: 2975 | EW73: 2555 | EX73: 3365 | EY73: 2685 | EZ73: 2670 | FA73: 1085 | FB73: 2840 | FC73: 2695 | FD73: 2685 | FE73: 2805 | FF73: 2865 | FG73: 2985 | FH73: 2795 | FI73: 2810 | FJ73: 2975 | FK73: 2990
B74: RescareFinance_8 | C74: 74 | E74: 2013-14 (OT) | F74: 2220 | G74: 3045 | H74: 3375 | I74: 2355 | J74: 2910 | K74: 2295 | L74: 2675 | M74: 1185 | N74: 2240 | O74: 2865 | P74: 3015 | Q74: 2900 | R74: 2310 | S74: 2680 | T74: 2850 | U74: 3100 | V74: 1945 | W74: 2030 | X74: 3955 | Y74: 2750 | Z74: 3415 | AA74: 4230 | AB74: 3385 | AC74: 3325 | AD74: 2510 | AE74: - | AF74: 2895 | AG74: 2785 | AH74: 1420 | AI74: 2960 | AJ74: 2690 | AK74: 2640 | AL74: 3300 | AM74: 3720 | AN74: 1725 | AO74: 3675 | AP74: 3120 | AQ74: 3045 | AR74: 2845 | AS74: 5320 | AT74: 3020 | AU74: 2340 | AV74: 1940 | AW74: 2780 | AX74: 3180 | AY74: 3345 | AZ74: 3195 | BA74: 3520 | BB74: 3330 | BC74: 3670 | BD74: 3635 | BE74: 3195 | BF74: 2505 | BG74: 2255 | BH74: 2820 | BI74: 3070 | BJ74: 2475 | BK74: 1880 | BL74: 3310 | BM74: - | BN74: 3665 | BO74: 2185 | BP74: 3455 | BQ74: 3925 | BR74: 3265 | BS74: 3045 | BT74: 3195 | BU74: 5070 | BV74: 2575 | BW74: 2950 | BX74: 2970 | BY74: 2935 | BZ74: 2540 | CA74: 3360 | CB74: 2610 | CC74: 2630 | CD74: 2465 | CE74: 2665 | CF74: 2140 | CG74: 2965 | CH74: 2505 | CI74: 3020 | CJ74: 4780 | CK74: 3060 | CL74: 3560 | CM74: 2295 | CN74: 2690 | CO74: 2790 | CP74: 2530 | CQ74: 2490 | CR74: 2240 | CS74: 3425 | CT74: 4000 | CU74: 2580 | CV74: 1920 | CW74: 4760 | CX74: 3245 | CY74: 3770 | CZ74: 2850 | DA74: 2350 | DB74: 1660 | DC74: 2790 | DD74: 2825 | DE74: 2835 | DF74: 3040 | DG74: 2160 | DH74: 3200 | DI74: 3270 | DJ74: 2830 | DK74: 3590 | DL74: 2365 | DM74: 2550 | DN74: 3325 | DO74: 2470 | DP74: 2635 | DQ74: 3025 | DR74: 1685 | DS74: 5490 | DT74: 3500 | DU74: 2670 | DV74: 3360 | DW74: 2490 | DX74: 2875 | DY74: 2790 | DZ74: 2250 | EA74: 2130 | EB74: 2470 | EC74: 2895 | ED74: 3415 | EE74: 2425 | EF74: 2820 | EG74: 2440 | EH74: 3055 | EI74: 2460 | EJ74: 2450 | EK74: 2645 | EL74: 2925 | EM74: 2825 | EN74: 2215 | EO74: 4100 | EP74: 2295 | EQ74: 3000 | ER74: 2830 | ES74: 1085 | ET74: 2840 | EU74: 3605 | EV74: 2665 | EW74: 2750 | EX74: 3245 | EY74: 3545 | EZ74: 4040 | FA74: 930 | FB74: 2910 | FC74: 2765 | FD74: 2745 | FE74: 2900 | FF74: 3160 | FG74: 3000 | FH74: 2920 | FI74: 2910 | FJ74: 2795 | FK74: 3180
B75: RescareFinance_9 | C75: 75 | E75: 2014-15 (S251) | F75: 2445 | G75: 2370 | H75: 2845 | I75: 4935 | J75: 2945 | K75: 1440 | L75: 2860 | M75: 1525 | N75: 1900 | O75: 2720 | P75: 2665 | Q75: 2635 | R75: 2175 | S75: 2525 | T75: 2840 | U75: 2965 | V75: 2815 | W75: 1720 | X75: 2950 | Y75: 2260 | Z75: 2960 | AA75: 2135 | AB75: 2835 | AC75: 3550 | AD75: 2390 | AE75: - | AF75: 2700 | AG75: 3390 | AH75: 1485 | AI75: 2570 | AJ75: 2530 | AK75: 3105 | AL75: 2775 | AM75: 2990 | AN75: 1410 | AO75: 3020 | AP75: 3235 | AQ75: 3030 | AR75: 2085 | AS75: 4250 | AT75: 2950 | AU75: 935 | AV75: 2220 | AW75: 2910 | AX75: 2625 | AY75: 1715 | AZ75: 3110 | BA75: 835 | BB75: 2350 | BC75: 3720 | BD75: 835 | BE75: 3495 | BF75: 2990 | BG75: 2055 | BH75: 2500 | BI75: 2940 | BJ75: 1650 | BK75: 1595 | BL75: 2825 | BM75: - | BN75: 4160 | BO75: 2625 | BP75: 2915 | BQ75: 4595 | BR75: 1945 | BS75: 2400 | BT75: 2245 | BU75: 3805 | BV75: 2010 | BW75: 2450 | BX75: 2930 | BY75: 2885 | BZ75: 2800 | CA75: 2495 | CB75: 1745 | CC75: 2185 | CD75: 1315 | CE75: 2475 | CF75: 1825 | CG75: 3095 | CH75: 1795 | CI75: 2630 | CJ75: 485 | CK75: 2910 | CL75: 2455 | CM75: 2065 | CN75: 2245 | CO75: 2020 | CP75: 2430 | CQ75: 2680 | CR75: 1810 | CS75: 3340 | CT75: 3825 | CU75: 2455 | CV75: 1870 | CW75: 4365 | CX75: 4495 | CY75: 3415 | CZ75: 1950 | DA75: 2540 | DB75: 1520 | DC75: 2655 | DD75: 2020 | DE75: 2290 | DF75: 2085 | DG75: 1990 | DH75: 2950 | DI75: 3540 | DJ75: 2205 | DK75: 2765 | DL75: 2425 | DM75: 2480 | DN75: 2830 | DO75: 2355 | DP75: 2640 | DQ75: 1335 | DR75: 1790 | DS75: 2715 | DT75: 2780 | DU75: 2345 | DV75: 3040 | DW75: 2025 | DX75: 2815 | DY75: 2400 | DZ75: 2380 | EA75: 1945 | EB75: 3160 | EC75: 1795 | ED75: 2835 | EE75: 1115 | EF75: 2155 | EG75: 2715 | EH75: 2065 | EI75: 1930 | EJ75: 2110 | EK75: 1560 | EL75: 2790 | EM75: 2560 | EN75: 2345 | EO75: 2215 | EP75: 1835 | EQ75: 2385 | ER75: 2735 | ES75: 1135 | ET75: 2290 | EU75: 3880 | EV75: 2710 | EW75: 2200 | EX75: 2485 | EY75: 3675 | EZ75: 2410 | FA75: 505 | FB75: 2545 | FC75: 2495 | FD75: 2105 | FE75: 2435 | FF75: 3055 | FG75: 2880 | FH75: 2770 | FI75: 2140 | FJ75: 2685 | FK75: 2925
B76: RescareFinance_10 | C76: 76 | E76: - | F76: - | G76: - | H76: - | I76: - | J76: - | K76: - | L76: - | M76: - | N76: - | O76: - | P76: - | Q76: - | R76: - | S76: - | T76: - | U76: - | V76: - | W76: - | X76: - | Y76: - | Z76: - | AA76: - | AB76: - | AC76: - | AD76: - | AE76: - | AF76: - | AG76: - | AH76: - | AI76: - | AJ76: - | AK76: - | AL76: - | AM76: - | AN76: - | AO76: - | AP76: - | AQ76: - | AR76: - | AS76: - | AT76: - | AU76: - | AV76: - | AW76: - | AX76: - | AY76: - | AZ76: - | BA76: - | BB76: - | BC76: - | BD76: - | BE76: - | BF76: - | BG76: - | BH76: - | BI76: - | BJ76: - | BK76: - | BL76: - | BM76: - | BN76: - | BO76: - | BP76: - | BQ76: - | BR76: - | BS76: - | BT76: - | BU76: - | BV76: - | BW76: - | BX76: - | BY76: - | BZ76: - | CA76: - | CB76: - | CC76: - | CD76: - | CE76: - | CF76: - | CG76: - | CH76: - | CI76: - | CJ76: - | CK76: - | CL76: - | CM76: - | CN76: - | CO76: - | CP76: - | CQ76: - | CR76: - | CS76: - | CT76: - | CU76: - | CV76: - | CW76: - | CX76: - | CY76: - | CZ76: - | DA76: - | DB76: - | DC76: - | DD76: - | DE76: - | DF76: - | DG76: - | DH76: - | DI76: - | DJ76: - | DK76: - | DL76: - | DM76: - | DN76: - | DO76: - | DP76: - | DQ76: - | DR76: - | DS76: - | DT76: - | DU76: - | DV76: - | DW76: - | DX76: - | DY76: - | DZ76: - | EA76: - | EB76: - | EC76: - | ED76: - | EE76: - | EF76: - | EG76: - | EH76: - | EI76: - | EJ76: - | EK76: - | EL76: - | EM76: - | EN76: - | EO76: - | EP76: - | EQ76: - | ER76: - | ES76: - | ET76: - | EU76: - | EV76: - | EW76: - | EX76: - | EY76: - | EZ76: - | FA76: - | FB76: - | FC76: - | FD76: - | FE76: - | FF76: - | FG76: - | FH76: - | FI76: - | FJ76: - | FK76: - | FL76: -
B77: RescareFinance_11 | C77: 77 | E77: Trend | F77: é | G77: ê | H77: ê | I77: é | J77: é | K77: ê | L77: é | M77: é | N77: ê | O77: ê | P77: ê | Q77: ê | R77: ê | S77: ê | T77: ê | U77: ê | V77: é | W77: ê | X77: ê | Y77: ê | Z77: ê | AA77: ê | AB77: ê | AC77: é | AD77: ê | AE77: ó | AF77: ê | AG77: é | AH77: é | AI77: ê | AJ77: ê | AK77: é | AL77: ê | AM77: ê | AN77: ê | AO77: ê | AP77: é | AQ77: ê | AR77: ê | AS77: ê | AT77: ê | AU77: ê | AV77: é | AW77: é | AX77: ê | AY77: ê | AZ77: ê | BA77: ê | BB77: ê | BC77: é | BD77: ê | BE77: é | BF77: é | BG77: ê | BH77: ê | BI77: ê | BJ77: ê | BK77: ê | BL77: ê | BM77: ó | BN77: é | BO77: é | BP77: ê | BQ77: é | BR77: ê | BS77: ê | BT77: ê | BU77: ê | BV77: ê | BW77: ê | BX77: ê | BY77: ê | BZ77: é | CA77: ê | CB77: ê | CC77: ê | CD77: ê | CE77: ê | CF77: ê | CG77: é | CH77: ê | CI77: ê | CJ77: ê | CK77: ê | CL77: ê | CM77: ê | CN77: ê | CO77: ê | CP77: ê | CQ77: é | CR77: ê | CS77: ê | CT77: ê | CU77: ê | CV77: ê | CW77: ê | CX77: é | CY77: ê | CZ77: ê | DA77: é | DB77: ê | DC77: ê | DD77: ê | DE77: ê | DF77: ê | DG77: ê | DH77: ê | DI77: é | DJ77: ê | DK77: ê | DL77: é | DM77: ê | DN77: ê | DO77: ê | DP77: é | DQ77: ê | DR77: é | DS77: ê | DT77: ê | DU77: ê | DV77: ê | DW77: ê | DX77: ê | DY77: ê | DZ77: é | EA77: ê | EB77: é | EC77: ê | ED77: ê | EE77: ê | EF77: ê | EG77: é | EH77: ê | EI77: ê | EJ77: ê | EK77: ê | EL77: ê | EM77: ê | EN77: é | EO77: ê | EP77: ê | EQ77: ê | ER77: ê | ES77: é | ET77: ê | EU77: é | EV77: é | EW77: ê | EX77: ê | EY77: é | EZ77: ê | FA77: ê | FB77: ê | FC77: ê | FD77: ê | FE77: ê | FF77: ê | FG77: ê | FH77: ê | FI77: ê | FJ77: ê | FK77: ê
B78: RescareFinance_12 | C78: 78 | E78: Change | F78: 225 | G78: -675 | H78: -530 | I78: 2580 | J78: 35 | K78: -855 | L78: 185 | M78: 340 | N78: -340 | O78: -145 | P78: -350 | Q78: -265 | R78: -135 | S78: -155 | T78: -10 | U78: -135 | V78: 870 | W78: -310 | X78: -1005 | Y78: -490 | Z78: -455 | AA78: -2095 | AB78: -550 | AC78: 225 | AD78: -120 | AE78: - | AF78: -195 | AG78: 605 | AH78: 65 | AI78: -390 | AJ78: -160 | AK78: 465 | AL78: -525 | AM78: -730 | AN78: -315 | AO78: -655 | AP78: 115 | AQ78: -15 | AR78: -760 | AS78: -1070 | AT78: -70 | AU78: -1405 | AV78: 280 | AW78: 130 | AX78: -555 | AY78: -1630 | AZ78: -85 | BA78: -2685 | BB78: -980 | BC78: 50 | BD78: -2800 | BE78: 300 | BF78: 485 | BG78: -200 | BH78: -320 | BI78: -130 | BJ78: -825 | BK78: -285 | BL78: -485 | BM78: - | BN78: 495 | BO78: 440 | BP78: -540 | BQ78: 670 | BR78: -1320 | BS78: -645 | BT78: -950 | BU78: -1265 | BV78: -565 | BW78: -500 | BX78: -40 | BY78: -50 | BZ78: 260 | CA78: -865 | CB78: -865 | CC78: -445 | CD78: -1150 | CE78: -190 | CF78: -315 | CG78: 130 | CH78: -710 | CI78: -390 | CJ78: -4295 | CK78: -150 | CL78: -1105 | CM78: -230 | CN78: -445 | CO78: -770 | CP78: -100 | CQ78: 190 | CR78: -430 | CS78: -85 | CT78: -175 | CU78: -125 | CV78: -50 | CW78: -395 | CX78: 1250 | CY78: -355 | CZ78: -900 | DA78: 190 | DB78: -140 | DC78: -135 | DD78: -805 | DE78: -545 | DF78: -955 | DG78: -170 | DH78: -250 | DI78: 270 | DJ78: -625 | DK78: -825 | DL78: 60 | DM78: -70 | DN78: -495 | DO78: -115 | DP78: 5 | DQ78: -1690 | DR78: 105 | DS78: -2775 | DT78: -720 | DU78: -325 | DV78: -320 | DW78: -465 | DX78: -60 | DY78: -390 | DZ78: 130 | EA78: -185 | EB78: 690 | EC78: -1100 | ED78: -580 | EE78: -1310 | EF78: -665 | EG78: 275 | EH78: -990 | EI78: -530 | EJ78: -340 | EK78: -1085 | EL78: -135 | EM78: -265 | EN78: 130 | EO78: -1885 | EP78: -460 | EQ78: -615 | ER78: -95 | ES78: 50 | ET78: -550 | EU78: 275 | EV78: 45 | EW78: -550 | EX78: -760 | EY78: 130 | EZ78: -1630 | FA78: -425 | FB78: -365 | FC78: -270 | FD78: -640 | FE78: -465 | FF78: -105 | FG78: -120 | FH78: -150 | FI78: -770 | FJ78: -110 | FK78: -255
B79: RescareFinance_13 | C79: 79 | E79: Rank | F79: - | G79: - | H79: - | I79: - | J79: - | K79: - | L79: - | M79: - | N79: - | O79: - | P79: - | Q79: - | R79: - | S79: - | T79: - | U79: - | V79: - | W79: - | X79: - | Y79: - | Z79: - | AA79: - | AB79: - | AC79: - | AD79: - | AE79: - | AF79: - | AG79: - | AH79: - | AI79: - | AJ79: - | AK79: - | AL79: - | AM79: - | AN79: - | AO79: - | AP79: - | AQ79: - | AR79: - | AS79: - | AT79: - | AU79: - | AV79: - | AW79: - | AX79: - | AY79: - | AZ79: - | BA79: - | BB79: - | BC79: - | BD79: - | BE79: - | BF79: - | BG79: - | BH79: - | BI79: - | BJ79: - | BK79: - | BL79: - | BM79: - | BN79: - | BO79: - | BP79: - | BQ79: - | BR79: - | BS79: - | BT79: - | BU79: - | BV79: - | BW79: - | BX79: - | BY79: - | BZ79: - | CA79: - | CB79: - | CC79: - | CD79: - | CE79: - | CF79: - | CG79: - | CH79: - | CI79: - | CJ79: - | CK79: - | CL79: - | CM79: - | CN79: - | CO79: - | CP79: - | CQ79: - | CR79: - | CS79: - | CT79: - | CU79: - | CV79: - | CW79: - | CX79: - | CY79: - | CZ79: - | DA79: - | DB79: - | DC79: - | DD79: - | DE79: - | DF79: - | DG79: - | DH79: - | DI79: - | DJ79: - | DK79: - | DL79: - | DM79: - | DN79: - | DO79: - | DP79: - | DQ79: - | DR79: - | DS79: - | DT79: - | DU79: - | DV79: - | DW79: - | DX79: - | DY79: - | DZ79: - | EA79: - | EB79: - | EC79: - | ED79: - | EE79: - | EF79: - | EG79: - | EH79: - | EI79: - | EJ79: - | EK79: - | EL79: - | EM79: - | EN79: - | EO79: - | EP79: - | EQ79: - | ER79: - | ES79: - | ET79: - | EU79: - | EV79: - | EW79: - | EX79: - | EY79: - | EZ79: - | FA79: - | FB79: - | FC79: - | FD79: - | FE79: - | FF79: - | FG79: - | FH79: - | FI79: - | FJ79: - | FK79: -
B80: RescareFinance_14 | C80: 80 | F80: - | G80: - | H80: - | I80: - | J80: - | K80: - | L80: - | M80: - | N80: - | O80: - | P80: - | Q80: - | R80: - | S80: - | T80: - | U80: - | V80: - | W80: - | X80: - | Y80: - | Z80: - | AA80: - | AB80: - | AC80: - | AD80: - | AE80: - | AF80: - | AG80: - | AH80: - | AI80: - | AJ80: - | AK80: - | AL80: - | AM80: - | AN80: - | AO80: - | AP80: - | AQ80: - | AR80: - | AS80: - | AT80: - | AU80: - | AV80: - | AW80: - | AX80: - | AY80: - | AZ80: - | BA80: - | BB80: - | BC80: - | BD80: - | BE80: - | BF80: - | BG80: - | BH80: - | BI80: - | BJ80: - | BK80: - | BL80: - | BM80: - | BN80: - | BO80: - | BP80: - | BQ80: - | BR80: - | BS80: - | BT80: - | BU80: - | BV80: - | BW80: - | BX80: - | BY80: - | BZ80: - | CA80: - | CB80: - | CC80: - | CD80: - | CE80: - | CF80: - | CG80: - | CH80: - | CI80: - | CJ80: - | CK80: - | CL80: - | CM80: - | CN80: - | CO80: - | CP80: - | CQ80: - | CR80: - | CS80: - | CT80: - | CU80: - | CV80: - | CW80: - | CX80: - | CY80: - | CZ80: - | DA80: - | DB80: - | DC80: - | DD80: - | DE80: - | DF80: - | DG80: - | DH80: - | DI80: - | DJ80: - | DK80: - | DL80: - | DM80: - | DN80: - | DO80: - | DP80: - | DQ80: - | DR80: - | DS80: - | DT80: - | DU80: - | DV80: - | DW80: - | DX80: - | DY80: - | DZ80: - | EA80: - | EB80: - | EC80: - | ED80: - | EE80: - | EF80: - | EG80: - | EH80: - | EI80: - | EJ80: - | EK80: - | EL80: - | EM80: - | EN80: - | EO80: - | EP80: - | EQ80: - | ER80: - | ES80: - | ET80: - | EU80: - | EV80: - | EW80: - | EX80: - | EY80: - | EZ80: - | FA80: - | FB80: - | FC80: - | FD80: - | FE80: - | FF80: - | FG80: - | FH80: - | FI80: - | FJ80: - | FK80: -
B81: RescareFinance_15 | C81: 81 | E81: Deviation National | F81: - | G81: - | H81: - | I81: - | J81: - | K81: - | L81: - | M81: - | N81: - | O81: - | P81: - | Q81: - | R81: - | S81: - | T81: - | U81: - | V81: - | W81: - | X81: - | Y81: - | Z81: - | AA81: - | AB81: - | AC81: - | AD81: - | AE81: - | AF81: - | AG81: - | AH81: - | AI81: - | AJ81: - | AK81: - | AL81: - | AM81: - | AN81: - | AO81: - | AP81: - | AQ81: - | AR81: - | AS81: - | AT81: - | AU81: - | AV81: - | AW81: - | AX81: - | AY81: - | AZ81: - | BA81: - | BB81: - | BC81: - | BD81: - | BE81: - | BF81: - | BG81: - | BH81: - | BI81: - | BJ81: - | BK81: - | BL81: - | BM81: - | BN81: - | BO81: - | BP81: - | BQ81: - | BR81: - | BS81: - | BT81: - | BU81: - | BV81: - | BW81: - | BX81: - | BY81: - | BZ81: - | CA81: - | CB81: - | CC81: - | CD81: - | CE81: - | CF81: - | CG81: - | CH81: - | CI81: - | CJ81: - | CK81: - | CL81: - | CM81: - | CN81: - | CO81: - | CP81: - | CQ81: - | CR81: - | CS81: - | CT81: - | CU81: - | CV81: - | CW81: - | CX81: - | CY81: - | CZ81: - | DA81: - | DB81: - | DC81: - | DD81: - | DE81: - | DF81: - | DG81: - | DH81: - | DI81: - | DJ81: - | DK81: - | DL81: - | DM81: - | DN81: - | DO81: - | DP81: - | DQ81: - | DR81: - | DS81: - | DT81: - | DU81: - | DV81: - | DW81: - | DX81: - | DY81: - | DZ81: - | EA81: - | EB81: - | EC81: - | ED81: - | EE81: - | EF81: - | EG81: - | EH81: - | EI81: - | EJ81: - | EK81: - | EL81: - | EM81: - | EN81: - | EO81: - | EP81: - | EQ81: - | ER81: - | ES81: - | ET81: - | EU81: - | EV81: - | EW81: - | EX81: - | EY81: - | EZ81: - | FA81: - | FB81: - | FC81: - | FD81: - | FE81: - | FF81: - | FG81: - | FH81: - | FI81: - | FJ81: - | FK81: -
B82: RescareFinance_16 | C82: 82 | E82: Quartile | F82: - | G82: - | H82: - | I82: - | J82: - | K82: - | L82: - | M82: - | N82: - | O82: - | P82: - | Q82: - | R82: - | S82: - | T82: - | U82: - | V82: - | W82: - | X82: - | Y82: - | Z82: - | AA82: - | AB82: - | AC82: - | AD82: - | AE82: - | AF82: - | AG82: - | AH82: - | AI82: - | AJ82: - | AK82: - | AL82: - | AM82: - | AN82: - | AO82: - | AP82: - | AQ82: - | AR82: - | AS82: - | AT82: - | AU82: - | AV82: - | AW82: - | AX82: - | AY82: - | AZ82: - | BA82: - | BB82: - | BC82: - | BD82: - | BE82: - | BF82: - | BG82: - | BH82: - | BI82: - | BJ82: - | BK82: - | BL82: - | BM82: - | BN82: - | BO82: - | BP82: - | BQ82: - | BR82: - | BS82: - | BT82: - | BU82: - | BV82: - | BW82: - | BX82: - | BY82: - | BZ82: - | CA82: - | CB82: - | CC82: - | CD82: - | CE82: - | CF82: - | CG82: - | CH82: - | CI82: - | CJ82: - | CK82: - | CL82: - | CM82: - | CN82: - | CO82: - | CP82: - | CQ82: - | CR82: - | CS82: - | CT82: - | CU82: - | CV82: - | CW82: - | CX82: - | CY82: - | CZ82: - | DA82: - | DB82: - | DC82: - | DD82: - | DE82: - | DF82: - | DG82: - | DH82: - | DI82: - | DJ82: - | DK82: - | DL82: - | DM82: - | DN82: - | DO82: - | DP82: - | DQ82: - | DR82: - | DS82: - | DT82: - | DU82: - | DV82: - | DW82: - | DX82: - | DY82: - | DZ82: - | EA82: - | EB82: - | EC82: - | ED82: - | EE82: - | EF82: - | EG82: - | EH82: - | EI82: - | EJ82: - | EK82: - | EL82: - | EM82: - | EN82: - | EO82: - | EP82: - | EQ82: - | ER82: - | ES82: - | ET82: - | EU82: - | EV82: - | EW82: - | EX82: - | EY82: - | EZ82: - | FA82: - | FB82: - | FC82: - | FD82: - | FE82: - | FF82: - | FG82: - | FH82: - | FI82: - | FJ82: - | FK82: -
B83: SWFinance_1 | C83: 83 | D83: Social Work and Commissioning Finance | E83: - | F83: - | G83: - | H83: - | I83: - | J83: - | K83: - | L83: - | M83: - | N83: - | O83: - | P83: - | Q83: - | R83: - | S83: - | T83: - | U83: - | V83: - | W83: - | X83: - | Y83: - | Z83: - | AA83: - | AB83: - | AC83: - | AD83: - | AE83: - | AF83: - | AG83: - | AH83: - | AI83: - | AJ83: - | AK83: - | AL83: - | AM83: - | AN83: - | AO83: - | AP83: - | AQ83: - | AR83: - | AS83: - | AT83: - | AU83: - | AV83: - | AW83: - | AX83: - | AY83: - | AZ83: - | BA83: - | BB83: - | BC83: - | BD83: - | BE83: - | BF83: - | BG83: - | BH83: - | BI83: - | BJ83: - | BK83: - | BL83: - | BM83: - | BN83: - | BO83: - | BP83: - | BQ83: - | BR83: - | BS83: - | BT83: - | BU83: - | BV83: - | BW83: - | BX83: - | BY83: - | BZ83: - | CA83: - | CB83: - | CC83: - | CD83: - | CE83: - | CF83: - | CG83: - | CH83: - | CI83: - | CJ83: - | CK83: - | CL83: - | CM83: - | CN83: - | CO83: - | CP83: - | CQ83: - | CR83: - | CS83: - | CT83: - | CU83: - | CV83: - | CW83: - | CX83: - | CY83: - | CZ83: - | DA83: - | DB83: - | DC83: - | DD83: - | DE83: - | DF83: - | DG83: - | DH83: - | DI83: - | DJ83: - | DK83: - | DL83: - | DM83: - | DN83: - | DO83: - | DP83: - | DQ83: - | DR83: - | DS83: - | DT83: - | DU83: - | DV83: - | DW83: - | DX83: - | DY83: - | DZ83: - | EA83: - | EB83: - | EC83: - | ED83: - | EE83: - | EF83: - | EG83: - | EH83: - | EI83: - | EJ83: - | EK83: - | EL83: - | EM83: - | EN83: - | EO83: - | EP83: - | EQ83: - | ER83: - | ES83: - | ET83: - | EU83: - | EV83: - | EW83: - | EX83: - | EY83: - | EZ83: - | FA83: - | FB83: - | FC83: - | FD83: - | FE83: - | FF83: - | FG83: - | FH83: - | FI83: - | FJ83: - | FK83: -
B84: SWFinance_2 | C84: 84 | E84: - | F84: - | G84: - | H84: - | I84: - | J84: - | K84: - | L84: - | M84: - | N84: - | O84: - | P84: - | Q84: - | R84: - | S84: - | T84: - | U84: - | V84: - | W84: - | X84: - | Y84: - | Z84: - | AA84: - | AB84: - | AC84: - | AD84: - | AE84: - | AF84: - | AG84: - | AH84: - | AI84: - | AJ84: - | AK84: - | AL84: - | AM84: - | AN84: - | AO84: - | AP84: - | AQ84: - | AR84: - | AS84: - | AT84: - | AU84: - | AV84: - | AW84: - | AX84: - | AY84: - | AZ84: - | BA84: - | BB84: - | BC84: - | BD84: - | BE84: - | BF84: - | BG84: - | BH84: - | BI84: - | BJ84: - | BK84: - | BL84: - | BM84: - | BN84: - | BO84: - | BP84: - | BQ84: - | BR84: - | BS84: - | BT84: - | BU84: - | BV84: - | BW84: - | BX84: - | BY84: - | BZ84: - | CA84: - | CB84: - | CC84: - | CD84: - | CE84: - | CF84: - | CG84: - | CH84: - | CI84: - | CJ84: - | CK84: - | CL84: - | CM84: - | CN84: - | CO84: - | CP84: - | CQ84: - | CR84: - | CS84: - | CT84: - | CU84: - | CV84: - | CW84: - | CX84: - | CY84: - | CZ84: - | DA84: - | DB84: - | DC84: - | DD84: - | DE84: - | DF84: - | DG84: - | DH84: - | DI84: - | DJ84: - | DK84: - | DL84: - | DM84: - | DN84: - | DO84: - | DP84: - | DQ84: - | DR84: - | DS84: - | DT84: - | DU84: - | DV84: - | DW84: - | DX84: - | DY84: - | DZ84: - | EA84: - | EB84: - | EC84: - | ED84: - | EE84: - | EF84: - | EG84: - | EH84: - | EI84: - | EJ84: - | EK84: - | EL84: - | EM84: - | EN84: - | EO84: - | EP84: - | EQ84: - | ER84: - | ES84: - | ET84: - | EU84: - | EV84: - | EW84: - | EX84: - | EY84: - | EZ84: - | FA84: - | FB84: - | FC84: - | FD84: - | FE84: - | FF84: - | FG84: - | FH84: - | FI84: - | FJ84: - | FK84: -
B85: SWFinance_3 | C85: 85 | E85: - | F85: - | G85: - | H85: - | I85: - | J85: - | K85: - | L85: - | M85: - | N85: - | O85: - | P85: - | Q85: - | R85: - | S85: - | T85: - | U85: - | V85: - | W85: - | X85: - | Y85: - | Z85: - | AA85: - | AB85: - | AC85: - | AD85: - | AE85: - | AF85: - | AG85: - | AH85: - | AI85: - | AJ85: - | AK85: - | AL85: - | AM85: - | AN85: - | AO85: - | AP85: - | AQ85: - | AR85: - | AS85: - | AT85: - | AU85: - | AV85: - | AW85: - | AX85: - | AY85: - | AZ85: - | BA85: - | BB85: - | BC85: - | BD85: - | BE85: - | BF85: - | BG85: - | BH85: - | BI85: - | BJ85: - | BK85: - | BL85: - | BM85: - | BN85: - | BO85: - | BP85: - | BQ85: - | BR85: - | BS85: - | BT85: - | BU85: - | BV85: - | BW85: - | BX85: - | BY85: - | BZ85: - | CA85: - | CB85: - | CC85: - | CD85: - | CE85: - | CF85: - | CG85: - | CH85: - | CI85: - | CJ85: - | CK85: - | CL85: - | CM85: - | CN85: - | CO85: - | CP85: - | CQ85: - | CR85: - | CS85: - | CT85: - | CU85: - | CV85: - | CW85: - | CX85: - | CY85: - | CZ85: - | DA85: - | DB85: - | DC85: - | DD85: - | DE85: - | DF85: - | DG85: - | DH85: - | DI85: - | DJ85: - | DK85: - | DL85: - | DM85: - | DN85: - | DO85: - | DP85: - | DQ85: - | DR85: - | DS85: - | DT85: - | DU85: - | DV85: - | DW85: - | DX85: - | DY85: - | DZ85: - | EA85: - | EB85: - | EC85: - | ED85: - | EE85: - | EF85: - | EG85: - | EH85: - | EI85: - | EJ85: - | EK85: - | EL85: - | EM85: - | EN85: - | EO85: - | EP85: - | EQ85: - | ER85: - | ES85: - | ET85: - | EU85: - | EV85: - | EW85: - | EX85: - | EY85: - | EZ85: - | FA85: - | FB85: - | FC85: - | FD85: - | FE85: - | FF85: - | FG85: - | FH85: - | FI85: - | FJ85: - | FK85: -
B86: SWFinance_4 | C86: 86 | E86: 2009-10 (OT) | F86: 120 | G86: 95 | H86: 130 | I86: 100 | J86: 80 | K86: 35 | L86: 135 | M86: 40 | N86: 90 | O86: 50 | P86: 85 | Q86: 95 | R86: 60 | S86: - | T86: 70 | U86: 70 | V86: 80 | W86: 170 | X86: 50 | Y86: 50 | Z86: 55 | AA86: 95 | AB86: 65 | AC86: 45 | AD86: 60 | AE86: 275 | AF86: 105 | AG86: 95 | AH86: 40 | AI86: 100 | AJ86: 65 | AK86: 20 | AL86: - | AM86: 55 | AN86: 125 | AO86: 105 | AP86: 55 | AQ86: 105 | AR86: 105 | AS86: 50 | AT86: - | AU86: 105 | AV86: 95 | AW86: 45 | AX86: 75 | AY86: 90 | AZ86: - | BA86: 40 | BB86: 180 | BC86: 75 | BD86: 90 | BE86: 30 | BF86: 45 | BG86: - | BH86: 215 | BI86: 115 | BJ86: 70 | BK86: 80 | BL86: 65 | BM86: 90 | BN86: 215 | BO86: 135 | BP86: - | BQ86: 95 | BR86: 105 | BS86: 115 | BT86: 60 | BU86: 75 | BV86: 70 | BW86: 105 | BX86: 105 | BY86: - | BZ86: 100 | CA86: 95 | CB86: - | CC86: 60 | CD86: 100 | CE86: 70 | CF86: 100 | CG86: 55 | CH86: 110 | CI86: 80 | CJ86: 90 | CK86: 25 | CL86: 60 | CM86: 95 | CN86: 70 | CO86: 80 | CP86: 95 | CQ86: 55 | CR86: 60 | CS86: 100 | CT86: 65 | CU86: 60 | CV86: 55 | CW86: 5 | CX86: 115 | CY86: 65 | CZ86: 45 | DA86: 60 | DB86: 90 | DC86: 75 | DD86: 135 | DE86: 60 | DF86: 60 | DG86: 100 | DH86: 150 | DI86: 85 | DJ86: 60 | DK86: 60 | DL86: 70 | DM86: 85 | DN86: 85 | DO86: 65 | DP86: 85 | DQ86: 95 | DR86: 75 | DS86: 95 | DT86: 95 | DU86: 10 | DV86: 65 | DW86: 70 | DX86: 80 | DY86: 35 | DZ86: 75 | EA86: 95 | EB86: 135 | EC86: 80 | ED86: 70 | EE86: 80 | EF86: 100 | EG86: 70 | EH86: 70 | EI86: 105 | EJ86: 80 | EK86: 70 | EL86: 55 | EM86: 135 | EN86: 120 | EO86: 55 | EP86: 95 | EQ86: 90 | ER86: 60 | ES86: 55 | ET86: 70 | EU86: 140 | EV86: 105 | EW86: 70 | EX86: 215 | EY86: 70 | EZ86: 0 | FA86: 80 | FB86: 80 | FC86: 75 | FD86: 75 | FE86: 85 | FF86: 90 | FG86: 80 | FH86: 75 | FI86: 100 | FJ86: 110 | FK86: 80
B87: SWFinance_5 | C87: 87 | E87: 2010-11 (OT) | F87: 120 | G87: 125 | H87: 95 | I87: 105 | J87: 80 | K87: 40 | L87: 130 | M87: 115 | N87: 100 | O87: 55 | P87: 85 | Q87: 85 | R87: 75 | S87: 60 | T87: 90 | U87: 85 | V87: 90 | W87: 130 | X87: 45 | Y87: 75 | Z87: 65 | AA87: 90 | AB87: 75 | AC87: 65 | AD87: 60 | AE87: 60 | AF87: 80 | AG87: 105 | AH87: 80 | AI87: 170 | AJ87: 90 | AK87: 10 | AL87: 80 | AM87: 95 | AN87: 120 | AO87: 120 | AP87: 55 | AQ87: 75 | AR87: 105 | AS87: 25 | AT87: 55 | AU87: 100 | AV87: 110 | AW87: 80 | AX87: 80 | AY87: 100 | AZ87: - | BA87: 35 | BB87: 130 | BC87: 55 | BD87: 60 | BE87: 40 | BF87: 70 | BG87: - | BH87: 120 | BI87: 85 | BJ87: 95 | BK87: 80 | BL87: - | BM87: 255 | BN87: 180 | BO87: 200 | BP87: 70 | BQ87: 100 | BR87: 80 | BS87: 90 | BT87: 60 | BU87: 85 | BV87: 80 | BW87: 100 | BX87: 95 | BY87: 35 | BZ87: 90 | CA87: 100 | CB87: 75 | CC87: 80 | CD87: 75 | CE87: 105 | CF87: 90 | CG87: 50 | CH87: 135 | CI87: 75 | CJ87: 100 | CK87: 55 | CL87: 75 | CM87: 130 | CN87: 90 | CO87: 95 | CP87: 90 | CQ87: 75 | CR87: 65 | CS87: 150 | CT87: 75 | CU87: 80 | CV87: 75 | CW87: 60 | CX87: 110 | CY87: 90 | CZ87: 55 | DA87: 85 | DB87: 10 | DC87: 75 | DD87: 135 | DE87: 65 | DF87: 80 | DG87: 150 | DH87: 165 | DI87: 95 | DJ87: 55 | DK87: 115 | DL87: 80 | DM87: 85 | DN87: 115 | DO87: 70 | DP87: 65 | DQ87: 110 | DR87: 85 | DS87: 100 | DT87: 115 | DU87: 75 | DV87: 75 | DW87: 80 | DX87: 85 | DY87: 55 | DZ87: 75 | EA87: 85 | EB87: 135 | EC87: 140 | ED87: 75 | EE87: 90 | EF87: 95 | EG87: 175 | EH87: 70 | EI87: 100 | EJ87: 90 | EK87: 75 | EL87: 90 | EM87: - | EN87: 130 | EO87: 95 | EP87: 120 | EQ87: 90 | ER87: 50 | ES87: 125 | ET87: 50 | EU87: 140 | EV87: 95 | EW87: 75 | EX87: 220 | EY87: 70 | EZ87: 85 | FA87: 95 | FB87: 85 | FC87: 75 | FD87: 80 | FE87: 90 | FF87: 75 | FG87: 95 | FH87: 85 | FI87: 105 | FJ87: 80 | FK87: 90
B88: SWFinance_6 | C88: 88 | E88: 2011-12 (OT) | F88: 100 | G88: 105 | H88: 110 | I88: 90 | J88: 70 | K88: 80 | L88: 160 | M88: 80 | N88: 100 | O88: 60 | P88: 95 | Q88: 100 | R88: 70 | S88: 105 | T88: 120 | U88: 85 | V88: 95 | W88: 135 | X88: 55 | Y88: 80 | Z88: 90 | AA88: 100 | AB88: 70 | AC88: 50 | AD88: 115 | AE88: 220 | AF88: 130 | AG88: 100 | AH88: 105 | AI88: 125 | AJ88: 75 | AK88: 60 | AL88: 50 | AM88: 100 | AN88: 55 | AO88: 130 | AP88: 65 | AQ88: 85 | AR88: 115 | AS88: 30 | AT88: 50 | AU88: 95 | AV88: 110 | AW88: 80 | AX88: 90 | AY88: 75 | AZ88: 105 | BA88: 15 | BB88: 100 | BC88: 70 | BD88: 115 | BE88: 130 | BF88: 50 | BG88: - | BH88: 85 | BI88: 105 | BJ88: 60 | BK88: 75 | BL88: 185 | BM88: 255 | BN88: 135 | BO88: 175 | BP88: 110 | BQ88: 65 | BR88: 95 | BS88: 130 | BT88: 50 | BU88: 65 | BV88: 80 | BW88: 130 | BX88: 115 | BY88: 45 | BZ88: 75 | CA88: 95 | CB88: 75 | CC88: 75 | CD88: 105 | CE88: 110 | CF88: 65 | CG88: 55 | CH88: 110 | CI88: 65 | CJ88: - | CK88: 20 | CL88: 105 | CM88: 150 | CN88: 90 | CO88: 85 | CP88: 85 | CQ88: 55 | CR88: 70 | CS88: 105 | CT88: 65 | CU88: 80 | CV88: 95 | CW88: 95 | CX88: 110 | CY88: 95 | CZ88: 65 | DA88: 90 | DB88: 95 | DC88: 75 | DD88: 140 | DE88: 65 | DF88: 100 | DG88: 75 | DH88: 85 | DI88: 140 | DJ88: 55 | DK88: 120 | DL88: 50 | DM88: 130 | DN88: 110 | DO88: 75 | DP88: 75 | DQ88: 70 | DR88: 75 | DS88: 90 | DT88: 115 | DU88: 80 | DV88: 85 | DW88: 80 | DX88: 80 | DY88: 50 | DZ88: 90 | EA88: 105 | EB88: 130 | EC88: 125 | ED88: 100 | EE88: 95 | EF88: 80 | EG88: 110 | EH88: 90 | EI88: 115 | EJ88: 90 | EK88: 65 | EL88: 80 | EM88: 125 | EN88: 120 | EO88: 85 | EP88: 125 | EQ88: 80 | ER88: 5 | ES88: 110 | ET88: 60 | EU88: 135 | EV88: 95 | EW88: 90 | EX88: 305 | EY88: 125 | EZ88: 70 | FA88: 60 | FB88: 90 | FC88: 75 | FD88: 80 | FE88: 90 | FF88: 65 | FG88: 100 | FH88: 85 | FI88: 105 | FJ88: 95 | FK88: 100
B89: SWFinance_7 | C89: 89 | E89: 2012-13 (OT) | F89: 105 | G89: 165 | H89: 145 | I89: 75 | J89: 115 | K89: 80 | L89: 90 | M89: 90 | N89: 140 | O89: 75 | P89: 100 | Q89: 95 | R89: 85 | S89: 115 | T89: 135 | U89: 105 | V89: 135 | W89: 195 | X89: 80 | Y89: 75 | Z89: 210 | AA89: 105 | AB89: 80 | AC89: 105 | AD89: 110 | AE89: 280 | AF89: 125 | AG89: 95 | AH89: 70 | AI89: 115 | AJ89: 85 | AK89: 75 | AL89: 80 | AM89: 110 | AN89: 65 | AO89: 115 | AP89: 65 | AQ89: - | AR89: 85 | AS89: 30 | AT89: 55 | AU89: 115 | AV89: 125 | AW89: 75 | AX89: 100 | AY89: 85 | AZ89: 170 | BA89: 110 | BB89: 100 | BC89: 65 | BD89: 115 | BE89: 150 | BF89: 80 | BG89: 145 | BH89: 90 | BI89: 110 | BJ89: 90 | BK89: 120 | BL89: 100 | BM89: 265 | BN89: 165 | BO89: 240 | BP89: 110 | BQ89: 70 | BR89: 80 | BS89: 100 | BT89: 60 | BU89: 90 | BV89: 90 | BW89: 130 | BX89: 120 | BY89: 60 | BZ89: 70 | CA89: 125 | CB89: 90 | CC89: 60 | CD89: 95 | CE89: 70 | CF89: 85 | CG89: 55 | CH89: 135 | CI89: 80 | CJ89: 30 | CK89: - | CL89: 55 | CM89: 190 | CN89: 105 | CO89: 95 | CP89: 90 | CQ89: 85 | CR89: 65 | CS89: 80 | CT89: 60 | CU89: - | CV89: 105 | CW89: 95 | CX89: 90 | CY89: 100 | CZ89: 95 | DA89: 95 | DB89: 115 | DC89: 70 | DD89: 165 | DE89: 65 | DF89: 130 | DG89: 75 | DH89: 100 | DI89: 140 | DJ89: 45 | DK89: 90 | DL89: 75 | DM89: 135 | DN89: 130 | DO89: 75 | DP89: 65 | DQ89: 75 | DR89: 115 | DS89: 155 | DT89: 200 | DU89: 80 | DV89: 120 | DW89: 115 | DX89: 70 | DY89: 50 | DZ89: 95 | EA89: 95 | EB89: 145 | EC89: 90 | ED89: 120 | EE89: 75 | EF89: 95 | EG89: 35 | EH89: 95 | EI89: 135 | EJ89: 85 | EK89: 85 | EL89: 100 | EM89: 110 | EN89: 105 | EO89: 130 | EP89: 125 | EQ89: 135 | ER89: 20 | ES89: 205 | ET89: 95 | EU89: 125 | EV89: 105 | EW89: 100 | EX89: 300 | EY89: 120 | EZ89: 90 | FA89: 65 | FB89: 95 | FC89: 90 | FD89: 95 | FE89: 90 | FF89: 80 | FG89: 95 | FH89: 115 | FI89: 115 | FJ89: 100 | FK89: 100
B90: SWFinance_8 | C90: 90 | E90: 2013-14 (OT) | F90: 125 | G90: 175 | H90: 180 | I90: 90 | J90: 100 | K90: 165 | L90: 105 | M90: 100 | N90: 120 | O90: 55 | P90: 105 | Q90: 115 | R90: 70 | S90: 100 | T90: 120 | U90: 105 | V90: 125 | W90: 155 | X90: 65 | Y90: 145 | Z90: 130 | AA90: 120 | AB90: 70 | AC90: 90 | AD90: 110 | AE90: 630 | AF90: - | AG90: 70 | AH90: 115 | AI90: 105 | AJ90: 60 | AK90: 85 | AL90: 75 | AM90: 95 | AN90: 95 | AO90: 130 | AP90: 55 | AQ90: 95 | AR90: 80 | AS90: 30 | AT90: 75 | AU90: 110 | AV90: 135 | AW90: 75 | AX90: 90 | AY90: 110 | AZ90: 155 | BA90: 105 | BB90: 115 | BC90: 55 | BD90: 130 | BE90: 135 | BF90: 70 | BG90: 160 | BH90: 125 | BI90: 115 | BJ90: 70 | BK90: 115 | BL90: 125 | BM90: - | BN90: 185 | BO90: 305 | BP90: 85 | BQ90: 70 | BR90: 110 | BS90: 100 | BT90: 65 | BU90: 80 | BV90: 55 | BW90: 110 | BX90: 145 | BY90: 50 | BZ90: 70 | CA90: 125 | CB90: 95 | CC90: 65 | CD90: 115 | CE90: 75 | CF90: 100 | CG90: 65 | CH90: 115 | CI90: 85 | CJ90: 110 | CK90: 25 | CL90: 60 | CM90: 175 | CN90: 80 | CO90: 85 | CP90: 95 | CQ90: 90 | CR90: 55 | CS90: 70 | CT90: 60 | CU90: 50 | CV90: 105 | CW90: 90 | CX90: 115 | CY90: 90 | CZ90: 110 | DA90: 70 | DB90: 100 | DC90: 85 | DD90: 150 | DE90: 80 | DF90: 110 | DG90: 100 | DH90: 110 | DI90: 140 | DJ90: 105 | DK90: 90 | DL90: 90 | DM90: 110 | DN90: 105 | DO90: 75 | DP90: 75 | DQ90: 60 | DR90: 135 | DS90: 150 | DT90: 145 | DU90: 70 | DV90: 105 | DW90: 125 | DX90: 75 | DY90: 60 | DZ90: 105 | EA90: 90 | EB90: 155 | EC90: 180 | ED90: 60 | EE90: 60 | EF90: 90 | EG90: 65 | EH90: 80 | EI90: 115 | EJ90: 80 | EK90: 80 | EL90: 110 | EM90: 110 | EN90: 95 | EO90: 140 | EP90: 110 | EQ90: 120 | ER90: 25 | ES90: 170 | ET90: 70 | EU90: 130 | EV90: 85 | EW90: 95 | EX90: 260 | EY90: 105 | EZ90: 90 | FA90: 60 | FB90: 95 | FC90: 75 | FD90: 85 | FE90: 90 | FF90: 80 | FG90: 95 | FH90: 90 | FI90: 120 | FJ90: 95 | FK90: 100
B91: SWFinance_9 | C91: 91 | E91: 2014-15 (S251) | F91: 100 | G91: 145 | H91: 160 | I91: 80 | J91: 95 | K91: 115 | L91: 130 | M91: 85 | N91: 85 | O91: 50 | P91: 90 | Q91: 105 | R91: 70 | S91: 95 | T91: 120 | U91: 80 | V91: 130 | W91: 140 | X91: 65 | Y91: 125 | Z91: 125 | AA91: 105 | AB91: 75 | AC91: 90 | AD91: 90 | AE91: 710 | AF91: - | AG91: 60 | AH91: 110 | AI91: 95 | AJ91: 65 | AK91: 95 | AL91: 65 | AM91: 95 | AN91: 105 | AO91: 115 | AP91: 55 | AQ91: 90 | AR91: 80 | AS91: 35 | AT91: 80 | AU91: 100 | AV91: 145 | AW91: 75 | AX91: 95 | AY91: 75 | AZ91: 145 | BA91: 100 | BB91: 120 | BC91: 55 | BD91: 110 | BE91: 125 | BF91: 75 | BG91: 150 | BH91: 120 | BI91: 105 | BJ91: 70 | BK91: 110 | BL91: 110 | BM91: - | BN91: 155 | BO91: 170 | BP91: 95 | BQ91: 55 | BR91: 60 | BS91: 95 | BT91: 60 | BU91: 80 | BV91: 50 | BW91: 110 | BX91: 135 | BY91: 50 | BZ91: 75 | CA91: 115 | CB91: 90 | CC91: 50 | CD91: 65 | CE91: 80 | CF91: 90 | CG91: 60 | CH91: 115 | CI91: 85 | CJ91: 70 | CK91: 25 | CL91: 50 | CM91: 165 | CN91: 75 | CO91: 80 | CP91: 100 | CQ91: 65 | CR91: 50 | CS91: 100 | CT91: 55 | CU91: 50 | CV91: 90 | CW91: 60 | CX91: 100 | CY91: 95 | CZ91: 95 | DA91: 70 | DB91: 105 | DC91: 90 | DD91: 140 | DE91: 105 | DF91: 110 | DG91: 65 | DH91: 105 | DI91: 155 | DJ91: 130 | DK91: 75 | DL91: 85 | DM91: 75 | DN91: 110 | DO91: 55 | DP91: 70 | DQ91: 85 | DR91: 130 | DS91: 130 | DT91: 170 | DU91: 70 | DV91: 105 | DW91: 100 | DX91: 70 | DY91: 55 | DZ91: 125 | EA91: 70 | EB91: 175 | EC91: 160 | ED91: 70 | EE91: 55 | EF91: 90 | EG91: 45 | EH91: 75 | EI91: 110 | EJ91: 115 | EK91: 65 | EL91: 100 | EM91: 90 | EN91: 150 | EO91: 130 | EP91: 120 | EQ91: 125 | ER91: 25 | ES91: 120 | ET91: 95 | EU91: 120 | EV91: 75 | EW91: 80 | EX91: 235 | EY91: 85 | EZ91: 85 | FA91: 55 | FB91: 90 | FC91: 75 | FD91: 80 | FE91: 85 | FF91: 75 | FG91: 100 | FH91: 90 | FI91: 110 | FJ91: 95 | FK91: 90
B92: SWFinance_10 | C92: 92 | F92: - | G92: - | H92: - | I92: - | J92: - | K92: - | L92: - | M92: - | N92: - | O92: - | P92: - | Q92: - | R92: - | S92: - | T92: - | U92: - | V92: - | W92: - | X92: - | Y92: - | Z92: - | AA92: - | AB92: - | AC92: - | AD92: - | AE92: - | AF92: - | AG92: - | AH92: - | AI92: - | AJ92: - | AK92: - | AL92: - | AM92: - | AN92: - | AO92: - | AP92: - | AQ92: - | AR92: - | AS92: - | AT92: - | AU92: - | AV92: - | AW92: - | AX92: - | AY92: - | AZ92: - | BA92: - | BB92: - | BC92: - | BD92: - | BE92: - | BF92: - | BG92: - | BH92: - | BI92: - | BJ92: - | BK92: - | BL92: - | BM92: - | BN92: - | BO92: - | BP92: - | BQ92: - | BR92: - | BS92: - | BT92: - | BU92: - | BV92: - | BW92: - | BX92: - | BY92: - | BZ92: - | CA92: - | CB92: - | CC92: - | CD92: - | CE92: - | CF92: - | CG92: - | CH92: - | CI92: - | CJ92: - | CK92: - | CL92: - | CM92: - | CN92: - | CO92: - | CP92: - | CQ92: - | CR92: - | CS92: - | CT92: - | CU92: - | CV92: - | CW92: - | CX92: - | CY92: - | CZ92: - | DA92: - | DB92: - | DC92: - | DD92: - | DE92: - | DF92: - | DG92: - | DH92: - | DI92: - | DJ92: - | DK92: - | DL92: - | DM92: - | DN92: - | DO92: - | DP92: - | DQ92: - | DR92: - | DS92: - | DT92: - | DU92: - | DV92: - | DW92: - | DX92: - | DY92: - | DZ92: - | EA92: - | EB92: - | EC92: - | ED92: - | EE92: - | EF92: - | EG92: - | EH92: - | EI92: - | EJ92: - | EK92: - | EL92: - | EM92: - | EN92: - | EO92: - | EP92: - | EQ92: - | ER92: - | ES92: - | ET92: - | EU92: - | EV92: - | EW92: - | EX92: - | EY92: - | EZ92: - | FA92: - | FB92: - | FC92: - | FD92: - | FE92: - | FF92: - | FG92: - | FH92: - | FI92: - | FJ92: - | FK92: - | FL92: -
B93: SWFinance_11 | C93: 93 | E93: Trend | F93: ê | G93: ê | H93: ê | I93: ê | J93: ê | K93: ê | L93: é | M93: ê | N93: ê | O93: ê | P93: ê | Q93: ê | R93: ó | S93: ê | T93: ó | U93: ê | V93: é | W93: ê | X93: ó | Y93: ê | Z93: ê | AA93: ê | AB93: é | AC93: ó | AD93: ê | AE93: é | AF93: ó | AG93: ê | AH93: ê | AI93: ê | AJ93: é | AK93: é | AL93: ê | AM93: ó | AN93: é | AO93: ê | AP93: ó | AQ93: ê | AR93: ó | AS93: é | AT93: é | AU93: ê | AV93: é | AW93: ó | AX93: é | AY93: ê | AZ93: ê | BA93: ê | BB93: é | BC93: ó | BD93: ê | BE93: ê | BF93: é | BG93: ê | BH93: ê | BI93: ê | BJ93: ó | BK93: ê | BL93: ê | BM93: ó | BN93: ê | BO93: ê | BP93: é | BQ93: ê | BR93: ê | BS93: ê | BT93: ê | BU93: ó | BV93: ê | BW93: ó | BX93: ê | BY93: ó | BZ93: é | CA93: ê | CB93: ê | CC93: ê | CD93: ê | CE93: é | CF93: ê | CG93: ê | CH93: ó | CI93: ó | CJ93: ê | CK93: ó | CL93: ê | CM93: ê | CN93: ê | CO93: ê | CP93: é | CQ93: ê | CR93: ê | CS93: é | CT93: ê | CU93: ó | CV93: ê | CW93: ê | CX93: ê | CY93: é | CZ93: ê | DA93: ó | DB93: é | DC93: é | DD93: ê | DE93: é | DF93: ó | DG93: ê | DH93: ê | DI93: é | DJ93: é | DK93: ê | DL93: ê | DM93: ê | DN93: é | DO93: ê | DP93: ê | DQ93: é | DR93: ê | DS93: ê | DT93: é | DU93: ó | DV93: ó | DW93: ê | DX93: ê | DY93: ê | DZ93: é | EA93: ê | EB93: é | EC93: ê | ED93: é | EE93: ê | EF93: ó | EG93: ê | EH93: ê | EI93: ê | EJ93: é | EK93: ê | EL93: ê | EM93: ê | EN93: é | EO93: ê | EP93: é | EQ93: é | ER93: ó | ES93: ê | ET93: é | EU93: ê | EV93: ê | EW93: ê | EX93: ê | EY93: ê | EZ93: ê | FA93: ê | FB93: ê | FC93: ó | FD93: ê | FE93: ê | FF93: ê | FG93: é | FH93: ó | FI93: ê | FJ93: ó | FK93: ê
B94: SWFinance_12 | C94: 94 | E94: Change | F94: -25 | G94: -30 | H94: -20 | I94: -10 | J94: -5 | K94: -50 | L94: 25 | M94: -15 | N94: -35 | O94: -5 | P94: -15 | Q94: -10 | R94: 0 | S94: -5 | T94: 0 | U94: -25 | V94: 5 | W94: -15 | X94: 0 | Y94: -20 | Z94: -5 | AA94: -15 | AB94: 5 | AC94: 0 | AD94: -20 | AE94: 80 | AF94: - | AG94: -10 | AH94: -5 | AI94: -10 | AJ94: 5 | AK94: 10 | AL94: -10 | AM94: 0 | AN94: 10 | AO94: -15 | AP94: 0 | AQ94: -5 | AR94: 0 | AS94: 5 | AT94: 5 | AU94: -10 | AV94: 10 | AW94: 0 | AX94: 5 | AY94: -35 | AZ94: -10 | BA94: -5 | BB94: 5 | BC94: 0 | BD94: -20 | BE94: -10 | BF94: 5 | BG94: -10 | BH94: -5 | BI94: -10 | BJ94: 0 | BK94: -5 | BL94: -15 | BM94: - | BN94: -30 | BO94: -135 | BP94: 10 | BQ94: -15 | BR94: -50 | BS94: -5 | BT94: -5 | BU94: 0 | BV94: -5 | BW94: 0 | BX94: -10 | BY94: 0 | BZ94: 5 | CA94: -10 | CB94: -5 | CC94: -15 | CD94: -50 | CE94: 5 | CF94: -10 | CG94: -5 | CH94: 0 | CI94: 0 | CJ94: -40 | CK94: 0 | CL94: -10 | CM94: -10 | CN94: -5 | CO94: -5 | CP94: 5 | CQ94: -25 | CR94: -5 | CS94: 30 | CT94: -5 | CU94: 0 | CV94: -15 | CW94: -30 | CX94: -15 | CY94: 5 | CZ94: -15 | DA94: 0 | DB94: 5 | DC94: 5 | DD94: -10 | DE94: 25 | DF94: 0 | DG94: -35 | DH94: -5 | DI94: 15 | DJ94: 25 | DK94: -15 | DL94: -5 | DM94: -35 | DN94: 5 | DO94: -20 | DP94: -5 | DQ94: 25 | DR94: -5 | DS94: -20 | DT94: 25 | DU94: 0 | DV94: 0 | DW94: -25 | DX94: -5 | DY94: -5 | DZ94: 20 | EA94: -20 | EB94: 20 | EC94: -20 | ED94: 10 | EE94: -5 | EF94: 0 | EG94: -20 | EH94: -5 | EI94: -5 | EJ94: 35 | EK94: -15 | EL94: -10 | EM94: -20 | EN94: 55 | EO94: -10 | EP94: 10 | EQ94: 5 | ER94: 0 | ES94: -50 | ET94: 25 | EU94: -10 | EV94: -10 | EW94: -15 | EX94: -25 | EY94: -20 | EZ94: -5 | FA94: -5 | FB94: -5 | FC94: 0 | FD94: -5 | FE94: -5 | FF94: -5 | FG94: 5 | FH94: 0 | FI94: -10 | FJ94: 0 | FK94: -10
B95: SWFinance_13 | C95: 95 | E95: Rank | F95: - | G95: - | H95: - | I95: - | J95: - | K95: - | L95: - | M95: - | N95: - | O95: - | P95: - | Q95: - | R95: - | S95: - | T95: - | U95: - | V95: - | W95: - | X95: - | Y95: - | Z95: - | AA95: - | AB95: - | AC95: - | AD95: - | AE95: - | AF95: - | AG95: - | AH95: - | AI95: - | AJ95: - | AK95: - | AL95: - | AM95: - | AN95: - | AO95: - | AP95: - | AQ95: - | AR95: - | AS95: - | AT95: - | AU95: - | AV95: - | AW95: - | AX95: - | AY95: - | AZ95: - | BA95: - | BB95: - | BC95: - | BD95: - | BE95: - | BF95: - | BG95: - | BH95: - | BI95: - | BJ95: - | BK95: - | BL95: - | BM95: - | BN95: - | BO95: - | BP95: - | BQ95: - | BR95: - | BS95: - | BT95: - | BU95: - | BV95: - | BW95: - | BX95: - | BY95: - | BZ95: - | CA95: - | CB95: - | CC95: - | CD95: - | CE95: - | CF95: - | CG95: - | CH95: - | CI95: - | CJ95: - | CK95: - | CL95: - | CM95: - | CN95: - | CO95: - | CP95: - | CQ95: - | CR95: - | CS95: - | CT95: - | CU95: - | CV95: - | CW95: - | CX95: - | CY95: - | CZ95: - | DA95: - | DB95: - | DC95: - | DD95: - | DE95: - | DF95: - | DG95: - | DH95: - | DI95: - | DJ95: - | DK95: - | DL95: - | DM95: - | DN95: - | DO95: - | DP95: - | DQ95: - | DR95: - | DS95: - | DT95: - | DU95: - | DV95: - | DW95: - | DX95: - | DY95: - | DZ95: - | EA95: - | EB95: - | EC95: - | ED95: - | EE95: - | EF95: - | EG95: - | EH95: - | EI95: - | EJ95: - | EK95: - | EL95: - | EM95: - | EN95: - | EO95: - | EP95: - | EQ95: - | ER95: - | ES95: - | ET95: - | EU95: - | EV95: - | EW95: - | EX95: - | EY95: - | EZ95: - | FA95: - | FB95: - | FC95: - | FD95: - | FE95: - | FF95: - | FG95: - | FH95: - | FI95: - | FJ95: - | FK95: -
B96: SWFinance_14 | C96: 96 | F96: - | G96: - | H96: - | I96: - | J96: - | K96: - | L96: - | M96: - | N96: - | O96: - | P96: - | Q96: - | R96: - | S96: - | T96: - | U96: - | V96: - | W96: - | X96: - | Y96: - | Z96: - | AA96: - | AB96: - | AC96: - | AD96: - | AE96: - | AF96: - | AG96: - | AH96: - | AI96: - | AJ96: - | AK96: - | AL96: - | AM96: - | AN96: - | AO96: - | AP96: - | AQ96: - | AR96: - | AS96: - | AT96: - | AU96: - | AV96: - | AW96: - | AX96: - | AY96: - | AZ96: - | BA96: - | BB96: - | BC96: - | BD96: - | BE96: - | BF96: - | BG96: - | BH96: - | BI96: - | BJ96: - | BK96: - | BL96: - | BM96: - | BN96: - | BO96: - | BP96: - | BQ96: - | BR96: - | BS96: - | BT96: - | BU96: - | BV96: - | BW96: - | BX96: - | BY96: - | BZ96: - | CA96: - | CB96: - | CC96: - | CD96: - | CE96: - | CF96: - | CG96: - | CH96: - | CI96: - | CJ96: - | CK96: - | CL96: - | CM96: - | CN96: - | CO96: - | CP96: - | CQ96: - | CR96: - | CS96: - | CT96: - | CU96: - | CV96: - | CW96: - | CX96: - | CY96: - | CZ96: - | DA96: - | DB96: - | DC96: - | DD96: - | DE96: - | DF96: - | DG96: - | DH96: - | DI96: - | DJ96: - | DK96: - | DL96: - | DM96: - | DN96: - | DO96: - | DP96: - | DQ96: - | DR96: - | DS96: - | DT96: - | DU96: - | DV96: - | DW96: - | DX96: - | DY96: - | DZ96: - | EA96: - | EB96: - | EC96: - | ED96: - | EE96: - | EF96: - | EG96: - | EH96: - | EI96: - | EJ96: - | EK96: - | EL96: - | EM96: - | EN96: - | EO96: - | EP96: - | EQ96: - | ER96: - | ES96: - | ET96: - | EU96: - | EV96: - | EW96: - | EX96: - | EY96: - | EZ96: - | FA96: - | FB96: - | FC96: - | FD96: - | FE96: - | FF96: - | FG96: - | FH96: - | FI96: - | FJ96: - | FK96: -
B97: SWFinance_15 | C97: 97 | E97: Deviation National | F97: - | G97: - | H97: - | I97: - | J97: - | K97: - | L97: - | M97: - | N97: - | O97: - | P97: - | Q97: - | R97: - | S97: - | T97: - | U97: - | V97: - | W97: - | X97: - | Y97: - | Z97: - | AA97: - | AB97: - | AC97: - | AD97: - | AE97: - | AF97: - | AG97: - | AH97: - | AI97: - | AJ97: - | AK97: - | AL97: - | AM97: - | AN97: - | AO97: - | AP97: - | AQ97: - | AR97: - | AS97: - | AT97: - | AU97: - | AV97: - | AW97: - | AX97: - | AY97: - | AZ97: - | BA97: - | BB97: - | BC97: - | BD97: - | BE97: - | BF97: - | BG97: - | BH97: - | BI97: - | BJ97: - | BK97: - | BL97: - | BM97: - | BN97: - | BO97: - | BP97: - | BQ97: - | BR97: - | BS97: - | BT97: - | BU97: - | BV97: - | BW97: - | BX97: - | BY97: - | BZ97: - | CA97: - | CB97: - | CC97: - | CD97: - | CE97: - | CF97: - | CG97: - | CH97: - | CI97: - | CJ97: - | CK97: - | CL97: - | CM97: - | CN97: - | CO97: - | CP97: - | CQ97: - | CR97: - | CS97: - | CT97: - | CU97: - | CV97: - | CW97: - | CX97: - | CY97: - | CZ97: - | DA97: - | DB97: - | DC97: - | DD97: - | DE97: - | DF97: - | DG97: - | DH97: - | DI97: - | DJ97: - | DK97: - | DL97: - | DM97: - | DN97: - | DO97: - | DP97: - | DQ97: - | DR97: - | DS97: - | DT97: - | DU97: - | DV97: - | DW97: - | DX97: - | DY97: - | DZ97: - | EA97: - | EB97: - | EC97: - | ED97: - | EE97: - | EF97: - | EG97: - | EH97: - | EI97: - | EJ97: - | EK97: - | EL97: - | EM97: - | EN97: - | EO97: - | EP97: - | EQ97: - | ER97: - | ES97: - | ET97: - | EU97: - | EV97: - | EW97: - | EX97: - | EY97: - | EZ97: - | FA97: - | FB97: - | FC97: - | FD97: - | FE97: - | FF97: - | FG97: - | FH97: - | FI97: - | FJ97: - | FK97: -
B98: SWFinance_16 | C98: 98 | E98: Quartile | F98: - | G98: - | H98: - | I98: - | J98: - | K98: - | L98: - | M98: - | N98: - | O98: - | P98: - | Q98: - | R98: - | S98: - | T98: - | U98: - | V98: - | W98: - | X98: - | Y98: - | Z98: - | AA98: - | AB98: - | AC98: - | AD98: - | AE98: - | AF98: - | AG98: - | AH98: - | AI98: - | AJ98: - | AK98: - | AL98: - | AM98: - | AN98: - | AO98: - | AP98: - | AQ98: - | AR98: - | AS98: - | AT98: - | AU98: - | AV98: - | AW98: - | AX98: - | AY98: - | AZ98: - | BA98: - | BB98: - | BC98: - | BD98: - | BE98: - | BF98: - | BG98: - | BH98: - | BI98: - | BJ98: - | BK98: - | BL98: - | BM98: - | BN98: - | BO98: - | BP98: - | BQ98: - | BR98: - | BS98: - | BT98: - | BU98: - | BV98: - | BW98: - | BX98: - | BY98: - | BZ98: - | CA98: - | CB98: - | CC98: - | CD98: - | CE98: - | CF98: - | CG98: - | CH98: - | CI98: - | CJ98: - | CK98: - | CL98: - | CM98: - | CN98: - | CO98: - | CP98: - | CQ98: - | CR98: - | CS98: - | CT98: - | CU98: - | CV98: - | CW98: - | CX98: - | CY98: - | CZ98: - | DA98: - | DB98: - | DC98: - | DD98: - | DE98: - | DF98: - | DG98: - | DH98: - | DI98: - | DJ98: - | DK98: - | DL98: - | DM98: - | DN98: - | DO98: - | DP98: - | DQ98: - | DR98: - | DS98: - | DT98: - | DU98: - | DV98: - | DW98: - | DX98: - | DY98: - | DZ98: - | EA98: - | EB98: - | EC98: - | ED98: - | EE98: - | EF98: - | EG98: - | EH98: - | EI98: - | EJ98: - | EK98: - | EL98: - | EM98: - | EN98: - | EO98: - | EP98: - | EQ98: - | ER98: - | ES98: - | ET98: - | EU98: - | EV98: - | EW98: - | EX98: - | EY98: - | EZ98: - | FA98: - | FB98: - | FC98: - | FD98: - | FE98: - | FF98: - | FG98: - | FH98: - | FI98: - | FJ98: - | FK98: -
B99: SENFinance_1 | C99: 99 | D99: SEN Finance | E99: - | F99: - | G99: - | H99: - | I99: - | J99: - | K99: - | L99: - | M99: - | N99: - | O99: - | P99: - | Q99: - | R99: - | S99: - | T99: - | U99: - | V99: - | W99: - | X99: - | Y99: - | Z99: - | AA99: - | AB99: - | AC99: - | AD99: - | AE99: - | AF99: - | AG99: - | AH99: - | AI99: - | AJ99: - | AK99: - | AL99: - | AM99: - | AN99: - | AO99: - | AP99: - | AQ99: - | AR99: - | AS99: - | AT99: - | AU99: - | AV99: - | AW99: - | AX99: - | AY99: - | AZ99: - | BA99: - | BB99: - | BC99: - | BD99: - | BE99: - | BF99: - | BG99: - | BH99: - | BI99: - | BJ99: - | BK99: - | BL99: - | BM99: - | BN99: - | BO99: - | BP99: - | BQ99: - | BR99: - | BS99: - | BT99: - | BU99: - | BV99: - | BW99: - | BX99: - | BY99: - | BZ99: - | CA99: - | CB99: - | CC99: - | CD99: - | CE99: - | CF99: - | CG99: - | CH99: - | CI99: - | CJ99: - | CK99: - | CL99: - | CM99: - | CN99: - | CO99: - | CP99: - | CQ99: - | CR99: - | CS99: - | CT99: - | CU99: - | CV99: - | CW99: - | CX99: - | CY99: - | CZ99: - | DA99: - | DB99: - | DC99: - | DD99: - | DE99: - | DF99: - | DG99: - | DH99: - | DI99: - | DJ99: - | DK99: - | DL99: - | DM99: - | DN99: - | DO99: - | DP99: - | DQ99: - | DR99: - | DS99: - | DT99: - | DU99: - | DV99: - | DW99: - | DX99: - | DY99: - | DZ99: - | EA99: - | EB99: - | EC99: - | ED99: - | EE99: - | EF99: - | EG99: - | EH99: - | EI99: - | EJ99: - | EK99: - | EL99: - | EM99: - | EN99: - | EO99: - | EP99: - | EQ99: - | ER99: - | ES99: - | ET99: - | EU99: - | EV99: - | EW99: - | EX99: - | EY99: - | EZ99: - | FA99: - | FB99: - | FC99: - | FD99: - | FE99: - | FF99: - | FG99: - | FH99: - | FI99: - | FJ99: - | FK99: -
B100: SENFinance_2 | C100: 100 | E100: - | F100: - | G100: - | H100: - | I100: - | J100: - | K100: - | L100: - | M100: - | N100: - | O100: - | P100: - | Q100: - | R100: - | S100: - | T100: - | U100: - | V100: - | W100: - | X100: - | Y100: - | Z100: - | AA100: - | AB100: - | AC100: - | AD100: - | AE100: - | AF100: - | AG100: - | AH100: - | AI100: - | AJ100: - | AK100: - | AL100: - | AM100: - | AN100: - | AO100: - | AP100: - | AQ100: - | AR100: - | AS100: - | AT100: - | AU100: - | AV100: - | AW100: - | AX100: - | AY100: - | AZ100: - | BA100: - | BB100: - | BC100: - | BD100: - | BE100: - | BF100: - | BG100: - | BH100: - | BI100: - | BJ100: - | BK100: - | BL100: - | BM100: - | BN100: - | BO100: - | BP100: - | BQ100: - | BR100: - | BS100: - | BT100: - | BU100: - | BV100: - | BW100: - | BX100: - | BY100: - | BZ100: - | CA100: - | CB100: - | CC100: - | CD100: - | CE100: - | CF100: - | CG100: - | CH100: - | CI100: - | CJ100: - | CK100: - | CL100: - | CM100: - | CN100: - | CO100: - | CP100: - | CQ100: - | CR100: - | CS100: - | CT100: - | CU100: - | CV100: - | CW100: - | CX100: - | CY100: - | CZ100: - | DA100: - | DB100: - | DC100: - | DD100: - | DE100: - | DF100: - | DG100: - | DH100: - | DI100: - | DJ100: - | DK100: - | DL100: - | DM100: - | DN100: - | DO100: - | DP100: - | DQ100: - | DR100: - | DS100: - | DT100: - | DU100: - | DV100: - | DW100: - | DX100: - | DY100: - | DZ100: - | EA100: - | EB100: - | EC100: - | ED100: - | EE100: - | EF100: - | EG100: - | EH100: - | EI100: - | EJ100: - | EK100: - | EL100: - | EM100: - | EN100: - | EO100: - | EP100: - | EQ100: - | ER100: - | ES100: - | ET100: - | EU100: - | EV100: - | EW100: - | EX100: - | EY100: - | EZ100: - | FA100: - | FB100: - | FC100: - | FD100: - | FE100: - | FF100: - | FG100: - | FH100: - | FI100: - | FJ100: - | FK100: -
